Workbook

Sheet Summary of Funding (hidden)
A1: Date Issued: 13th October 2025 | H1: Last Amended: 10th October 2025
A2: COVENTRY CITY COUNCIL
A3: 2025-26 Funding Allocations for Special Schools & Alternative Provision | P3: 1
A4: Summary of Funding
A6: =_xlfn.XLOOKUP($P$3,Data!A4:A12,Data!B4:B12) -> Castle Wood Special School
A9: =IF(P44=0,"","***ERROR - CALCULATED ADJUSTMENT DOES NOT EQUAL ACTUAL ***") -> 
A10: Coventry Budget Share Elements
A12: Place Led Funding - see 'Place Led Funding' tab | F12: ='Place Led Funding'!M26 -> 1791666.667 | P12: =_xlfn.XLOOKUP(P3,Data!A113:A122,Data!C113:C122)-F12 -> 0
A14: INDICATIVE Coventry Top-up Funding - see 'Top-up Funding' tabs | F14: ='Summer 2025 Top-up'!K29+'Autumn 2025 Top-up'!K29+'Spring 2026 Top-up'!K29 -> 2529460.037 | P14: =_xlfn.XLOOKUP(P3,Data!A113:A122,Data!D113:D122)-F14 -> 0
A16: Historic Teachers Pay & Pension Grants | F16: =_xlfn.XLOOKUP('Summary of Funding'!$P$3,Data!$A$4:$A$12,Data!AQ$4:AQ$12) -> 118250 | P16: =_xlfn.XLOOKUP(P3,Data!A4:A12,Data!AQ4:AQ12)-'Summary of Funding'!F16 -> 0
A18: High Needs Additional Grant | F18: =_xlfn.XLOOKUP('Summary of Funding'!$P$3,Data!$A$4:$A$12,Data!AR$4:AR$12) -> 133574.7831
A20: Split Site Funding | F20: =_xlfn.XLOOKUP('Summary of Funding'!$P$3,Data!$A$4:$A$12,Data!AT$4:AT$12) -> 0
A22: INDICATIVE RPA Adjustment | F22: =_xlfn.XLOOKUP('Summary of Funding'!$P$3,Data!$A$4:$A$12,Data!AU$4:AU$12) -> -4320
H25: =F12+F14+F16+F20+F22+F18 -> 4568631.487 | P25: =P14+P12 -> 0
A27: Other LA Budget Share Elements
A29: INDICATIVE Other LA Top-up Funding - see 'Top-up Funding' tabs | F29: ='Summer 2025 Top-up'!K51+'Autumn 2025 Top-up'!K51+'Spring 2026 Top-up'!K51 -> 6874.40738 | P29: =_xlfn.XLOOKUP(P3,Data!A99:A107,Data!AS99:AS107)-F29 -> 0
H31: =F29 -> 6874.40738 | P31: =P29 -> 0
A33: INDICATIVE Total Budget Share 2025/26 | H33: =H25+H31 -> 4575505.894 | P33: =P31+P25 -> 0
A35: Other Funding Elements
A37: INDICATIVE Pupil Premium Grant 2025/26 | F37: =_xlfn.XLOOKUP('Summary of Funding'!$P$3,Data!$A$4:$A$12,Data!AP$4:AP$12) -> 104535 | P37: =_xlfn.XLOOKUP(P3,Data!A4:A12,Data!AP4:AP12)-F37 -> 0
A39: INDICATIVE Core School Budget Grant | F39: =_xlfn.XLOOKUP('Summary of Funding'!$P$3,Data!$A$4:$A$12,Data!AS$4:AS$12) -> 495257.3614
H41: =F39+F37 -> 599792.3614
A43: INDICATIVE Total Revenue Resources | H43: =H33+H41 -> 5175298.256 | P43: =P41+P33 -> 0
A46: Notes
A48: This funding summary is intended to give you an overview of the indicative resources allocated to the school for the 2025/26 financial year.
A49: The actual budget that you will receive is based on the real-time movement of pupils and so will not be finalised until March 2026.
A51: Your level of top-up funding shown for the autumn 2025 and spring 2026 terms is indicative only. These top-up figures are
A52: based on the level of provision your school delivered in the same terms in the 2024-25 financial years. Where the number of places at your
A53: school has changed we have scaled the indicative level of provision up or down as appropriate to reflect the changing position at the school
A54: - but we have not allowed this to increase above your number of comissioned places.
A55: Top-up funding for summer 2025 is based on actual number of pupils.
A57: High Needs Additional Grant was mainstreamed and included in top up rates in 2024/25. DfE guidance has stated this should be
A58: paid separately to top up rates in 2025/26.
A60: Risk Protection Arrangement is based on the latest information from DfE. This may be subject to change.
A62: Pupil Premium Grant is now based on your October 2024 eligibility and the 2025/26 funding rates. Final allocation will be updated in due course.
A64: Core Schools Budget Grant is funding which covers the September 2024 pay award, the April 2025 National Insurance Contribution increase
A65: & the September 2025 pay award. This is allocated to schools based on actual commissioned places in April 2025 & September 2025.
A66: The DfE will announce final Local Authority allocation levels in March 2026.

Sheet Place Led Funding (hidden)
A1: ='Summary of Funding'!A1 -> Date Issued: 13th October 2025 | M1: ='Summary of Funding'!H1 -> Last Amended: 10th October 2025
A2: ='Summary of Funding'!A2 -> COVENTRY CITY COUNCIL
A3: ='Summary of Funding'!A3 -> 2025-26 Funding Allocations for Special Schools & Alternative Provision | P3: ='Summary of Funding'!P3 -> 1
A4: Place Led Funding
A6: =_xlfn.XLOOKUP(P3,Data!A4:A12,Data!B4:B12) -> Castle Wood Special School | P6: Checks
A10: Factors | C10: Factor Measurement | G10: Number of Units | I10: Funding Per Unit | K10: Pro Rata | M10: Funding Allocated
I11: £ | M11: £
A13: Pre-16 Funding | C13: No. Places comissioned (Apr 2025 - Jul 2025) | G13: =_xlfn.XLOOKUP($P$3,Data!A4:A12,Data!F4:F12) -> 164 | I13: 10000 | K13: =4/12 -> 0.3333333333 | M13: =G13*I13*K13 -> 546666.6667
C14: No. Places comissioned (Aug 2025) | G14: =_xlfn.XLOOKUP($P$3,Data!A4:A12,Data!G4:G12) -> 164 | I14: 10000 | K14: 0.08333333333 | M14: =G14*I14*K14 -> 136666.6667
C15: No. Places comissioned (Sep 2025 - Mar 2026) | G15: =_xlfn.XLOOKUP($P$3,Data!A4:A12,Data!H4:H12) -> 190 | I15: 10000 | K15: 0.5833333333 | M15: =G15*I15*K15 -> 1108333.333
M17: =SUM(M13:M15) -> 1791666.667 | P17: =_xlfn.XLOOKUP(P3,Data!A4:A12,Data!O4:O12)+_xlfn.XLOOKUP(P3,Data!A4:A12,Data!P4:P12)+_xlfn.XLOOKUP(P3,Data!A4:A12,Data!Q4:Q12)-M17 -> 0
A19: Post-16 Funding | C19: No. Places comissioned (Apr 2025 - Jul 2025) | G19: =_xlfn.XLOOKUP($P$3,Data!A4:A12,Data!I4:I12) -> 0 | I19: 10000 | K19: =4/12 -> 0.3333333333 | M19: =G19*I19*K19 -> 0
C20: No. Places comissioned (Aug 2025) | G20: =_xlfn.XLOOKUP($P$3,Data!A4:A12,Data!I4:I12) -> 0 | I20: 10000 | K20: 0.08333333333 | M20: =G20*I20*K20 -> 0
C21: No. Places comissioned (Sep 2025 - Mar 2026) | G21: =_xlfn.XLOOKUP($P$3,Data!A4:A12,Data!J4:J12) -> 0 | I21: 10000 | K21: 0.5833333333 | M21: =G21*I21*K21 -> 0
M23: =SUM(M19:M21) -> 0 | P23: =_xlfn.XLOOKUP(P3,Data!A4:A12,Data!R4:R12)+_xlfn.XLOOKUP(P3,Data!A4:A12,Data!S4:S12)+_xlfn.XLOOKUP(P3,Data!A4:A12,Data!T4:T12)-'Place Led Funding'!M23 -> 0
A26: Total Indicative Place Led Funding | M26: =M17+M23 -> 1791666.667 | P26: =P23+P17 -> 0

Sheet HN Framework Values (hidden)
A1: ='Summary of Funding'!A1 -> Date Issued: 13th October 2025 | K1: ='Summary of Funding'!H1 -> Last Amended: 10th October 2025
A2: ='Summary of Funding'!A2 -> COVENTRY CITY COUNCIL
A3: ='Summary of Funding'!A3 -> 2025-26 Funding Allocations for Special Schools & Alternative Provision | P3: ='Summary of Funding'!P3 -> 1
A4: High Needs Banded Framework Top-up Rates
A6: =_xlfn.XLOOKUP(P3,Data!A4:A12,Data!B4:B12) -> Castle Wood Special School | P6: Checks
A11: High Needs Banded Framework
A12: Table 1 | D12: Cat 1 | E12: Cat 2 | F12: Cat 3 | G12: Cat 4 | H12: Cat 5 | I12: Cat 6
D13: Communication and Interaction | E13: Cognition and Learning | F13: SEMH | G13: Sensory &/or Physical | H13: Exceptional | I13: Personalised
C14: Level A | D14: Universal | I14: Early Support - only as agreed with Head of SS
C15: Level B | D15: Targeted
C16: Level C | D16: S&L Disorder | E16: Specific LD
C17: Level D | D17: Social Comm - Moderate | E17: MLD | F17: SEMH - Moderate | G17: HI/VI
C18: Level E | D18: Social Comm - High | E18: SLD | F18: SEMH - High | G18: PD - High | H18: OOC - only as agreed with Head of SS | I18: CC - only as agreed with Head of SS
C19: Level F | D19: Social Comm - Severe | E19: PMLD | F19: SEMH - Severe | G19: MSI
C21: Cov ELC | D21: ELC Band
A23: HN Framework Top-up Rates
A24: Table 2 | D24: Cat 1 | E24: Cat 2 | F24: Cat 3 | G24: Cat 4 | H24: Cat 5 | I24: Cat 6
D25: Communication and Interaction | E25: Cognition and Learning | F25: SEMH | G25: Sensory &/or Physical | H25: Exceptional | I25: Personalised
C26: Level A | D26: 0 | E26: 0 | F26: 0 | G26: 0 | I26: As agreed with Head of SS
C27: Level B | D27: 0 | E27: 0 | F27: 0 | G27: 0
C28: Level C | D28: =D40 -> 2620.221587 | E28: =E40 -> 3144.270392
C29: Level D | D29: =D41 -> 3144.270392 | E29: 5240.443175 | F29: =F41 -> 7860.675979 | G29: 7860.675979
C30: Level E | D30: 10480.89757 | E30: 9694.835577 | F30: =F42 -> 13101.11915 | G30: 13101.11915 | H30: As agreed with Head of SS | I30: As agreed with Head of SS
C31: Level F | D31: =D43 -> 17031.46275 | E31: =E43 -> 15721.34074 | F31: =F43 -> 17031.46275 | G31: 15721.34074
C33: Cov ELC | D33: =Data!V12 -> 12897.34992
A35: MFG PROTECTED Top-up Rates
A36: Table 3 | D36: Cat 1 | E36: Cat 2 | F36: Cat 3 | G36: Cat 4 | H36: Cat 5 | I36: Cat 6
A37: Protection | D37: Communication and Interaction | E37: Cognition and Learning | F37: SEMH | G37: Sensory &/or Physical | H37: Exceptional | I37: Personalised
A38: Level: | B38: =((D43/D31)-1) -> 0 | C38: Level A | D38: 0 | E38: 0 | F38: 0 | G38: 0 | H38: 0 | I38: 0
C39: Level B | D39: 0 | E39: 0 | F39: 0 | G39: 0 | H39: 0 | I39: 0
C40: Level C | D40: =_xlfn.XLOOKUP($P$3,Data!$A$4:$A$12,Data!W4:W12) -> 2620.221587 | E40: =_xlfn.XLOOKUP($P$3,Data!$A$4:$A$12,Data!X4:X12) -> 3144.270392 | F40: 0 | G40: 0 | H40: 0 | I40: 0
C41: Level D | D41: =_xlfn.XLOOKUP($P$3,Data!$A$4:$A$12,Data!Y4:Y12) -> 3144.270392 | E41: =_xlfn.XLOOKUP($P$3,Data!$A$4:$A$12,Data!Z4:Z12) -> 5240.443175 | F41: =_xlfn.XLOOKUP($P$3,Data!$A$4:$A$12,Data!AA4:AA12) -> 7860.675979 | G41: =_xlfn.XLOOKUP($P$3,Data!$A$4:$A$12,Data!AB4:AB12) -> 7860.675979 | H41: 0 | I41: 0
C42: Level E | D42: =_xlfn.XLOOKUP($P$3,Data!$A$4:$A$12,Data!AC4:AC12) -> 10480.89757 | E42: =_xlfn.XLOOKUP($P$3,Data!$A$4:$A$12,Data!AD4:AD12) -> 9694.835577 | F42: =_xlfn.XLOOKUP($P$3,Data!$A$4:$A$12,Data!AE4:AE12) -> 13101.11915 | G42: =_xlfn.XLOOKUP($P$3,Data!$A$4:$A$12,Data!AF4:AF12) -> 13101.11915 | H42: =_xlfn.XLOOKUP($P$3,Data!$A$4:$A$12,Data!AG4:AG12) -> 26685.25108 | I42: =_xlfn.XLOOKUP($P$3,Data!$A$4:$A$12,Data!AH4:AH12) -> 0
C43: Level F | D43: =_xlfn.XLOOKUP($P$3,Data!$A$4:$A$12,Data!AI4:AI12) -> 17031.46275 | E43: =_xlfn.XLOOKUP($P$3,Data!$A$4:$A$12,Data!AJ4:AJ12) -> 15721.34074 | F43: =_xlfn.XLOOKUP($P$3,Data!$A$4:$A$12,Data!AK4:AK12) -> 17031.46275 | G43: =_xlfn.XLOOKUP($P$3,Data!$A$4:$A$12,Data!AL4:AL12) -> 15721.34074 | H43: =_xlfn.XLOOKUP($P$3,Data!$A$4:$A$12,Data!AM4:AM12) -> 53370.50216 | I43: =_xlfn.XLOOKUP($P$3,Data!$A$4:$A$12,Data!AN4:AN12) -> 0
A46: Notes
A48: Table 2 shows the High Needs Top-up Rates that apply to special schools for each element of the High Needs Funding Matrix. All top up
A49: rates in Table 2 have seen an inflationary increase of 0.5% after removing the impact of the 2024/25 high needs additional grant.
A53: =IF(N4="MFG","standard High Needs Top-up rates. Your protected top-up rates are shown in table 3 and apply to your school for the 2021/22 financial year.","") -> 

Sheet Summer 2025 Top-up (hidden)
A1: ='Summary of Funding'!A1 -> Date Issued: 13th October 2025 | M1: ='Summary of Funding'!H1 -> Last Amended: 10th October 2025
A2: ='Summary of Funding'!A2 -> COVENTRY CITY COUNCIL
A3: ='Summary of Funding'!A3 -> 2025-26 Funding Allocations for Special Schools & Alternative Provision | P3: ='Summary of Funding'!P3 -> 1
A4: Summer 2025 Top-up Funding
A6: =_xlfn.XLOOKUP(P3,Data!A4:A12,Data!B4:B12) -> Castle Wood Special School | P6: Checks
A10: Total days in term: | B10: =Data!A20 -> 64
A11: Summer 2025 Funded days - Coventry
A12: Actual | D12: Cat 1 | E12: Cat 2 | F12: Cat 3 | G12: Cat 4 | H12: Cat 5 | I12: Cat 6
C13: Level A | D13: 0 | E13: 0 | F13: 0 | G13: 0 | H13: 0 | I13: 0
C14: Level B | D14: 0 | E14: 0 | F14: 0 | G14: 0 | H14: 0 | I14: 0
C15: Level C | D15: =_xlfn.XLOOKUP($P$3,Data!$A$33:$A$41,Data!E$33:E$41) -> 0 | E15: =_xlfn.XLOOKUP($P$3,Data!$A$33:$A$41,Data!F$33:F$41) -> 0 | F15: 0 | G15: 0 | H15: 0 | I15: 0
C16: Level D | D16: =_xlfn.XLOOKUP($P$3,Data!$A$33:$A$41,Data!G$33:G$41) -> 0 | E16: =_xlfn.XLOOKUP($P$3,Data!$A$33:$A$41,Data!H$33:H$41) -> 0 | F16: =_xlfn.XLOOKUP($P$3,Data!$A$33:$A$41,Data!I$33:I$41) -> 0 | G16: =_xlfn.XLOOKUP($P$3,Data!$A$33:$A$41,Data!J$33:J$41) -> 64 | H16: 0 | I16: 0
C17: Level E | D17: =_xlfn.XLOOKUP($P$3,Data!$A$33:$A$41,Data!K$33:K$41) -> 5701 | E17: =_xlfn.XLOOKUP($P$3,Data!$A$33:$A$41,Data!L$33:L$41) -> 576 | F17: =_xlfn.XLOOKUP($P$3,Data!$A$33:$A$41,Data!M$33:M$41) -> 0 | G17: =_xlfn.XLOOKUP($P$3,Data!$A$33:$A$41,Data!N$33:N$41) -> 448 | H17: =_xlfn.XLOOKUP($P$3,Data!$A$33:$A$41,Data!O$33:O$41) -> 640 | I17: =_xlfn.XLOOKUP($P$3,Data!$A$33:$A$41,Data!P$33:P$41) -> 0 | K17: Total FTE
C18: Level F | D18: =_xlfn.XLOOKUP($P$3,Data!$A$33:$A$41,Data!Q$33:Q$41) -> 2112 | E18: =_xlfn.XLOOKUP($P$3,Data!$A$33:$A$41,Data!R$33:R$41) -> 448 | F18: =_xlfn.XLOOKUP($P$3,Data!$A$33:$A$41,Data!S$33:S$41) -> 0 | G18: =_xlfn.XLOOKUP($P$3,Data!$A$33:$A$41,Data!T$33:T$41) -> 384 | H18: =_xlfn.XLOOKUP($P$3,Data!$A$33:$A$41,Data!U$33:U$41) -> 161 | I18: =_xlfn.XLOOKUP($P$3,Data!$A$33:$A$41,Data!V$33:V$41) -> 0 | K18: =SUM(D13:I20)/B10 -> 164.59375
C20: PRU | D20: =_xlfn.XLOOKUP($P$3,Data!$A$21:$A$29,Data!D$21:D$29) -> 0
A22: Summer 2025 Top-up Funding - Coventry
A23: Actual | D23: Cat 1 | E23: Cat 2 | F23: Cat 3 | G23: Cat 4 | H23: Cat 5 | I23: Cat 6
C24: Level A | D24: =D13*('HN Framework Values'!D38/Data!$A$16) -> 0 | E24: =E13*('HN Framework Values'!E38/Data!$A$16) -> 0 | F24: =F13*('HN Framework Values'!F38/Data!$A$16) -> 0 | G24: =G13*('HN Framework Values'!G38/Data!$A$16) -> 0 | H24: 0 | I24: 0
C25: Level B | D25: =D14*('HN Framework Values'!D39/Data!$A$16) -> 0 | E25: =E14*('HN Framework Values'!E39/Data!$A$16) -> 0 | F25: =F14*('HN Framework Values'!F39/Data!$A$16) -> 0 | G25: =G14*('HN Framework Values'!G39/Data!$A$16) -> 0 | H25: 0 | I25: 0
C26: Level C | D26: =D15*('HN Framework Values'!D40/Data!$A$16) -> 0 | E26: =E15*('HN Framework Values'!E40/Data!$A$16) -> 0 | F26: =F15*('HN Framework Values'!F40/Data!$A$16) -> 0 | G26: =G15*('HN Framework Values'!G40/Data!$A$16) -> 0 | H26: 0 | I26: 0 | K26: Total Coventry Top-up
C27: Level D | D27: =D16*('HN Framework Values'!D41/Data!$A$16) -> 0 | E27: =E16*('HN Framework Values'!E41/Data!$A$16) -> 0 | F27: =F16*('HN Framework Values'!F41/Data!$A$16) -> 0 | G27: =G16*('HN Framework Values'!G41/Data!$A$16) -> 2593.212694 | H27: 0 | I27: 0
C28: Level E | D28: =D17*('HN Framework Values'!D42/Data!$A$16) -> 307997.9228 | E28: =E17*('HN Framework Values'!E42/Data!$A$16) -> 28784.66646 | F28: =F17*('HN Framework Values'!F42/Data!$A$16) -> 0 | G28: =G17*('HN Framework Values'!G42/Data!$A$16) -> 30254.13083 | H28: =H17*('HN Framework Values'!H42/Data!$A$16) -> 88033.818 | I28: =I17*('HN Framework Values'!I42/Data!$A$16) -> 0
C29: Level F | D29: =D18*('HN Framework Values'!D43/Data!$A$16) -> 185414.6873 | E29: =E18*('HN Framework Values'!E43/Data!$A$16) -> 36304.95181 | F29: =F18*('HN Framework Values'!F43/Data!$A$16) -> 0 | G29: =G18*('HN Framework Values'!G43/Data!$A$16) -> 31118.53013 | H29: =H18*('HN Framework Values'!H43/Data!$A$16) -> 44292.01468 | I29: =I18*('HN Framework Values'!I43/Data!$A$16) -> 0 | K29: =SUM(D24:I31) -> 754793.9347
C31: PRU | D31: =D20*'HN Framework Values'!D33/Data!A16 -> 0
A33: Summer 2025 Funded days - Other LAs
A34: Actual | D34: Cat 1 | E34: Cat 2 | F34: Cat 3 | G34: Cat 4 | H34: Cat 5 | I34: Cat 6
C35: Level A | D35: 0 | E35: 0 | F35: 0 | G35: 0 | H35: 0 | I35: 0
C36: Level B | D36: 0 | E36: 0 | F36: 0 | G36: 0 | H36: 0 | I36: 0
C37: Level C | D37: =_xlfn.XLOOKUP($P$3,Data!$A$33:$A$41,Data!Z$33:Z$41) -> 0 | E37: =_xlfn.XLOOKUP($P$3,Data!$A$33:$A$41,Data!AA$33:AA$41) -> 0 | F37: 0 | G37: 0 | H37: 0 | I37: 0
C38: Level D | D38: =_xlfn.XLOOKUP($P$3,Data!$A$21:$A$29,Data!AB$33:AB$41) -> 0 | E38: =_xlfn.XLOOKUP($P$3,Data!$A$21:$A$29,Data!AC$33:AC$41) -> 0 | F38: =_xlfn.XLOOKUP($P$3,Data!$A$21:$A$29,Data!AD$33:AD$41) -> 0 | G38: =_xlfn.XLOOKUP($P$3,Data!$A$21:$A$29,Data!AE$33:AE$41) -> 0 | H38: 0 | I38: 0
C39: Level E | D39: =_xlfn.XLOOKUP($P$3,Data!$A$33:$A$41,Data!AF$33:AF$41) -> 64 | E39: =_xlfn.XLOOKUP($P$3,Data!$A$33:$A$41,Data!AG$33:AG$41) -> 0 | F39: =_xlfn.XLOOKUP($P$3,Data!$A$33:$A$41,Data!AH$33:AH$41) -> 0 | G39: =_xlfn.XLOOKUP($P$3,Data!$A$33:$A$41,Data!AI$33:AI$41) -> 0 | H39: =_xlfn.XLOOKUP($P$3,Data!$A$33:$A$41,Data!AJ$33:AJ$41) -> 0 | I39: =_xlfn.XLOOKUP($P$3,Data!$A$33:$A$41,Data!AK$33:AK$41) -> 0 | K39: Total FTE
C40: Level F | D40: =_xlfn.XLOOKUP($P$3,Data!$A$33:$A$41,Data!AL$33:AL$41) -> 0 | E40: =_xlfn.XLOOKUP($P$3,Data!$A$33:$A$41,Data!AM$33:AM$41) -> 0 | F40: =_xlfn.XLOOKUP($P$3,Data!$A$33:$A$41,Data!AN$33:AN$41) -> 0 | G40: =_xlfn.XLOOKUP($P$3,Data!$A$33:$A$41,Data!AO$33:AO$41) -> 0 | H40: =_xlfn.XLOOKUP($P$3,Data!$A$33:$A$41,Data!AP$33:AP$41) -> 0 | I40: =_xlfn.XLOOKUP($P$3,Data!$A$33:$A$41,Data!AQ$33:AQ$41) -> 0 | K40: =SUM(D35:I42)/B10 -> 1
C42: PRU | D42: =_xlfn.XLOOKUP($P$3,Data!$A$33:$A$41,Data!Y$33:Y$41) -> 0
A44: Summer 2025 Top-up Funding - Other LAs
A45: Actual | D45: Cat 1 | E45: Cat 2 | F45: Cat 3 | G45: Cat 4 | H45: Cat 5 | I45: Cat 6
C46: Level A | D46: =D35*('HN Framework Values'!D38/Data!$A$16) -> 0 | E46: =E35*('HN Framework Values'!E38/Data!$A$16) -> 0 | F46: =F35*('HN Framework Values'!F38/Data!$A$16) -> 0 | G46: =G35*('HN Framework Values'!G38/Data!$A$16) -> 0 | H46: =H35*('HN Framework Values'!H38/Data!$A$16) -> 0 | I46: =I35*('HN Framework Values'!I38/Data!$A$16) -> 0
C47: Level B | D47: =D36*('HN Framework Values'!D39/Data!$A$16) -> 0 | E47: =E36*('HN Framework Values'!E39/Data!$A$16) -> 0 | F47: =F36*('HN Framework Values'!F39/Data!$A$16) -> 0 | G47: =G36*('HN Framework Values'!G39/Data!$A$16) -> 0 | H47: =H36*('HN Framework Values'!H39/Data!$A$16) -> 0 | I47: =I36*('HN Framework Values'!I39/Data!$A$16) -> 0
C48: Level C | D48: =D37*('HN Framework Values'!D40/Data!$A$16) -> 0 | E48: =E37*('HN Framework Values'!E40/Data!$A$16) -> 0 | F48: =F37*('HN Framework Values'!F40/Data!$A$16) -> 0 | G48: =G37*('HN Framework Values'!G40/Data!$A$16) -> 0 | H48: =H37*('HN Framework Values'!H40/Data!$A$16) -> 0 | I48: =I37*('HN Framework Values'!I40/Data!$A$16) -> 0 | K48: Total Other LA Top-up
C49: Level D | D49: =D38*('HN Framework Values'!D41/Data!$A$16) -> 0 | E49: =E38*('HN Framework Values'!E41/Data!$A$16) -> 0 | F49: =F38*('HN Framework Values'!F41/Data!$A$16) -> 0 | G49: =G38*('HN Framework Values'!G41/Data!$A$16) -> 0 | H49: =H38*('HN Framework Values'!H41/Data!$A$16) -> 0 | I49: =I38*('HN Framework Values'!I41/Data!$A$16) -> 0
C50: Level E | D50: =D39*('HN Framework Values'!D42/Data!$A$16) -> 3457.615692 | E50: =E39*('HN Framework Values'!E42/Data!$A$16) -> 0 | F50: =F39*('HN Framework Values'!F42/Data!$A$16) -> 0 | G50: =G39*('HN Framework Values'!G42/Data!$A$16) -> 0 | H50: =H39*('HN Framework Values'!H42/Data!$A$16) -> 0 | I50: =I39*('HN Framework Values'!I42/Data!$A$16) -> 0
C51: Level F | D51: =D40*('HN Framework Values'!D43/Data!$A$16) -> 0 | E51: =E40*('HN Framework Values'!E43/Data!$A$16) -> 0 | F51: =F40*('HN Framework Values'!F43/Data!$A$16) -> 0 | G51: =G40*('HN Framework Values'!G43/Data!$A$16) -> 0 | H51: =H40*('HN Framework Values'!H43/Data!$A$16) -> 0 | I51: =I40*('HN Framework Values'!I43/Data!$A$16) -> 0 | K51: =SUM(D46:I53) -> 3457.615692
C53: PRU | D53: =D42*'HN Framework Values'!D33/Data!A16 -> 0
A55: Total ACTUAL Summer 2025 Top-up Funding | K55: =K51+K29 -> 758251.5504 | Q55: =_xlfn.XLOOKUP($P$3,Data!$A$33:$A$41,Data!AT$33:AT$41)-K55 -> 0
A59: Notes
A61: Top up funding is allocated to pupils based on their High Needs Banding and how many days they are on roll at your school.
A63: This data is based on the level of provision your school delivered in the summer term 2025.
A65: Other LA Top-up funding is not paid to you by Coventry City Council and you will need to invoice the relevant Local Authorities for this
A66: funding. If you need contact information for any other Local Authority please contact SEN Management Services on 024 7683 1614.

Sheet Autumn 2025 Top-up (hidden)
A1: ='Summary of Funding'!A1 -> Date Issued: 13th October 2025 | M1: ='Summary of Funding'!H1 -> Last Amended: 10th October 2025
A2: ='Summary of Funding'!A2 -> COVENTRY CITY COUNCIL
A3: ='Summary of Funding'!A3 -> 2025-26 Funding Allocations for Special Schools & Alternative Provision | P3: ='Summary of Funding'!P3 -> 1
A4: Autumn 2025 Top-up Funding
A6: =_xlfn.XLOOKUP(P3,Data!A4:A12,Data!B4:B12) -> Castle Wood Special School | P6: Checks
A10: Total days in term: | B10: =Data!$A$58 -> 75
A11: Autumn 2025 Funded days - Coventry
A12: Indicative | D12: Cat 1 | E12: Cat 2 | F12: Cat 3 | G12: Cat 4 | H12: Cat 5 | I12: Cat 6
C13: Level A | D13: 0 | E13: 0 | F13: 0 | G13: 0 | H13: 0 | I13: 0
C14: Level B | D14: 0 | E14: 0 | F14: 0 | G14: 0 | H14: 0 | I14: 0
C15: Level C | D15: =_xlfn.XLOOKUP($P$3,Data!$A$59:$A$67,Data!E59:E67) -> 0 | E15: =_xlfn.XLOOKUP($P$3,Data!$A$59:$A$67,Data!F59:F67) -> 0 | F15: 0 | G15: 0 | H15: 0 | I15: 0
C16: Level D | D16: =_xlfn.XLOOKUP($P$3,Data!$A$59:$A$67,Data!G59:G67) -> 0 | E16: =_xlfn.XLOOKUP($P$3,Data!$A$59:$A$67,Data!H59:H67) -> 0 | F16: =_xlfn.XLOOKUP($P$3,Data!$A$59:$A$67,Data!I59:I67) -> 0 | G16: =_xlfn.XLOOKUP($P$3,Data!$A$59:$A$67,Data!J59:J67) -> 87.89785344 | H16: 0 | I16: 0
C17: Level E | D17: =_xlfn.XLOOKUP($P$3,Data!$A$59:$A$67,Data!K59:K67) -> 7528.74414 | E17: =_xlfn.XLOOKUP($P$3,Data!$A$59:$A$67,Data!L59:L67) -> 791.080681 | F17: =_xlfn.XLOOKUP($P$3,Data!$A$59:$A$67,Data!M59:M67) -> 87.89785344 | G17: =_xlfn.XLOOKUP($P$3,Data!$A$59:$A$67,Data!N59:N67) -> 615.2849741 | H17: =_xlfn.XLOOKUP($P$3,Data!$A$59:$A$67,Data!O59:O67) -> 726.6222551 | I17: =_xlfn.XLOOKUP($P$3,Data!$A$59:$A$67,Data!P59:P67) -> 0 | K17: Total FTE
C18: Level F | D18: =_xlfn.XLOOKUP($P$3,Data!$A$59:$A$67,Data!Q59:Q67) -> 3022.514187 | E18: =_xlfn.XLOOKUP($P$3,Data!$A$59:$A$67,Data!R59:R67) -> 615.2849741 | F18: =_xlfn.XLOOKUP($P$3,Data!$A$59:$A$67,Data!S59:S67) -> 0 | G18: =_xlfn.XLOOKUP($P$3,Data!$A$59:$A$67,Data!T59:T67) -> 527.3871207 | H18: =_xlfn.XLOOKUP($P$3,Data!$A$59:$A$67,Data!U59:U67) -> 247.285961 | I18: =_xlfn.XLOOKUP($P$3,Data!$A$59:$A$67,Data!V59:V67) -> 0 | K18: =SUM(D13:I20)/B10 -> 190
C20: PRU | D20: =_xlfn.XLOOKUP($P$3,Data!$A$59:$A$67,Data!D59:D67) -> 0
A22: Autumn 2025 Top-up Funding - Coventry
A23: Indicative | D23: Cat 1 | E23: Cat 2 | F23: Cat 3 | G23: Cat 4 | H23: Cat 5 | I23: Cat 6
C24: Level A | D24: =D13*('HN Framework Values'!D38/Data!$A$16) -> 0 | E24: =E13*('HN Framework Values'!E38/Data!$A$16) -> 0 | F24: =F13*('HN Framework Values'!F38/Data!$A$16) -> 0 | G24: =G13*('HN Framework Values'!G38/Data!$A$16) -> 0 | H24: 0 | I24: 0
C25: Level B | D25: =D14*('HN Framework Values'!D39/Data!$A$16) -> 0 | E25: =E14*('HN Framework Values'!E39/Data!$A$16) -> 0 | F25: =F14*('HN Framework Values'!F39/Data!$A$16) -> 0 | G25: =G14*('HN Framework Values'!G39/Data!$A$16) -> 0 | H25: 0 | I25: 0
C26: Level C | D26: =D15*('HN Framework Values'!D40/Data!$A$16) -> 0 | E26: =E15*('HN Framework Values'!E40/Data!$A$16) -> 0 | F26: =F15*('HN Framework Values'!F40/Data!$A$16) -> 0 | G26: =G15*('HN Framework Values'!G40/Data!$A$16) -> 0 | H26: 0 | I26: 0 | K26: Total Coventry Top-up
C27: Level D | D27: =D16*('HN Framework Values'!D41/Data!$A$16) -> 0 | E27: =E16*('HN Framework Values'!E41/Data!$A$16) -> 0 | F27: =F16*('HN Framework Values'!F41/Data!$A$16) -> 0 | G27: =G16*('HN Framework Values'!G41/Data!$A$16) -> 3561.528583 | H27: 0 | I27: 0
C28: Level E | D28: =D17*('HN Framework Values'!D42/Data!$A$16) -> 406742.2481 | E28: =E17*('HN Framework Values'!E42/Data!$A$16) -> 39532.9749 | F28: =F17*('HN Framework Values'!F42/Data!$A$16) -> 5935.877584 | G28: =G17*('HN Framework Values'!G42/Data!$A$16) -> 41551.14309 | H28: =H17*('HN Framework Values'!H42/Data!$A$16) -> 99948.95526 | I28: =I17*('HN Framework Values'!I42/Data!$A$16) -> 0
C29: Level F | D29: =D18*('HN Framework Values'!D43/Data!$A$16) -> 265349.6794 | E29: =E18*('HN Framework Values'!E43/Data!$A$16) -> 49861.36459 | F29: =F18*('HN Framework Values'!F43/Data!$A$16) -> 0 | G29: =G18*('HN Framework Values'!G43/Data!$A$16) -> 42738.31251 | H29: =H18*('HN Framework Values'!H43/Data!$A$16) -> 68029.77277 | I29: =I18*('HN Framework Values'!I43/Data!$A$16) -> 0 | K29: =SUM(D24:I31) -> 1023251.857
C31: PRU | D31: =D20*'HN Framework Values'!D33/Data!A16 -> 0
A33: Autumn 2025 Funded days - Other LAs
A34: Indicative | D34: Cat 1 | E34: Cat 2 | F34: Cat 3 | G34: Cat 4 | H34: Cat 5 | I34: Cat 6
C35: Level A | D35: 0 | E35: 0 | F35: 0 | G35: 0 | H35: 0 | I35: 0
C36: Level B | D36: 0 | E36: 0 | F36: 0 | G36: 0 | H36: 0 | I36: 0
C37: Level C | D37: =_xlfn.XLOOKUP($P$3,Data!$A$59:$A$67,Data!Z59:Z67) -> 0 | E37: =_xlfn.XLOOKUP($P$3,Data!$A$59:$A$67,Data!AA59:AA67) -> 0 | F37: 0 | G37: 0 | H37: 0 | I37: 0
C38: Level D | D38: =_xlfn.XLOOKUP($P$3,Data!$A$59:$A$67,Data!AB59:AB67) -> 0 | E38: =_xlfn.XLOOKUP($P$3,Data!$A$59:$A$67,Data!AC59:AC67) -> 0 | F38: =_xlfn.XLOOKUP($P$3,Data!$A$59:$A$67,Data!AD59:AD67) -> 0 | G38: =_xlfn.XLOOKUP($P$3,Data!$A$59:$A$67,Data!AE59:AE67) -> 0 | H38: 0 | I38: 0
C39: Level E | D39: =_xlfn.XLOOKUP($P$3,Data!$A$59:$A$67,Data!AF59:AF67) -> 0 | E39: =_xlfn.XLOOKUP($P$3,Data!$A$59:$A$67,Data!AG59:AG67) -> 0 | F39: =_xlfn.XLOOKUP($P$3,Data!$A$59:$A$67,Data!AH59:AH67) -> 0 | G39: =_xlfn.XLOOKUP($P$3,Data!$A$59:$A$67,Data!AI59:AI67) -> 0 | H39: =_xlfn.XLOOKUP($P$3,Data!$A$59:$A$67,Data!AJ59:AJ67) -> 0 | I39: =_xlfn.XLOOKUP($P$3,Data!$A$59:$A$67,Data!AK59:AK67) -> 0 | K39: Total FTE
C40: Level F | D40: =_xlfn.XLOOKUP($P$3,Data!$A$59:$A$67,Data!AL59:AL67) -> 0 | E40: =_xlfn.XLOOKUP($P$3,Data!$A$59:$A$67,Data!AM59:AM67) -> 0 | F40: =_xlfn.XLOOKUP($P$3,Data!$A$59:$A$67,Data!AN59:AN67) -> 0 | G40: =_xlfn.XLOOKUP($P$3,Data!$A$59:$A$67,Data!AO59:AO67) -> 0 | H40: =_xlfn.XLOOKUP($P$3,Data!$A$59:$A$67,Data!AP59:AP67) -> 0 | I40: =_xlfn.XLOOKUP($P$3,Data!$A$59:$A$67,Data!AQ59:AQ67) -> 0 | K40: =SUM(D35:I42)/B10 -> 0
C42: PRU | D42: =_xlfn.XLOOKUP($P$3,Data!$A$59:$A$67,Data!Y59:Y67) -> 0
A44: Autumn 2025 Top-up Funding - Other LAs
A45: Indicative | D45: Cat 1 | E45: Cat 2 | F45: Cat 3 | G45: Cat 4 | H45: Cat 5 | I45: Cat 6
C46: Level A | D46: =D35*('HN Framework Values'!D38/Data!$A$16) -> 0 | E46: =E35*('HN Framework Values'!E38/Data!$A$16) -> 0 | F46: =F35*('HN Framework Values'!F38/Data!$A$16) -> 0 | G46: =G35*('HN Framework Values'!G38/Data!$A$16) -> 0 | H46: =H35*('HN Framework Values'!H38/Data!$A$16) -> 0 | I46: =I35*('HN Framework Values'!I38/Data!$A$16) -> 0
C47: Level B | D47: =D36*('HN Framework Values'!D39/Data!$A$16) -> 0 | E47: =E36*('HN Framework Values'!E39/Data!$A$16) -> 0 | F47: =F36*('HN Framework Values'!F39/Data!$A$16) -> 0 | G47: =G36*('HN Framework Values'!G39/Data!$A$16) -> 0 | H47: =H36*('HN Framework Values'!H39/Data!$A$16) -> 0 | I47: =I36*('HN Framework Values'!I39/Data!$A$16) -> 0
C48: Level C | D48: =D37*('HN Framework Values'!D40/Data!$A$16) -> 0 | E48: =E37*('HN Framework Values'!E40/Data!$A$16) -> 0 | F48: =F37*('HN Framework Values'!F40/Data!$A$16) -> 0 | G48: =G37*('HN Framework Values'!G40/Data!$A$16) -> 0 | H48: =H37*('HN Framework Values'!H40/Data!$A$16) -> 0 | I48: =I37*('HN Framework Values'!I40/Data!$A$16) -> 0 | K48: Total Other LA Top-up
C49: Level D | D49: =D38*('HN Framework Values'!D41/Data!$A$16) -> 0 | E49: =E38*('HN Framework Values'!E41/Data!$A$16) -> 0 | F49: =F38*('HN Framework Values'!F41/Data!$A$16) -> 0 | G49: =G38*('HN Framework Values'!G41/Data!$A$16) -> 0 | H49: =H38*('HN Framework Values'!H41/Data!$A$16) -> 0 | I49: =I38*('HN Framework Values'!I41/Data!$A$16) -> 0
C50: Level E | D50: =D39*('HN Framework Values'!D42/Data!$A$16) -> 0 | E50: =E39*('HN Framework Values'!E42/Data!$A$16) -> 0 | F50: =F39*('HN Framework Values'!F42/Data!$A$16) -> 0 | G50: =G39*('HN Framework Values'!G42/Data!$A$16) -> 0 | H50: =H39*('HN Framework Values'!H42/Data!$A$16) -> 0 | I50: =I39*('HN Framework Values'!I42/Data!$A$16) -> 0
C51: Level F | D51: =D40*('HN Framework Values'!D43/Data!$A$16) -> 0 | E51: =E40*('HN Framework Values'!E43/Data!$A$16) -> 0 | F51: =F40*('HN Framework Values'!F43/Data!$A$16) -> 0 | G51: =G40*('HN Framework Values'!G43/Data!$A$16) -> 0 | H51: =H40*('HN Framework Values'!H43/Data!$A$16) -> 0 | I51: =I40*('HN Framework Values'!I43/Data!$A$16) -> 0 | K51: =SUM(D46:I53) -> 0
C53: PRU | D53: =D42*'HN Framework Values'!D33/Data!A16 -> 0
A55: Total INDICATIVE Autumn 2025 Top-up Funding | K55: =K51+K29 -> 1023251.857 | Q55: =_xlfn.XLOOKUP(P3,Data!A59:A67,Data!AT59:AT67)-K55 -> 0
A59: Notes
A61: Top up funding is allocated to pupils based on their High Needs Banding and how many days they are on roll at your school.
A63: This data is based on the level of provision your school delivered in the 2024 autumn term. Where the number of places at your school
A64: has changed we have scaled the indicative level of provision up or down as appropriate to reflect the changing position at the school -
A65: but we have not allowed this to increase above your number of comissioned places.
A67: This will be updated at the end of each term to reflect the actual number of Full Time Equivilant pupils that have been educated in this
A68: period. Your top-up funding budget will change accordingly.
A70: Other LA Top-up funding is not paid to you by Coventry City Council and you will need to invoice the relevant Local Authorities for this
A71: funding. If you need contact information for any other Local Authority please contact SEN Management Services on 024 7683 1614.

Sheet Spring 2026 Top-up (hidden)
A1: ='Summary of Funding'!A1 -> Date Issued: 13th October 2025 | M1: ='Summary of Funding'!H1 -> Last Amended: 10th October 2025
A2: ='Summary of Funding'!A2 -> COVENTRY CITY COUNCIL
A3: ='Summary of Funding'!A3 -> 2025-26 Funding Allocations for Special Schools & Alternative Provision | P3: ='Summary of Funding'!P3 -> 1
A4: Spring 2026 Top-up Funding
A6: =_xlfn.XLOOKUP(P3,Data!A4:A12,Data!B4:B12) -> Castle Wood Special School | P6: Checks
A10: Total days in term: | B10: =Data!$A$73 -> 55
A11: Spring 2026 Funded days - Coventry
A12: Indicative | D12: Cat 1 | E12: Cat 2 | F12: Cat 3 | G12: Cat 4 | H12: Cat 5 | I12: Cat 6
C13: Level A | D13: 0 | E13: 0 | F13: 0 | G13: 0 | H13: 0 | I13: 0
C14: Level B | D14: 0 | E14: 0 | F14: 0 | G14: 0 | H14: 0 | I14: 0
C15: Level C | D15: =_xlfn.XLOOKUP($P$3,Data!$A$86:$A$94,Data!E86:E94) -> 0 | E15: =_xlfn.XLOOKUP($P$3,Data!$A$86:$A$94,Data!F86:F94) -> 0 | F15: 0 | G15: 0 | H15: 0 | I15: 0
C16: Level D | D16: =_xlfn.XLOOKUP($P$3,Data!$A$86:$A$94,Data!G86:G94) -> 0 | E16: =_xlfn.XLOOKUP($P$3,Data!$A$86:$A$94,Data!H86:H94) -> 0 | F16: =_xlfn.XLOOKUP($P$3,Data!$A$86:$A$94,Data!I86:I94) -> 0 | G16: =_xlfn.XLOOKUP($P$3,Data!$A$86:$A$94,Data!J86:J94) -> 63.24435318 | H16: 0 | I16: 0
C17: Level E | D17: =_xlfn.XLOOKUP($P$3,Data!$A$86:$A$94,Data!K86:K94) -> 5568.89117 | E17: =_xlfn.XLOOKUP($P$3,Data!$A$86:$A$94,Data!L86:L94) -> 569.1991786 | F17: =_xlfn.XLOOKUP($P$3,Data!$A$86:$A$94,Data!M86:M94) -> 63.24435318 | G17: =_xlfn.XLOOKUP($P$3,Data!$A$86:$A$94,Data!N86:N94) -> 442.7104723 | H17: =_xlfn.XLOOKUP($P$3,Data!$A$86:$A$94,Data!O86:O94) -> 522.8952772 | I17: =_xlfn.XLOOKUP($P$3,Data!$A$86:$A$94,Data!P86:P94) -> 0 | K17: Total FTE
C18: Level F | D18: =_xlfn.XLOOKUP($P$3,Data!$A$86:$A$94,Data!Q86:Q94) -> 2110.780287 | E18: =_xlfn.XLOOKUP($P$3,Data!$A$86:$A$94,Data!R86:R94) -> 442.7104723 | F18: =_xlfn.XLOOKUP($P$3,Data!$A$86:$A$94,Data!S86:S94) -> 0 | G18: =_xlfn.XLOOKUP($P$3,Data!$A$86:$A$94,Data!T86:T94) -> 379.4661191 | H18: =_xlfn.XLOOKUP($P$3,Data!$A$86:$A$94,Data!U86:U94) -> 223.613963 | I18: =_xlfn.XLOOKUP($P$3,Data!$A$86:$A$94,Data!V86:V94) -> 0 | K18: =SUM(D13:I20)/B10 -> 188.8501027
C20: PRU | D20: =_xlfn.XLOOKUP($P$3,Data!$A$86:$A$94,Data!D86:D94) -> 0
A22: Spring 2026 Top-up Funding - Coventry
A23: Indicative | D23: Cat 1 | E23: Cat 2 | F23: Cat 3 | G23: Cat 4 | H23: Cat 5 | I23: Cat 6
C24: Level A | D24: =D13*('HN Framework Values'!D38/Data!$A$16) -> 0 | E24: =E13*('HN Framework Values'!E38/Data!$A$16) -> 0 | F24: =F13*('HN Framework Values'!F38/Data!$A$16) -> 0 | G24: =G13*('HN Framework Values'!G38/Data!$A$16) -> 0 | H24: 0 | I24: 0
C25: Level B | D25: =D14*('HN Framework Values'!D39/Data!$A$16) -> 0 | E25: =E14*('HN Framework Values'!E39/Data!$A$16) -> 0 | F25: =F14*('HN Framework Values'!F39/Data!$A$16) -> 0 | G25: =G14*('HN Framework Values'!G39/Data!$A$16) -> 0 | H25: 0 | I25: 0
C26: Level C | D26: =D15*('HN Framework Values'!D40/Data!$A$16) -> 0 | E26: =E15*('HN Framework Values'!E40/Data!$A$16) -> 0 | F26: =F15*('HN Framework Values'!F40/Data!$A$16) -> 0 | G26: =G15*('HN Framework Values'!G40/Data!$A$16) -> 0 | H26: 0 | I26: 0 | K26: Total Coventry Top-up
C27: Level D | D27: =D16*('HN Framework Values'!D41/Data!$A$16) -> 0 | E27: =E16*('HN Framework Values'!E41/Data!$A$16) -> 0 | F27: =F16*('HN Framework Values'!F41/Data!$A$16) -> 0 | G27: =G16*('HN Framework Values'!G41/Data!$A$16) -> 2562.59468 | H27: 0 | I27: 0
C28: Level E | D28: =D17*('HN Framework Values'!D42/Data!$A$16) -> 300860.7109 | E28: =E17*('HN Framework Values'!E42/Data!$A$16) -> 28444.80643 | F28: =F17*('HN Framework Values'!F42/Data!$A$16) -> 4270.988695 | G28: =G17*('HN Framework Values'!G42/Data!$A$16) -> 29896.92087 | H28: =H17*('HN Framework Values'!H42/Data!$A$16) -> 71925.73073 | I28: =I17*('HN Framework Values'!I42/Data!$A$16) -> 0
C29: Level F | D29: =D18*('HN Framework Values'!D43/Data!$A$16) -> 185307.6074 | E29: =E18*('HN Framework Values'!E43/Data!$A$16) -> 35876.29992 | F29: =F18*('HN Framework Values'!F43/Data!$A$16) -> 0 | G29: =G18*('HN Framework Values'!G43/Data!$A$16) -> 30751.11422 | H29: =H18*('HN Framework Values'!H43/Data!$A$16) -> 61517.47164 | I29: =I18*('HN Framework Values'!I43/Data!$A$16) -> 0 | K29: =SUM(D24:I31) -> 751414.2455
C31: PRU | D31: =D20*'HN Framework Values'!D33/Data!A16 -> 0
A33: Spring 2026 Funded days - Other LAs
A34: Indicative | D34: Cat 1 | E34: Cat 2 | F34: Cat 3 | G34: Cat 4 | H34: Cat 5 | I34: Cat 6
C35: Level A | D35: 0 | E35: 0 | F35: 0 | G35: 0 | H35: 0 | I35: 0
C36: Level B | D36: 0 | E36: 0 | F36: 0 | G36: 0 | H36: 0 | I36: 0
C37: Level C | D37: =_xlfn.XLOOKUP($P$3,Data!$A$86:$A$94,Data!Z86:Z94) -> 0 | E37: =_xlfn.XLOOKUP($P$3,Data!$A$86:$A$94,Data!AA86:AA94) -> 0 | F37: 0 | G37: 0 | H37: 0 | I37: 0
C38: Level D | D38: =_xlfn.XLOOKUP($P$3,Data!$A$86:$A$94,Data!AB86:AB94) -> 0 | E38: =_xlfn.XLOOKUP($P$3,Data!$A$86:$A$94,Data!AC86:AC94) -> 0 | F38: =_xlfn.XLOOKUP($P$3,Data!$A$86:$A$94,Data!AD86:AD94) -> 0 | G38: =_xlfn.XLOOKUP($P$3,Data!$A$86:$A$94,Data!AE86:AE94) -> 0 | H38: 0 | I38: 0
C39: Level E | D39: =_xlfn.XLOOKUP($P$3,Data!$A$86:$A$94,Data!AF86:AF94) -> 63.24435318 | E39: =_xlfn.XLOOKUP($P$3,Data!$A$86:$A$94,Data!AG86:AG94) -> 0 | F39: =_xlfn.XLOOKUP($P$3,Data!$A$86:$A$94,Data!AH86:AH94) -> 0 | G39: =_xlfn.XLOOKUP($P$3,Data!$A$86:$A$94,Data!AI86:AI94) -> 0 | H39: =_xlfn.XLOOKUP($P$3,Data!$A$86:$A$94,Data!AJ86:AJ94) -> 0 | I39: =_xlfn.XLOOKUP($P$3,Data!$A$86:$A$94,Data!AK86:AK94) -> 0 | K39: Total FTE
C40: Level F | D40: =_xlfn.XLOOKUP($P$3,Data!$A$86:$A$94,Data!AL86:AL94) -> 0 | E40: =_xlfn.XLOOKUP($P$3,Data!$A$86:$A$94,Data!AM86:AM94) -> 0 | F40: =_xlfn.XLOOKUP($P$3,Data!$A$86:$A$94,Data!AN86:AN94) -> 0 | G40: =_xlfn.XLOOKUP($P$3,Data!$A$86:$A$94,Data!AO86:AO94) -> 0 | H40: =_xlfn.XLOOKUP($P$3,Data!$A$86:$A$94,Data!AP86:AP94) -> 0 | I40: =_xlfn.XLOOKUP($P$3,Data!$A$86:$A$94,Data!AQ86:AQ94) -> 0 | K40: =SUM(D35:I42)/B10 -> 1.149897331
C42: PRU | D42: =_xlfn.XLOOKUP($P$3,Data!$A$86:$A$94,Data!Y86:Y94) -> 0
A44: Spring 2026 Top-up Funding - Other LAs
A45: Indicative | D45: Cat 1 | E45: Cat 2 | F45: Cat 3 | G45: Cat 4 | H45: Cat 5 | I45: Cat 6
C46: Level A | D46: =D35*('HN Framework Values'!D38/Data!$A$16) -> 0 | E46: =E35*('HN Framework Values'!E38/Data!$A$16) -> 0 | F46: =F35*('HN Framework Values'!F38/Data!$A$16) -> 0 | G46: =G35*('HN Framework Values'!G38/Data!$A$16) -> 0 | H46: =H35*('HN Framework Values'!H38/Data!$A$16) -> 0 | I46: =I35*('HN Framework Values'!I38/Data!$A$16) -> 0
C47: Level B | D47: =D36*('HN Framework Values'!D39/Data!$A$16) -> 0 | E47: =E36*('HN Framework Values'!E39/Data!$A$16) -> 0 | F47: =F36*('HN Framework Values'!F39/Data!$A$16) -> 0 | G47: =G36*('HN Framework Values'!G39/Data!$A$16) -> 0 | H47: =H36*('HN Framework Values'!H39/Data!$A$16) -> 0 | I47: =I36*('HN Framework Values'!I39/Data!$A$16) -> 0
C48: Level C | D48: =D37*('HN Framework Values'!D40/Data!$A$16) -> 0 | E48: =E37*('HN Framework Values'!E40/Data!$A$16) -> 0 | F48: =F37*('HN Framework Values'!F40/Data!$A$16) -> 0 | G48: =G37*('HN Framework Values'!G40/Data!$A$16) -> 0 | H48: =H37*('HN Framework Values'!H40/Data!$A$16) -> 0 | I48: =I37*('HN Framework Values'!I40/Data!$A$16) -> 0 | K48: Total Other LA Top-up
C49: Level D | D49: =D38*('HN Framework Values'!D41/Data!$A$16) -> 0 | E49: =E38*('HN Framework Values'!E41/Data!$A$16) -> 0 | F49: =F38*('HN Framework Values'!F41/Data!$A$16) -> 0 | G49: =G38*('HN Framework Values'!G41/Data!$A$16) -> 0 | H49: =H38*('HN Framework Values'!H41/Data!$A$16) -> 0 | I49: =I38*('HN Framework Values'!I41/Data!$A$16) -> 0
C50: Level E | D50: =D39*('HN Framework Values'!D42/Data!$A$16) -> 3416.791687 | E50: =E39*('HN Framework Values'!E42/Data!$A$16) -> 0 | F50: =F39*('HN Framework Values'!F42/Data!$A$16) -> 0 | G50: =G39*('HN Framework Values'!G42/Data!$A$16) -> 0 | H50: =H39*('HN Framework Values'!H42/Data!$A$16) -> 0 | I50: =I39*('HN Framework Values'!I42/Data!$A$16) -> 0
C51: Level F | D51: =D40*('HN Framework Values'!D43/Data!$A$16) -> 0 | E51: =E40*('HN Framework Values'!E43/Data!$A$16) -> 0 | F51: =F40*('HN Framework Values'!F43/Data!$A$16) -> 0 | G51: =G40*('HN Framework Values'!G43/Data!$A$16) -> 0 | H51: =H40*('HN Framework Values'!H43/Data!$A$16) -> 0 | I51: =I40*('HN Framework Values'!I43/Data!$A$16) -> 0 | K51: =SUM(D46:I53) -> 3416.791687
C53: PRU | D53: =D42*'HN Framework Values'!D33/Data!A16 -> 0
A55: Total INDICATIVE Spring 2026 Top-up Funding | K55: =K51+K29 -> 754831.0372 | Q55: =_xlfn.XLOOKUP(P3,Data!A86:A94,Data!AT86:AT94)-K55 -> 0
A60: Notes
A62: Top up funding is allocated to pupils based on their High Needs Banding and how many days they are on roll at your school.
A64: This data is based on the level of provision your school delivered in the 2025 spring term. Where the number of places at your school
A65: has changed we have scaled the indicative level of provision up or down as appropriate to reflect the changing position at the school -
A66: but we have not allowed this to increase above your number of comissioned places.
A68: This will be updated at the end of each term to reflect the actual number of Full Time Equivilant pupils that have been educated in this
A69: period. Your top-up funding budget will change accordingly.
A71: Other LA Top-up funding is not paid to you by Coventry City Council and you will need to invoice the relevant Local Authorities for this
A72: funding. If you need contact information for any other Local Authority please contact SEN Management Services on 024 7683 1614.

Sheet Data (hidden)
A1: 1 | B1: 2 | C1: 3 | D1: 4 | E1: 5 | F1: 6 | G1: 7 | H1: 8 | I1: 9 | J1: 10 | K1: 11 | L1: 12 | M1: 13 | N1: 14 | O1: 15 | P1: 16 | Q1: 17 | R1: 18 | S1: 19 | T1: 20 | U1: 21 | V1: 22 | W1: 23 | X1: 24 | Y1: 25 | Z1: 26 | AA1: 27 | AB1: 28 | AC1: 29 | AD1: 30 | AE1: 31 | AF1: 32 | AG1: 33 | AH1: 34 | AI1: 35 | AJ1: 36 | AK1: 37 | AL1: 38 | AM1: 39 | AN1: 40 | AO1: 41 | AP1: 42 | AQ1: 43 | AR1: 44 | AS1: 45 | AT1: 46
C2: 2024-25 places* | F2: 2025-26 Places Information | O2: Place Led Funding | V2: 0.005 | W2: Funding Rate Information | AP2: Other Funding Elements | AU2: Deductions
A3: Ref # | B3: School Name | C3: TOTAL Apr - Jul PLACES | D3: TOTAL Aug PLACES | E3: TOTAL Sep - Mar PLACES | F3: Pre-16 Apr - Jul | G3: Pre-16 Aug | H3: Pre-16 Sept - Mar | I3: Post-16 Apr - Jul | J3: Post-16 Aug - Mar | K3: TOTAL Apr - Jul PLACES | L3: TOTAL Aug PLACES | M3: TOTAL Sep - Mar PLACES | O3: Pre-16 Apr - Jul | P3: Pre-16 Aug | Q3: Pre-16 Sept - Mar | R3: Post-16 Apr - Jul | S3: Post-16 Aug | T3: Post-16 Sept - Mar | V3: Coventry ELC Band | W3: Band 1C | X3: Band 2C | Y3: Band 1D | Z3: Band 2D | AA3: Band 3D | AB3: Band 4D | AC3: Band 1E | AD3: Band 2E | AE3: Band 3E | AF3: Band 4E | AG3: Band 5E | AH3: Band 6E | AI3: Band 1F | AJ3: Band 2F | AK3: Band 3F | AL3: Band 4F | AM3: Band 5F | AN3: Band 6F | AP3: 2025/26 Pupil Premium | AQ3: 2025/26 TPG/TPECG | AR3: 2025/26 Additional Funding | AS3: 2025/26 CSBG | AT3: Split Site Funding | AU3: RPA
A4: 1 | B4: Castle Wood Special School | C4: =[5]Data!$K4 -> 160 | D4: =[5]Data!$L4 -> 160 | E4: =[5]Data!$M4 -> 164 | F4: 164 | G4: 164 | H4: =164+20-4+10 -> 190 | I4: 0 | J4: 0 | K4: =F4+I4 -> 164 | L4: =G4+J4 -> 164 | M4: =H4+J4 -> 190 | O4: =F4*10000*4/12 -> 546666.6667 | P4: =G4*10000*1/12 -> 136666.6667 | Q4: =H4*10000*7/12 -> 1108333.333 | R4: =I4*10000*4/12 -> 0 | S4: =I4*10000*1/12 -> 0 | T4: =J4*10000*7/12 -> 0 | V4: 0 | W4: ='[6]Banded Framework'!$R$7 -> 2620.221587 | X4: ='[6]Banded Framework'!$S$7 -> 3144.270392 | Y4: ='[6]Banded Framework'!$R$8 -> 3144.270392 | Z4: ='[6]Banded Framework'!$S$8 -> 5240.443175 | AA4: ='[6]Banded Framework'!$T$8 -> 7860.675979 | AB4: ='[6]Banded Framework'!$U$8 -> 7860.675979 | AC4: ='[6]Banded Framework'!$R$9 -> 10480.89757 | AD4: ='[6]Banded Framework'!$S$9 -> 9694.835577 | AE4: ='[6]Banded Framework'!$T$9 -> 13101.11915 | AF4: ='[6]Banded Framework'!$U$9 -> 13101.11915 | AG4: ='[6]Banded Framework'!$V$9 -> 26685.25108 | AH4: 0 | AI4: ='[6]Banded Framework'!$R$10 -> 17031.46275 | AJ4: ='[6]Banded Framework'!$S$10 -> 15721.34074 | AK4: ='[6]Banded Framework'!$T$10 -> 17031.46275 | AL4: ='[6]Banded Framework'!$U$10 -> 15721.34074 | AM4: ='[6]Banded Framework'!$V$10 -> 53370.50216 | AN4: 0 | AP4: =[7]Allocations!$V$60 -> 104535 | AQ4: =[8]Sheet1!$J$15 -> 118250 | AR4: =(([9]Sheet1!M2*K4)/12*5)+(([9]Sheet1!M2*M4)/12*7) -> 133574.7831 | AS4: =+[10]Sheet1!$K$10+[11]Sheet1!$J$10+339*1.005284294*M4 -> 495257.3614 | AT4: 0 | AU4: =-'[12]LAMS Data'!$AE$34 -> -4320
A5: 2 | B5: Kingsbury Academy | C5: =[5]Data!$K5 -> 100 | D5: =[5]Data!$L5 -> 100 | E5: =[5]Data!$M5 -> 100 | F5: =100+3 -> 103 | G5: =100+3 -> 103 | H5: =100+6 -> 106 | I5: 0 | J5: 0 | K5: 103 | L5: 103 | M5: =H5+J5 -> 106 | O5: 343333.3333 | P5: 85833.33333 | Q5: 618333.3333 | R5: 0 | S5: 0 | T5: 0 | V5: 0 | W5: ='[6]Banded Framework'!$R$7 -> 2620.221587 | X5: ='[6]Banded Framework'!$S$7 -> 3144.270392 | Y5: ='[6]Banded Framework'!$R$8 -> 3144.270392 | Z5: ='[6]Banded Framework'!$S$8 -> 5240.443175 | AA5: ='[6]Banded Framework'!$T$8 -> 7860.675979 | AB5: ='[6]Banded Framework'!$U$8 -> 7860.675979 | AC5: ='[6]Banded Framework'!$R$9 -> 10480.89757 | AD5: ='[6]Banded Framework'!$S$9 -> 9694.835577 | AE5: ='[6]Banded Framework'!$T$9 -> 13101.11915 | AF5: ='[6]Banded Framework'!$U$9 -> 13101.11915 | AG5: ='[6]Banded Framework'!$V$9 -> 26685.25108 | AH5: 0 | AI5: ='[6]Banded Framework'!$R$10 -> 17031.46275 | AJ5: ='[6]Banded Framework'!$S$10 -> 15721.34074 | AK5: ='[6]Banded Framework'!$T$10 -> 17031.46275 | AL5: ='[6]Banded Framework'!$U$10 -> 15721.34074 | AM5: ='[6]Banded Framework'!$V$10 -> 53370.50216 | AN5: 0 | AP5: 0 | AQ5: =[8]Sheet1!$J$16 -> 69135 | AR5: =(([9]Sheet1!M3*K5)/12*5)+(([9]Sheet1!M3*M5)/12*7) -> 78524.52219 | AS5: =+[10]Sheet1!$K$13+[11]Sheet1!$J$13+339*1.005284294*M5 -> 294762.8858 | AT5: 0 | AU5: 0
A6: 3 | B6: Riverbank Academy | C6: =[5]Data!$K6 -> 200 | D6: =[5]Data!$L6 -> 200 | E6: =[5]Data!$M6 -> 209 | F6: 189 | G6: 189 | H6: =189+6+1+4 -> 200 | I6: 20 | J6: 20 | K6: 209 | L6: 209 | M6: =H6+J6 -> 220 | O6: 630000 | P6: 157500 | Q6: 1166666.667 | R6: 66666.66667 | S6: 16666.66667 | T6: 116666.6667 | V6: 0 | W6: ='[6]Banded Framework'!$R$7 -> 2620.221587 | X6: ='[6]Banded Framework'!$S$7 -> 3144.270392 | Y6: ='[6]Banded Framework'!$R$8 -> 3144.270392 | Z6: ='[6]Banded Framework'!$S$8 -> 5240.443175 | AA6: ='[6]Banded Framework'!$T$8 -> 7860.675979 | AB6: ='[6]Banded Framework'!$U$8 -> 7860.675979 | AC6: ='[6]Banded Framework'!$R$9 -> 10480.89757 | AD6: ='[6]Banded Framework'!$S$9 -> 9694.835577 | AE6: ='[6]Banded Framework'!$T$9 -> 13101.11915 | AF6: ='[6]Banded Framework'!$U$9 -> 13101.11915 | AG6: ='[6]Banded Framework'!$V$9 -> 26685.25108 | AH6: =35530.11*(1+V2) -> 35707.76055 | AI6: ='[6]Banded Framework'!$R$10 -> 17031.46275 | AJ6: ='[6]Banded Framework'!$S$10 -> 15721.34074 | AK6: ='[6]Banded Framework'!$T$10 -> 17031.46275 | AL6: ='[6]Banded Framework'!$U$10 -> 15721.34074 | AM6: ='[6]Banded Framework'!$V$10 -> 53370.50216 | AN6: 0 | AP6: 0 | AQ6: =[8]Sheet1!$J$17 -> 142175 | AR6: =(([9]Sheet1!M4*K6)/12*5)+(([9]Sheet1!M4*M6)/12*7) -> 145774.7765 | AS6: =+[10]Sheet1!$K$14+[11]Sheet1!$J$14+339*1.005284294*M6 -> 606765.1026 | AT6: 0 | AU6: 0
A7: 4 | B7: Corley Academy | C7: =[5]Data!$K7 -> 140 | D7: =[5]Data!$L7 -> 140 | E7: =[5]Data!$M7 -> 155 | F7: 145 | G7: 145 | H7: =145+10 -> 155 | I7: 10 | J7: 10 | K7: 155 | L7: 155 | M7: 165 | O7: =F7*10000*4/12 -> 483333.3333 | P7: 120833.3333 | Q7: 904166.6667 | R7: 33333.33333 | S7: 8333.333333 | T7: 58333.33333 | V7: 0 | W7: ='[6]Banded Framework'!$R$7 -> 2620.221587 | X7: ='[6]Banded Framework'!$S$7 -> 3144.270392 | Y7: ='[6]Banded Framework'!$R$8 -> 3144.270392 | Z7: ='[6]Banded Framework'!$S$8 -> 5240.443175 | AA7: ='[6]Banded Framework'!$T$8 -> 7860.675979 | AB7: ='[6]Banded Framework'!$U$8 -> 7860.675979 | AC7: ='[6]Banded Framework'!$R$9 -> 10480.89757 | AD7: ='[6]Banded Framework'!$S$9 -> 9694.835577 | AE7: ='[6]Banded Framework'!$T$9 -> 13101.11915 | AF7: ='[6]Banded Framework'!$U$9 -> 13101.11915 | AG7: ='[6]Banded Framework'!$V$9 -> 26685.25108 | AH7: 0 | AI7: ='[6]Banded Framework'!$R$10 -> 17031.46275 | AJ7: ='[6]Banded Framework'!$S$10 -> 15721.34074 | AK7: ='[6]Banded Framework'!$T$10 -> 17031.46275 | AL7: ='[6]Banded Framework'!$U$10 -> 15721.34074 | AM7: ='[6]Banded Framework'!$V$10 -> 53370.50216 | AN7: 0 | AP7: 0 | AQ7: =[8]Sheet1!$J$18 -> 106150 | AR7: =(([9]Sheet1!M5*K7)/12*5)+(([9]Sheet1!M5*M7)/12*7) -> 115338.381 | AS7: =+[10]Sheet1!$K$12+[11]Sheet1!$J$12+339*1.005284294*M7 -> 453237.577 | AT7: 0 | AU7: 0
A8: 5 | B8: Tiverton Special School | C8: =[5]Data!$K8 -> 121 | D8: =[5]Data!$L8 -> 121 | E8: =[5]Data!$M8 -> 131 | F8: =131+2 -> 133 | G8: =131+2 -> 133 | H8: =131+2 -> 133 | I8: 0 | J8: 0 | K8: 133 | L8: 133 | M8: 133 | O8: 443333.3333 | P8: 110833.3333 | Q8: 775833.3333 | R8: 0 | S8: 0 | T8: 0 | V8: 0 | W8: ='[6]Banded Framework'!$R$7 -> 2620.221587 | X8: ='[6]Banded Framework'!$S$7 -> 3144.270392 | Y8: ='[6]Banded Framework'!$R$8 -> 3144.270392 | Z8: ='[6]Banded Framework'!$S$8 -> 5240.443175 | AA8: ='[6]Banded Framework'!$T$8 -> 7860.675979 | AB8: ='[6]Banded Framework'!$U$8 -> 7860.675979 | AC8: ='[6]Banded Framework'!$R$9 -> 10480.89757 | AD8: ='[6]Banded Framework'!$S$9 -> 9694.835577 | AE8: ='[6]Banded Framework'!$T$9 -> 13101.11915 | AF8: ='[6]Banded Framework'!$U$9 -> 13101.11915 | AG8: ='[6]Banded Framework'!$V$9 -> 26685.25108 | AH8: 0 | AI8: ='[6]Banded Framework'!$R$10 -> 17031.46275 | AJ8: ='[6]Banded Framework'!$S$10 -> 15721.34074 | AK8: ='[6]Banded Framework'!$T$10 -> 17031.46275 | AL8: ='[6]Banded Framework'!$U$10 -> 15721.34074 | AM8: ='[6]Banded Framework'!$V$10 -> 53370.50216 | AN8: 0 | AP8: =[7]Allocations!$V$61 -> 68890 | AQ8: =[8]Sheet1!$J$19 -> 87780 | AR8: =(([9]Sheet1!M6*K8)/12*5)+(([9]Sheet1!M6*M8)/12*7) -> 98389.64973 | AS8: =+[10]Sheet1!$K$7+[11]Sheet1!$J$7+339*1.005284294*M8 -> 373793.253 | AT8: 0 | AU8: =-'[12]LAMS Data'!$AE$41 -> -3267 | AW8: Goal Seek | AX8: 0.05913469681
A9: 6 | B9: Baginton Fields Special School | C9: =[5]Data!$K9 -> 126 | D9: =[5]Data!$L9 -> 126 | E9: =[5]Data!$M9 -> 126 | F9: 88 | G9: 88 | H9: 88 | I9: 38 | J9: 38 | K9: 126 | L9: 126 | M9: 126 | O9: 293333.3333 | P9: 73333.33333 | Q9: 513333.3333 | R9: 126666.6667 | S9: 31666.66667 | T9: 221666.6667 | V9: 0 | W9: ='[6]Banded Framework'!$R$7 -> 2620.221587 | X9: ='[6]Banded Framework'!$S$7 -> 3144.270392 | Y9: ='[6]Banded Framework'!$R$8 -> 3144.270392 | Z9: ='[6]Banded Framework'!$S$8 -> 5240.443175 | AA9: ='[6]Banded Framework'!$T$8 -> 7860.675979 | AB9: ='[6]Banded Framework'!$U$8 -> 7860.675979 | AC9: ='[6]Banded Framework'!$R$9 -> 10480.89757 | AD9: ='[6]Banded Framework'!$S$9 -> 9694.835577 | AE9: ='[6]Banded Framework'!$T$9 -> 13101.11915 | AF9: ='[6]Banded Framework'!$U$9 -> 13101.11915 | AG9: ='[6]Banded Framework'!$V$9 -> 26685.25108 | AH9: 0 | AI9: ='[6]Banded Framework'!$R$10 -> 17031.46275 | AJ9: ='[6]Banded Framework'!$S$10 -> 15721.34074 | AK9: ='[6]Banded Framework'!$T$10 -> 17031.46275 | AL9: ='[6]Banded Framework'!$U$10 -> 15721.34074 | AM9: ='[6]Banded Framework'!$V$10 -> 53370.50216 | AN9: 0 | AP9: 0 | AQ9: =[8]Sheet1!$J$20 -> 83160 | AR9: =(([9]Sheet1!M7*K9)/12*5)+(([9]Sheet1!M7*M9)/12*7) -> 96543.24004 | AS9: =+[10]Sheet1!$K$11+[11]Sheet1!$J$11+339*1.005284294*M9 -> 354119.7133 | AT9: 0 | AU9: =-IFERROR(_xlfn.XLOOKUP(A9,'[13]LAMS Data'!$AH:$AH,'[13]LAMS Data'!$AE:$AE),0) -> 0 | AW9: =K121 -> 16905477.14
A10: 7 | B10: Sherbourne Fields Special School | C10: =[5]Data!$K10 -> 251 | D10: =[5]Data!$L10 -> 251 | E10: =[5]Data!$M10 -> 258 | F10: 224 | G10: 224 | H10: 224 | I10: 34 | J10: 34 | K10: 258 | L10: 258 | M10: 258 | O10: 746666.6667 | P10: 186666.6667 | Q10: 1306666.667 | R10: 113333.3333 | S10: 28333.33333 | T10: 198333.3333 | V10: 0 | W10: ='[6]Banded Framework'!$R$7 -> 2620.221587 | X10: ='[6]Banded Framework'!$S$7 -> 3144.270392 | Y10: ='[6]Banded Framework'!$R$8 -> 3144.270392 | Z10: ='[6]Banded Framework'!$S$8 -> 5240.443175 | AA10: ='[6]Banded Framework'!$T$8 -> 7860.675979 | AB10: ='[6]Banded Framework'!$U$8 -> 7860.675979 | AC10: ='[6]Banded Framework'!$R$9 -> 10480.89757 | AD10: ='[6]Banded Framework'!$S$9 -> 9694.835577 | AE10: ='[6]Banded Framework'!$T$9 -> 13101.11915 | AF10: ='[6]Banded Framework'!$U$9 -> 13101.11915 | AG10: ='[6]Banded Framework'!$V$9 -> 26685.25108 | AH10: 0 | AI10: ='[6]Banded Framework'!$R$10 -> 17031.46275 | AJ10: ='[6]Banded Framework'!$S$10 -> 15721.34074 | AK10: ='[6]Banded Framework'!$T$10 -> 17031.46275 | AL10: ='[6]Banded Framework'!$U$10 -> 15721.34074 | AM10: ='[6]Banded Framework'!$V$10 -> 53370.50216 | AN10: 0 | AP10: =[7]Allocations!$V$62+[7]Allocations!$V$67 -> 106830 | AQ10: =[8]Sheet1!$J$21 -> 170280 | AR10: =(([9]Sheet1!M8*K10)/12*5)+(([9]Sheet1!M8*M10)/12*7) -> 186417.9333 | AS10: =+[10]Sheet1!$K$6+[11]Sheet1!$J$6+339*1.005284294*M10 -> 725102.1749 | AT10: 0 | AU10: =-'[12]LAMS Data'!$AE$12 -> -6966 | AW10: 896123
A11: 8 | B11: Woodfield Special School | C11: =[5]Data!$K11 -> 155 | D11: =[5]Data!$L11 -> 155 | E11: =[5]Data!$M11 -> 155 | F11: 155 | G11: 155 | H11: =155+6 -> 161 | I11: 0 | J11: 0 | K11: 155 | L11: 155 | M11: =H11+J11 -> 161 | O11: 516666.6667 | P11: 129166.6667 | Q11: 939166.6667 | R11: 0 | S11: 0 | T11: 0 | V11: 0 | W11: ='[6]Banded Framework'!$R$7 -> 2620.221587 | X11: ='[6]Banded Framework'!$S$7 -> 3144.270392 | Y11: ='[6]Banded Framework'!$R$8 -> 3144.270392 | Z11: ='[6]Banded Framework'!$S$8 -> 5240.443175 | AA11: ='[6]Banded Framework'!$T$8 -> 7860.675979 | AB11: ='[6]Banded Framework'!$U$8 -> 7860.675979 | AC11: ='[6]Banded Framework'!$R$9 -> 10480.89757 | AD11: ='[6]Banded Framework'!$S$9 -> 9694.835577 | AE11: ='[6]Banded Framework'!$T$9 -> 13101.11915 | AF11: ='[6]Banded Framework'!$U$9 -> 13101.11915 | AG11: ='[6]Banded Framework'!$V$9 -> 26685.25108 | AH11: 0 | AI11: ='[6]Banded Framework'!$R$10 -> 17031.46275 | AJ11: ='[6]Banded Framework'!$S$10 -> 15721.34074 | AK11: ='[6]Banded Framework'!$T$10 -> 17031.46275 | AL11: ='[6]Banded Framework'!$U$10 -> 15721.34074 | AM11: ='[6]Banded Framework'!$V$10 -> 53370.50216 | AN11: 0 | AP11: =[7]Allocations!$V$63+[7]Allocations!$V$68 -> 163835 | AQ11: =[8]Sheet1!$J$22 -> 104610 | AR11: =(([9]Sheet1!M9*K11)/12*5)+(([9]Sheet1!M9*M11)/12*7) -> 127078.7202 | AS11: =+[10]Sheet1!$K$8+[11]Sheet1!$J$8+339*1.005284294*M11 -> 446192.4115 | AT11: 90000 | AU11: =-'[12]LAMS Data'!$AE$4 -> -4185 | AW11: =SUM(AW9:AW10) -> 17801600.14
A12: 9 | B12: Coventry Extended Learning Centre | C12: =[5]Data!$K12 -> 120 | D12: =[5]Data!$L12 -> 120 | E12: =[5]Data!$M12 -> 120 | F12: 120 | G12: 120 | H12: 120 | I12: 0 | J12: 0 | K12: 120 | L12: 120 | M12: 120 | O12: 400000 | P12: 100000 | Q12: 700000 | R12: 0 | S12: 0 | T12: 0 | V12: =[14]BandedFrameworks!$J$38*(1+$V$2) -> 12897.34992 | W12: 0 | X12: 0 | Y12: 0 | Z12: 0 | AA12: 0 | AB12: 0 | AC12: 0 | AD12: 0 | AE12: 0 | AF12: 0 | AG12: 0 | AH12: 0 | AI12: 0 | AJ12: 0 | AK12: 0 | AL12: 0 | AM12: 0 | AN12: 0 | AP12: =[15]Allocations!$U$75 -> 49350 | AQ12: =[8]Sheet1!$J$23 -> 79200 | AR12: =(([9]Sheet1!M13*K12)/12*5)+(([9]Sheet1!M13*M12)/12*7) -> 72160 | AS12: =+[10]Sheet1!$K$9+[11]Sheet1!$J$9+339*1.005284294*M12 -> 337255.9651 | AT12: 0 | AU12: =-IFERROR(_xlfn.XLOOKUP(A12,'[13]LAMS Data'!$AH:$AH,'[13]LAMS Data'!$AE:$AE),0) -> 0 | AV12: Need to add £6,962 to £79,200 for fixed value Historic TPG
C13: =SUM(C4:C12) -> 1373 | D13: 1373 | E13: 1418 | F13: 1321 | G13: 1321 | H13: 1377 | I13: 102 | J13: 102 | K13: 1423 | L13: 1423 | M13: 1479 | O13: =SUM(O4:O12) -> 4403333.333 | P13: 1100833.333 | Q13: 8032500 | R13: 340000 | S13: 85000 | T13: 595000 | AP13: =SUM(AP4:AP12) -> 493440 | AQ13: 960740 | AR13: =SUM(AR4:AR12) -> 1053802.006 | AS13: =SUM(AS4:AS12) -> 4086486.445 | AT13: =SUM(AT4:AT12) -> 90000 | AU13: -18738
AM15: =X5*66/197 -> 1053.410385
A16: 194 | D16: Coventry pupils | Y16: Other LA Pupils
C17: Place Led | D17: Cov ELC Band | E17: Band 1C | F17: Band 2C | G17: Band 1D | H17: Band 2D | I17: Band 3D | J17: Band 4D | K17: Band 1E | L17: Band 2E | M17: Band 3E | N17: Band 4E | O17: Band 5E | P17: Band 6E | Q17: Band 1F | R17: Band 2F | S17: Band 3F | T17: Band 4F | U17: Band 5F | V17: Band 6F | W17: No. FTEs | X17: Coventry | Y17: Cov ELC Band | Z17: Band 1C | AA17: Band 2C | AB17: Band 1D | AC17: Band 2D | AD17: Band 3D | AE17: Band 4D | AF17: Band 1E | AG17: Band 2E | AH17: Band 3E | AI17: Band 4E | AJ17: Band 5E | AK17: Band 6E | AL17: Band 1F | AM17: Band 2F | AN17: Band 3F | AO17: Band 4F | AP17: Band 5F | AQ17: Band 6F | AR17: No. FTEs | AS17: Other LA | AT17: Total Top Up | AV17: Manual Check | AW17: Total | AX17: 24/25 | AY17: 24/25 | AZ17: Budget Setting | BA17: 24/25 | BB17: Additional | BC17: Ave Top Up
C18: Day Rate | D18: Day Units | E18: Day Units | F18: Day Units | G18: Day Units | H18: Day Units | I18: Day Units | J18: Day Units | K18: Day Units | L18: Day Units | M18: Day Units | N18: Day Units | O18: Day Units | P18: Day Units | Q18: Day Units | R18: Day Units | S18: Day Units | T18: Day Units | U18: Day Units | V18: Day Units | W18: Equivalency | X18: Funding £ | Y18: Day Units | Z18: Day Units | AA18: Day Units | AB18: Day Units | AC18: Day Units | AD18: Day Units | AE18: Day Units | AF18: Day Units | AG18: Day Units | AH18: Day Units | AI18: Day Units | AJ18: Day Units | AK18: Day Units | AL18: Day Units | AM18: Day Units | AN18: Day Units | AO18: Day Units | AP18: Day Units | AQ18: Day Units | AR18: Equivalency | AS18: Funding £ | AT18: Funding £ | AU18: No. FTE | AW18: Places | AX18: v3 FTE | AY18: Places | BA18: Term Days | BB18: Place Days | BE18: ELC Band | BF18: Band 1C | BG18: Band 2C | BH18: Band 1D | BI18: Band 2D | BJ18: Band 3D | BK18: Band 4D | BL18: Band 1E | BM18: Band 2E | BN18: Band 3E | BO18: Band 4E | BP18: Band 5E | BQ18: Band 6E | BR18: Band 1F | BS18: Band 2F | BT18: Band 3F | BU18: Band 4F | BV18: Band 5F | BW18: Band 6F | BY18: ELC Band | BZ18: Band 1C | CA18: Band 2C | CB18: Band 1D | CC18: Band 2D | CD18: Band 3D | CE18: Band 4D | CF18: Band 1E | CG18: Band 2E | CH18: Band 3E | CI18: Band 4E | CJ18: Band 5E | CK18: Band 6E | CL18: Band 1F | CM18: Band 2F | CN18: Band 3F | CO18: Band 4F | CP18: Band 5F | CQ18: Band 6F
B19: Summer Term 2025
A20: 64 | B20: School | BA20: 69
A21: 1 | B21: Castle Wood | C21: =10000/$A$16 -> 51.54639175 | D21: 0 | E21: =SUMIFS(SummerProvRep!$K:$K,SummerProvRep!$A:$A,Data!$A$21,SummerProvRep!$O:$O,"Coventry",SummerProvRep!$T:$T,Data!E$17) -> 0 | F21: =SUMIFS(SummerProvRep!$K:$K,SummerProvRep!$A:$A,Data!$A$21,SummerProvRep!$O:$O,"Coventry",SummerProvRep!$T:$T,Data!F$17) -> 0 | G21: =SUMIFS(SummerProvRep!$K:$K,SummerProvRep!$A:$A,Data!$A$21,SummerProvRep!$O:$O,"Coventry",SummerProvRep!$T:$T,Data!G$17) -> 0 | H21: =SUMIFS(SummerProvRep!$K:$K,SummerProvRep!$A:$A,Data!$A$21,SummerProvRep!$O:$O,"Coventry",SummerProvRep!$T:$T,Data!H$17) -> 0 | I21: =SUMIFS(SummerProvRep!$K:$K,SummerProvRep!$A:$A,Data!$A$21,SummerProvRep!$O:$O,"Coventry",SummerProvRep!$T:$T,Data!I$17) -> 0 | J21: =SUMIFS(SummerProvRep!$K:$K,SummerProvRep!$A:$A,Data!$A$21,SummerProvRep!$O:$O,"Coventry",SummerProvRep!$T:$T,Data!J$17) -> 64 | K21: =SUMIFS(SummerProvRep!$K:$K,SummerProvRep!$A:$A,Data!$A$21,SummerProvRep!$O:$O,"Coventry",SummerProvRep!$T:$T,Data!K$17) -> 5701 | L21: =SUMIFS(SummerProvRep!$K:$K,SummerProvRep!$A:$A,Data!$A$21,SummerProvRep!$O:$O,"Coventry",SummerProvRep!$T:$T,Data!L$17) -> 576 | M21: =SUMIFS(SummerProvRep!$K:$K,SummerProvRep!$A:$A,Data!$A$21,SummerProvRep!$O:$O,"Coventry",SummerProvRep!$T:$T,Data!M$17) -> 0 | N21: =SUMIFS(SummerProvRep!$K:$K,SummerProvRep!$A:$A,Data!$A$21,SummerProvRep!$O:$O,"Coventry",SummerProvRep!$T:$T,Data!N$17) -> 448 | O21: =SUMIFS(SummerProvRep!$K:$K,SummerProvRep!$A:$A,Data!$A$21,SummerProvRep!$O:$O,"Coventry",SummerProvRep!$T:$T,Data!O$17) -> 640 | P21: =SUMIFS(SummerProvRep!$K:$K,SummerProvRep!$A:$A,Data!$A$21,SummerProvRep!$O:$O,"Coventry",SummerProvRep!$T:$T,Data!P$17) -> 0 | Q21: =SUMIFS(SummerProvRep!$K:$K,SummerProvRep!$A:$A,Data!$A$21,SummerProvRep!$O:$O,"Coventry",SummerProvRep!$T:$T,Data!Q$17) -> 2112 | R21: =SUMIFS(SummerProvRep!$K:$K,SummerProvRep!$A:$A,Data!$A$21,SummerProvRep!$O:$O,"Coventry",SummerProvRep!$T:$T,Data!R$17) -> 448 | S21: =SUMIFS(SummerProvRep!$K:$K,SummerProvRep!$A:$A,Data!$A$21,SummerProvRep!$O:$O,"Coventry",SummerProvRep!$T:$T,Data!S$17) -> 0 | T21: =SUMIFS(SummerProvRep!$K:$K,SummerProvRep!$A:$A,Data!$A$21,SummerProvRep!$O:$O,"Coventry",SummerProvRep!$T:$T,Data!T$17) -> 384 | U21: =SUMIFS(SummerProvRep!$K:$K,SummerProvRep!$A:$A,Data!$A$21,SummerProvRep!$O:$O,"Coventry",SummerProvRep!$T:$T,Data!U$17) -> 161 | V21: =SUMIFS(SummerProvRep!$K:$K,SummerProvRep!$A:$A,Data!$A$21,SummerProvRep!$O:$O,"Coventry",SummerProvRep!$T:$T,Data!V$17) -> 0 | W21: =SUM(D21:V21)/$A$20 -> 164.59375 | X21: =SUMPRODUCT(E21:V21,$W$6:$AN$6)/$A$16 -> 754793.9347 | Y21: 0 | Z21: =SUMIFS(SummerProvRep!$K:$K,SummerProvRep!$A:$A,Data!#REF!,SummerProvRep!$O:$O,"<>Coventry",SummerProvRep!$T:$T,Data!Z$17) -> 0 | AA21: =SUMIFS(SummerProvRep!$K:$K,SummerProvRep!$A:$A,Data!#REF!,SummerProvRep!$O:$O,"<>Coventry",SummerProvRep!$T:$T,Data!AA$17) -> 0 | AB21: =SUMIFS(SummerProvRep!$K:$K,SummerProvRep!$A:$A,Data!#REF!,SummerProvRep!$O:$O,"<>Coventry",SummerProvRep!$T:$T,Data!AB$17) -> 0 | AC21: =SUMIFS(SummerProvRep!$K:$K,SummerProvRep!$A:$A,Data!#REF!,SummerProvRep!$O:$O,"<>Coventry",SummerProvRep!$T:$T,Data!AC$17) -> 0 | AD21: =SUMIFS(SummerProvRep!$K:$K,SummerProvRep!$A:$A,Data!#REF!,SummerProvRep!$O:$O,"<>Coventry",SummerProvRep!$T:$T,Data!AD$17) -> 0 | AE21: =SUMIFS(SummerProvRep!$K:$K,SummerProvRep!$A:$A,Data!#REF!,SummerProvRep!$O:$O,"<>Coventry",SummerProvRep!$T:$T,Data!AE$17) -> 0 | AF21: =SUMIFS(SummerProvRep!$K:$K,SummerProvRep!$A:$A,Data!$A$21,SummerProvRep!$O:$O,"<>Coventry",SummerProvRep!$T:$T,Data!AF$17) -> 64 | AG21: =SUMIFS(SummerProvRep!$K:$K,SummerProvRep!$A:$A,Data!$A$21,SummerProvRep!$O:$O,"<>Coventry",SummerProvRep!$T:$T,Data!AG$17) -> 0 | AH21: =SUMIFS(SummerProvRep!$K:$K,SummerProvRep!$A:$A,Data!$A$21,SummerProvRep!$O:$O,"<>Coventry",SummerProvRep!$T:$T,Data!AH$17) -> 0 | AI21: =SUMIFS(SummerProvRep!$K:$K,SummerProvRep!$A:$A,Data!$A$21,SummerProvRep!$O:$O,"<>Coventry",SummerProvRep!$T:$T,Data!AI$17) -> 0 | AJ21: =SUMIFS(SummerProvRep!$K:$K,SummerProvRep!$A:$A,Data!$A$21,SummerProvRep!$O:$O,"<>Coventry",SummerProvRep!$T:$T,Data!AJ$17) -> 0 | AK21: =SUMIFS(SummerProvRep!$K:$K,SummerProvRep!$A:$A,Data!$A$21,SummerProvRep!$O:$O,"<>Coventry",SummerProvRep!$T:$T,Data!AK$17) -> 0 | AL21: =SUMIFS(SummerProvRep!$K:$K,SummerProvRep!$A:$A,Data!$A$21,SummerProvRep!$O:$O,"<>Coventry",SummerProvRep!$T:$T,Data!AL$17) -> 0 | AM21: =SUMIFS(SummerProvRep!$K:$K,SummerProvRep!$A:$A,Data!$A$21,SummerProvRep!$O:$O,"<>Coventry",SummerProvRep!$T:$T,Data!AM$17) -> 0 | AN21: =SUMIFS(SummerProvRep!$K:$K,SummerProvRep!$A:$A,Data!$A$21,SummerProvRep!$O:$O,"<>Coventry",SummerProvRep!$T:$T,Data!AN$17) -> 0 | AO21: =SUMIFS(SummerProvRep!$K:$K,SummerProvRep!$A:$A,Data!$A$21,SummerProvRep!$O:$O,"<>Coventry",SummerProvRep!$T:$T,Data!AO$17) -> 0 | AP21: =SUMIFS(SummerProvRep!$K:$K,SummerProvRep!$A:$A,Data!$A$21,SummerProvRep!$O:$O,"<>Coventry",SummerProvRep!$T:$T,Data!AP$17) -> 0 | AQ21: =SUMIFS(SummerProvRep!$K:$K,SummerProvRep!$A:$A,Data!$A$21,SummerProvRep!$O:$O,"<>Coventry",SummerProvRep!$T:$T,Data!AQ$17) -> 0 | AR21: =SUM(Z21:AQ21)/$A$20 -> 1 | AS21: =SUMPRODUCT(Y21:AQ21,$V$6:$AN$6)/$A$16 -> 3457.615692 | AT21: =X21+AS21 -> 758251.5504 | AU21: =AR21+W21 -> 165.59375 | AV21: =AU21-AW21 -> 1.59375 | AW21: =K4 -> 164 | AX21: =[5]Data!$AU21 -> 161 | AY21: =C4 -> 160 | BB21: =($K$4-$AU$21)*$A$20 -> -102 | BD21: =AU21*$A$20 -> 10598 | BE21: =$BB$21/$BD$21*D21 -> 0 | BF21: 0 | BG21: 0 | BH21: 0 | BI21: 0 | BJ21: 0 | BK21: -0.6159652765 | BL21: -54.86903189 | BM21: -5.543687488 | BN21: 0 | BO21: -4.311756935 | BP21: -6.159652765 | BQ21: 0 | BR21: -20.32685412 | BS21: -4.311756935 | BT21: 0 | BU21: -3.695791659 | BV21: -1.549537649 | BW21: 0 | BY21: =$BB$21/$BD$21*Y21 -> 0 | BZ21: 0 | CA21: 0 | CB21: 0 | CC21: 0 | CD21: 0 | CE21: 0 | CF21: -0.6159652765 | CG21: 0 | CH21: 0 | CI21: 0 | CJ21: 0 | CK21: 0 | CL21: 0 | CM21: 0 | CN21: 0 | CO21: 0 | CP21: 0 | CQ21: 0
A22: 2 | B22: Kingsbury | C22: =10000/$A$16 -> 51.54639175 | D22: 0 | E22: =SUMIFS(SummerProvRep!$K:$K,SummerProvRep!$A:$A,Data!$A$22,SummerProvRep!$O:$O,"Coventry",SummerProvRep!$T:$T,Data!E$17) -> 0 | F22: =SUMIFS(SummerProvRep!$K:$K,SummerProvRep!$A:$A,Data!$A$22,SummerProvRep!$O:$O,"Coventry",SummerProvRep!$T:$T,Data!F$17) -> 0 | G22: =SUMIFS(SummerProvRep!$K:$K,SummerProvRep!$A:$A,Data!$A$22,SummerProvRep!$O:$O,"Coventry",SummerProvRep!$T:$T,Data!G$17) -> 0 | H22: =SUMIFS(SummerProvRep!$K:$K,SummerProvRep!$A:$A,Data!$A$22,SummerProvRep!$O:$O,"Coventry",SummerProvRep!$T:$T,Data!H$17) -> 0 | I22: =SUMIFS(SummerProvRep!$K:$K,SummerProvRep!$A:$A,Data!$A$22,SummerProvRep!$O:$O,"Coventry",SummerProvRep!$T:$T,Data!I$17) -> 0 | J22: =SUMIFS(SummerProvRep!$K:$K,SummerProvRep!$A:$A,Data!$A$22,SummerProvRep!$O:$O,"Coventry",SummerProvRep!$T:$T,Data!J$17) -> 0 | K22: =SUMIFS(SummerProvRep!$K:$K,SummerProvRep!$A:$A,Data!$A$22,SummerProvRep!$O:$O,"Coventry",SummerProvRep!$T:$T,Data!K$17) -> 3887 | L22: =SUMIFS(SummerProvRep!$K:$K,SummerProvRep!$A:$A,Data!$A$22,SummerProvRep!$O:$O,"Coventry",SummerProvRep!$T:$T,Data!L$17) -> 128 | M22: =SUMIFS(SummerProvRep!$K:$K,SummerProvRep!$A:$A,Data!$A$22,SummerProvRep!$O:$O,"Coventry",SummerProvRep!$T:$T,Data!M$17) -> 0 | N22: =SUMIFS(SummerProvRep!$K:$K,SummerProvRep!$A:$A,Data!$A$22,SummerProvRep!$O:$O,"Coventry",SummerProvRep!$T:$T,Data!N$17) -> 0 | O22: =SUMIFS(SummerProvRep!$K:$K,SummerProvRep!$A:$A,Data!$A$22,SummerProvRep!$O:$O,"Coventry",SummerProvRep!$T:$T,Data!O$17) -> 634 | P22: =SUMIFS(SummerProvRep!$K:$K,SummerProvRep!$A:$A,Data!$A$22,SummerProvRep!$O:$O,"Coventry",SummerProvRep!$T:$T,Data!P$17) -> 0 | Q22: =SUMIFS(SummerProvRep!$K:$K,SummerProvRep!$A:$A,Data!$A$22,SummerProvRep!$O:$O,"Coventry",SummerProvRep!$T:$T,Data!Q$17) -> 1559 | R22: =SUMIFS(SummerProvRep!$K:$K,SummerProvRep!$A:$A,Data!$A$22,SummerProvRep!$O:$O,"Coventry",SummerProvRep!$T:$T,Data!R$17) -> 0 | S22: =SUMIFS(SummerProvRep!$K:$K,SummerProvRep!$A:$A,Data!$A$22,SummerProvRep!$O:$O,"Coventry",SummerProvRep!$T:$T,Data!S$17) -> 0 | T22: =SUMIFS(SummerProvRep!$K:$K,SummerProvRep!$A:$A,Data!$A$22,SummerProvRep!$O:$O,"Coventry",SummerProvRep!$T:$T,Data!T$17) -> 0 | U22: =SUMIFS(SummerProvRep!$K:$K,SummerProvRep!$A:$A,Data!$A$22,SummerProvRep!$O:$O,"Coventry",SummerProvRep!$T:$T,Data!U$17) -> 0 | V22: =SUMIFS(SummerProvRep!$K:$K,SummerProvRep!$A:$A,Data!$A$22,SummerProvRep!$O:$O,"Coventry",SummerProvRep!$T:$T,Data!V$17) -> 0 | W22: =SUM(D22:V22)/$A$20 -> 97 | X22: 440467.4609 | Y22: 0 | Z22: =SUMIFS(SummerProvRep!$K:$K,SummerProvRep!$A:$A,Data!#REF!,SummerProvRep!$O:$O,"<>Coventry",SummerProvRep!$T:$T,Data!Z$17) -> 0 | AA22: =SUMIFS(SummerProvRep!$K:$K,SummerProvRep!$A:$A,Data!#REF!,SummerProvRep!$O:$O,"<>Coventry",SummerProvRep!$T:$T,Data!AA$17) -> 0 | AB22: =SUMIFS(SummerProvRep!$K:$K,SummerProvRep!$A:$A,Data!#REF!,SummerProvRep!$O:$O,"<>Coventry",SummerProvRep!$T:$T,Data!AB$17) -> 0 | AC22: =SUMIFS(SummerProvRep!$K:$K,SummerProvRep!$A:$A,Data!#REF!,SummerProvRep!$O:$O,"<>Coventry",SummerProvRep!$T:$T,Data!AC$17) -> 0 | AD22: =SUMIFS(SummerProvRep!$K:$K,SummerProvRep!$A:$A,Data!#REF!,SummerProvRep!$O:$O,"<>Coventry",SummerProvRep!$T:$T,Data!AD$17) -> 0 | AE22: =SUMIFS(SummerProvRep!$K:$K,SummerProvRep!$A:$A,Data!#REF!,SummerProvRep!$O:$O,"<>Coventry",SummerProvRep!$T:$T,Data!AE$17) -> 0 | AF22: =SUMIFS(SummerProvRep!$K:$K,SummerProvRep!$A:$A,Data!$A$22,SummerProvRep!$O:$O,"<>Coventry",SummerProvRep!$T:$T,Data!AF$17) -> 64 | AG22: =SUMIFS(SummerProvRep!$K:$K,SummerProvRep!$A:$A,Data!$A$22,SummerProvRep!$O:$O,"<>Coventry",SummerProvRep!$T:$T,Data!AG$17) -> 64 | AH22: =SUMIFS(SummerProvRep!$K:$K,SummerProvRep!$A:$A,Data!$A$22,SummerProvRep!$O:$O,"<>Coventry",SummerProvRep!$T:$T,Data!AH$17) -> 0 | AI22: =SUMIFS(SummerProvRep!$K:$K,SummerProvRep!$A:$A,Data!$A$22,SummerProvRep!$O:$O,"<>Coventry",SummerProvRep!$T:$T,Data!AI$17) -> 0 | AJ22: =SUMIFS(SummerProvRep!$K:$K,SummerProvRep!$A:$A,Data!$A$22,SummerProvRep!$O:$O,"<>Coventry",SummerProvRep!$T:$T,Data!AJ$17) -> 0 | AK22: =SUMIFS(SummerProvRep!$K:$K,SummerProvRep!$A:$A,Data!$A$22,SummerProvRep!$O:$O,"<>Coventry",SummerProvRep!$T:$T,Data!AK$17) -> 0 | AL22: =SUMIFS(SummerProvRep!$K:$K,SummerProvRep!$A:$A,Data!$A$22,SummerProvRep!$O:$O,"<>Coventry",SummerProvRep!$T:$T,Data!AL$17) -> 128 | AM22: =SUMIFS(SummerProvRep!$K:$K,SummerProvRep!$A:$A,Data!$A$22,SummerProvRep!$O:$O,"<>Coventry",SummerProvRep!$T:$T,Data!AM$17) -> 0 | AN22: =SUMIFS(SummerProvRep!$K:$K,SummerProvRep!$A:$A,Data!$A$22,SummerProvRep!$O:$O,"<>Coventry",SummerProvRep!$T:$T,Data!AN$17) -> 0 | AO22: =SUMIFS(SummerProvRep!$K:$K,SummerProvRep!$A:$A,Data!$A$22,SummerProvRep!$O:$O,"<>Coventry",SummerProvRep!$T:$T,Data!AO$17) -> 0 | AP22: =SUMIFS(SummerProvRep!$K:$K,SummerProvRep!$A:$A,Data!$A$22,SummerProvRep!$O:$O,"<>Coventry",SummerProvRep!$T:$T,Data!AP$17) -> 0 | AQ22: =SUMIFS(SummerProvRep!$K:$K,SummerProvRep!$A:$A,Data!$A$22,SummerProvRep!$O:$O,"<>Coventry",SummerProvRep!$T:$T,Data!AQ$17) -> 0 | AR22: 4 | AS22: 17893.16574 | AT22: 458360.6266 | AU22: 101 | AV22: =AU22-AW22 -> -2 | AW22: 103 | AX22: =[5]Data!$AU22 -> 100 | AY22: 100 | BB22: =($K$5-$AU$22)*$A$20 -> 128 | BD22: =AU22*$A$20 -> 6464 | BE22: =$BB$22/$BD$22*D22 -> 0 | BF22: 0 | BG22: 0 | BH22: 0 | BI22: 0 | BJ22: 0 | BK22: 0 | BL22: 76.97029703 | BM22: 2.534653465 | BN22: 0 | BO22: 0 | BP22: 12.55445545 | BQ22: 0 | BR22: 30.87128713 | BS22: 0 | BT22: 0 | BU22: 0 | BV22: 0 | BW22: 0 | BY22: =$BB$22/$BD$22*Y22 -> 0 | BZ22: 0 | CA22: 0 | CB22: 0 | CC22: 0 | CD22: 0 | CE22: 0 | CF22: 1.267326733 | CG22: 1.267326733 | CH22: 0 | CI22: 0 | CJ22: 0 | CK22: 0 | CL22: 2.534653465 | CM22: 0 | CN22: 0 | CO22: 0 | CP22: 0 | CQ22: 0
A23: 3 | B23: Riverbank | C23: 51.54639175 | D23: 0 | E23: =SUMIFS(SummerProvRep!$K:$K,SummerProvRep!$A:$A,Data!$A$23,SummerProvRep!$O:$O,"Coventry",SummerProvRep!$T:$T,Data!E$17) -> 0 | F23: =SUMIFS(SummerProvRep!$K:$K,SummerProvRep!$A:$A,Data!$A$23,SummerProvRep!$O:$O,"Coventry",SummerProvRep!$T:$T,Data!F$17) -> 0 | G23: =SUMIFS(SummerProvRep!$K:$K,SummerProvRep!$A:$A,Data!$A$23,SummerProvRep!$O:$O,"Coventry",SummerProvRep!$T:$T,Data!G$17) -> 377 | H23: =SUMIFS(SummerProvRep!$K:$K,SummerProvRep!$A:$A,Data!$A$23,SummerProvRep!$O:$O,"Coventry",SummerProvRep!$T:$T,Data!H$17) -> 447 | I23: =SUMIFS(SummerProvRep!$K:$K,SummerProvRep!$A:$A,Data!$A$23,SummerProvRep!$O:$O,"Coventry",SummerProvRep!$T:$T,Data!I$17) -> 0 | J23: =SUMIFS(SummerProvRep!$K:$K,SummerProvRep!$A:$A,Data!$A$23,SummerProvRep!$O:$O,"Coventry",SummerProvRep!$T:$T,Data!J$17) -> 0 | K23: =SUMIFS(SummerProvRep!$K:$K,SummerProvRep!$A:$A,Data!$A$23,SummerProvRep!$O:$O,"Coventry",SummerProvRep!$T:$T,Data!K$17) -> 4856 | L23: =SUMIFS(SummerProvRep!$K:$K,SummerProvRep!$A:$A,Data!$A$23,SummerProvRep!$O:$O,"Coventry",SummerProvRep!$T:$T,Data!L$17) -> 3647 | M23: =SUMIFS(SummerProvRep!$K:$K,SummerProvRep!$A:$A,Data!$A$23,SummerProvRep!$O:$O,"Coventry",SummerProvRep!$T:$T,Data!M$17) -> 73 | N23: =SUMIFS(SummerProvRep!$K:$K,SummerProvRep!$A:$A,Data!$A$23,SummerProvRep!$O:$O,"Coventry",SummerProvRep!$T:$T,Data!N$17) -> 512 | O23: =SUMIFS(SummerProvRep!$K:$K,SummerProvRep!$A:$A,Data!$A$23,SummerProvRep!$O:$O,"Coventry",SummerProvRep!$T:$T,Data!O$17) -> 593 | P23: =SUMIFS(SummerProvRep!$K:$K,SummerProvRep!$A:$A,Data!$A$23,SummerProvRep!$O:$O,"Coventry",SummerProvRep!$T:$T,Data!P$17) -> 256 | Q23: =SUMIFS(SummerProvRep!$K:$K,SummerProvRep!$A:$A,Data!$A$23,SummerProvRep!$O:$O,"Coventry",SummerProvRep!$T:$T,Data!Q$17) -> 1557 | R23: =SUMIFS(SummerProvRep!$K:$K,SummerProvRep!$A:$A,Data!$A$23,SummerProvRep!$O:$O,"Coventry",SummerProvRep!$T:$T,Data!R$17) -> 384 | S23: =SUMIFS(SummerProvRep!$K:$K,SummerProvRep!$A:$A,Data!$A$23,SummerProvRep!$O:$O,"Coventry",SummerProvRep!$T:$T,Data!S$17) -> 0 | T23: =SUMIFS(SummerProvRep!$K:$K,SummerProvRep!$A:$A,Data!$A$23,SummerProvRep!$O:$O,"Coventry",SummerProvRep!$T:$T,Data!T$17) -> 192 | U23: =SUMIFS(SummerProvRep!$K:$K,SummerProvRep!$A:$A,Data!$A$23,SummerProvRep!$O:$O,"Coventry",SummerProvRep!$T:$T,Data!U$17) -> 0 | V23: =SUMIFS(SummerProvRep!$K:$K,SummerProvRep!$A:$A,Data!$A$23,SummerProvRep!$O:$O,"Coventry",SummerProvRep!$T:$T,Data!V$17) -> 0 | W23: 201.46875 | X23: 814347.1497 | Y23: 0 | Z23: =SUMIFS(SummerProvRep!$K:$K,SummerProvRep!$A:$A,Data!#REF!,SummerProvRep!$O:$O,"<>Coventry",SummerProvRep!$T:$T,Data!Z$17) -> 0 | AA23: =SUMIFS(SummerProvRep!$K:$K,SummerProvRep!$A:$A,Data!#REF!,SummerProvRep!$O:$O,"<>Coventry",SummerProvRep!$T:$T,Data!AA$17) -> 0 | AB23: =SUMIFS(SummerProvRep!$K:$K,SummerProvRep!$A:$A,Data!#REF!,SummerProvRep!$O:$O,"<>Coventry",SummerProvRep!$T:$T,Data!AB$17) -> 0 | AC23: =SUMIFS(SummerProvRep!$K:$K,SummerProvRep!$A:$A,Data!#REF!,SummerProvRep!$O:$O,"<>Coventry",SummerProvRep!$T:$T,Data!AC$17) -> 0 | AD23: =SUMIFS(SummerProvRep!$K:$K,SummerProvRep!$A:$A,Data!#REF!,SummerProvRep!$O:$O,"<>Coventry",SummerProvRep!$T:$T,Data!AD$17) -> 0 | AE23: =SUMIFS(SummerProvRep!$K:$K,SummerProvRep!$A:$A,Data!#REF!,SummerProvRep!$O:$O,"<>Coventry",SummerProvRep!$T:$T,Data!AE$17) -> 0 | AF23: =SUMIFS(SummerProvRep!$K:$K,SummerProvRep!$A:$A,Data!$A$23,SummerProvRep!$O:$O,"<>Coventry",SummerProvRep!$T:$T,Data!AF$17) -> 0 | AG23: =SUMIFS(SummerProvRep!$K:$K,SummerProvRep!$A:$A,Data!$A$23,SummerProvRep!$O:$O,"<>Coventry",SummerProvRep!$T:$T,Data!AG$17) -> 64 | AH23: =SUMIFS(SummerProvRep!$K:$K,SummerProvRep!$A:$A,Data!$A$23,SummerProvRep!$O:$O,"<>Coventry",SummerProvRep!$T:$T,Data!AH$17) -> 0 | AI23: =SUMIFS(SummerProvRep!$K:$K,SummerProvRep!$A:$A,Data!$A$23,SummerProvRep!$O:$O,"<>Coventry",SummerProvRep!$T:$T,Data!AI$17) -> 0 | AJ23: =SUMIFS(SummerProvRep!$K:$K,SummerProvRep!$A:$A,Data!$A$23,SummerProvRep!$O:$O,"<>Coventry",SummerProvRep!$T:$T,Data!AJ$17) -> 0 | AK23: =SUMIFS(SummerProvRep!$K:$K,SummerProvRep!$A:$A,Data!$A$23,SummerProvRep!$O:$O,"<>Coventry",SummerProvRep!$T:$T,Data!AK$17) -> 0 | AL23: =SUMIFS(SummerProvRep!$K:$K,SummerProvRep!$A:$A,Data!$A$23,SummerProvRep!$O:$O,"<>Coventry",SummerProvRep!$T:$T,Data!AL$17) -> 0 | AM23: =SUMIFS(SummerProvRep!$K:$K,SummerProvRep!$A:$A,Data!$A$23,SummerProvRep!$O:$O,"<>Coventry",SummerProvRep!$T:$T,Data!AM$17) -> 0 | AN23: =SUMIFS(SummerProvRep!$K:$K,SummerProvRep!$A:$A,Data!$A$23,SummerProvRep!$O:$O,"<>Coventry",SummerProvRep!$T:$T,Data!AN$17) -> 0 | AO23: =SUMIFS(SummerProvRep!$K:$K,SummerProvRep!$A:$A,Data!$A$23,SummerProvRep!$O:$O,"<>Coventry",SummerProvRep!$T:$T,Data!AO$17) -> 0 | AP23: =SUMIFS(SummerProvRep!$K:$K,SummerProvRep!$A:$A,Data!$A$23,SummerProvRep!$O:$O,"<>Coventry",SummerProvRep!$T:$T,Data!AP$17) -> 0 | AQ23: =SUMIFS(SummerProvRep!$K:$K,SummerProvRep!$A:$A,Data!$A$23,SummerProvRep!$O:$O,"<>Coventry",SummerProvRep!$T:$T,Data!AQ$17) -> 0 | AR23: 1 | AS23: 3198.296273 | AT23: 817545.446 | AU23: 202.46875 | AV23: =AU23-AW23 -> -6.53125 | AW23: 209 | AX23: =[5]Data!$AU23 -> 192.8550725 | AY23: 200 | BB23: =($K$6-$AU$23)*$A$20 -> 418 | BD23: =AU23*$A$20 -> 12958 | BE23: =$BB$23/$BD$23*D23 -> 0 | BF23: 0 | BG23: 0 | BH23: 12.16129032 | BI23: 14.41935484 | BJ23: 0 | BK23: 0 | BL23: 156.6451613 | BM23: 117.6451613 | BN23: 2.35483871 | BO23: 16.51612903 | BP23: 19.12903226 | BQ23: 8.258064516 | BR23: 50.22580645 | BS23: 12.38709677 | BT23: 0 | BU23: 6.193548387 | BV23: 0 | BW23: 0 | BY23: =$BB$23/$BD$23*Y23 -> 0 | BZ23: 0 | CA23: 0 | CB23: 0 | CC23: 0 | CD23: 0 | CE23: 0 | CF23: 0 | CG23: 2.064516129 | CH23: 0 | CI23: 0 | CJ23: 0 | CK23: 0 | CL23: 0 | CM23: 0 | CN23: 0 | CO23: 0 | CP23: 0 | CQ23: 0
A24: 4 | B24: Corley | C24: 51.54639175 | D24: 0 | E24: =SUMIFS(SummerProvRep!$K:$K,SummerProvRep!$A:$A,Data!$A$24,SummerProvRep!$O:$O,"Coventry",SummerProvRep!$T:$T,Data!E$17) -> 0 | F24: =SUMIFS(SummerProvRep!$K:$K,SummerProvRep!$A:$A,Data!$A$24,SummerProvRep!$O:$O,"Coventry",SummerProvRep!$T:$T,Data!F$17) -> 0 | G24: =SUMIFS(SummerProvRep!$K:$K,SummerProvRep!$A:$A,Data!$A$24,SummerProvRep!$O:$O,"Coventry",SummerProvRep!$T:$T,Data!G$17) -> 192 | H24: =SUMIFS(SummerProvRep!$K:$K,SummerProvRep!$A:$A,Data!$A$24,SummerProvRep!$O:$O,"Coventry",SummerProvRep!$T:$T,Data!H$17) -> 192 | I24: =SUMIFS(SummerProvRep!$K:$K,SummerProvRep!$A:$A,Data!$A$24,SummerProvRep!$O:$O,"Coventry",SummerProvRep!$T:$T,Data!I$17) -> 0 | J24: =SUMIFS(SummerProvRep!$K:$K,SummerProvRep!$A:$A,Data!$A$24,SummerProvRep!$O:$O,"Coventry",SummerProvRep!$T:$T,Data!J$17) -> 0 | K24: =SUMIFS(SummerProvRep!$K:$K,SummerProvRep!$A:$A,Data!$A$24,SummerProvRep!$O:$O,"Coventry",SummerProvRep!$T:$T,Data!K$17) -> 7758 | L24: =SUMIFS(SummerProvRep!$K:$K,SummerProvRep!$A:$A,Data!$A$24,SummerProvRep!$O:$O,"Coventry",SummerProvRep!$T:$T,Data!L$17) -> 0 | M24: =SUMIFS(SummerProvRep!$K:$K,SummerProvRep!$A:$A,Data!$A$24,SummerProvRep!$O:$O,"Coventry",SummerProvRep!$T:$T,Data!M$17) -> 391 | N24: =SUMIFS(SummerProvRep!$K:$K,SummerProvRep!$A:$A,Data!$A$24,SummerProvRep!$O:$O,"Coventry",SummerProvRep!$T:$T,Data!N$17) -> 0 | O24: =SUMIFS(SummerProvRep!$K:$K,SummerProvRep!$A:$A,Data!$A$24,SummerProvRep!$O:$O,"Coventry",SummerProvRep!$T:$T,Data!O$17) -> 440 | P24: =SUMIFS(SummerProvRep!$K:$K,SummerProvRep!$A:$A,Data!$A$24,SummerProvRep!$O:$O,"Coventry",SummerProvRep!$T:$T,Data!P$17) -> 0 | Q24: =SUMIFS(SummerProvRep!$K:$K,SummerProvRep!$A:$A,Data!$A$24,SummerProvRep!$O:$O,"Coventry",SummerProvRep!$T:$T,Data!Q$17) -> 767 | R24: =SUMIFS(SummerProvRep!$K:$K,SummerProvRep!$A:$A,Data!$A$24,SummerProvRep!$O:$O,"Coventry",SummerProvRep!$T:$T,Data!R$17) -> 0 | S24: =SUMIFS(SummerProvRep!$K:$K,SummerProvRep!$A:$A,Data!$A$24,SummerProvRep!$O:$O,"Coventry",SummerProvRep!$T:$T,Data!S$17) -> 0 | T24: =SUMIFS(SummerProvRep!$K:$K,SummerProvRep!$A:$A,Data!$A$24,SummerProvRep!$O:$O,"Coventry",SummerProvRep!$T:$T,Data!T$17) -> 0 | U24: =SUMIFS(SummerProvRep!$K:$K,SummerProvRep!$A:$A,Data!$A$24,SummerProvRep!$O:$O,"Coventry",SummerProvRep!$T:$T,Data!U$17) -> 0 | V24: =SUMIFS(SummerProvRep!$K:$K,SummerProvRep!$A:$A,Data!$A$24,SummerProvRep!$O:$O,"Coventry",SummerProvRep!$T:$T,Data!V$17) -> 0 | W24: 152.1875 | X24: 581689.9398 | Y24: 0 | Z24: =SUMIFS(SummerProvRep!$K:$K,SummerProvRep!$A:$A,Data!#REF!,SummerProvRep!$O:$O,"<>Coventry",SummerProvRep!$T:$T,Data!Z$17) -> 0 | AA24: =SUMIFS(SummerProvRep!$K:$K,SummerProvRep!$A:$A,Data!#REF!,SummerProvRep!$O:$O,"<>Coventry",SummerProvRep!$T:$T,Data!AA$17) -> 0 | AB24: =SUMIFS(SummerProvRep!$K:$K,SummerProvRep!$A:$A,Data!#REF!,SummerProvRep!$O:$O,"<>Coventry",SummerProvRep!$T:$T,Data!AB$17) -> 0 | AC24: =SUMIFS(SummerProvRep!$K:$K,SummerProvRep!$A:$A,Data!#REF!,SummerProvRep!$O:$O,"<>Coventry",SummerProvRep!$T:$T,Data!AC$17) -> 0 | AD24: =SUMIFS(SummerProvRep!$K:$K,SummerProvRep!$A:$A,Data!#REF!,SummerProvRep!$O:$O,"<>Coventry",SummerProvRep!$T:$T,Data!AD$17) -> 0 | AE24: =SUMIFS(SummerProvRep!$K:$K,SummerProvRep!$A:$A,Data!#REF!,SummerProvRep!$O:$O,"<>Coventry",SummerProvRep!$T:$T,Data!AE$17) -> 0 | AF24: =SUMIFS(SummerProvRep!$K:$K,SummerProvRep!$A:$A,Data!$A$24,SummerProvRep!$O:$O,"<>Coventry",SummerProvRep!$T:$T,Data!AF$17) -> 128 | AG24: =SUMIFS(SummerProvRep!$K:$K,SummerProvRep!$A:$A,Data!$A$24,SummerProvRep!$O:$O,"<>Coventry",SummerProvRep!$T:$T,Data!AG$17) -> 0 | AH24: =SUMIFS(SummerProvRep!$K:$K,SummerProvRep!$A:$A,Data!$A$24,SummerProvRep!$O:$O,"<>Coventry",SummerProvRep!$T:$T,Data!AH$17) -> 0 | AI24: =SUMIFS(SummerProvRep!$K:$K,SummerProvRep!$A:$A,Data!$A$24,SummerProvRep!$O:$O,"<>Coventry",SummerProvRep!$T:$T,Data!AI$17) -> 0 | AJ24: =SUMIFS(SummerProvRep!$K:$K,SummerProvRep!$A:$A,Data!$A$24,SummerProvRep!$O:$O,"<>Coventry",SummerProvRep!$T:$T,Data!AJ$17) -> 0 | AK24: =SUMIFS(SummerProvRep!$K:$K,SummerProvRep!$A:$A,Data!$A$24,SummerProvRep!$O:$O,"<>Coventry",SummerProvRep!$T:$T,Data!AK$17) -> 0 | AL24: =SUMIFS(SummerProvRep!$K:$K,SummerProvRep!$A:$A,Data!$A$24,SummerProvRep!$O:$O,"<>Coventry",SummerProvRep!$T:$T,Data!AL$17) -> 0 | AM24: =SUMIFS(SummerProvRep!$K:$K,SummerProvRep!$A:$A,Data!$A$24,SummerProvRep!$O:$O,"<>Coventry",SummerProvRep!$T:$T,Data!AM$17) -> 0 | AN24: =SUMIFS(SummerProvRep!$K:$K,SummerProvRep!$A:$A,Data!$A$24,SummerProvRep!$O:$O,"<>Coventry",SummerProvRep!$T:$T,Data!AN$17) -> 0 | AO24: =SUMIFS(SummerProvRep!$K:$K,SummerProvRep!$A:$A,Data!$A$24,SummerProvRep!$O:$O,"<>Coventry",SummerProvRep!$T:$T,Data!AO$17) -> 0 | AP24: =SUMIFS(SummerProvRep!$K:$K,SummerProvRep!$A:$A,Data!$A$24,SummerProvRep!$O:$O,"<>Coventry",SummerProvRep!$T:$T,Data!AP$17) -> 0 | AQ24: =SUMIFS(SummerProvRep!$K:$K,SummerProvRep!$A:$A,Data!$A$24,SummerProvRep!$O:$O,"<>Coventry",SummerProvRep!$T:$T,Data!AQ$17) -> 0 | AR24: 2 | AS24: 6915.231384 | AT24: 588605.1712 | AU24: 154.1875 | AV24: -0.8125 | AW24: 155 | AX24: =[5]Data!$AU24 -> 147.3768116 | AY24: 140 | BB24: =($K$7-$AU$24)*$A$20 -> 52 | BD24: 9868 | BE24: =$BB$24/$BD$24*D24 -> 0 | BF24: 0 | BG24: 0 | BH24: 1.011755168 | BI24: 1.011755168 | BJ24: 0 | BK24: 0 | BL24: 40.88123227 | BM24: 0 | BN24: 2.060397244 | BO24: 0 | BP24: 2.318605594 | BQ24: 0 | BR24: 4.041751115 | BS24: 0 | BT24: 0 | BU24: 0 | BV24: 0 | BW24: 0 | BY24: =$BB$24/$BD$24*Y24 -> 0 | BZ24: 0 | CA24: 0 | CB24: 0 | CC24: 0 | CD24: 0 | CE24: 0 | CF24: 0.6745034455 | CG24: 0 | CH24: 0 | CI24: 0 | CJ24: 0 | CK24: 0 | CL24: 0 | CM24: 0 | CN24: 0 | CO24: 0 | CP24: 0 | CQ24: 0
A25: 5 | B25: Tiverton | C25: 51.54639175 | D25: 0 | E25: =SUMIFS(SummerProvRep!$K:$K,SummerProvRep!$A:$A,Data!$A$25,SummerProvRep!$O:$O,"Coventry",SummerProvRep!$T:$T,Data!E$17) -> 0 | F25: =SUMIFS(SummerProvRep!$K:$K,SummerProvRep!$A:$A,Data!$A$25,SummerProvRep!$O:$O,"Coventry",SummerProvRep!$T:$T,Data!F$17) -> 0 | G25: =SUMIFS(SummerProvRep!$K:$K,SummerProvRep!$A:$A,Data!$A$25,SummerProvRep!$O:$O,"Coventry",SummerProvRep!$T:$T,Data!G$17) -> 0 | H25: =SUMIFS(SummerProvRep!$K:$K,SummerProvRep!$A:$A,Data!$A$25,SummerProvRep!$O:$O,"Coventry",SummerProvRep!$T:$T,Data!H$17) -> 0 | I25: =SUMIFS(SummerProvRep!$K:$K,SummerProvRep!$A:$A,Data!$A$25,SummerProvRep!$O:$O,"Coventry",SummerProvRep!$T:$T,Data!I$17) -> 0 | J25: =SUMIFS(SummerProvRep!$K:$K,SummerProvRep!$A:$A,Data!$A$25,SummerProvRep!$O:$O,"Coventry",SummerProvRep!$T:$T,Data!J$17) -> 0 | K25: =SUMIFS(SummerProvRep!$K:$K,SummerProvRep!$A:$A,Data!$A$25,SummerProvRep!$O:$O,"Coventry",SummerProvRep!$T:$T,Data!K$17) -> 4948 | L25: =SUMIFS(SummerProvRep!$K:$K,SummerProvRep!$A:$A,Data!$A$25,SummerProvRep!$O:$O,"Coventry",SummerProvRep!$T:$T,Data!L$17) -> 704 | M25: =SUMIFS(SummerProvRep!$K:$K,SummerProvRep!$A:$A,Data!$A$25,SummerProvRep!$O:$O,"Coventry",SummerProvRep!$T:$T,Data!M$17) -> 0 | N25: =SUMIFS(SummerProvRep!$K:$K,SummerProvRep!$A:$A,Data!$A$25,SummerProvRep!$O:$O,"Coventry",SummerProvRep!$T:$T,Data!N$17) -> 320 | O25: =SUMIFS(SummerProvRep!$K:$K,SummerProvRep!$A:$A,Data!$A$25,SummerProvRep!$O:$O,"Coventry",SummerProvRep!$T:$T,Data!O$17) -> 392 | P25: =SUMIFS(SummerProvRep!$K:$K,SummerProvRep!$A:$A,Data!$A$25,SummerProvRep!$O:$O,"Coventry",SummerProvRep!$T:$T,Data!P$17) -> 0 | Q25: =SUMIFS(SummerProvRep!$K:$K,SummerProvRep!$A:$A,Data!$A$25,SummerProvRep!$O:$O,"Coventry",SummerProvRep!$T:$T,Data!Q$17) -> 1067 | R25: =SUMIFS(SummerProvRep!$K:$K,SummerProvRep!$A:$A,Data!$A$25,SummerProvRep!$O:$O,"Coventry",SummerProvRep!$T:$T,Data!R$17) -> 448 | S25: =SUMIFS(SummerProvRep!$K:$K,SummerProvRep!$A:$A,Data!$A$25,SummerProvRep!$O:$O,"Coventry",SummerProvRep!$T:$T,Data!S$17) -> 0 | T25: =SUMIFS(SummerProvRep!$K:$K,SummerProvRep!$A:$A,Data!$A$25,SummerProvRep!$O:$O,"Coventry",SummerProvRep!$T:$T,Data!T$17) -> 384 | U25: =SUMIFS(SummerProvRep!$K:$K,SummerProvRep!$A:$A,Data!$A$25,SummerProvRep!$O:$O,"Coventry",SummerProvRep!$T:$T,Data!U$17) -> 57 | V25: =SUMIFS(SummerProvRep!$K:$K,SummerProvRep!$A:$A,Data!$A$25,SummerProvRep!$O:$O,"Coventry",SummerProvRep!$T:$T,Data!V$17) -> 0 | W25: 130 | X25: 554806.5301 | Y25: 0 | Z25: =SUMIFS(SummerProvRep!$K:$K,SummerProvRep!$A:$A,Data!#REF!,SummerProvRep!$O:$O,"<>Coventry",SummerProvRep!$T:$T,Data!Z$17) -> 0 | AA25: =SUMIFS(SummerProvRep!$K:$K,SummerProvRep!$A:$A,Data!#REF!,SummerProvRep!$O:$O,"<>Coventry",SummerProvRep!$T:$T,Data!AA$17) -> 0 | AB25: =SUMIFS(SummerProvRep!$K:$K,SummerProvRep!$A:$A,Data!#REF!,SummerProvRep!$O:$O,"<>Coventry",SummerProvRep!$T:$T,Data!AB$17) -> 0 | AC25: =SUMIFS(SummerProvRep!$K:$K,SummerProvRep!$A:$A,Data!#REF!,SummerProvRep!$O:$O,"<>Coventry",SummerProvRep!$T:$T,Data!AC$17) -> 0 | AD25: =SUMIFS(SummerProvRep!$K:$K,SummerProvRep!$A:$A,Data!#REF!,SummerProvRep!$O:$O,"<>Coventry",SummerProvRep!$T:$T,Data!AD$17) -> 0 | AE25: =SUMIFS(SummerProvRep!$K:$K,SummerProvRep!$A:$A,Data!#REF!,SummerProvRep!$O:$O,"<>Coventry",SummerProvRep!$T:$T,Data!AE$17) -> 0 | AF25: =SUMIFS(SummerProvRep!$K:$K,SummerProvRep!$A:$A,Data!$A$25,SummerProvRep!$O:$O,"<>Coventry",SummerProvRep!$T:$T,Data!AF$17) -> 0 | AG25: =SUMIFS(SummerProvRep!$K:$K,SummerProvRep!$A:$A,Data!$A$25,SummerProvRep!$O:$O,"<>Coventry",SummerProvRep!$T:$T,Data!AG$17) -> 0 | AH25: =SUMIFS(SummerProvRep!$K:$K,SummerProvRep!$A:$A,Data!$A$25,SummerProvRep!$O:$O,"<>Coventry",SummerProvRep!$T:$T,Data!AH$17) -> 0 | AI25: =SUMIFS(SummerProvRep!$K:$K,SummerProvRep!$A:$A,Data!$A$25,SummerProvRep!$O:$O,"<>Coventry",SummerProvRep!$T:$T,Data!AI$17) -> 0 | AJ25: =SUMIFS(SummerProvRep!$K:$K,SummerProvRep!$A:$A,Data!$A$25,SummerProvRep!$O:$O,"<>Coventry",SummerProvRep!$T:$T,Data!AJ$17) -> 0 | AK25: =SUMIFS(SummerProvRep!$K:$K,SummerProvRep!$A:$A,Data!$A$25,SummerProvRep!$O:$O,"<>Coventry",SummerProvRep!$T:$T,Data!AK$17) -> 0 | AL25: =SUMIFS(SummerProvRep!$K:$K,SummerProvRep!$A:$A,Data!$A$25,SummerProvRep!$O:$O,"<>Coventry",SummerProvRep!$T:$T,Data!AL$17) -> 64 | AM25: =SUMIFS(SummerProvRep!$K:$K,SummerProvRep!$A:$A,Data!$A$25,SummerProvRep!$O:$O,"<>Coventry",SummerProvRep!$T:$T,Data!AM$17) -> 0 | AN25: =SUMIFS(SummerProvRep!$K:$K,SummerProvRep!$A:$A,Data!$A$25,SummerProvRep!$O:$O,"<>Coventry",SummerProvRep!$T:$T,Data!AN$17) -> 0 | AO25: =SUMIFS(SummerProvRep!$K:$K,SummerProvRep!$A:$A,Data!$A$25,SummerProvRep!$O:$O,"<>Coventry",SummerProvRep!$T:$T,Data!AO$17) -> 0 | AP25: =SUMIFS(SummerProvRep!$K:$K,SummerProvRep!$A:$A,Data!$A$25,SummerProvRep!$O:$O,"<>Coventry",SummerProvRep!$T:$T,Data!AP$17) -> 0 | AQ25: =SUMIFS(SummerProvRep!$K:$K,SummerProvRep!$A:$A,Data!$A$25,SummerProvRep!$O:$O,"<>Coventry",SummerProvRep!$T:$T,Data!AQ$17) -> 0 | AR25: 1 | AS25: 5618.626887 | AT25: 560425.157 | AU25: 131 | AV25: -2 | AW25: 133 | AX25: =[5]Data!$AU25 -> 120 | AY25: 121 | BB25: =($K$8-$AU$25)*$A$20 -> 128 | BD25: 8384 | BE25: =$BB$25/$BD$25*D25 -> 0 | BF25: 0 | BG25: 0 | BH25: 0 | BI25: 0 | BJ25: 0 | BK25: 0 | BL25: 75.54198473 | BM25: 10.7480916 | BN25: 0 | BO25: 4.885496183 | BP25: 5.984732824 | BQ25: 0 | BR25: 16.29007634 | BS25: 6.839694656 | BT25: 0 | BU25: 5.86259542 | BV25: 0.8702290076 | BW25: 0 | BY25: =$BB$25/$BD$25*Y25 -> 0 | BZ25: 0 | CA25: 0 | CB25: 0 | CC25: 0 | CD25: 0 | CE25: 0 | CF25: 0 | CG25: 0 | CH25: 0 | CI25: 0 | CJ25: 0 | CK25: 0 | CL25: 0.9770992366 | CM25: 0 | CN25: 0 | CO25: 0 | CP25: 0 | CQ25: 0
A26: 6 | B26: Baginton Fields | C26: 51.54639175 | D26: 0 | E26: =SUMIFS(SummerProvRep!$K:$K,SummerProvRep!$A:$A,Data!$A$26,SummerProvRep!$O:$O,"Coventry",SummerProvRep!$T:$T,Data!E$17) -> 0 | F26: =SUMIFS(SummerProvRep!$K:$K,SummerProvRep!$A:$A,Data!$A$26,SummerProvRep!$O:$O,"Coventry",SummerProvRep!$T:$T,Data!F$17) -> 0 | G26: =SUMIFS(SummerProvRep!$K:$K,SummerProvRep!$A:$A,Data!$A$26,SummerProvRep!$O:$O,"Coventry",SummerProvRep!$T:$T,Data!G$17) -> 0 | H26: =SUMIFS(SummerProvRep!$K:$K,SummerProvRep!$A:$A,Data!$A$26,SummerProvRep!$O:$O,"Coventry",SummerProvRep!$T:$T,Data!H$17) -> 0 | I26: =SUMIFS(SummerProvRep!$K:$K,SummerProvRep!$A:$A,Data!$A$26,SummerProvRep!$O:$O,"Coventry",SummerProvRep!$T:$T,Data!I$17) -> 0 | J26: =SUMIFS(SummerProvRep!$K:$K,SummerProvRep!$A:$A,Data!$A$26,SummerProvRep!$O:$O,"Coventry",SummerProvRep!$T:$T,Data!J$17) -> 0 | K26: =SUMIFS(SummerProvRep!$K:$K,SummerProvRep!$A:$A,Data!$A$26,SummerProvRep!$O:$O,"Coventry",SummerProvRep!$T:$T,Data!K$17) -> 1728 | L26: =SUMIFS(SummerProvRep!$K:$K,SummerProvRep!$A:$A,Data!$A$26,SummerProvRep!$O:$O,"Coventry",SummerProvRep!$T:$T,Data!L$17) -> 2366 | M26: =SUMIFS(SummerProvRep!$K:$K,SummerProvRep!$A:$A,Data!$A$26,SummerProvRep!$O:$O,"Coventry",SummerProvRep!$T:$T,Data!M$17) -> 0 | N26: =SUMIFS(SummerProvRep!$K:$K,SummerProvRep!$A:$A,Data!$A$26,SummerProvRep!$O:$O,"Coventry",SummerProvRep!$T:$T,Data!N$17) -> 128 | O26: =SUMIFS(SummerProvRep!$K:$K,SummerProvRep!$A:$A,Data!$A$26,SummerProvRep!$O:$O,"Coventry",SummerProvRep!$T:$T,Data!O$17) -> 778 | P26: =SUMIFS(SummerProvRep!$K:$K,SummerProvRep!$A:$A,Data!$A$26,SummerProvRep!$O:$O,"Coventry",SummerProvRep!$T:$T,Data!P$17) -> 0 | Q26: =SUMIFS(SummerProvRep!$K:$K,SummerProvRep!$A:$A,Data!$A$26,SummerProvRep!$O:$O,"Coventry",SummerProvRep!$T:$T,Data!Q$17) -> 1821 | R26: =SUMIFS(SummerProvRep!$K:$K,SummerProvRep!$A:$A,Data!$A$26,SummerProvRep!$O:$O,"Coventry",SummerProvRep!$T:$T,Data!R$17) -> 768 | S26: =SUMIFS(SummerProvRep!$K:$K,SummerProvRep!$A:$A,Data!$A$26,SummerProvRep!$O:$O,"Coventry",SummerProvRep!$T:$T,Data!S$17) -> 0 | T26: =SUMIFS(SummerProvRep!$K:$K,SummerProvRep!$A:$A,Data!$A$26,SummerProvRep!$O:$O,"Coventry",SummerProvRep!$T:$T,Data!T$17) -> 128 | U26: =SUMIFS(SummerProvRep!$K:$K,SummerProvRep!$A:$A,Data!$A$26,SummerProvRep!$O:$O,"Coventry",SummerProvRep!$T:$T,Data!U$17) -> 64 | V26: =SUMIFS(SummerProvRep!$K:$K,SummerProvRep!$A:$A,Data!$A$26,SummerProvRep!$O:$O,"Coventry",SummerProvRep!$T:$T,Data!V$17) -> 0 | W26: 121.578125 | X26: 577336.9468 | Y26: 0 | Z26: =SUMIFS(SummerProvRep!$K:$K,SummerProvRep!$A:$A,Data!#REF!,SummerProvRep!$O:$O,"<>Coventry",SummerProvRep!$T:$T,Data!Z$17) -> 0 | AA26: =SUMIFS(SummerProvRep!$K:$K,SummerProvRep!$A:$A,Data!#REF!,SummerProvRep!$O:$O,"<>Coventry",SummerProvRep!$T:$T,Data!AA$17) -> 0 | AB26: =SUMIFS(SummerProvRep!$K:$K,SummerProvRep!$A:$A,Data!#REF!,SummerProvRep!$O:$O,"<>Coventry",SummerProvRep!$T:$T,Data!AB$17) -> 0 | AC26: =SUMIFS(SummerProvRep!$K:$K,SummerProvRep!$A:$A,Data!#REF!,SummerProvRep!$O:$O,"<>Coventry",SummerProvRep!$T:$T,Data!AC$17) -> 0 | AD26: =SUMIFS(SummerProvRep!$K:$K,SummerProvRep!$A:$A,Data!#REF!,SummerProvRep!$O:$O,"<>Coventry",SummerProvRep!$T:$T,Data!AD$17) -> 0 | AE26: =SUMIFS(SummerProvRep!$K:$K,SummerProvRep!$A:$A,Data!#REF!,SummerProvRep!$O:$O,"<>Coventry",SummerProvRep!$T:$T,Data!AE$17) -> 0 | AF26: =SUMIFS(SummerProvRep!$K:$K,SummerProvRep!$A:$A,Data!$A$26,SummerProvRep!$O:$O,"<>Coventry",SummerProvRep!$T:$T,Data!AF$17) -> 0 | AG26: =SUMIFS(SummerProvRep!$K:$K,SummerProvRep!$A:$A,Data!$A$26,SummerProvRep!$O:$O,"<>Coventry",SummerProvRep!$T:$T,Data!AG$17) -> 128 | AH26: =SUMIFS(SummerProvRep!$K:$K,SummerProvRep!$A:$A,Data!$A$26,SummerProvRep!$O:$O,"<>Coventry",SummerProvRep!$T:$T,Data!AH$17) -> 0 | AI26: =SUMIFS(SummerProvRep!$K:$K,SummerProvRep!$A:$A,Data!$A$26,SummerProvRep!$O:$O,"<>Coventry",SummerProvRep!$T:$T,Data!AI$17) -> 0 | AJ26: =SUMIFS(SummerProvRep!$K:$K,SummerProvRep!$A:$A,Data!$A$26,SummerProvRep!$O:$O,"<>Coventry",SummerProvRep!$T:$T,Data!AJ$17) -> 0 | AK26: =SUMIFS(SummerProvRep!$K:$K,SummerProvRep!$A:$A,Data!$A$26,SummerProvRep!$O:$O,"<>Coventry",SummerProvRep!$T:$T,Data!AK$17) -> 0 | AL26: =SUMIFS(SummerProvRep!$K:$K,SummerProvRep!$A:$A,Data!$A$26,SummerProvRep!$O:$O,"<>Coventry",SummerProvRep!$T:$T,Data!AL$17) -> 0 | AM26: =SUMIFS(SummerProvRep!$K:$K,SummerProvRep!$A:$A,Data!$A$26,SummerProvRep!$O:$O,"<>Coventry",SummerProvRep!$T:$T,Data!AM$17) -> 0 | AN26: =SUMIFS(SummerProvRep!$K:$K,SummerProvRep!$A:$A,Data!$A$26,SummerProvRep!$O:$O,"<>Coventry",SummerProvRep!$T:$T,Data!AN$17) -> 0 | AO26: =SUMIFS(SummerProvRep!$K:$K,SummerProvRep!$A:$A,Data!$A$26,SummerProvRep!$O:$O,"<>Coventry",SummerProvRep!$T:$T,Data!AO$17) -> 0 | AP26: =SUMIFS(SummerProvRep!$K:$K,SummerProvRep!$A:$A,Data!$A$26,SummerProvRep!$O:$O,"<>Coventry",SummerProvRep!$T:$T,Data!AP$17) -> 0 | AQ26: =SUMIFS(SummerProvRep!$K:$K,SummerProvRep!$A:$A,Data!$A$26,SummerProvRep!$O:$O,"<>Coventry",SummerProvRep!$T:$T,Data!AQ$17) -> 0 | AR26: 2 | AS26: 6396.592546 | AT26: 583733.5393 | AU26: 123.578125 | AV26: -2.421875 | AW26: 126 | AX26: =[5]Data!$AU26 -> 123.0289855 | AY26: 126 | BB26: =($K$9-$AU$26)*$A$20 -> 155 | BD26: 7909 | BE26: =$BB$26/$BD$26*D26 -> 0 | BF26: 0 | BG26: 0 | BH26: 0 | BI26: 0 | BJ26: 0 | BK26: 0 | BL26: 33.86521684 | BM26: 46.36869389 | BN26: 0 | BO26: 2.508534581 | BP26: 15.24718675 | BQ26: 0 | BR26: 35.687824 | BS26: 15.05120749 | BT26: 0 | BU26: 2.508534581 | BV26: 1.25426729 | BW26: 0 | BY26: =$BB$26/$BD$26*Y26 -> 0 | BZ26: 0 | CA26: 0 | CB26: 0 | CC26: 0 | CD26: 0 | CE26: 0 | CF26: 0 | CG26: 2.508534581 | CH26: 0 | CI26: 0 | CJ26: 0 | CK26: 0 | CL26: 0 | CM26: 0 | CN26: 0 | CO26: 0 | CP26: 0 | CQ26: 0
A27: 7 | B27: Sherbourne Fields | C27: 51.54639175 | D27: 0 | E27: =SUMIFS(SummerProvRep!$K:$K,SummerProvRep!$A:$A,Data!$A$27,SummerProvRep!$O:$O,"Coventry",SummerProvRep!$T:$T,Data!E$17) -> 0 | F27: =SUMIFS(SummerProvRep!$K:$K,SummerProvRep!$A:$A,Data!$A$27,SummerProvRep!$O:$O,"Coventry",SummerProvRep!$T:$T,Data!F$17) -> 0 | G27: =SUMIFS(SummerProvRep!$K:$K,SummerProvRep!$A:$A,Data!$A$27,SummerProvRep!$O:$O,"Coventry",SummerProvRep!$T:$T,Data!G$17) -> 0 | H27: =SUMIFS(SummerProvRep!$K:$K,SummerProvRep!$A:$A,Data!$A$27,SummerProvRep!$O:$O,"Coventry",SummerProvRep!$T:$T,Data!H$17) -> 64 | I27: =SUMIFS(SummerProvRep!$K:$K,SummerProvRep!$A:$A,Data!$A$27,SummerProvRep!$O:$O,"Coventry",SummerProvRep!$T:$T,Data!I$17) -> 0 | J27: =SUMIFS(SummerProvRep!$K:$K,SummerProvRep!$A:$A,Data!$A$27,SummerProvRep!$O:$O,"Coventry",SummerProvRep!$T:$T,Data!J$17) -> 0 | K27: =SUMIFS(SummerProvRep!$K:$K,SummerProvRep!$A:$A,Data!$A$27,SummerProvRep!$O:$O,"Coventry",SummerProvRep!$T:$T,Data!K$17) -> 5568 | L27: =SUMIFS(SummerProvRep!$K:$K,SummerProvRep!$A:$A,Data!$A$27,SummerProvRep!$O:$O,"Coventry",SummerProvRep!$T:$T,Data!L$17) -> 3840 | M27: =SUMIFS(SummerProvRep!$K:$K,SummerProvRep!$A:$A,Data!$A$27,SummerProvRep!$O:$O,"Coventry",SummerProvRep!$T:$T,Data!M$17) -> 64 | N27: =SUMIFS(SummerProvRep!$K:$K,SummerProvRep!$A:$A,Data!$A$27,SummerProvRep!$O:$O,"Coventry",SummerProvRep!$T:$T,Data!N$17) -> 1856 | O27: =SUMIFS(SummerProvRep!$K:$K,SummerProvRep!$A:$A,Data!$A$27,SummerProvRep!$O:$O,"Coventry",SummerProvRep!$T:$T,Data!O$17) -> 192 | P27: =SUMIFS(SummerProvRep!$K:$K,SummerProvRep!$A:$A,Data!$A$27,SummerProvRep!$O:$O,"Coventry",SummerProvRep!$T:$T,Data!P$17) -> 0 | Q27: =SUMIFS(SummerProvRep!$K:$K,SummerProvRep!$A:$A,Data!$A$27,SummerProvRep!$O:$O,"Coventry",SummerProvRep!$T:$T,Data!Q$17) -> 1792 | R27: =SUMIFS(SummerProvRep!$K:$K,SummerProvRep!$A:$A,Data!$A$27,SummerProvRep!$O:$O,"Coventry",SummerProvRep!$T:$T,Data!R$17) -> 1664 | S27: =SUMIFS(SummerProvRep!$K:$K,SummerProvRep!$A:$A,Data!$A$27,SummerProvRep!$O:$O,"Coventry",SummerProvRep!$T:$T,Data!S$17) -> 0 | T27: =SUMIFS(SummerProvRep!$K:$K,SummerProvRep!$A:$A,Data!$A$27,SummerProvRep!$O:$O,"Coventry",SummerProvRep!$T:$T,Data!T$17) -> 1280 | U27: =SUMIFS(SummerProvRep!$K:$K,SummerProvRep!$A:$A,Data!$A$27,SummerProvRep!$O:$O,"Coventry",SummerProvRep!$T:$T,Data!U$17) -> 0 | V27: =SUMIFS(SummerProvRep!$K:$K,SummerProvRep!$A:$A,Data!$A$27,SummerProvRep!$O:$O,"Coventry",SummerProvRep!$T:$T,Data!V$17) -> 0 | W27: 255 | X27: 1046406.804 | Y27: 0 | Z27: =SUMIFS(SummerProvRep!$K:$K,SummerProvRep!$A:$A,Data!#REF!,SummerProvRep!$O:$O,"<>Coventry",SummerProvRep!$T:$T,Data!Z$17) -> 0 | AA27: =SUMIFS(SummerProvRep!$K:$K,SummerProvRep!$A:$A,Data!#REF!,SummerProvRep!$O:$O,"<>Coventry",SummerProvRep!$T:$T,Data!AA$17) -> 0 | AB27: =SUMIFS(SummerProvRep!$K:$K,SummerProvRep!$A:$A,Data!#REF!,SummerProvRep!$O:$O,"<>Coventry",SummerProvRep!$T:$T,Data!AB$17) -> 0 | AC27: =SUMIFS(SummerProvRep!$K:$K,SummerProvRep!$A:$A,Data!#REF!,SummerProvRep!$O:$O,"<>Coventry",SummerProvRep!$T:$T,Data!AC$17) -> 0 | AD27: =SUMIFS(SummerProvRep!$K:$K,SummerProvRep!$A:$A,Data!#REF!,SummerProvRep!$O:$O,"<>Coventry",SummerProvRep!$T:$T,Data!AD$17) -> 0 | AE27: =SUMIFS(SummerProvRep!$K:$K,SummerProvRep!$A:$A,Data!#REF!,SummerProvRep!$O:$O,"<>Coventry",SummerProvRep!$T:$T,Data!AE$17) -> 0 | AF27: =SUMIFS(SummerProvRep!$K:$K,SummerProvRep!$A:$A,Data!$A$27,SummerProvRep!$O:$O,"<>Coventry",SummerProvRep!$T:$T,Data!AF$17) -> 128 | AG27: =SUMIFS(SummerProvRep!$K:$K,SummerProvRep!$A:$A,Data!$A$27,SummerProvRep!$O:$O,"<>Coventry",SummerProvRep!$T:$T,Data!AG$17) -> 0 | AH27: =SUMIFS(SummerProvRep!$K:$K,SummerProvRep!$A:$A,Data!$A$27,SummerProvRep!$O:$O,"<>Coventry",SummerProvRep!$T:$T,Data!AH$17) -> 0 | AI27: =SUMIFS(SummerProvRep!$K:$K,SummerProvRep!$A:$A,Data!$A$27,SummerProvRep!$O:$O,"<>Coventry",SummerProvRep!$T:$T,Data!AI$17) -> 64 | AJ27: =SUMIFS(SummerProvRep!$K:$K,SummerProvRep!$A:$A,Data!$A$27,SummerProvRep!$O:$O,"<>Coventry",SummerProvRep!$T:$T,Data!AJ$17) -> 0 | AK27: =SUMIFS(SummerProvRep!$K:$K,SummerProvRep!$A:$A,Data!$A$27,SummerProvRep!$O:$O,"<>Coventry",SummerProvRep!$T:$T,Data!AK$17) -> 0 | AL27: =SUMIFS(SummerProvRep!$K:$K,SummerProvRep!$A:$A,Data!$A$27,SummerProvRep!$O:$O,"<>Coventry",SummerProvRep!$T:$T,Data!AL$17) -> 0 | AM27: =SUMIFS(SummerProvRep!$K:$K,SummerProvRep!$A:$A,Data!$A$27,SummerProvRep!$O:$O,"<>Coventry",SummerProvRep!$T:$T,Data!AM$17) -> 0 | AN27: =SUMIFS(SummerProvRep!$K:$K,SummerProvRep!$A:$A,Data!$A$27,SummerProvRep!$O:$O,"<>Coventry",SummerProvRep!$T:$T,Data!AN$17) -> 0 | AO27: =SUMIFS(SummerProvRep!$K:$K,SummerProvRep!$A:$A,Data!$A$27,SummerProvRep!$O:$O,"<>Coventry",SummerProvRep!$T:$T,Data!AO$17) -> 128 | AP27: =SUMIFS(SummerProvRep!$K:$K,SummerProvRep!$A:$A,Data!$A$27,SummerProvRep!$O:$O,"<>Coventry",SummerProvRep!$T:$T,Data!AP$17) -> 0 | AQ27: =SUMIFS(SummerProvRep!$K:$K,SummerProvRep!$A:$A,Data!$A$27,SummerProvRep!$O:$O,"<>Coventry",SummerProvRep!$T:$T,Data!AQ$17) -> 0 | AR27: 5 | AS27: 21610.09345 | AT27: 1068016.898 | AU27: 260 | AV27: 2 | AW27: 258 | AX27: =[5]Data!$AU27 -> 252 | AY27: 251 | BB27: =($K$10-$AU$27)*$A$20 -> -128 | BD27: 16640 | BE27: =$BB$27/$BD$27*D27 -> 0 | BF27: 0 | BG27: 0 | BH27: 0 | BI27: -0.4923076923 | BJ27: 0 | BK27: 0 | BL27: -42.83076923 | BM27: -29.53846154 | BN27: -0.4923076923 | BO27: -14.27692308 | BP27: -1.476923077 | BQ27: 0 | BR27: -13.78461538 | BS27: -12.8 | BT27: 0 | BU27: -9.846153846 | BV27: 0 | BW27: 0 | BY27: =$BB$27/$BD$27*Y27 -> 0 | BZ27: 0 | CA27: 0 | CB27: 0 | CC27: 0 | CD27: 0 | CE27: 0 | CF27: -0.9846153846 | CG27: 0 | CH27: 0 | CI27: -0.4923076923 | CJ27: 0 | CK27: 0 | CL27: 0 | CM27: 0 | CN27: 0 | CO27: -0.9846153846 | CP27: 0 | CQ27: 0
A28: 8 | B28: Woodfield | C28: =10000/$A$16 -> 51.54639175 | D28: 0 | E28: =SUMIFS(SummerProvRep!$K:$K,SummerProvRep!$A:$A,Data!$A$28,SummerProvRep!$O:$O,"Coventry",SummerProvRep!$T:$T,Data!E$17) -> 0 | F28: =SUMIFS(SummerProvRep!$K:$K,SummerProvRep!$A:$A,Data!$A$28,SummerProvRep!$O:$O,"Coventry",SummerProvRep!$T:$T,Data!F$17) -> 0 | G28: =SUMIFS(SummerProvRep!$K:$K,SummerProvRep!$A:$A,Data!$A$28,SummerProvRep!$O:$O,"Coventry",SummerProvRep!$T:$T,Data!G$17) -> 0 | H28: =SUMIFS(SummerProvRep!$K:$K,SummerProvRep!$A:$A,Data!$A$28,SummerProvRep!$O:$O,"Coventry",SummerProvRep!$T:$T,Data!H$17) -> 0 | I28: =SUMIFS(SummerProvRep!$K:$K,SummerProvRep!$A:$A,Data!$A$28,SummerProvRep!$O:$O,"Coventry",SummerProvRep!$T:$T,Data!I$17) -> 0 | J28: =SUMIFS(SummerProvRep!$K:$K,SummerProvRep!$A:$A,Data!$A$28,SummerProvRep!$O:$O,"Coventry",SummerProvRep!$T:$T,Data!J$17) -> 0 | K28: =SUMIFS(SummerProvRep!$K:$K,SummerProvRep!$A:$A,Data!$A$28,SummerProvRep!$O:$O,"Coventry",SummerProvRep!$T:$T,Data!K$17) -> 0 | L28: =SUMIFS(SummerProvRep!$K:$K,SummerProvRep!$A:$A,Data!$A$28,SummerProvRep!$O:$O,"Coventry",SummerProvRep!$T:$T,Data!L$17) -> 0 | M28: =SUMIFS(SummerProvRep!$K:$K,SummerProvRep!$A:$A,Data!$A$28,SummerProvRep!$O:$O,"Coventry",SummerProvRep!$T:$T,Data!M$17) -> 26 | N28: =SUMIFS(SummerProvRep!$K:$K,SummerProvRep!$A:$A,Data!$A$28,SummerProvRep!$O:$O,"Coventry",SummerProvRep!$T:$T,Data!N$17) -> 0 | O28: =SUMIFS(SummerProvRep!$K:$K,SummerProvRep!$A:$A,Data!$A$28,SummerProvRep!$O:$O,"Coventry",SummerProvRep!$T:$T,Data!O$17) -> 192 | P28: =SUMIFS(SummerProvRep!$K:$K,SummerProvRep!$A:$A,Data!$A$28,SummerProvRep!$O:$O,"Coventry",SummerProvRep!$T:$T,Data!P$17) -> 0 | Q28: =SUMIFS(SummerProvRep!$K:$K,SummerProvRep!$A:$A,Data!$A$28,SummerProvRep!$O:$O,"Coventry",SummerProvRep!$T:$T,Data!Q$17) -> 9779 | R28: =SUMIFS(SummerProvRep!$K:$K,SummerProvRep!$A:$A,Data!$A$28,SummerProvRep!$O:$O,"Coventry",SummerProvRep!$T:$T,Data!R$17) -> 0 | S28: =SUMIFS(SummerProvRep!$K:$K,SummerProvRep!$A:$A,Data!$A$28,SummerProvRep!$O:$O,"Coventry",SummerProvRep!$T:$T,Data!S$17) -> 0 | T28: =SUMIFS(SummerProvRep!$K:$K,SummerProvRep!$A:$A,Data!$A$28,SummerProvRep!$O:$O,"Coventry",SummerProvRep!$T:$T,Data!T$17) -> 0 | U28: =SUMIFS(SummerProvRep!$K:$K,SummerProvRep!$A:$A,Data!$A$28,SummerProvRep!$O:$O,"Coventry",SummerProvRep!$T:$T,Data!U$17) -> 66 | V28: =SUMIFS(SummerProvRep!$K:$K,SummerProvRep!$A:$A,Data!$A$28,SummerProvRep!$O:$O,"Coventry",SummerProvRep!$T:$T,Data!V$17) -> 0 | W28: 157.234375 | X28: 904831.5706 | Y28: 0 | Z28: =SUMIFS(SummerProvRep!$K:$K,SummerProvRep!$A:$A,Data!#REF!,SummerProvRep!$O:$O,"<>Coventry",SummerProvRep!$T:$T,Data!Z$17) -> 0 | AA28: =SUMIFS(SummerProvRep!$K:$K,SummerProvRep!$A:$A,Data!#REF!,SummerProvRep!$O:$O,"<>Coventry",SummerProvRep!$T:$T,Data!AA$17) -> 0 | AB28: =SUMIFS(SummerProvRep!$K:$K,SummerProvRep!$A:$A,Data!#REF!,SummerProvRep!$O:$O,"<>Coventry",SummerProvRep!$T:$T,Data!AB$17) -> 0 | AC28: =SUMIFS(SummerProvRep!$K:$K,SummerProvRep!$A:$A,Data!#REF!,SummerProvRep!$O:$O,"<>Coventry",SummerProvRep!$T:$T,Data!AC$17) -> 0 | AD28: =SUMIFS(SummerProvRep!$K:$K,SummerProvRep!$A:$A,Data!#REF!,SummerProvRep!$O:$O,"<>Coventry",SummerProvRep!$T:$T,Data!AD$17) -> 0 | AE28: =SUMIFS(SummerProvRep!$K:$K,SummerProvRep!$A:$A,Data!#REF!,SummerProvRep!$O:$O,"<>Coventry",SummerProvRep!$T:$T,Data!AE$17) -> 0 | AF28: =SUMIFS(SummerProvRep!$K:$K,SummerProvRep!$A:$A,Data!$A$28,SummerProvRep!$O:$O,"<>Coventry",SummerProvRep!$T:$T,Data!AF$17) -> 0 | AG28: =SUMIFS(SummerProvRep!$K:$K,SummerProvRep!$A:$A,Data!$A$28,SummerProvRep!$O:$O,"<>Coventry",SummerProvRep!$T:$T,Data!AG$17) -> 0 | AH28: =SUMIFS(SummerProvRep!$K:$K,SummerProvRep!$A:$A,Data!$A$28,SummerProvRep!$O:$O,"<>Coventry",SummerProvRep!$T:$T,Data!AH$17) -> 0 | AI28: =SUMIFS(SummerProvRep!$K:$K,SummerProvRep!$A:$A,Data!$A$28,SummerProvRep!$O:$O,"<>Coventry",SummerProvRep!$T:$T,Data!AI$17) -> 0 | AJ28: =SUMIFS(SummerProvRep!$K:$K,SummerProvRep!$A:$A,Data!$A$28,SummerProvRep!$O:$O,"<>Coventry",SummerProvRep!$T:$T,Data!AJ$17) -> 0 | AK28: =SUMIFS(SummerProvRep!$K:$K,SummerProvRep!$A:$A,Data!$A$28,SummerProvRep!$O:$O,"<>Coventry",SummerProvRep!$T:$T,Data!AK$17) -> 0 | AL28: =SUMIFS(SummerProvRep!$K:$K,SummerProvRep!$A:$A,Data!$A$28,SummerProvRep!$O:$O,"<>Coventry",SummerProvRep!$T:$T,Data!AL$17) -> 64 | AM28: =SUMIFS(SummerProvRep!$K:$K,SummerProvRep!$A:$A,Data!$A$28,SummerProvRep!$O:$O,"<>Coventry",SummerProvRep!$T:$T,Data!AM$17) -> 0 | AN28: =SUMIFS(SummerProvRep!$K:$K,SummerProvRep!$A:$A,Data!$A$28,SummerProvRep!$O:$O,"<>Coventry",SummerProvRep!$T:$T,Data!AN$17) -> 0 | AO28: =SUMIFS(SummerProvRep!$K:$K,SummerProvRep!$A:$A,Data!$A$28,SummerProvRep!$O:$O,"<>Coventry",SummerProvRep!$T:$T,Data!AO$17) -> 0 | AP28: =SUMIFS(SummerProvRep!$K:$K,SummerProvRep!$A:$A,Data!$A$28,SummerProvRep!$O:$O,"<>Coventry",SummerProvRep!$T:$T,Data!AP$17) -> 0 | AQ28: =SUMIFS(SummerProvRep!$K:$K,SummerProvRep!$A:$A,Data!$A$28,SummerProvRep!$O:$O,"<>Coventry",SummerProvRep!$T:$T,Data!AQ$17) -> 0 | AR28: =SUM(Y28:AQ28)/$A$20 -> 1 | AS28: 5618.626887 | AT28: 910450.1975 | AU28: 158.234375 | AV28: =AU28-AW28 -> 3.234375 | AW28: 155 | AX28: =[5]Data!$AU28 -> 157.2173913 | AY28: 155 | BB28: =($K$11-$AU$28)*$A$20 -> -207 | BD28: 10127 | BE28: =$BB$28/$BD$28*D28 -> 0 | BF28: 0 | BG28: 0 | BH28: 0 | BI28: 0 | BJ28: 0 | BK28: 0 | BL28: 0 | BM28: 0 | BN28: -0.5314505777 | BO28: 0 | BP28: -3.924558112 | BQ28: 0 | BR28: -199.8867384 | BS28: 0 | BT28: 0 | BU28: 0 | BV28: -1.349066851 | BW28: 0 | BY28: =$BB$28/$BD$28*Y28 -> 0 | BZ28: 0 | CA28: 0 | CB28: 0 | CC28: 0 | CD28: 0 | CE28: 0 | CF28: 0 | CG28: 0 | CH28: 0 | CI28: 0 | CJ28: 0 | CK28: 0 | CL28: -1.308186037 | CM28: 0 | CN28: 0 | CO28: 0 | CP28: 0 | CQ28: 0
A29: 9 | B29: Coventry ELC | C29: =10000/$A$16 -> 51.54639175 | D29: =120*A20 -> 7680 | E29: 0 | F29: 0 | G29: 0 | H29: 0 | I29: 0 | J29: 0 | K29: 0 | L29: 0 | M29: 0 | N29: 0 | O29: 0 | P29: 0 | Q29: 0 | R29: 0 | S29: 0 | T29: 0 | U29: 0 | V29: 0 | W29: 120 | X29: =SUMPRODUCT(D29:V29,$V$12:$AN$12)/$A$16 -> 510575.502 | Y29: 0 | Z29: 0 | AA29: 0 | AB29: 0 | AC29: 0 | AD29: 0 | AE29: 0 | AF29: 0 | AG29: 0 | AH29: 0 | AI29: 0 | AJ29: 0 | AK29: 0 | AL29: 0 | AM29: 0 | AN29: 0 | AO29: 0 | AP29: 0 | AQ29: 0 | AR29: =SUM(Y29:AQ29)/$A$20 -> 0 | AS29: =SUMPRODUCT(Y29:AQ29,$V$12:$AN$12)/$A$16 -> 0 | AT29: 510575.502 | AU29: 120 | AV29: =AU29-AW29 -> 0 | AW29: 120 | AX29: =[5]Data!$AU29 -> 120 | AY29: 120 | BB29: =($K$12-$AU$29)*$A$20 -> 0 | BD29: 7680 | BE29: =$BB$29/$BD$29*D29 -> 0 | BF29: 0 | BG29: 0 | BH29: 0 | BI29: 0 | BJ29: 0 | BK29: 0 | BL29: 0 | BM29: 0 | BN29: 0 | BO29: 0 | BP29: 0 | BQ29: 0 | BR29: 0 | BS29: 0 | BT29: 0 | BU29: 0 | BV29: 0 | BW29: 0 | BY29: =$BB$29/$BD$29*Y29 -> 0 | BZ29: 0 | CA29: 0 | CB29: 0 | CC29: 0 | CD29: 0 | CE29: 0 | CF29: 0 | CG29: 0 | CH29: 0 | CI29: 0 | CJ29: 0 | CK29: 0 | CL29: 0 | CM29: 0 | CN29: 0 | CO29: 0 | CP29: 0 | CQ29: 0
AS30: =SUM(AS21:AS29) -> 70708.24886 | AT30: =SUM(AT21:AT29) -> 6255964.088 | AU30: =SUM(AU21:AU29) -> 1416.0625
B31: Summer Term 2025
A32: 64 | B32: School
A33: 1 | B33: Castle Wood | C33: =10000/$A$16 -> 51.54639175 | D33: =D21+BE21 -> 0 | E33: =SUMIFS(SummerProvRep!$K:$K,SummerProvRep!$A:$A,Data!$A$21,SummerProvRep!$O:$O,"Coventry",SummerProvRep!$T:$T,Data!E$17) -> 0 | F33: =SUMIFS(SummerProvRep!$K:$K,SummerProvRep!$A:$A,Data!$A$21,SummerProvRep!$O:$O,"Coventry",SummerProvRep!$T:$T,Data!F$17) -> 0 | G33: =SUMIFS(SummerProvRep!$K:$K,SummerProvRep!$A:$A,Data!$A$21,SummerProvRep!$O:$O,"Coventry",SummerProvRep!$T:$T,Data!G$17) -> 0 | H33: =SUMIFS(SummerProvRep!$K:$K,SummerProvRep!$A:$A,Data!$A$21,SummerProvRep!$O:$O,"Coventry",SummerProvRep!$T:$T,Data!H$17) -> 0 | I33: =SUMIFS(SummerProvRep!$K:$K,SummerProvRep!$A:$A,Data!$A$21,SummerProvRep!$O:$O,"Coventry",SummerProvRep!$T:$T,Data!I$17) -> 0 | J33: =SUMIFS(SummerProvRep!$K:$K,SummerProvRep!$A:$A,Data!$A$21,SummerProvRep!$O:$O,"Coventry",SummerProvRep!$T:$T,Data!J$17) -> 64 | K33: =SUMIFS(SummerProvRep!$K:$K,SummerProvRep!$A:$A,Data!$A$21,SummerProvRep!$O:$O,"Coventry",SummerProvRep!$T:$T,Data!K$17) -> 5701 | L33: =SUMIFS(SummerProvRep!$K:$K,SummerProvRep!$A:$A,Data!$A$21,SummerProvRep!$O:$O,"Coventry",SummerProvRep!$T:$T,Data!L$17) -> 576 | M33: =SUMIFS(SummerProvRep!$K:$K,SummerProvRep!$A:$A,Data!$A$21,SummerProvRep!$O:$O,"Coventry",SummerProvRep!$T:$T,Data!M$17) -> 0 | N33: =SUMIFS(SummerProvRep!$K:$K,SummerProvRep!$A:$A,Data!$A$21,SummerProvRep!$O:$O,"Coventry",SummerProvRep!$T:$T,Data!N$17) -> 448 | O33: =SUMIFS(SummerProvRep!$K:$K,SummerProvRep!$A:$A,Data!$A$21,SummerProvRep!$O:$O,"Coventry",SummerProvRep!$T:$T,Data!O$17) -> 640 | P33: =SUMIFS(SummerProvRep!$K:$K,SummerProvRep!$A:$A,Data!$A$21,SummerProvRep!$O:$O,"Coventry",SummerProvRep!$T:$T,Data!P$17) -> 0 | Q33: =SUMIFS(SummerProvRep!$K:$K,SummerProvRep!$A:$A,Data!$A$21,SummerProvRep!$O:$O,"Coventry",SummerProvRep!$T:$T,Data!Q$17) -> 2112 | R33: =SUMIFS(SummerProvRep!$K:$K,SummerProvRep!$A:$A,Data!$A$21,SummerProvRep!$O:$O,"Coventry",SummerProvRep!$T:$T,Data!R$17) -> 448 | S33: =SUMIFS(SummerProvRep!$K:$K,SummerProvRep!$A:$A,Data!$A$21,SummerProvRep!$O:$O,"Coventry",SummerProvRep!$T:$T,Data!S$17) -> 0 | T33: =SUMIFS(SummerProvRep!$K:$K,SummerProvRep!$A:$A,Data!$A$21,SummerProvRep!$O:$O,"Coventry",SummerProvRep!$T:$T,Data!T$17) -> 384 | U33: =SUMIFS(SummerProvRep!$K:$K,SummerProvRep!$A:$A,Data!$A$21,SummerProvRep!$O:$O,"Coventry",SummerProvRep!$T:$T,Data!U$17) -> 161 | V33: =SUMIFS(SummerProvRep!$K:$K,SummerProvRep!$A:$A,Data!$A$21,SummerProvRep!$O:$O,"Coventry",SummerProvRep!$T:$T,Data!V$17) -> 0 | W33: =SUM(D33:V33)/$A$20 -> 164.59375 | X33: =SUMPRODUCT(E33:V33,$W$6:$AN$6)/$A$16 -> 754793.9347 | Y33: =Y21+BY21 -> 0 | Z33: =SUMIFS(SummerProvRep!$K:$K,SummerProvRep!$A:$A,Data!$A$21,SummerProvRep!$O:$O,"<>Coventry",SummerProvRep!$T:$T,Data!Z$17) -> 0 | AA33: =SUMIFS(SummerProvRep!$K:$K,SummerProvRep!$A:$A,Data!$A$21,SummerProvRep!$O:$O,"<>Coventry",SummerProvRep!$T:$T,Data!AA$17) -> 0 | AB33: =SUMIFS(SummerProvRep!$K:$K,SummerProvRep!$A:$A,Data!$A$21,SummerProvRep!$O:$O,"<>Coventry",SummerProvRep!$T:$T,Data!AB$17) -> 0 | AC33: =SUMIFS(SummerProvRep!$K:$K,SummerProvRep!$A:$A,Data!$A$21,SummerProvRep!$O:$O,"<>Coventry",SummerProvRep!$T:$T,Data!AC$17) -> 0 | AD33: =SUMIFS(SummerProvRep!$K:$K,SummerProvRep!$A:$A,Data!$A$21,SummerProvRep!$O:$O,"<>Coventry",SummerProvRep!$T:$T,Data!AD$17) -> 0 | AE33: =SUMIFS(SummerProvRep!$K:$K,SummerProvRep!$A:$A,Data!$A$21,SummerProvRep!$O:$O,"<>Coventry",SummerProvRep!$T:$T,Data!AE$17) -> 0 | AF33: =SUMIFS(SummerProvRep!$K:$K,SummerProvRep!$A:$A,Data!$A$21,SummerProvRep!$O:$O,"<>Coventry",SummerProvRep!$T:$T,Data!AF$17) -> 64 | AG33: =SUMIFS(SummerProvRep!$K:$K,SummerProvRep!$A:$A,Data!$A$21,SummerProvRep!$O:$O,"<>Coventry",SummerProvRep!$T:$T,Data!AG$17) -> 0 | AH33: =SUMIFS(SummerProvRep!$K:$K,SummerProvRep!$A:$A,Data!$A$21,SummerProvRep!$O:$O,"<>Coventry",SummerProvRep!$T:$T,Data!AH$17) -> 0 | AI33: =SUMIFS(SummerProvRep!$K:$K,SummerProvRep!$A:$A,Data!$A$21,SummerProvRep!$O:$O,"<>Coventry",SummerProvRep!$T:$T,Data!AI$17) -> 0 | AJ33: =SUMIFS(SummerProvRep!$K:$K,SummerProvRep!$A:$A,Data!$A$21,SummerProvRep!$O:$O,"<>Coventry",SummerProvRep!$T:$T,Data!AJ$17) -> 0 | AK33: =SUMIFS(SummerProvRep!$K:$K,SummerProvRep!$A:$A,Data!$A$21,SummerProvRep!$O:$O,"<>Coventry",SummerProvRep!$T:$T,Data!AK$17) -> 0 | AL33: =SUMIFS(SummerProvRep!$K:$K,SummerProvRep!$A:$A,Data!$A$21,SummerProvRep!$O:$O,"<>Coventry",SummerProvRep!$T:$T,Data!AL$17) -> 0 | AM33: =SUMIFS(SummerProvRep!$K:$K,SummerProvRep!$A:$A,Data!$A$21,SummerProvRep!$O:$O,"<>Coventry",SummerProvRep!$T:$T,Data!AM$17) -> 0 | AN33: =SUMIFS(SummerProvRep!$K:$K,SummerProvRep!$A:$A,Data!$A$21,SummerProvRep!$O:$O,"<>Coventry",SummerProvRep!$T:$T,Data!AN$17) -> 0 | AO33: =SUMIFS(SummerProvRep!$K:$K,SummerProvRep!$A:$A,Data!$A$21,SummerProvRep!$O:$O,"<>Coventry",SummerProvRep!$T:$T,Data!AO$17) -> 0 | AP33: =SUMIFS(SummerProvRep!$K:$K,SummerProvRep!$A:$A,Data!$A$21,SummerProvRep!$O:$O,"<>Coventry",SummerProvRep!$T:$T,Data!AP$17) -> 0 | AQ33: =SUMIFS(SummerProvRep!$K:$K,SummerProvRep!$A:$A,Data!$A$21,SummerProvRep!$O:$O,"<>Coventry",SummerProvRep!$T:$T,Data!AQ$17) -> 0 | AR33: =SUM(Z33:AQ33)/$A$20 -> 1 | AS33: =SUMPRODUCT(Y33:AQ33,$V$6:$AN$6)/$A$16 -> 3457.615692 | AT33: =X33+AS33 -> 758251.5504 | AU33: =AR33+W33 -> 165.59375 | AV33: =AU33-AW33 -> 1.59375 | AW33: =K4 -> 164 | AX33: =[5]Data!$AU21 -> 161 | AY33: =C4 -> 160 | BA33: =(AT33/69*200)/AU33 -> 13272.42472 | BC33: =X33/W33 -> 4585.799489
A34: 2 | B34: Kingsbury | C34: =10000/$A$16 -> 51.54639175 | D34: 0 | E34: =SUMIFS(SummerProvRep!$K:$K,SummerProvRep!$A:$A,Data!$A$22,SummerProvRep!$O:$O,"Coventry",SummerProvRep!$T:$T,Data!E$17) -> 0 | F34: =SUMIFS(SummerProvRep!$K:$K,SummerProvRep!$A:$A,Data!$A$22,SummerProvRep!$O:$O,"Coventry",SummerProvRep!$T:$T,Data!F$17) -> 0 | G34: =SUMIFS(SummerProvRep!$K:$K,SummerProvRep!$A:$A,Data!$A$22,SummerProvRep!$O:$O,"Coventry",SummerProvRep!$T:$T,Data!G$17) -> 0 | H34: =SUMIFS(SummerProvRep!$K:$K,SummerProvRep!$A:$A,Data!$A$22,SummerProvRep!$O:$O,"Coventry",SummerProvRep!$T:$T,Data!H$17) -> 0 | I34: =SUMIFS(SummerProvRep!$K:$K,SummerProvRep!$A:$A,Data!$A$22,SummerProvRep!$O:$O,"Coventry",SummerProvRep!$T:$T,Data!I$17) -> 0 | J34: =SUMIFS(SummerProvRep!$K:$K,SummerProvRep!$A:$A,Data!$A$22,SummerProvRep!$O:$O,"Coventry",SummerProvRep!$T:$T,Data!J$17) -> 0 | K34: =SUMIFS(SummerProvRep!$K:$K,SummerProvRep!$A:$A,Data!$A$22,SummerProvRep!$O:$O,"Coventry",SummerProvRep!$T:$T,Data!K$17) -> 3887 | L34: =SUMIFS(SummerProvRep!$K:$K,SummerProvRep!$A:$A,Data!$A$22,SummerProvRep!$O:$O,"Coventry",SummerProvRep!$T:$T,Data!L$17) -> 128 | M34: =SUMIFS(SummerProvRep!$K:$K,SummerProvRep!$A:$A,Data!$A$22,SummerProvRep!$O:$O,"Coventry",SummerProvRep!$T:$T,Data!M$17) -> 0 | N34: =SUMIFS(SummerProvRep!$K:$K,SummerProvRep!$A:$A,Data!$A$22,SummerProvRep!$O:$O,"Coventry",SummerProvRep!$T:$T,Data!N$17) -> 0 | O34: =SUMIFS(SummerProvRep!$K:$K,SummerProvRep!$A:$A,Data!$A$22,SummerProvRep!$O:$O,"Coventry",SummerProvRep!$T:$T,Data!O$17) -> 634 | P34: =SUMIFS(SummerProvRep!$K:$K,SummerProvRep!$A:$A,Data!$A$22,SummerProvRep!$O:$O,"Coventry",SummerProvRep!$T:$T,Data!P$17) -> 0 | Q34: =SUMIFS(SummerProvRep!$K:$K,SummerProvRep!$A:$A,Data!$A$22,SummerProvRep!$O:$O,"Coventry",SummerProvRep!$T:$T,Data!Q$17) -> 1559 | R34: =SUMIFS(SummerProvRep!$K:$K,SummerProvRep!$A:$A,Data!$A$22,SummerProvRep!$O:$O,"Coventry",SummerProvRep!$T:$T,Data!R$17) -> 0 | S34: =SUMIFS(SummerProvRep!$K:$K,SummerProvRep!$A:$A,Data!$A$22,SummerProvRep!$O:$O,"Coventry",SummerProvRep!$T:$T,Data!S$17) -> 0 | T34: =SUMIFS(SummerProvRep!$K:$K,SummerProvRep!$A:$A,Data!$A$22,SummerProvRep!$O:$O,"Coventry",SummerProvRep!$T:$T,Data!T$17) -> 0 | U34: =SUMIFS(SummerProvRep!$K:$K,SummerProvRep!$A:$A,Data!$A$22,SummerProvRep!$O:$O,"Coventry",SummerProvRep!$T:$T,Data!U$17) -> 0 | V34: =SUMIFS(SummerProvRep!$K:$K,SummerProvRep!$A:$A,Data!$A$22,SummerProvRep!$O:$O,"Coventry",SummerProvRep!$T:$T,Data!V$17) -> 0 | W34: 97 | X34: 440467.4609 | Y34: 0 | Z34: =SUMIFS(SummerProvRep!$K:$K,SummerProvRep!$A:$A,Data!$A$22,SummerProvRep!$O:$O,"<>Coventry",SummerProvRep!$T:$T,Data!Z$17) -> 0 | AA34: =SUMIFS(SummerProvRep!$K:$K,SummerProvRep!$A:$A,Data!$A$22,SummerProvRep!$O:$O,"<>Coventry",SummerProvRep!$T:$T,Data!AA$17) -> 0 | AB34: =SUMIFS(SummerProvRep!$K:$K,SummerProvRep!$A:$A,Data!$A$22,SummerProvRep!$O:$O,"<>Coventry",SummerProvRep!$T:$T,Data!AB$17) -> 0 | AC34: =SUMIFS(SummerProvRep!$K:$K,SummerProvRep!$A:$A,Data!$A$22,SummerProvRep!$O:$O,"<>Coventry",SummerProvRep!$T:$T,Data!AC$17) -> 0 | AD34: =SUMIFS(SummerProvRep!$K:$K,SummerProvRep!$A:$A,Data!$A$22,SummerProvRep!$O:$O,"<>Coventry",SummerProvRep!$T:$T,Data!AD$17) -> 0 | AE34: =SUMIFS(SummerProvRep!$K:$K,SummerProvRep!$A:$A,Data!$A$22,SummerProvRep!$O:$O,"<>Coventry",SummerProvRep!$T:$T,Data!AE$17) -> 0 | AF34: =SUMIFS(SummerProvRep!$K:$K,SummerProvRep!$A:$A,Data!$A$22,SummerProvRep!$O:$O,"<>Coventry",SummerProvRep!$T:$T,Data!AF$17) -> 64 | AG34: =SUMIFS(SummerProvRep!$K:$K,SummerProvRep!$A:$A,Data!$A$22,SummerProvRep!$O:$O,"<>Coventry",SummerProvRep!$T:$T,Data!AG$17) -> 64 | AH34: =SUMIFS(SummerProvRep!$K:$K,SummerProvRep!$A:$A,Data!$A$22,SummerProvRep!$O:$O,"<>Coventry",SummerProvRep!$T:$T,Data!AH$17) -> 0 | AI34: =SUMIFS(SummerProvRep!$K:$K,SummerProvRep!$A:$A,Data!$A$22,SummerProvRep!$O:$O,"<>Coventry",SummerProvRep!$T:$T,Data!AI$17) -> 0 | AJ34: =SUMIFS(SummerProvRep!$K:$K,SummerProvRep!$A:$A,Data!$A$22,SummerProvRep!$O:$O,"<>Coventry",SummerProvRep!$T:$T,Data!AJ$17) -> 0 | AK34: =SUMIFS(SummerProvRep!$K:$K,SummerProvRep!$A:$A,Data!$A$22,SummerProvRep!$O:$O,"<>Coventry",SummerProvRep!$T:$T,Data!AK$17) -> 0 | AL34: =SUMIFS(SummerProvRep!$K:$K,SummerProvRep!$A:$A,Data!$A$22,SummerProvRep!$O:$O,"<>Coventry",SummerProvRep!$T:$T,Data!AL$17) -> 128 | AM34: =SUMIFS(SummerProvRep!$K:$K,SummerProvRep!$A:$A,Data!$A$22,SummerProvRep!$O:$O,"<>Coventry",SummerProvRep!$T:$T,Data!AM$17) -> 0 | AN34: =SUMIFS(SummerProvRep!$K:$K,SummerProvRep!$A:$A,Data!$A$22,SummerProvRep!$O:$O,"<>Coventry",SummerProvRep!$T:$T,Data!AN$17) -> 0 | AO34: =SUMIFS(SummerProvRep!$K:$K,SummerProvRep!$A:$A,Data!$A$22,SummerProvRep!$O:$O,"<>Coventry",SummerProvRep!$T:$T,Data!AO$17) -> 0 | AP34: =SUMIFS(SummerProvRep!$K:$K,SummerProvRep!$A:$A,Data!$A$22,SummerProvRep!$O:$O,"<>Coventry",SummerProvRep!$T:$T,Data!AP$17) -> 0 | AQ34: =SUMIFS(SummerProvRep!$K:$K,SummerProvRep!$A:$A,Data!$A$22,SummerProvRep!$O:$O,"<>Coventry",SummerProvRep!$T:$T,Data!AQ$17) -> 0 | AR34: 4 | AS34: 17893.16574 | AT34: 458360.6266 | AU34: 101 | AV34: =AU34-AW34 -> -2 | AW34: 103 | AX34: =[5]Data!$AU22 -> 100 | AY34: 100 | BA34: =(AT34/69*200)/AU34 -> 13154.27254 | BC34: =X34/W34 -> 4540.901659
A35: 3 | B35: Riverbank | C35: 51.54639175 | D35: 0 | E35: =SUMIFS(SummerProvRep!$K:$K,SummerProvRep!$A:$A,Data!$A$23,SummerProvRep!$O:$O,"Coventry",SummerProvRep!$T:$T,Data!E$17) -> 0 | F35: =SUMIFS(SummerProvRep!$K:$K,SummerProvRep!$A:$A,Data!$A$23,SummerProvRep!$O:$O,"Coventry",SummerProvRep!$T:$T,Data!F$17) -> 0 | G35: =SUMIFS(SummerProvRep!$K:$K,SummerProvRep!$A:$A,Data!$A$23,SummerProvRep!$O:$O,"Coventry",SummerProvRep!$T:$T,Data!G$17) -> 377 | H35: =SUMIFS(SummerProvRep!$K:$K,SummerProvRep!$A:$A,Data!$A$23,SummerProvRep!$O:$O,"Coventry",SummerProvRep!$T:$T,Data!H$17) -> 447 | I35: =SUMIFS(SummerProvRep!$K:$K,SummerProvRep!$A:$A,Data!$A$23,SummerProvRep!$O:$O,"Coventry",SummerProvRep!$T:$T,Data!I$17) -> 0 | J35: =SUMIFS(SummerProvRep!$K:$K,SummerProvRep!$A:$A,Data!$A$23,SummerProvRep!$O:$O,"Coventry",SummerProvRep!$T:$T,Data!J$17) -> 0 | K35: =SUMIFS(SummerProvRep!$K:$K,SummerProvRep!$A:$A,Data!$A$23,SummerProvRep!$O:$O,"Coventry",SummerProvRep!$T:$T,Data!K$17) -> 4856 | L35: =SUMIFS(SummerProvRep!$K:$K,SummerProvRep!$A:$A,Data!$A$23,SummerProvRep!$O:$O,"Coventry",SummerProvRep!$T:$T,Data!L$17) -> 3647 | M35: =SUMIFS(SummerProvRep!$K:$K,SummerProvRep!$A:$A,Data!$A$23,SummerProvRep!$O:$O,"Coventry",SummerProvRep!$T:$T,Data!M$17) -> 73 | N35: =SUMIFS(SummerProvRep!$K:$K,SummerProvRep!$A:$A,Data!$A$23,SummerProvRep!$O:$O,"Coventry",SummerProvRep!$T:$T,Data!N$17) -> 512 | O35: =SUMIFS(SummerProvRep!$K:$K,SummerProvRep!$A:$A,Data!$A$23,SummerProvRep!$O:$O,"Coventry",SummerProvRep!$T:$T,Data!O$17) -> 593 | P35: =SUMIFS(SummerProvRep!$K:$K,SummerProvRep!$A:$A,Data!$A$23,SummerProvRep!$O:$O,"Coventry",SummerProvRep!$T:$T,Data!P$17) -> 256 | Q35: =SUMIFS(SummerProvRep!$K:$K,SummerProvRep!$A:$A,Data!$A$23,SummerProvRep!$O:$O,"Coventry",SummerProvRep!$T:$T,Data!Q$17) -> 1557 | R35: =SUMIFS(SummerProvRep!$K:$K,SummerProvRep!$A:$A,Data!$A$23,SummerProvRep!$O:$O,"Coventry",SummerProvRep!$T:$T,Data!R$17) -> 384 | S35: =SUMIFS(SummerProvRep!$K:$K,SummerProvRep!$A:$A,Data!$A$23,SummerProvRep!$O:$O,"Coventry",SummerProvRep!$T:$T,Data!S$17) -> 0 | T35: =SUMIFS(SummerProvRep!$K:$K,SummerProvRep!$A:$A,Data!$A$23,SummerProvRep!$O:$O,"Coventry",SummerProvRep!$T:$T,Data!T$17) -> 192 | U35: =SUMIFS(SummerProvRep!$K:$K,SummerProvRep!$A:$A,Data!$A$23,SummerProvRep!$O:$O,"Coventry",SummerProvRep!$T:$T,Data!U$17) -> 0 | V35: =SUMIFS(SummerProvRep!$K:$K,SummerProvRep!$A:$A,Data!$A$23,SummerProvRep!$O:$O,"Coventry",SummerProvRep!$T:$T,Data!V$17) -> 0 | W35: 201.46875 | X35: 814347.1497 | Y35: 0 | Z35: =SUMIFS(SummerProvRep!$K:$K,SummerProvRep!$A:$A,Data!$A$23,SummerProvRep!$O:$O,"<>Coventry",SummerProvRep!$T:$T,Data!Z$17) -> 0 | AA35: =SUMIFS(SummerProvRep!$K:$K,SummerProvRep!$A:$A,Data!$A$23,SummerProvRep!$O:$O,"<>Coventry",SummerProvRep!$T:$T,Data!AA$17) -> 0 | AB35: =SUMIFS(SummerProvRep!$K:$K,SummerProvRep!$A:$A,Data!$A$23,SummerProvRep!$O:$O,"<>Coventry",SummerProvRep!$T:$T,Data!AB$17) -> 0 | AC35: =SUMIFS(SummerProvRep!$K:$K,SummerProvRep!$A:$A,Data!$A$23,SummerProvRep!$O:$O,"<>Coventry",SummerProvRep!$T:$T,Data!AC$17) -> 0 | AD35: =SUMIFS(SummerProvRep!$K:$K,SummerProvRep!$A:$A,Data!$A$23,SummerProvRep!$O:$O,"<>Coventry",SummerProvRep!$T:$T,Data!AD$17) -> 0 | AE35: =SUMIFS(SummerProvRep!$K:$K,SummerProvRep!$A:$A,Data!$A$23,SummerProvRep!$O:$O,"<>Coventry",SummerProvRep!$T:$T,Data!AE$17) -> 0 | AF35: =SUMIFS(SummerProvRep!$K:$K,SummerProvRep!$A:$A,Data!$A$23,SummerProvRep!$O:$O,"<>Coventry",SummerProvRep!$T:$T,Data!AF$17) -> 0 | AG35: =SUMIFS(SummerProvRep!$K:$K,SummerProvRep!$A:$A,Data!$A$23,SummerProvRep!$O:$O,"<>Coventry",SummerProvRep!$T:$T,Data!AG$17) -> 64 | AH35: =SUMIFS(SummerProvRep!$K:$K,SummerProvRep!$A:$A,Data!$A$23,SummerProvRep!$O:$O,"<>Coventry",SummerProvRep!$T:$T,Data!AH$17) -> 0 | AI35: =SUMIFS(SummerProvRep!$K:$K,SummerProvRep!$A:$A,Data!$A$23,SummerProvRep!$O:$O,"<>Coventry",SummerProvRep!$T:$T,Data!AI$17) -> 0 | AJ35: =SUMIFS(SummerProvRep!$K:$K,SummerProvRep!$A:$A,Data!$A$23,SummerProvRep!$O:$O,"<>Coventry",SummerProvRep!$T:$T,Data!AJ$17) -> 0 | AK35: =SUMIFS(SummerProvRep!$K:$K,SummerProvRep!$A:$A,Data!$A$23,SummerProvRep!$O:$O,"<>Coventry",SummerProvRep!$T:$T,Data!AK$17) -> 0 | AL35: =SUMIFS(SummerProvRep!$K:$K,SummerProvRep!$A:$A,Data!$A$23,SummerProvRep!$O:$O,"<>Coventry",SummerProvRep!$T:$T,Data!AL$17) -> 0 | AM35: =SUMIFS(SummerProvRep!$K:$K,SummerProvRep!$A:$A,Data!$A$23,SummerProvRep!$O:$O,"<>Coventry",SummerProvRep!$T:$T,Data!AM$17) -> 0 | AN35: =SUMIFS(SummerProvRep!$K:$K,SummerProvRep!$A:$A,Data!$A$23,SummerProvRep!$O:$O,"<>Coventry",SummerProvRep!$T:$T,Data!AN$17) -> 0 | AO35: =SUMIFS(SummerProvRep!$K:$K,SummerProvRep!$A:$A,Data!$A$23,SummerProvRep!$O:$O,"<>Coventry",SummerProvRep!$T:$T,Data!AO$17) -> 0 | AP35: =SUMIFS(SummerProvRep!$K:$K,SummerProvRep!$A:$A,Data!$A$23,SummerProvRep!$O:$O,"<>Coventry",SummerProvRep!$T:$T,Data!AP$17) -> 0 | AQ35: =SUMIFS(SummerProvRep!$K:$K,SummerProvRep!$A:$A,Data!$A$23,SummerProvRep!$O:$O,"<>Coventry",SummerProvRep!$T:$T,Data!AQ$17) -> 0 | AR35: 1 | AS35: 3198.296273 | AT35: 817545.446 | AU35: 202.46875 | AV35: =AU35-AW35 -> -6.53125 | AW35: 209 | AX35: =[5]Data!$AU23 -> 192.8550725 | AY35: 200 | BA35: =(AT35/69*200)/AU35 -> 11704.01331 | BC35: 4042.05193
A36: 4 | B36: Corley | C36: 51.54639175 | D36: 0 | E36: =SUMIFS(SummerProvRep!$K:$K,SummerProvRep!$A:$A,Data!$A$24,SummerProvRep!$O:$O,"Coventry",SummerProvRep!$T:$T,Data!E$17) -> 0 | F36: =SUMIFS(SummerProvRep!$K:$K,SummerProvRep!$A:$A,Data!$A$24,SummerProvRep!$O:$O,"Coventry",SummerProvRep!$T:$T,Data!F$17) -> 0 | G36: =SUMIFS(SummerProvRep!$K:$K,SummerProvRep!$A:$A,Data!$A$24,SummerProvRep!$O:$O,"Coventry",SummerProvRep!$T:$T,Data!G$17) -> 192 | H36: =SUMIFS(SummerProvRep!$K:$K,SummerProvRep!$A:$A,Data!$A$24,SummerProvRep!$O:$O,"Coventry",SummerProvRep!$T:$T,Data!H$17) -> 192 | I36: =SUMIFS(SummerProvRep!$K:$K,SummerProvRep!$A:$A,Data!$A$24,SummerProvRep!$O:$O,"Coventry",SummerProvRep!$T:$T,Data!I$17) -> 0 | J36: =SUMIFS(SummerProvRep!$K:$K,SummerProvRep!$A:$A,Data!$A$24,SummerProvRep!$O:$O,"Coventry",SummerProvRep!$T:$T,Data!J$17) -> 0 | K36: =SUMIFS(SummerProvRep!$K:$K,SummerProvRep!$A:$A,Data!$A$24,SummerProvRep!$O:$O,"Coventry",SummerProvRep!$T:$T,Data!K$17) -> 7758 | L36: =SUMIFS(SummerProvRep!$K:$K,SummerProvRep!$A:$A,Data!$A$24,SummerProvRep!$O:$O,"Coventry",SummerProvRep!$T:$T,Data!L$17) -> 0 | M36: =SUMIFS(SummerProvRep!$K:$K,SummerProvRep!$A:$A,Data!$A$24,SummerProvRep!$O:$O,"Coventry",SummerProvRep!$T:$T,Data!M$17) -> 391 | N36: =SUMIFS(SummerProvRep!$K:$K,SummerProvRep!$A:$A,Data!$A$24,SummerProvRep!$O:$O,"Coventry",SummerProvRep!$T:$T,Data!N$17) -> 0 | O36: =SUMIFS(SummerProvRep!$K:$K,SummerProvRep!$A:$A,Data!$A$24,SummerProvRep!$O:$O,"Coventry",SummerProvRep!$T:$T,Data!O$17) -> 440 | P36: =SUMIFS(SummerProvRep!$K:$K,SummerProvRep!$A:$A,Data!$A$24,SummerProvRep!$O:$O,"Coventry",SummerProvRep!$T:$T,Data!P$17) -> 0 | Q36: =SUMIFS(SummerProvRep!$K:$K,SummerProvRep!$A:$A,Data!$A$24,SummerProvRep!$O:$O,"Coventry",SummerProvRep!$T:$T,Data!Q$17) -> 767 | R36: =SUMIFS(SummerProvRep!$K:$K,SummerProvRep!$A:$A,Data!$A$24,SummerProvRep!$O:$O,"Coventry",SummerProvRep!$T:$T,Data!R$17) -> 0 | S36: =SUMIFS(SummerProvRep!$K:$K,SummerProvRep!$A:$A,Data!$A$24,SummerProvRep!$O:$O,"Coventry",SummerProvRep!$T:$T,Data!S$17) -> 0 | T36: =SUMIFS(SummerProvRep!$K:$K,SummerProvRep!$A:$A,Data!$A$24,SummerProvRep!$O:$O,"Coventry",SummerProvRep!$T:$T,Data!T$17) -> 0 | U36: =SUMIFS(SummerProvRep!$K:$K,SummerProvRep!$A:$A,Data!$A$24,SummerProvRep!$O:$O,"Coventry",SummerProvRep!$T:$T,Data!U$17) -> 0 | V36: =SUMIFS(SummerProvRep!$K:$K,SummerProvRep!$A:$A,Data!$A$24,SummerProvRep!$O:$O,"Coventry",SummerProvRep!$T:$T,Data!V$17) -> 0 | W36: 152.1875 | X36: 581689.9398 | Y36: 0 | Z36: =SUMIFS(SummerProvRep!$K:$K,SummerProvRep!$A:$A,Data!$A$24,SummerProvRep!$O:$O,"<>Coventry",SummerProvRep!$T:$T,Data!Z$17) -> 0 | AA36: =SUMIFS(SummerProvRep!$K:$K,SummerProvRep!$A:$A,Data!$A$24,SummerProvRep!$O:$O,"<>Coventry",SummerProvRep!$T:$T,Data!AA$17) -> 0 | AB36: =SUMIFS(SummerProvRep!$K:$K,SummerProvRep!$A:$A,Data!$A$24,SummerProvRep!$O:$O,"<>Coventry",SummerProvRep!$T:$T,Data!AB$17) -> 0 | AC36: =SUMIFS(SummerProvRep!$K:$K,SummerProvRep!$A:$A,Data!$A$24,SummerProvRep!$O:$O,"<>Coventry",SummerProvRep!$T:$T,Data!AC$17) -> 0 | AD36: =SUMIFS(SummerProvRep!$K:$K,SummerProvRep!$A:$A,Data!$A$24,SummerProvRep!$O:$O,"<>Coventry",SummerProvRep!$T:$T,Data!AD$17) -> 0 | AE36: =SUMIFS(SummerProvRep!$K:$K,SummerProvRep!$A:$A,Data!$A$24,SummerProvRep!$O:$O,"<>Coventry",SummerProvRep!$T:$T,Data!AE$17) -> 0 | AF36: =SUMIFS(SummerProvRep!$K:$K,SummerProvRep!$A:$A,Data!$A$24,SummerProvRep!$O:$O,"<>Coventry",SummerProvRep!$T:$T,Data!AF$17) -> 128 | AG36: =SUMIFS(SummerProvRep!$K:$K,SummerProvRep!$A:$A,Data!$A$24,SummerProvRep!$O:$O,"<>Coventry",SummerProvRep!$T:$T,Data!AG$17) -> 0 | AH36: =SUMIFS(SummerProvRep!$K:$K,SummerProvRep!$A:$A,Data!$A$24,SummerProvRep!$O:$O,"<>Coventry",SummerProvRep!$T:$T,Data!AH$17) -> 0 | AI36: =SUMIFS(SummerProvRep!$K:$K,SummerProvRep!$A:$A,Data!$A$24,SummerProvRep!$O:$O,"<>Coventry",SummerProvRep!$T:$T,Data!AI$17) -> 0 | AJ36: =SUMIFS(SummerProvRep!$K:$K,SummerProvRep!$A:$A,Data!$A$24,SummerProvRep!$O:$O,"<>Coventry",SummerProvRep!$T:$T,Data!AJ$17) -> 0 | AK36: =SUMIFS(SummerProvRep!$K:$K,SummerProvRep!$A:$A,Data!$A$24,SummerProvRep!$O:$O,"<>Coventry",SummerProvRep!$T:$T,Data!AK$17) -> 0 | AL36: =SUMIFS(SummerProvRep!$K:$K,SummerProvRep!$A:$A,Data!$A$24,SummerProvRep!$O:$O,"<>Coventry",SummerProvRep!$T:$T,Data!AL$17) -> 0 | AM36: =SUMIFS(SummerProvRep!$K:$K,SummerProvRep!$A:$A,Data!$A$24,SummerProvRep!$O:$O,"<>Coventry",SummerProvRep!$T:$T,Data!AM$17) -> 0 | AN36: =SUMIFS(SummerProvRep!$K:$K,SummerProvRep!$A:$A,Data!$A$24,SummerProvRep!$O:$O,"<>Coventry",SummerProvRep!$T:$T,Data!AN$17) -> 0 | AO36: =SUMIFS(SummerProvRep!$K:$K,SummerProvRep!$A:$A,Data!$A$24,SummerProvRep!$O:$O,"<>Coventry",SummerProvRep!$T:$T,Data!AO$17) -> 0 | AP36: =SUMIFS(SummerProvRep!$K:$K,SummerProvRep!$A:$A,Data!$A$24,SummerProvRep!$O:$O,"<>Coventry",SummerProvRep!$T:$T,Data!AP$17) -> 0 | AQ36: =SUMIFS(SummerProvRep!$K:$K,SummerProvRep!$A:$A,Data!$A$24,SummerProvRep!$O:$O,"<>Coventry",SummerProvRep!$T:$T,Data!AQ$17) -> 0 | AR36: 2 | AS36: 6915.231384 | AT36: 588605.1712 | AU36: 154.1875 | AV36: =AU36-AW36 -> -0.8125 | AW36: 155 | AX36: =[5]Data!$AU24 -> 147.3768116 | AY36: 140 | BA36: 11065.11193 | BC36: 3822.192623
A37: 5 | B37: Tiverton | C37: 51.54639175 | D37: 0 | E37: =SUMIFS(SummerProvRep!$K:$K,SummerProvRep!$A:$A,Data!$A$25,SummerProvRep!$O:$O,"Coventry",SummerProvRep!$T:$T,Data!E$17) -> 0 | F37: =SUMIFS(SummerProvRep!$K:$K,SummerProvRep!$A:$A,Data!$A$25,SummerProvRep!$O:$O,"Coventry",SummerProvRep!$T:$T,Data!F$17) -> 0 | G37: =SUMIFS(SummerProvRep!$K:$K,SummerProvRep!$A:$A,Data!$A$25,SummerProvRep!$O:$O,"Coventry",SummerProvRep!$T:$T,Data!G$17) -> 0 | H37: =SUMIFS(SummerProvRep!$K:$K,SummerProvRep!$A:$A,Data!$A$25,SummerProvRep!$O:$O,"Coventry",SummerProvRep!$T:$T,Data!H$17) -> 0 | I37: =SUMIFS(SummerProvRep!$K:$K,SummerProvRep!$A:$A,Data!$A$25,SummerProvRep!$O:$O,"Coventry",SummerProvRep!$T:$T,Data!I$17) -> 0 | J37: =SUMIFS(SummerProvRep!$K:$K,SummerProvRep!$A:$A,Data!$A$25,SummerProvRep!$O:$O,"Coventry",SummerProvRep!$T:$T,Data!J$17) -> 0 | K37: =SUMIFS(SummerProvRep!$K:$K,SummerProvRep!$A:$A,Data!$A$25,SummerProvRep!$O:$O,"Coventry",SummerProvRep!$T:$T,Data!K$17) -> 4948 | L37: =SUMIFS(SummerProvRep!$K:$K,SummerProvRep!$A:$A,Data!$A$25,SummerProvRep!$O:$O,"Coventry",SummerProvRep!$T:$T,Data!L$17) -> 704 | M37: =SUMIFS(SummerProvRep!$K:$K,SummerProvRep!$A:$A,Data!$A$25,SummerProvRep!$O:$O,"Coventry",SummerProvRep!$T:$T,Data!M$17) -> 0 | N37: =SUMIFS(SummerProvRep!$K:$K,SummerProvRep!$A:$A,Data!$A$25,SummerProvRep!$O:$O,"Coventry",SummerProvRep!$T:$T,Data!N$17) -> 320 | O37: =SUMIFS(SummerProvRep!$K:$K,SummerProvRep!$A:$A,Data!$A$25,SummerProvRep!$O:$O,"Coventry",SummerProvRep!$T:$T,Data!O$17) -> 392 | P37: =SUMIFS(SummerProvRep!$K:$K,SummerProvRep!$A:$A,Data!$A$25,SummerProvRep!$O:$O,"Coventry",SummerProvRep!$T:$T,Data!P$17) -> 0 | Q37: =SUMIFS(SummerProvRep!$K:$K,SummerProvRep!$A:$A,Data!$A$25,SummerProvRep!$O:$O,"Coventry",SummerProvRep!$T:$T,Data!Q$17) -> 1067 | R37: =SUMIFS(SummerProvRep!$K:$K,SummerProvRep!$A:$A,Data!$A$25,SummerProvRep!$O:$O,"Coventry",SummerProvRep!$T:$T,Data!R$17) -> 448 | S37: =SUMIFS(SummerProvRep!$K:$K,SummerProvRep!$A:$A,Data!$A$25,SummerProvRep!$O:$O,"Coventry",SummerProvRep!$T:$T,Data!S$17) -> 0 | T37: =SUMIFS(SummerProvRep!$K:$K,SummerProvRep!$A:$A,Data!$A$25,SummerProvRep!$O:$O,"Coventry",SummerProvRep!$T:$T,Data!T$17) -> 384 | U37: =SUMIFS(SummerProvRep!$K:$K,SummerProvRep!$A:$A,Data!$A$25,SummerProvRep!$O:$O,"Coventry",SummerProvRep!$T:$T,Data!U$17) -> 57 | V37: =SUMIFS(SummerProvRep!$K:$K,SummerProvRep!$A:$A,Data!$A$25,SummerProvRep!$O:$O,"Coventry",SummerProvRep!$T:$T,Data!V$17) -> 0 | W37: 130 | X37: 554806.5301 | Y37: 0 | Z37: =SUMIFS(SummerProvRep!$K:$K,SummerProvRep!$A:$A,Data!$A$25,SummerProvRep!$O:$O,"<>Coventry",SummerProvRep!$T:$T,Data!Z$17) -> 0 | AA37: =SUMIFS(SummerProvRep!$K:$K,SummerProvRep!$A:$A,Data!$A$25,SummerProvRep!$O:$O,"<>Coventry",SummerProvRep!$T:$T,Data!AA$17) -> 0 | AB37: =SUMIFS(SummerProvRep!$K:$K,SummerProvRep!$A:$A,Data!$A$25,SummerProvRep!$O:$O,"<>Coventry",SummerProvRep!$T:$T,Data!AB$17) -> 0 | AC37: =SUMIFS(SummerProvRep!$K:$K,SummerProvRep!$A:$A,Data!$A$25,SummerProvRep!$O:$O,"<>Coventry",SummerProvRep!$T:$T,Data!AC$17) -> 0 | AD37: =SUMIFS(SummerProvRep!$K:$K,SummerProvRep!$A:$A,Data!$A$25,SummerProvRep!$O:$O,"<>Coventry",SummerProvRep!$T:$T,Data!AD$17) -> 0 | AE37: =SUMIFS(SummerProvRep!$K:$K,SummerProvRep!$A:$A,Data!$A$25,SummerProvRep!$O:$O,"<>Coventry",SummerProvRep!$T:$T,Data!AE$17) -> 0 | AF37: =SUMIFS(SummerProvRep!$K:$K,SummerProvRep!$A:$A,Data!$A$25,SummerProvRep!$O:$O,"<>Coventry",SummerProvRep!$T:$T,Data!AF$17) -> 0 | AG37: =SUMIFS(SummerProvRep!$K:$K,SummerProvRep!$A:$A,Data!$A$25,SummerProvRep!$O:$O,"<>Coventry",SummerProvRep!$T:$T,Data!AG$17) -> 0 | AH37: =SUMIFS(SummerProvRep!$K:$K,SummerProvRep!$A:$A,Data!$A$25,SummerProvRep!$O:$O,"<>Coventry",SummerProvRep!$T:$T,Data!AH$17) -> 0 | AI37: =SUMIFS(SummerProvRep!$K:$K,SummerProvRep!$A:$A,Data!$A$25,SummerProvRep!$O:$O,"<>Coventry",SummerProvRep!$T:$T,Data!AI$17) -> 0 | AJ37: =SUMIFS(SummerProvRep!$K:$K,SummerProvRep!$A:$A,Data!$A$25,SummerProvRep!$O:$O,"<>Coventry",SummerProvRep!$T:$T,Data!AJ$17) -> 0 | AK37: =SUMIFS(SummerProvRep!$K:$K,SummerProvRep!$A:$A,Data!$A$25,SummerProvRep!$O:$O,"<>Coventry",SummerProvRep!$T:$T,Data!AK$17) -> 0 | AL37: =SUMIFS(SummerProvRep!$K:$K,SummerProvRep!$A:$A,Data!$A$25,SummerProvRep!$O:$O,"<>Coventry",SummerProvRep!$T:$T,Data!AL$17) -> 64 | AM37: =SUMIFS(SummerProvRep!$K:$K,SummerProvRep!$A:$A,Data!$A$25,SummerProvRep!$O:$O,"<>Coventry",SummerProvRep!$T:$T,Data!AM$17) -> 0 | AN37: =SUMIFS(SummerProvRep!$K:$K,SummerProvRep!$A:$A,Data!$A$25,SummerProvRep!$O:$O,"<>Coventry",SummerProvRep!$T:$T,Data!AN$17) -> 0 | AO37: =SUMIFS(SummerProvRep!$K:$K,SummerProvRep!$A:$A,Data!$A$25,SummerProvRep!$O:$O,"<>Coventry",SummerProvRep!$T:$T,Data!AO$17) -> 0 | AP37: =SUMIFS(SummerProvRep!$K:$K,SummerProvRep!$A:$A,Data!$A$25,SummerProvRep!$O:$O,"<>Coventry",SummerProvRep!$T:$T,Data!AP$17) -> 0 | AQ37: =SUMIFS(SummerProvRep!$K:$K,SummerProvRep!$A:$A,Data!$A$25,SummerProvRep!$O:$O,"<>Coventry",SummerProvRep!$T:$T,Data!AQ$17) -> 0 | AR37: 1 | AS37: 5618.626887 | AT37: 560425.157 | AU37: 131 | AV37: -2 | AW37: 133 | AX37: =[5]Data!$AU25 -> 120 | AY37: 121 | BA37: 12400.15836 | BC37: 4267.742539
A38: 6 | B38: Baginton Fields | C38: 51.54639175 | D38: 0 | E38: =SUMIFS(SummerProvRep!$K:$K,SummerProvRep!$A:$A,Data!$A$26,SummerProvRep!$O:$O,"Coventry",SummerProvRep!$T:$T,Data!E$17) -> 0 | F38: =SUMIFS(SummerProvRep!$K:$K,SummerProvRep!$A:$A,Data!$A$26,SummerProvRep!$O:$O,"Coventry",SummerProvRep!$T:$T,Data!F$17) -> 0 | G38: =SUMIFS(SummerProvRep!$K:$K,SummerProvRep!$A:$A,Data!$A$26,SummerProvRep!$O:$O,"Coventry",SummerProvRep!$T:$T,Data!G$17) -> 0 | H38: =SUMIFS(SummerProvRep!$K:$K,SummerProvRep!$A:$A,Data!$A$26,SummerProvRep!$O:$O,"Coventry",SummerProvRep!$T:$T,Data!H$17) -> 0 | I38: =SUMIFS(SummerProvRep!$K:$K,SummerProvRep!$A:$A,Data!$A$26,SummerProvRep!$O:$O,"Coventry",SummerProvRep!$T:$T,Data!I$17) -> 0 | J38: =SUMIFS(SummerProvRep!$K:$K,SummerProvRep!$A:$A,Data!$A$26,SummerProvRep!$O:$O,"Coventry",SummerProvRep!$T:$T,Data!J$17) -> 0 | K38: =SUMIFS(SummerProvRep!$K:$K,SummerProvRep!$A:$A,Data!$A$26,SummerProvRep!$O:$O,"Coventry",SummerProvRep!$T:$T,Data!K$17) -> 1728 | L38: =SUMIFS(SummerProvRep!$K:$K,SummerProvRep!$A:$A,Data!$A$26,SummerProvRep!$O:$O,"Coventry",SummerProvRep!$T:$T,Data!L$17) -> 2366 | M38: =SUMIFS(SummerProvRep!$K:$K,SummerProvRep!$A:$A,Data!$A$26,SummerProvRep!$O:$O,"Coventry",SummerProvRep!$T:$T,Data!M$17) -> 0 | N38: =SUMIFS(SummerProvRep!$K:$K,SummerProvRep!$A:$A,Data!$A$26,SummerProvRep!$O:$O,"Coventry",SummerProvRep!$T:$T,Data!N$17) -> 128 | O38: =SUMIFS(SummerProvRep!$K:$K,SummerProvRep!$A:$A,Data!$A$26,SummerProvRep!$O:$O,"Coventry",SummerProvRep!$T:$T,Data!O$17) -> 778 | P38: =SUMIFS(SummerProvRep!$K:$K,SummerProvRep!$A:$A,Data!$A$26,SummerProvRep!$O:$O,"Coventry",SummerProvRep!$T:$T,Data!P$17) -> 0 | Q38: =SUMIFS(SummerProvRep!$K:$K,SummerProvRep!$A:$A,Data!$A$26,SummerProvRep!$O:$O,"Coventry",SummerProvRep!$T:$T,Data!Q$17) -> 1821 | R38: =SUMIFS(SummerProvRep!$K:$K,SummerProvRep!$A:$A,Data!$A$26,SummerProvRep!$O:$O,"Coventry",SummerProvRep!$T:$T,Data!R$17) -> 768 | S38: =SUMIFS(SummerProvRep!$K:$K,SummerProvRep!$A:$A,Data!$A$26,SummerProvRep!$O:$O,"Coventry",SummerProvRep!$T:$T,Data!S$17) -> 0 | T38: =SUMIFS(SummerProvRep!$K:$K,SummerProvRep!$A:$A,Data!$A$26,SummerProvRep!$O:$O,"Coventry",SummerProvRep!$T:$T,Data!T$17) -> 128 | U38: =SUMIFS(SummerProvRep!$K:$K,SummerProvRep!$A:$A,Data!$A$26,SummerProvRep!$O:$O,"Coventry",SummerProvRep!$T:$T,Data!U$17) -> 64 | V38: =SUMIFS(SummerProvRep!$K:$K,SummerProvRep!$A:$A,Data!$A$26,SummerProvRep!$O:$O,"Coventry",SummerProvRep!$T:$T,Data!V$17) -> 0 | W38: 121.578125 | X38: 577336.9468 | Y38: 0 | Z38: =SUMIFS(SummerProvRep!$K:$K,SummerProvRep!$A:$A,Data!$A$26,SummerProvRep!$O:$O,"<>Coventry",SummerProvRep!$T:$T,Data!Z$17) -> 0 | AA38: =SUMIFS(SummerProvRep!$K:$K,SummerProvRep!$A:$A,Data!$A$26,SummerProvRep!$O:$O,"<>Coventry",SummerProvRep!$T:$T,Data!AA$17) -> 0 | AB38: =SUMIFS(SummerProvRep!$K:$K,SummerProvRep!$A:$A,Data!$A$26,SummerProvRep!$O:$O,"<>Coventry",SummerProvRep!$T:$T,Data!AB$17) -> 0 | AC38: =SUMIFS(SummerProvRep!$K:$K,SummerProvRep!$A:$A,Data!$A$26,SummerProvRep!$O:$O,"<>Coventry",SummerProvRep!$T:$T,Data!AC$17) -> 0 | AD38: =SUMIFS(SummerProvRep!$K:$K,SummerProvRep!$A:$A,Data!$A$26,SummerProvRep!$O:$O,"<>Coventry",SummerProvRep!$T:$T,Data!AD$17) -> 0 | AE38: =SUMIFS(SummerProvRep!$K:$K,SummerProvRep!$A:$A,Data!$A$26,SummerProvRep!$O:$O,"<>Coventry",SummerProvRep!$T:$T,Data!AE$17) -> 0 | AF38: =SUMIFS(SummerProvRep!$K:$K,SummerProvRep!$A:$A,Data!$A$26,SummerProvRep!$O:$O,"<>Coventry",SummerProvRep!$T:$T,Data!AF$17) -> 0 | AG38: =SUMIFS(SummerProvRep!$K:$K,SummerProvRep!$A:$A,Data!$A$26,SummerProvRep!$O:$O,"<>Coventry",SummerProvRep!$T:$T,Data!AG$17) -> 128 | AH38: =SUMIFS(SummerProvRep!$K:$K,SummerProvRep!$A:$A,Data!$A$26,SummerProvRep!$O:$O,"<>Coventry",SummerProvRep!$T:$T,Data!AH$17) -> 0 | AI38: =SUMIFS(SummerProvRep!$K:$K,SummerProvRep!$A:$A,Data!$A$26,SummerProvRep!$O:$O,"<>Coventry",SummerProvRep!$T:$T,Data!AI$17) -> 0 | AJ38: =SUMIFS(SummerProvRep!$K:$K,SummerProvRep!$A:$A,Data!$A$26,SummerProvRep!$O:$O,"<>Coventry",SummerProvRep!$T:$T,Data!AJ$17) -> 0 | AK38: =SUMIFS(SummerProvRep!$K:$K,SummerProvRep!$A:$A,Data!$A$26,SummerProvRep!$O:$O,"<>Coventry",SummerProvRep!$T:$T,Data!AK$17) -> 0 | AL38: =SUMIFS(SummerProvRep!$K:$K,SummerProvRep!$A:$A,Data!$A$26,SummerProvRep!$O:$O,"<>Coventry",SummerProvRep!$T:$T,Data!AL$17) -> 0 | AM38: =SUMIFS(SummerProvRep!$K:$K,SummerProvRep!$A:$A,Data!$A$26,SummerProvRep!$O:$O,"<>Coventry",SummerProvRep!$T:$T,Data!AM$17) -> 0 | AN38: =SUMIFS(SummerProvRep!$K:$K,SummerProvRep!$A:$A,Data!$A$26,SummerProvRep!$O:$O,"<>Coventry",SummerProvRep!$T:$T,Data!AN$17) -> 0 | AO38: =SUMIFS(SummerProvRep!$K:$K,SummerProvRep!$A:$A,Data!$A$26,SummerProvRep!$O:$O,"<>Coventry",SummerProvRep!$T:$T,Data!AO$17) -> 0 | AP38: =SUMIFS(SummerProvRep!$K:$K,SummerProvRep!$A:$A,Data!$A$26,SummerProvRep!$O:$O,"<>Coventry",SummerProvRep!$T:$T,Data!AP$17) -> 0 | AQ38: =SUMIFS(SummerProvRep!$K:$K,SummerProvRep!$A:$A,Data!$A$26,SummerProvRep!$O:$O,"<>Coventry",SummerProvRep!$T:$T,Data!AQ$17) -> 0 | AR38: 2 | AS38: 6396.592546 | AT38: 583733.5393 | AU38: 123.578125 | AV38: -2.421875 | AW38: 126 | AX38: =[5]Data!$AU26 -> 123.0289855 | AY38: 126 | BA38: 13691.59205 | BC38: 4748.69099
A39: 7 | B39: Sherbourne Fields | C39: 51.54639175 | D39: 0 | E39: =SUMIFS(SummerProvRep!$K:$K,SummerProvRep!$A:$A,Data!$A$27,SummerProvRep!$O:$O,"Coventry",SummerProvRep!$T:$T,Data!E$17) -> 0 | F39: =SUMIFS(SummerProvRep!$K:$K,SummerProvRep!$A:$A,Data!$A$27,SummerProvRep!$O:$O,"Coventry",SummerProvRep!$T:$T,Data!F$17) -> 0 | G39: =SUMIFS(SummerProvRep!$K:$K,SummerProvRep!$A:$A,Data!$A$27,SummerProvRep!$O:$O,"Coventry",SummerProvRep!$T:$T,Data!G$17) -> 0 | H39: =SUMIFS(SummerProvRep!$K:$K,SummerProvRep!$A:$A,Data!$A$27,SummerProvRep!$O:$O,"Coventry",SummerProvRep!$T:$T,Data!H$17) -> 64 | I39: =SUMIFS(SummerProvRep!$K:$K,SummerProvRep!$A:$A,Data!$A$27,SummerProvRep!$O:$O,"Coventry",SummerProvRep!$T:$T,Data!I$17) -> 0 | J39: =SUMIFS(SummerProvRep!$K:$K,SummerProvRep!$A:$A,Data!$A$27,SummerProvRep!$O:$O,"Coventry",SummerProvRep!$T:$T,Data!J$17) -> 0 | K39: =SUMIFS(SummerProvRep!$K:$K,SummerProvRep!$A:$A,Data!$A$27,SummerProvRep!$O:$O,"Coventry",SummerProvRep!$T:$T,Data!K$17) -> 5568 | L39: =SUMIFS(SummerProvRep!$K:$K,SummerProvRep!$A:$A,Data!$A$27,SummerProvRep!$O:$O,"Coventry",SummerProvRep!$T:$T,Data!L$17) -> 3840 | M39: =SUMIFS(SummerProvRep!$K:$K,SummerProvRep!$A:$A,Data!$A$27,SummerProvRep!$O:$O,"Coventry",SummerProvRep!$T:$T,Data!M$17) -> 64 | N39: =SUMIFS(SummerProvRep!$K:$K,SummerProvRep!$A:$A,Data!$A$27,SummerProvRep!$O:$O,"Coventry",SummerProvRep!$T:$T,Data!N$17) -> 1856 | O39: =SUMIFS(SummerProvRep!$K:$K,SummerProvRep!$A:$A,Data!$A$27,SummerProvRep!$O:$O,"Coventry",SummerProvRep!$T:$T,Data!O$17) -> 192 | P39: =SUMIFS(SummerProvRep!$K:$K,SummerProvRep!$A:$A,Data!$A$27,SummerProvRep!$O:$O,"Coventry",SummerProvRep!$T:$T,Data!P$17) -> 0 | Q39: =SUMIFS(SummerProvRep!$K:$K,SummerProvRep!$A:$A,Data!$A$27,SummerProvRep!$O:$O,"Coventry",SummerProvRep!$T:$T,Data!Q$17) -> 1792 | R39: =SUMIFS(SummerProvRep!$K:$K,SummerProvRep!$A:$A,Data!$A$27,SummerProvRep!$O:$O,"Coventry",SummerProvRep!$T:$T,Data!R$17) -> 1664 | S39: =SUMIFS(SummerProvRep!$K:$K,SummerProvRep!$A:$A,Data!$A$27,SummerProvRep!$O:$O,"Coventry",SummerProvRep!$T:$T,Data!S$17) -> 0 | T39: =SUMIFS(SummerProvRep!$K:$K,SummerProvRep!$A:$A,Data!$A$27,SummerProvRep!$O:$O,"Coventry",SummerProvRep!$T:$T,Data!T$17) -> 1280 | U39: =SUMIFS(SummerProvRep!$K:$K,SummerProvRep!$A:$A,Data!$A$27,SummerProvRep!$O:$O,"Coventry",SummerProvRep!$T:$T,Data!U$17) -> 0 | V39: =SUMIFS(SummerProvRep!$K:$K,SummerProvRep!$A:$A,Data!$A$27,SummerProvRep!$O:$O,"Coventry",SummerProvRep!$T:$T,Data!V$17) -> 0 | W39: 255 | X39: 1046406.804 | Y39: 0 | Z39: =SUMIFS(SummerProvRep!$K:$K,SummerProvRep!$A:$A,Data!$A$27,SummerProvRep!$O:$O,"<>Coventry",SummerProvRep!$T:$T,Data!Z$17) -> 0 | AA39: =SUMIFS(SummerProvRep!$K:$K,SummerProvRep!$A:$A,Data!$A$27,SummerProvRep!$O:$O,"<>Coventry",SummerProvRep!$T:$T,Data!AA$17) -> 0 | AB39: =SUMIFS(SummerProvRep!$K:$K,SummerProvRep!$A:$A,Data!$A$27,SummerProvRep!$O:$O,"<>Coventry",SummerProvRep!$T:$T,Data!AB$17) -> 0 | AC39: =SUMIFS(SummerProvRep!$K:$K,SummerProvRep!$A:$A,Data!$A$27,SummerProvRep!$O:$O,"<>Coventry",SummerProvRep!$T:$T,Data!AC$17) -> 0 | AD39: =SUMIFS(SummerProvRep!$K:$K,SummerProvRep!$A:$A,Data!$A$27,SummerProvRep!$O:$O,"<>Coventry",SummerProvRep!$T:$T,Data!AD$17) -> 0 | AE39: =SUMIFS(SummerProvRep!$K:$K,SummerProvRep!$A:$A,Data!$A$27,SummerProvRep!$O:$O,"<>Coventry",SummerProvRep!$T:$T,Data!AE$17) -> 0 | AF39: =SUMIFS(SummerProvRep!$K:$K,SummerProvRep!$A:$A,Data!$A$27,SummerProvRep!$O:$O,"<>Coventry",SummerProvRep!$T:$T,Data!AF$17) -> 128 | AG39: =SUMIFS(SummerProvRep!$K:$K,SummerProvRep!$A:$A,Data!$A$27,SummerProvRep!$O:$O,"<>Coventry",SummerProvRep!$T:$T,Data!AG$17) -> 0 | AH39: =SUMIFS(SummerProvRep!$K:$K,SummerProvRep!$A:$A,Data!$A$27,SummerProvRep!$O:$O,"<>Coventry",SummerProvRep!$T:$T,Data!AH$17) -> 0 | AI39: =SUMIFS(SummerProvRep!$K:$K,SummerProvRep!$A:$A,Data!$A$27,SummerProvRep!$O:$O,"<>Coventry",SummerProvRep!$T:$T,Data!AI$17) -> 64 | AJ39: =SUMIFS(SummerProvRep!$K:$K,SummerProvRep!$A:$A,Data!$A$27,SummerProvRep!$O:$O,"<>Coventry",SummerProvRep!$T:$T,Data!AJ$17) -> 0 | AK39: =SUMIFS(SummerProvRep!$K:$K,SummerProvRep!$A:$A,Data!$A$27,SummerProvRep!$O:$O,"<>Coventry",SummerProvRep!$T:$T,Data!AK$17) -> 0 | AL39: =SUMIFS(SummerProvRep!$K:$K,SummerProvRep!$A:$A,Data!$A$27,SummerProvRep!$O:$O,"<>Coventry",SummerProvRep!$T:$T,Data!AL$17) -> 0 | AM39: =SUMIFS(SummerProvRep!$K:$K,SummerProvRep!$A:$A,Data!$A$27,SummerProvRep!$O:$O,"<>Coventry",SummerProvRep!$T:$T,Data!AM$17) -> 0 | AN39: =SUMIFS(SummerProvRep!$K:$K,SummerProvRep!$A:$A,Data!$A$27,SummerProvRep!$O:$O,"<>Coventry",SummerProvRep!$T:$T,Data!AN$17) -> 0 | AO39: =SUMIFS(SummerProvRep!$K:$K,SummerProvRep!$A:$A,Data!$A$27,SummerProvRep!$O:$O,"<>Coventry",SummerProvRep!$T:$T,Data!AO$17) -> 128 | AP39: =SUMIFS(SummerProvRep!$K:$K,SummerProvRep!$A:$A,Data!$A$27,SummerProvRep!$O:$O,"<>Coventry",SummerProvRep!$T:$T,Data!AP$17) -> 0 | AQ39: =SUMIFS(SummerProvRep!$K:$K,SummerProvRep!$A:$A,Data!$A$27,SummerProvRep!$O:$O,"<>Coventry",SummerProvRep!$T:$T,Data!AQ$17) -> 0 | AR39: 5 | AS39: 21610.09345 | AT39: 1068016.898 | AU39: 260 | AV39: 2 | AW39: 258 | AX39: =[5]Data!$AU27 -> 252 | AY39: 251 | BA39: 11906.54289 | BC39: 4103.556095
A40: 8 | B40: Woodfield | C40: =10000/$A$16 -> 51.54639175 | D40: 0 | E40: =SUMIFS(SummerProvRep!$K:$K,SummerProvRep!$A:$A,Data!$A$28,SummerProvRep!$O:$O,"Coventry",SummerProvRep!$T:$T,Data!E$17) -> 0 | F40: =SUMIFS(SummerProvRep!$K:$K,SummerProvRep!$A:$A,Data!$A$28,SummerProvRep!$O:$O,"Coventry",SummerProvRep!$T:$T,Data!F$17) -> 0 | G40: =SUMIFS(SummerProvRep!$K:$K,SummerProvRep!$A:$A,Data!$A$28,SummerProvRep!$O:$O,"Coventry",SummerProvRep!$T:$T,Data!G$17) -> 0 | H40: =SUMIFS(SummerProvRep!$K:$K,SummerProvRep!$A:$A,Data!$A$28,SummerProvRep!$O:$O,"Coventry",SummerProvRep!$T:$T,Data!H$17) -> 0 | I40: =SUMIFS(SummerProvRep!$K:$K,SummerProvRep!$A:$A,Data!$A$28,SummerProvRep!$O:$O,"Coventry",SummerProvRep!$T:$T,Data!I$17) -> 0 | J40: =SUMIFS(SummerProvRep!$K:$K,SummerProvRep!$A:$A,Data!$A$28,SummerProvRep!$O:$O,"Coventry",SummerProvRep!$T:$T,Data!J$17) -> 0 | K40: =SUMIFS(SummerProvRep!$K:$K,SummerProvRep!$A:$A,Data!$A$28,SummerProvRep!$O:$O,"Coventry",SummerProvRep!$T:$T,Data!K$17) -> 0 | L40: =SUMIFS(SummerProvRep!$K:$K,SummerProvRep!$A:$A,Data!$A$28,SummerProvRep!$O:$O,"Coventry",SummerProvRep!$T:$T,Data!L$17) -> 0 | M40: =SUMIFS(SummerProvRep!$K:$K,SummerProvRep!$A:$A,Data!$A$28,SummerProvRep!$O:$O,"Coventry",SummerProvRep!$T:$T,Data!M$17) -> 26 | N40: =SUMIFS(SummerProvRep!$K:$K,SummerProvRep!$A:$A,Data!$A$28,SummerProvRep!$O:$O,"Coventry",SummerProvRep!$T:$T,Data!N$17) -> 0 | O40: =SUMIFS(SummerProvRep!$K:$K,SummerProvRep!$A:$A,Data!$A$28,SummerProvRep!$O:$O,"Coventry",SummerProvRep!$T:$T,Data!O$17) -> 192 | P40: =SUMIFS(SummerProvRep!$K:$K,SummerProvRep!$A:$A,Data!$A$28,SummerProvRep!$O:$O,"Coventry",SummerProvRep!$T:$T,Data!P$17) -> 0 | Q40: =SUMIFS(SummerProvRep!$K:$K,SummerProvRep!$A:$A,Data!$A$28,SummerProvRep!$O:$O,"Coventry",SummerProvRep!$T:$T,Data!Q$17) -> 9779 | R40: =SUMIFS(SummerProvRep!$K:$K,SummerProvRep!$A:$A,Data!$A$28,SummerProvRep!$O:$O,"Coventry",SummerProvRep!$T:$T,Data!R$17) -> 0 | S40: =SUMIFS(SummerProvRep!$K:$K,SummerProvRep!$A:$A,Data!$A$28,SummerProvRep!$O:$O,"Coventry",SummerProvRep!$T:$T,Data!S$17) -> 0 | T40: =SUMIFS(SummerProvRep!$K:$K,SummerProvRep!$A:$A,Data!$A$28,SummerProvRep!$O:$O,"Coventry",SummerProvRep!$T:$T,Data!T$17) -> 0 | U40: =SUMIFS(SummerProvRep!$K:$K,SummerProvRep!$A:$A,Data!$A$28,SummerProvRep!$O:$O,"Coventry",SummerProvRep!$T:$T,Data!U$17) -> 66 | V40: =SUMIFS(SummerProvRep!$K:$K,SummerProvRep!$A:$A,Data!$A$28,SummerProvRep!$O:$O,"Coventry",SummerProvRep!$T:$T,Data!V$17) -> 0 | W40: 157.234375 | X40: 904831.5706 | Y40: 0 | Z40: =SUMIFS(SummerProvRep!$K:$K,SummerProvRep!$A:$A,Data!$A$28,SummerProvRep!$O:$O,"<>Coventry",SummerProvRep!$T:$T,Data!Z$17) -> 0 | AA40: =SUMIFS(SummerProvRep!$K:$K,SummerProvRep!$A:$A,Data!$A$28,SummerProvRep!$O:$O,"<>Coventry",SummerProvRep!$T:$T,Data!AA$17) -> 0 | AB40: =SUMIFS(SummerProvRep!$K:$K,SummerProvRep!$A:$A,Data!$A$28,SummerProvRep!$O:$O,"<>Coventry",SummerProvRep!$T:$T,Data!AB$17) -> 0 | AC40: =SUMIFS(SummerProvRep!$K:$K,SummerProvRep!$A:$A,Data!$A$28,SummerProvRep!$O:$O,"<>Coventry",SummerProvRep!$T:$T,Data!AC$17) -> 0 | AD40: =SUMIFS(SummerProvRep!$K:$K,SummerProvRep!$A:$A,Data!$A$28,SummerProvRep!$O:$O,"<>Coventry",SummerProvRep!$T:$T,Data!AD$17) -> 0 | AE40: =SUMIFS(SummerProvRep!$K:$K,SummerProvRep!$A:$A,Data!$A$28,SummerProvRep!$O:$O,"<>Coventry",SummerProvRep!$T:$T,Data!AE$17) -> 0 | AF40: =SUMIFS(SummerProvRep!$K:$K,SummerProvRep!$A:$A,Data!$A$28,SummerProvRep!$O:$O,"<>Coventry",SummerProvRep!$T:$T,Data!AF$17) -> 0 | AG40: =SUMIFS(SummerProvRep!$K:$K,SummerProvRep!$A:$A,Data!$A$28,SummerProvRep!$O:$O,"<>Coventry",SummerProvRep!$T:$T,Data!AG$17) -> 0 | AH40: =SUMIFS(SummerProvRep!$K:$K,SummerProvRep!$A:$A,Data!$A$28,SummerProvRep!$O:$O,"<>Coventry",SummerProvRep!$T:$T,Data!AH$17) -> 0 | AI40: =SUMIFS(SummerProvRep!$K:$K,SummerProvRep!$A:$A,Data!$A$28,SummerProvRep!$O:$O,"<>Coventry",SummerProvRep!$T:$T,Data!AI$17) -> 0 | AJ40: =SUMIFS(SummerProvRep!$K:$K,SummerProvRep!$A:$A,Data!$A$28,SummerProvRep!$O:$O,"<>Coventry",SummerProvRep!$T:$T,Data!AJ$17) -> 0 | AK40: =SUMIFS(SummerProvRep!$K:$K,SummerProvRep!$A:$A,Data!$A$28,SummerProvRep!$O:$O,"<>Coventry",SummerProvRep!$T:$T,Data!AK$17) -> 0 | AL40: =SUMIFS(SummerProvRep!$K:$K,SummerProvRep!$A:$A,Data!$A$28,SummerProvRep!$O:$O,"<>Coventry",SummerProvRep!$T:$T,Data!AL$17) -> 64 | AM40: =SUMIFS(SummerProvRep!$K:$K,SummerProvRep!$A:$A,Data!$A$28,SummerProvRep!$O:$O,"<>Coventry",SummerProvRep!$T:$T,Data!AM$17) -> 0 | AN40: =SUMIFS(SummerProvRep!$K:$K,SummerProvRep!$A:$A,Data!$A$28,SummerProvRep!$O:$O,"<>Coventry",SummerProvRep!$T:$T,Data!AN$17) -> 0 | AO40: =SUMIFS(SummerProvRep!$K:$K,SummerProvRep!$A:$A,Data!$A$28,SummerProvRep!$O:$O,"<>Coventry",SummerProvRep!$T:$T,Data!AO$17) -> 0 | AP40: =SUMIFS(SummerProvRep!$K:$K,SummerProvRep!$A:$A,Data!$A$28,SummerProvRep!$O:$O,"<>Coventry",SummerProvRep!$T:$T,Data!AP$17) -> 0 | AQ40: =SUMIFS(SummerProvRep!$K:$K,SummerProvRep!$A:$A,Data!$A$28,SummerProvRep!$O:$O,"<>Coventry",SummerProvRep!$T:$T,Data!AQ$17) -> 0 | AR40: =SUM(Y40:AQ40)/$A$20 -> 1 | AS40: 5618.626887 | AT40: 910450.1975 | AU40: 158.234375 | AV40: =AU40-AW40 -> 3.234375 | AW40: 155 | AX40: =[5]Data!$AU28 -> 157.2173913 | AY40: 155 | BA40: 16677.70407 | BC40: 5754.667646
A41: 9 | B41: Coventry ELC | C41: =10000/$A$16 -> 51.54639175 | D41: 7680 | E41: =E29+BF29 -> 0 | F41: 0 | G41: 0 | H41: 0 | I41: 0 | J41: 0 | K41: 0 | L41: 0 | M41: 0 | N41: 0 | O41: 0 | P41: 0 | Q41: 0 | R41: 0 | S41: 0 | T41: 0 | U41: 0 | V41: 0 | W41: 120 | X41: =SUMPRODUCT(D41:V41,$V$12:$AN$12)/$A$16 -> 510575.502 | Y41: 0 | Z41: =Z29+BZ29 -> 0 | AA41: 0 | AB41: 0 | AC41: 0 | AD41: 0 | AE41: 0 | AF41: 0 | AG41: 0 | AH41: 0 | AI41: 0 | AJ41: 0 | AK41: 0 | AL41: 0 | AM41: 0 | AN41: 0 | AO41: 0 | AP41: 0 | AQ41: 0 | AR41: =SUM(Y41:AQ41)/$A$20 -> 0 | AS41: =SUMPRODUCT(Y41:AQ41,$V$12:$AN$12)/$A$16 -> 0 | AT41: 510575.502 | AU41: 120 | AV41: =AU41-AW41 -> 0 | AW41: 120 | AX41: =[5]Data!$AU29 -> 120 | AY41: 120 | BA41: 12332.74159 | BC41: 4254.79585
AS42: =SUM(AS33:AS41) -> 70708.24886 | AT42: =SUM(AT33:AT41) -> 6255964.088 | AU42: =SUM(AU33:AU41) -> 1416.0625
D44: Coventry pupils | Y44: Other LA Pupils
B45: Autumn Term 2025
A46: 75 | B46: School | BA46: 75
A47: 1 | B47: Castle Wood | C47: =10000/$A$16 -> 51.54639175 | D47: 0 | E47: =SUMIFS(AutumnProvRep!$K:$K,AutumnProvRep!$A:$A,Data!$A$21,AutumnProvRep!$O:$O,"Coventry",AutumnProvRep!$T:$T,Data!E$17)/$BA$46*$A$46 -> 0 | F47: =SUMIFS(AutumnProvRep!$K:$K,AutumnProvRep!$A:$A,Data!$A$21,AutumnProvRep!$O:$O,"Coventry",AutumnProvRep!$T:$T,Data!F$17)/$BA$46*$A$46 -> 0 | G47: =SUMIFS(AutumnProvRep!$K:$K,AutumnProvRep!$A:$A,Data!$A$21,AutumnProvRep!$O:$O,"Coventry",AutumnProvRep!$T:$T,Data!G$17)/$BA$46*$A$46 -> 0 | H47: =SUMIFS(AutumnProvRep!$K:$K,AutumnProvRep!$A:$A,Data!$A$21,AutumnProvRep!$O:$O,"Coventry",AutumnProvRep!$T:$T,Data!H$17)/$BA$46*$A$46 -> 0 | I47: =SUMIFS(AutumnProvRep!$K:$K,AutumnProvRep!$A:$A,Data!$A$21,AutumnProvRep!$O:$O,"Coventry",AutumnProvRep!$T:$T,Data!I$17)/$BA$46*$A$46 -> 0 | J47: =SUMIFS(AutumnProvRep!$K:$K,AutumnProvRep!$A:$A,Data!$A$21,AutumnProvRep!$O:$O,"Coventry",AutumnProvRep!$T:$T,Data!J$17)/$BA$46*$A$46 -> 75 | K47: =SUMIFS(AutumnProvRep!$K:$K,AutumnProvRep!$A:$A,Data!$A$21,AutumnProvRep!$O:$O,"Coventry",AutumnProvRep!$T:$T,Data!K$17)/$BA$46*$A$46 -> 6424 | L47: =SUMIFS(AutumnProvRep!$K:$K,AutumnProvRep!$A:$A,Data!$A$21,AutumnProvRep!$O:$O,"Coventry",AutumnProvRep!$T:$T,Data!L$17)/$BA$46*$A$46 -> 675 | M47: =SUMIFS(AutumnProvRep!$K:$K,AutumnProvRep!$A:$A,Data!$A$21,AutumnProvRep!$O:$O,"Coventry",AutumnProvRep!$T:$T,Data!M$17)/$BA$46*$A$46 -> 75 | N47: =SUMIFS(AutumnProvRep!$K:$K,AutumnProvRep!$A:$A,Data!$A$21,AutumnProvRep!$O:$O,"Coventry",AutumnProvRep!$T:$T,Data!N$17)/$BA$46*$A$46 -> 525 | O47: =SUMIFS(AutumnProvRep!$K:$K,AutumnProvRep!$A:$A,Data!$A$21,AutumnProvRep!$O:$O,"Coventry",AutumnProvRep!$T:$T,Data!O$17)/$BA$46*$A$46 -> 620 | P47: =SUMIFS(AutumnProvRep!$K:$K,AutumnProvRep!$A:$A,Data!$A$21,AutumnProvRep!$O:$O,"Coventry",AutumnProvRep!$T:$T,Data!P$17)/$BA$46*$A$46 -> 0 | Q47: =SUMIFS(AutumnProvRep!$K:$K,AutumnProvRep!$A:$A,Data!$A$21,AutumnProvRep!$O:$O,"Coventry",AutumnProvRep!$T:$T,Data!Q$17)/$BA$46*$A$46 -> 2579 | R47: =SUMIFS(AutumnProvRep!$K:$K,AutumnProvRep!$A:$A,Data!$A$21,AutumnProvRep!$O:$O,"Coventry",AutumnProvRep!$T:$T,Data!R$17)/$BA$46*$A$46 -> 525 | S47: =SUMIFS(AutumnProvRep!$K:$K,AutumnProvRep!$A:$A,Data!$A$21,AutumnProvRep!$O:$O,"Coventry",AutumnProvRep!$T:$T,Data!S$17)/$BA$46*$A$46 -> 0 | T47: =SUMIFS(AutumnProvRep!$K:$K,AutumnProvRep!$A:$A,Data!$A$21,AutumnProvRep!$O:$O,"Coventry",AutumnProvRep!$T:$T,Data!T$17)/$BA$46*$A$46 -> 450 | U47: =SUMIFS(AutumnProvRep!$K:$K,AutumnProvRep!$A:$A,Data!$A$21,AutumnProvRep!$O:$O,"Coventry",AutumnProvRep!$T:$T,Data!U$17)/$BA$46*$A$46 -> 211 | V47: =SUMIFS(AutumnProvRep!$K:$K,AutumnProvRep!$A:$A,Data!$A$21,AutumnProvRep!$O:$O,"Coventry",AutumnProvRep!$T:$T,Data!V$17)/$BA$46*$A$46 -> 0 | W47: =SUM(D47:V47)/$A$46 -> 162.12 | X47: =SUMPRODUCT(D47:V47,$V$6:$AN$6)/$A$16 -> 873103.1106 | Y47: 0 | Z47: =SUMIFS(AutumnProvRep!$K:$K,AutumnProvRep!$A:$A,Data!$A$21,AutumnProvRep!$O:$O,"<>Coventry",AutumnProvRep!$T:$T,Data!Z$17)/$BA$46*$A$46 -> 0 | AA47: =SUMIFS(AutumnProvRep!$K:$K,AutumnProvRep!$A:$A,Data!$A$21,AutumnProvRep!$O:$O,"<>Coventry",AutumnProvRep!$T:$T,Data!AA$17)/$BA$46*$A$46 -> 0 | AB47: =SUMIFS(AutumnProvRep!$K:$K,AutumnProvRep!$A:$A,Data!$A$21,AutumnProvRep!$O:$O,"<>Coventry",AutumnProvRep!$T:$T,Data!AB$17)/$BA$46*$A$46 -> 0 | AC47: =SUMIFS(AutumnProvRep!$K:$K,AutumnProvRep!$A:$A,Data!$A$21,AutumnProvRep!$O:$O,"<>Coventry",AutumnProvRep!$T:$T,Data!AC$17)/$BA$46*$A$46 -> 0 | AD47: =SUMIFS(AutumnProvRep!$K:$K,AutumnProvRep!$A:$A,Data!$A$21,AutumnProvRep!$O:$O,"<>Coventry",AutumnProvRep!$T:$T,Data!AD$17)/$BA$46*$A$46 -> 0 | AE47: =SUMIFS(AutumnProvRep!$K:$K,AutumnProvRep!$A:$A,Data!$A$21,AutumnProvRep!$O:$O,"<>Coventry",AutumnProvRep!$T:$T,Data!AE$17)/$BA$46*$A$46 -> 0 | AF47: =SUMIFS(AutumnProvRep!$K:$K,AutumnProvRep!$A:$A,Data!$A$21,AutumnProvRep!$O:$O,"<>Coventry",AutumnProvRep!$T:$T,Data!AF$17)/$BA$46*$A$46 -> 0 | AG47: =SUMIFS(AutumnProvRep!$K:$K,AutumnProvRep!$A:$A,Data!$A$21,AutumnProvRep!$O:$O,"<>Coventry",AutumnProvRep!$T:$T,Data!AG$17)/$BA$46*$A$46 -> 0 | AH47: =SUMIFS(AutumnProvRep!$K:$K,AutumnProvRep!$A:$A,Data!$A$21,AutumnProvRep!$O:$O,"<>Coventry",AutumnProvRep!$T:$T,Data!AH$17)/$BA$46*$A$46 -> 0 | AI47: =SUMIFS(AutumnProvRep!$K:$K,AutumnProvRep!$A:$A,Data!$A$21,AutumnProvRep!$O:$O,"<>Coventry",AutumnProvRep!$T:$T,Data!AI$17)/$BA$46*$A$46 -> 0 | AJ47: =SUMIFS(AutumnProvRep!$K:$K,AutumnProvRep!$A:$A,Data!$A$21,AutumnProvRep!$O:$O,"<>Coventry",AutumnProvRep!$T:$T,Data!AJ$17)/$BA$46*$A$46 -> 0 | AK47: =SUMIFS(AutumnProvRep!$K:$K,AutumnProvRep!$A:$A,Data!$A$21,AutumnProvRep!$O:$O,"<>Coventry",AutumnProvRep!$T:$T,Data!AK$17)/$BA$46*$A$46 -> 0 | AL47: =SUMIFS(AutumnProvRep!$K:$K,AutumnProvRep!$A:$A,Data!$A$21,AutumnProvRep!$O:$O,"<>Coventry",AutumnProvRep!$T:$T,Data!AL$17)/$BA$46*$A$46 -> 0 | AM47: =SUMIFS(AutumnProvRep!$K:$K,AutumnProvRep!$A:$A,Data!$A$21,AutumnProvRep!$O:$O,"<>Coventry",AutumnProvRep!$T:$T,Data!AM$17)/$BA$46*$A$46 -> 0 | AN47: =SUMIFS(AutumnProvRep!$K:$K,AutumnProvRep!$A:$A,Data!$A$21,AutumnProvRep!$O:$O,"<>Coventry",AutumnProvRep!$T:$T,Data!AN$17)/$BA$46*$A$46 -> 0 | AO47: =SUMIFS(AutumnProvRep!$K:$K,AutumnProvRep!$A:$A,Data!$A$21,AutumnProvRep!$O:$O,"<>Coventry",AutumnProvRep!$T:$T,Data!AO$17)/$BA$46*$A$46 -> 0 | AP47: =SUMIFS(AutumnProvRep!$K:$K,AutumnProvRep!$A:$A,Data!$A$21,AutumnProvRep!$O:$O,"<>Coventry",AutumnProvRep!$T:$T,Data!AP$17)/$BA$46*$A$46 -> 0 | AQ47: =SUMIFS(AutumnProvRep!$K:$K,AutumnProvRep!$A:$A,Data!$A$21,AutumnProvRep!$O:$O,"<>Coventry",AutumnProvRep!$T:$T,Data!AQ$17)/$BA$46*$A$46 -> 0 | AR47: =SUM(Y47:AQ47)/$A$46 -> 0 | AS47: =SUMPRODUCT(Y47:AQ47,$V$6:$AN$6)/$A$16 -> 0 | AT47: =X47+AS47 -> 873103.1106 | AU47: =AR47+W47 -> 162.12 | AV47: =AU47-AW47 -> -27.88 | AW47: =M4 -> 190 | AX47: =[5]Data!$AU35 -> 159.6842105 | AY47: =E4 -> 164 | BB47: =($M$4-$AU$47)*$A$46 -> 2091 | BD47: =AU47*$A$46 -> 12159 | BE47: =$BB$47/$BD$47*D47 -> 0 | BF47: 0 | BG47: 0 | BH47: 0 | BI47: 0 | BJ47: 0 | BK47: 12.89785344 | BL47: 1104.74414 | BM47: 116.080681 | BN47: 12.89785344 | BO47: 90.28497409 | BP47: 106.6222551 | BQ47: 0 | BR47: 443.514187 | BS47: 90.28497409 | BT47: 0 | BU47: 77.38712065 | BV47: 36.28596102 | BW47: 0 | BY47: =$BB$47/$BD$47*Y47 -> 0 | BZ47: 0 | CA47: 0 | CB47: 0 | CC47: 0 | CD47: 0 | CE47: 0 | CF47: 0 | CG47: 0 | CH47: 0 | CI47: 0 | CJ47: 0 | CK47: 0 | CL47: 0 | CM47: 0 | CN47: 0 | CO47: 0 | CP47: 0 | CQ47: 0
A48: 2 | B48: Kingsbury | C48: =10000/$A$16 -> 51.54639175 | D48: 0 | E48: =SUMIFS(AutumnProvRep!$K:$K,AutumnProvRep!$A:$A,Data!$A$22,AutumnProvRep!$O:$O,"Coventry",AutumnProvRep!$T:$T,Data!E$17)/$BA$46*$A$46 -> 0 | F48: =SUMIFS(AutumnProvRep!$K:$K,AutumnProvRep!$A:$A,Data!$A$22,AutumnProvRep!$O:$O,"Coventry",AutumnProvRep!$T:$T,Data!F$17)/$BA$46*$A$46 -> 0 | G48: =SUMIFS(AutumnProvRep!$K:$K,AutumnProvRep!$A:$A,Data!$A$22,AutumnProvRep!$O:$O,"Coventry",AutumnProvRep!$T:$T,Data!G$17)/$BA$46*$A$46 -> 0 | H48: =SUMIFS(AutumnProvRep!$K:$K,AutumnProvRep!$A:$A,Data!$A$22,AutumnProvRep!$O:$O,"Coventry",AutumnProvRep!$T:$T,Data!H$17)/$BA$46*$A$46 -> 0 | I48: =SUMIFS(AutumnProvRep!$K:$K,AutumnProvRep!$A:$A,Data!$A$22,AutumnProvRep!$O:$O,"Coventry",AutumnProvRep!$T:$T,Data!I$17)/$BA$46*$A$46 -> 0 | J48: =SUMIFS(AutumnProvRep!$K:$K,AutumnProvRep!$A:$A,Data!$A$22,AutumnProvRep!$O:$O,"Coventry",AutumnProvRep!$T:$T,Data!J$17)/$BA$46*$A$46 -> 0 | K48: =SUMIFS(AutumnProvRep!$K:$K,AutumnProvRep!$A:$A,Data!$A$22,AutumnProvRep!$O:$O,"Coventry",AutumnProvRep!$T:$T,Data!K$17)/$BA$46*$A$46 -> 4669 | L48: =SUMIFS(AutumnProvRep!$K:$K,AutumnProvRep!$A:$A,Data!$A$22,AutumnProvRep!$O:$O,"Coventry",AutumnProvRep!$T:$T,Data!L$17)/$BA$46*$A$46 -> 176 | M48: =SUMIFS(AutumnProvRep!$K:$K,AutumnProvRep!$A:$A,Data!$A$22,AutumnProvRep!$O:$O,"Coventry",AutumnProvRep!$T:$T,Data!M$17)/$BA$46*$A$46 -> 0 | N48: =SUMIFS(AutumnProvRep!$K:$K,AutumnProvRep!$A:$A,Data!$A$22,AutumnProvRep!$O:$O,"Coventry",AutumnProvRep!$T:$T,Data!N$17)/$BA$46*$A$46 -> 0 | O48: =SUMIFS(AutumnProvRep!$K:$K,AutumnProvRep!$A:$A,Data!$A$22,AutumnProvRep!$O:$O,"Coventry",AutumnProvRep!$T:$T,Data!O$17)/$BA$46*$A$46 -> 552 | P48: =SUMIFS(AutumnProvRep!$K:$K,AutumnProvRep!$A:$A,Data!$A$22,AutumnProvRep!$O:$O,"Coventry",AutumnProvRep!$T:$T,Data!P$17)/$BA$46*$A$46 -> 0 | Q48: =SUMIFS(AutumnProvRep!$K:$K,AutumnProvRep!$A:$A,Data!$A$22,AutumnProvRep!$O:$O,"Coventry",AutumnProvRep!$T:$T,Data!Q$17)/$BA$46*$A$46 -> 1800 | R48: =SUMIFS(AutumnProvRep!$K:$K,AutumnProvRep!$A:$A,Data!$A$22,AutumnProvRep!$O:$O,"Coventry",AutumnProvRep!$T:$T,Data!R$17)/$BA$46*$A$46 -> 0 | S48: =SUMIFS(AutumnProvRep!$K:$K,AutumnProvRep!$A:$A,Data!$A$22,AutumnProvRep!$O:$O,"Coventry",AutumnProvRep!$T:$T,Data!S$17)/$BA$46*$A$46 -> 0 | T48: =SUMIFS(AutumnProvRep!$K:$K,AutumnProvRep!$A:$A,Data!$A$22,AutumnProvRep!$O:$O,"Coventry",AutumnProvRep!$T:$T,Data!T$17)/$BA$46*$A$46 -> 0 | U48: =SUMIFS(AutumnProvRep!$K:$K,AutumnProvRep!$A:$A,Data!$A$22,AutumnProvRep!$O:$O,"Coventry",AutumnProvRep!$T:$T,Data!U$17)/$BA$46*$A$46 -> 47 | V48: =SUMIFS(AutumnProvRep!$K:$K,AutumnProvRep!$A:$A,Data!$A$22,AutumnProvRep!$O:$O,"Coventry",AutumnProvRep!$T:$T,Data!V$17)/$BA$46*$A$46 -> 0 | W48: 96.58666667 | X48: 507922.2008 | Y48: 0 | Z48: =SUMIFS(AutumnProvRep!$K:$K,AutumnProvRep!$A:$A,Data!$A$22,AutumnProvRep!$O:$O,"<>Coventry",AutumnProvRep!$T:$T,Data!Z$17)/$BA$46*$A$46 -> 0 | AA48: =SUMIFS(AutumnProvRep!$K:$K,AutumnProvRep!$A:$A,Data!$A$22,AutumnProvRep!$O:$O,"<>Coventry",AutumnProvRep!$T:$T,Data!AA$17)/$BA$46*$A$46 -> 0 | AB48: =SUMIFS(AutumnProvRep!$K:$K,AutumnProvRep!$A:$A,Data!$A$22,AutumnProvRep!$O:$O,"<>Coventry",AutumnProvRep!$T:$T,Data!AB$17)/$BA$46*$A$46 -> 0 | AC48: =SUMIFS(AutumnProvRep!$K:$K,AutumnProvRep!$A:$A,Data!$A$22,AutumnProvRep!$O:$O,"<>Coventry",AutumnProvRep!$T:$T,Data!AC$17)/$BA$46*$A$46 -> 0 | AD48: =SUMIFS(AutumnProvRep!$K:$K,AutumnProvRep!$A:$A,Data!$A$22,AutumnProvRep!$O:$O,"<>Coventry",AutumnProvRep!$T:$T,Data!AD$17)/$BA$46*$A$46 -> 0 | AE48: =SUMIFS(AutumnProvRep!$K:$K,AutumnProvRep!$A:$A,Data!$A$22,AutumnProvRep!$O:$O,"<>Coventry",AutumnProvRep!$T:$T,Data!AE$17)/$BA$46*$A$46 -> 0 | AF48: =SUMIFS(AutumnProvRep!$K:$K,AutumnProvRep!$A:$A,Data!$A$22,AutumnProvRep!$O:$O,"<>Coventry",AutumnProvRep!$T:$T,Data!AF$17)/$BA$46*$A$46 -> 150 | AG48: =SUMIFS(AutumnProvRep!$K:$K,AutumnProvRep!$A:$A,Data!$A$22,AutumnProvRep!$O:$O,"<>Coventry",AutumnProvRep!$T:$T,Data!AG$17)/$BA$46*$A$46 -> 75 | AH48: =SUMIFS(AutumnProvRep!$K:$K,AutumnProvRep!$A:$A,Data!$A$22,AutumnProvRep!$O:$O,"<>Coventry",AutumnProvRep!$T:$T,Data!AH$17)/$BA$46*$A$46 -> 0 | AI48: =SUMIFS(AutumnProvRep!$K:$K,AutumnProvRep!$A:$A,Data!$A$22,AutumnProvRep!$O:$O,"<>Coventry",AutumnProvRep!$T:$T,Data!AI$17)/$BA$46*$A$46 -> 0 | AJ48: =SUMIFS(AutumnProvRep!$K:$K,AutumnProvRep!$A:$A,Data!$A$22,AutumnProvRep!$O:$O,"<>Coventry",AutumnProvRep!$T:$T,Data!AJ$17)/$BA$46*$A$46 -> 0 | AK48: =SUMIFS(AutumnProvRep!$K:$K,AutumnProvRep!$A:$A,Data!$A$22,AutumnProvRep!$O:$O,"<>Coventry",AutumnProvRep!$T:$T,Data!AK$17)/$BA$46*$A$46 -> 0 | AL48: =SUMIFS(AutumnProvRep!$K:$K,AutumnProvRep!$A:$A,Data!$A$22,AutumnProvRep!$O:$O,"<>Coventry",AutumnProvRep!$T:$T,Data!AL$17)/$BA$46*$A$46 -> 150 | AM48: =SUMIFS(AutumnProvRep!$K:$K,AutumnProvRep!$A:$A,Data!$A$22,AutumnProvRep!$O:$O,"<>Coventry",AutumnProvRep!$T:$T,Data!AM$17)/$BA$46*$A$46 -> 0 | AN48: =SUMIFS(AutumnProvRep!$K:$K,AutumnProvRep!$A:$A,Data!$A$22,AutumnProvRep!$O:$O,"<>Coventry",AutumnProvRep!$T:$T,Data!AN$17)/$BA$46*$A$46 -> 0 | AO48: =SUMIFS(AutumnProvRep!$K:$K,AutumnProvRep!$A:$A,Data!$A$22,AutumnProvRep!$O:$O,"<>Coventry",AutumnProvRep!$T:$T,Data!AO$17)/$BA$46*$A$46 -> 0 | AP48: =SUMIFS(AutumnProvRep!$K:$K,AutumnProvRep!$A:$A,Data!$A$22,AutumnProvRep!$O:$O,"<>Coventry",AutumnProvRep!$T:$T,Data!AP$17)/$BA$46*$A$46 -> 0 | AQ48: =SUMIFS(AutumnProvRep!$K:$K,AutumnProvRep!$A:$A,Data!$A$22,AutumnProvRep!$O:$O,"<>Coventry",AutumnProvRep!$T:$T,Data!AQ$17)/$BA$46*$A$46 -> 0 | AR48: =SUM(Y48:AQ48)/$A$46 -> 5 | AS48: 25020.44699 | AT48: 532942.6478 | AU48: =AR48+W48 -> 101.5866667 | AV48: -4.413333333 | AW48: 106 | AX48: =[5]Data!$AU36 -> 100.25 | AY48: 100 | BB48: =($M$5-$AU$48)*$A$46 -> 331 | BD48: =AU48*$A$46 -> 7619 | BE48: =$BB$48/$BD$48*D48 -> 0 | BF48: 0 | BG48: 0 | BH48: 0 | BI48: 0 | BJ48: 0 | BK48: 0 | BL48: 202.8401365 | BM48: 7.646147788 | BN48: 0 | BO48: 0 | BP48: 23.98109988 | BQ48: 0 | BR48: 78.19923875 | BS48: 0 | BT48: 0 | BU48: 0 | BV48: 2.041869012 | BW48: 0 | BY48: =$BB$48/$BD$48*Y48 -> 0 | BZ48: 0 | CA48: 0 | CB48: 0 | CC48: 0 | CD48: 0 | CE48: 0 | CF48: 6.516603229 | CG48: 3.258301614 | CH48: 0 | CI48: 0 | CJ48: 0 | CK48: 0 | CL48: 6.516603229 | CM48: 0 | CN48: 0 | CO48: 0 | CP48: 0 | CQ48: 0
A49: 3 | B49: RiverBank | C49: 51.54639175 | D49: 0 | E49: =SUMIFS(AutumnProvRep!$K:$K,AutumnProvRep!$A:$A,Data!$A$23,AutumnProvRep!$O:$O,"Coventry",AutumnProvRep!$T:$T,Data!E$17)/$BA$46*$A$46 -> 0 | F49: =SUMIFS(AutumnProvRep!$K:$K,AutumnProvRep!$A:$A,Data!$A$23,AutumnProvRep!$O:$O,"Coventry",AutumnProvRep!$T:$T,Data!F$17)/$BA$46*$A$46 -> 0 | G49: =SUMIFS(AutumnProvRep!$K:$K,AutumnProvRep!$A:$A,Data!$A$23,AutumnProvRep!$O:$O,"Coventry",AutumnProvRep!$T:$T,Data!G$17)/$BA$46*$A$46 -> 450 | H49: =SUMIFS(AutumnProvRep!$K:$K,AutumnProvRep!$A:$A,Data!$A$23,AutumnProvRep!$O:$O,"Coventry",AutumnProvRep!$T:$T,Data!H$17)/$BA$46*$A$46 -> 521 | I49: =SUMIFS(AutumnProvRep!$K:$K,AutumnProvRep!$A:$A,Data!$A$23,AutumnProvRep!$O:$O,"Coventry",AutumnProvRep!$T:$T,Data!I$17)/$BA$46*$A$46 -> 0 | J49: =SUMIFS(AutumnProvRep!$K:$K,AutumnProvRep!$A:$A,Data!$A$23,AutumnProvRep!$O:$O,"Coventry",AutumnProvRep!$T:$T,Data!J$17)/$BA$46*$A$46 -> 0 | K49: =SUMIFS(AutumnProvRep!$K:$K,AutumnProvRep!$A:$A,Data!$A$23,AutumnProvRep!$O:$O,"Coventry",AutumnProvRep!$T:$T,Data!K$17)/$BA$46*$A$46 -> 5582 | L49: =SUMIFS(AutumnProvRep!$K:$K,AutumnProvRep!$A:$A,Data!$A$23,AutumnProvRep!$O:$O,"Coventry",AutumnProvRep!$T:$T,Data!L$17)/$BA$46*$A$46 -> 4111 | M49: =SUMIFS(AutumnProvRep!$K:$K,AutumnProvRep!$A:$A,Data!$A$23,AutumnProvRep!$O:$O,"Coventry",AutumnProvRep!$T:$T,Data!M$17)/$BA$46*$A$46 -> 150 | N49: =SUMIFS(AutumnProvRep!$K:$K,AutumnProvRep!$A:$A,Data!$A$23,AutumnProvRep!$O:$O,"Coventry",AutumnProvRep!$T:$T,Data!N$17)/$BA$46*$A$46 -> 598 | O49: =SUMIFS(AutumnProvRep!$K:$K,AutumnProvRep!$A:$A,Data!$A$23,AutumnProvRep!$O:$O,"Coventry",AutumnProvRep!$T:$T,Data!O$17)/$BA$46*$A$46 -> 675 | P49: =SUMIFS(AutumnProvRep!$K:$K,AutumnProvRep!$A:$A,Data!$A$23,AutumnProvRep!$O:$O,"Coventry",AutumnProvRep!$T:$T,Data!P$17)/$BA$46*$A$46 -> 300 | Q49: =SUMIFS(AutumnProvRep!$K:$K,AutumnProvRep!$A:$A,Data!$A$23,AutumnProvRep!$O:$O,"Coventry",AutumnProvRep!$T:$T,Data!Q$17)/$BA$46*$A$46 -> 1856 | R49: =SUMIFS(AutumnProvRep!$K:$K,AutumnProvRep!$A:$A,Data!$A$23,AutumnProvRep!$O:$O,"Coventry",AutumnProvRep!$T:$T,Data!R$17)/$BA$46*$A$46 -> 446 | S49: =SUMIFS(AutumnProvRep!$K:$K,AutumnProvRep!$A:$A,Data!$A$23,AutumnProvRep!$O:$O,"Coventry",AutumnProvRep!$T:$T,Data!S$17)/$BA$46*$A$46 -> 0 | T49: =SUMIFS(AutumnProvRep!$K:$K,AutumnProvRep!$A:$A,Data!$A$23,AutumnProvRep!$O:$O,"Coventry",AutumnProvRep!$T:$T,Data!T$17)/$BA$46*$A$46 -> 225 | U49: =SUMIFS(AutumnProvRep!$K:$K,AutumnProvRep!$A:$A,Data!$A$23,AutumnProvRep!$O:$O,"Coventry",AutumnProvRep!$T:$T,Data!U$17)/$BA$46*$A$46 -> 0 | V49: =SUMIFS(AutumnProvRep!$K:$K,AutumnProvRep!$A:$A,Data!$A$23,AutumnProvRep!$O:$O,"Coventry",AutumnProvRep!$T:$T,Data!V$17)/$BA$46*$A$46 -> 0 | W49: 198.8533333 | X49: 944272.9697 | Y49: 0 | Z49: =SUMIFS(AutumnProvRep!$K:$K,AutumnProvRep!$A:$A,Data!$A$23,AutumnProvRep!$O:$O,"<>Coventry",AutumnProvRep!$T:$T,Data!Z$17)/$BA$46*$A$46 -> 0 | AA49: =SUMIFS(AutumnProvRep!$K:$K,AutumnProvRep!$A:$A,Data!$A$23,AutumnProvRep!$O:$O,"<>Coventry",AutumnProvRep!$T:$T,Data!AA$17)/$BA$46*$A$46 -> 0 | AB49: =SUMIFS(AutumnProvRep!$K:$K,AutumnProvRep!$A:$A,Data!$A$23,AutumnProvRep!$O:$O,"<>Coventry",AutumnProvRep!$T:$T,Data!AB$17)/$BA$46*$A$46 -> 0 | AC49: =SUMIFS(AutumnProvRep!$K:$K,AutumnProvRep!$A:$A,Data!$A$23,AutumnProvRep!$O:$O,"<>Coventry",AutumnProvRep!$T:$T,Data!AC$17)/$BA$46*$A$46 -> 0 | AD49: =SUMIFS(AutumnProvRep!$K:$K,AutumnProvRep!$A:$A,Data!$A$23,AutumnProvRep!$O:$O,"<>Coventry",AutumnProvRep!$T:$T,Data!AD$17)/$BA$46*$A$46 -> 0 | AE49: =SUMIFS(AutumnProvRep!$K:$K,AutumnProvRep!$A:$A,Data!$A$23,AutumnProvRep!$O:$O,"<>Coventry",AutumnProvRep!$T:$T,Data!AE$17)/$BA$46*$A$46 -> 0 | AF49: =SUMIFS(AutumnProvRep!$K:$K,AutumnProvRep!$A:$A,Data!$A$23,AutumnProvRep!$O:$O,"<>Coventry",AutumnProvRep!$T:$T,Data!AF$17)/$BA$46*$A$46 -> 0 | AG49: =SUMIFS(AutumnProvRep!$K:$K,AutumnProvRep!$A:$A,Data!$A$23,AutumnProvRep!$O:$O,"<>Coventry",AutumnProvRep!$T:$T,Data!AG$17)/$BA$46*$A$46 -> 0 | AH49: =SUMIFS(AutumnProvRep!$K:$K,AutumnProvRep!$A:$A,Data!$A$23,AutumnProvRep!$O:$O,"<>Coventry",AutumnProvRep!$T:$T,Data!AH$17)/$BA$46*$A$46 -> 0 | AI49: =SUMIFS(AutumnProvRep!$K:$K,AutumnProvRep!$A:$A,Data!$A$23,AutumnProvRep!$O:$O,"<>Coventry",AutumnProvRep!$T:$T,Data!AI$17)/$BA$46*$A$46 -> 0 | AJ49: =SUMIFS(AutumnProvRep!$K:$K,AutumnProvRep!$A:$A,Data!$A$23,AutumnProvRep!$O:$O,"<>Coventry",AutumnProvRep!$T:$T,Data!AJ$17)/$BA$46*$A$46 -> 0 | AK49: =SUMIFS(AutumnProvRep!$K:$K,AutumnProvRep!$A:$A,Data!$A$23,AutumnProvRep!$O:$O,"<>Coventry",AutumnProvRep!$T:$T,Data!AK$17)/$BA$46*$A$46 -> 0 | AL49: =SUMIFS(AutumnProvRep!$K:$K,AutumnProvRep!$A:$A,Data!$A$23,AutumnProvRep!$O:$O,"<>Coventry",AutumnProvRep!$T:$T,Data!AL$17)/$BA$46*$A$46 -> 0 | AM49: =SUMIFS(AutumnProvRep!$K:$K,AutumnProvRep!$A:$A,Data!$A$23,AutumnProvRep!$O:$O,"<>Coventry",AutumnProvRep!$T:$T,Data!AM$17)/$BA$46*$A$46 -> 0 | AN49: =SUMIFS(AutumnProvRep!$K:$K,AutumnProvRep!$A:$A,Data!$A$23,AutumnProvRep!$O:$O,"<>Coventry",AutumnProvRep!$T:$T,Data!AN$17)/$BA$46*$A$46 -> 0 | AO49: =SUMIFS(AutumnProvRep!$K:$K,AutumnProvRep!$A:$A,Data!$A$23,AutumnProvRep!$O:$O,"<>Coventry",AutumnProvRep!$T:$T,Data!AO$17)/$BA$46*$A$46 -> 0 | AP49: =SUMIFS(AutumnProvRep!$K:$K,AutumnProvRep!$A:$A,Data!$A$23,AutumnProvRep!$O:$O,"<>Coventry",AutumnProvRep!$T:$T,Data!AP$17)/$BA$46*$A$46 -> 0 | AQ49: =SUMIFS(AutumnProvRep!$K:$K,AutumnProvRep!$A:$A,Data!$A$23,AutumnProvRep!$O:$O,"<>Coventry",AutumnProvRep!$T:$T,Data!AQ$17)/$BA$46*$A$46 -> 0 | AR49: 0 | AS49: 0 | AT49: 944272.9697 | AU49: 198.8533333 | AV49: -21.14666667 | AW49: 220 | AX49: =[5]Data!$AU37 -> 196.2368421 | AY49: 209 | BB49: =($M$6-$AU$49)*$A$46 -> 1586 | BD49: 14914 | BE49: =$BB$49/$BD$49*D49 -> 0 | BF49: 0 | BG49: 0 | BH49: 47.85436503 | BI49: 55.4047204 | BJ49: 0 | BK49: 0 | BL49: 593.6068124 | BM49: 437.1762103 | BN49: 15.95145501 | BO49: 63.59313397 | BP49: 71.78154754 | BQ49: 31.90291002 | BR49: 197.37267 | BS49: 47.42899289 | BT49: 0 | BU49: 23.92718251 | BV49: 0 | BW49: 0 | BY49: =$BB$49/$BD$49*Y49 -> 0 | BZ49: 0 | CA49: 0 | CB49: 0 | CC49: 0 | CD49: 0 | CE49: 0 | CF49: 0 | CG49: 0 | CH49: 0 | CI49: 0 | CJ49: 0 | CK49: 0 | CL49: 0 | CM49: 0 | CN49: 0 | CO49: 0 | CP49: 0 | CQ49: 0
A50: 4 | B50: Corley | C50: 51.54639175 | D50: 0 | E50: =SUMIFS(AutumnProvRep!$K:$K,AutumnProvRep!$A:$A,Data!$A$24,AutumnProvRep!$O:$O,"Coventry",AutumnProvRep!$T:$T,Data!E$17)/$BA$46*$A$46 -> 0 | F50: =SUMIFS(AutumnProvRep!$K:$K,AutumnProvRep!$A:$A,Data!$A$24,AutumnProvRep!$O:$O,"Coventry",AutumnProvRep!$T:$T,Data!F$17)/$BA$46*$A$46 -> 0 | G50: =SUMIFS(AutumnProvRep!$K:$K,AutumnProvRep!$A:$A,Data!$A$24,AutumnProvRep!$O:$O,"Coventry",AutumnProvRep!$T:$T,Data!G$17)/$BA$46*$A$46 -> 223 | H50: =SUMIFS(AutumnProvRep!$K:$K,AutumnProvRep!$A:$A,Data!$A$24,AutumnProvRep!$O:$O,"Coventry",AutumnProvRep!$T:$T,Data!H$17)/$BA$46*$A$46 -> 255 | I50: =SUMIFS(AutumnProvRep!$K:$K,AutumnProvRep!$A:$A,Data!$A$24,AutumnProvRep!$O:$O,"Coventry",AutumnProvRep!$T:$T,Data!I$17)/$BA$46*$A$46 -> 0 | J50: =SUMIFS(AutumnProvRep!$K:$K,AutumnProvRep!$A:$A,Data!$A$24,AutumnProvRep!$O:$O,"Coventry",AutumnProvRep!$T:$T,Data!J$17)/$BA$46*$A$46 -> 0 | K50: =SUMIFS(AutumnProvRep!$K:$K,AutumnProvRep!$A:$A,Data!$A$24,AutumnProvRep!$O:$O,"Coventry",AutumnProvRep!$T:$T,Data!K$17)/$BA$46*$A$46 -> 9008 | L50: =SUMIFS(AutumnProvRep!$K:$K,AutumnProvRep!$A:$A,Data!$A$24,AutumnProvRep!$O:$O,"Coventry",AutumnProvRep!$T:$T,Data!L$17)/$BA$46*$A$46 -> 446 | M50: =SUMIFS(AutumnProvRep!$K:$K,AutumnProvRep!$A:$A,Data!$A$24,AutumnProvRep!$O:$O,"Coventry",AutumnProvRep!$T:$T,Data!M$17)/$BA$46*$A$46 -> 525 | N50: =SUMIFS(AutumnProvRep!$K:$K,AutumnProvRep!$A:$A,Data!$A$24,AutumnProvRep!$O:$O,"Coventry",AutumnProvRep!$T:$T,Data!N$17)/$BA$46*$A$46 -> 0 | O50: =SUMIFS(AutumnProvRep!$K:$K,AutumnProvRep!$A:$A,Data!$A$24,AutumnProvRep!$O:$O,"Coventry",AutumnProvRep!$T:$T,Data!O$17)/$BA$46*$A$46 -> 225 | P50: =SUMIFS(AutumnProvRep!$K:$K,AutumnProvRep!$A:$A,Data!$A$24,AutumnProvRep!$O:$O,"Coventry",AutumnProvRep!$T:$T,Data!P$17)/$BA$46*$A$46 -> 0 | Q50: =SUMIFS(AutumnProvRep!$K:$K,AutumnProvRep!$A:$A,Data!$A$24,AutumnProvRep!$O:$O,"Coventry",AutumnProvRep!$T:$T,Data!Q$17)/$BA$46*$A$46 -> 900 | R50: =SUMIFS(AutumnProvRep!$K:$K,AutumnProvRep!$A:$A,Data!$A$24,AutumnProvRep!$O:$O,"Coventry",AutumnProvRep!$T:$T,Data!R$17)/$BA$46*$A$46 -> 0 | S50: =SUMIFS(AutumnProvRep!$K:$K,AutumnProvRep!$A:$A,Data!$A$24,AutumnProvRep!$O:$O,"Coventry",AutumnProvRep!$T:$T,Data!S$17)/$BA$46*$A$46 -> 0 | T50: =SUMIFS(AutumnProvRep!$K:$K,AutumnProvRep!$A:$A,Data!$A$24,AutumnProvRep!$O:$O,"Coventry",AutumnProvRep!$T:$T,Data!T$17)/$BA$46*$A$46 -> 0 | U50: =SUMIFS(AutumnProvRep!$K:$K,AutumnProvRep!$A:$A,Data!$A$24,AutumnProvRep!$O:$O,"Coventry",AutumnProvRep!$T:$T,Data!U$17)/$BA$46*$A$46 -> 0 | V50: =SUMIFS(AutumnProvRep!$K:$K,AutumnProvRep!$A:$A,Data!$A$24,AutumnProvRep!$O:$O,"Coventry",AutumnProvRep!$T:$T,Data!V$17)/$BA$46*$A$46 -> 0 | W50: 154.4266667 | X50: 664865.4267 | Y50: 0 | Z50: =SUMIFS(AutumnProvRep!$K:$K,AutumnProvRep!$A:$A,Data!$A$24,AutumnProvRep!$O:$O,"<>Coventry",AutumnProvRep!$T:$T,Data!Z$17)/$BA$46*$A$46 -> 0 | AA50: =SUMIFS(AutumnProvRep!$K:$K,AutumnProvRep!$A:$A,Data!$A$24,AutumnProvRep!$O:$O,"<>Coventry",AutumnProvRep!$T:$T,Data!AA$17)/$BA$46*$A$46 -> 0 | AB50: =SUMIFS(AutumnProvRep!$K:$K,AutumnProvRep!$A:$A,Data!$A$24,AutumnProvRep!$O:$O,"<>Coventry",AutumnProvRep!$T:$T,Data!AB$17)/$BA$46*$A$46 -> 0 | AC50: =SUMIFS(AutumnProvRep!$K:$K,AutumnProvRep!$A:$A,Data!$A$24,AutumnProvRep!$O:$O,"<>Coventry",AutumnProvRep!$T:$T,Data!AC$17)/$BA$46*$A$46 -> 0 | AD50: =SUMIFS(AutumnProvRep!$K:$K,AutumnProvRep!$A:$A,Data!$A$24,AutumnProvRep!$O:$O,"<>Coventry",AutumnProvRep!$T:$T,Data!AD$17)/$BA$46*$A$46 -> 0 | AE50: =SUMIFS(AutumnProvRep!$K:$K,AutumnProvRep!$A:$A,Data!$A$24,AutumnProvRep!$O:$O,"<>Coventry",AutumnProvRep!$T:$T,Data!AE$17)/$BA$46*$A$46 -> 0 | AF50: =SUMIFS(AutumnProvRep!$K:$K,AutumnProvRep!$A:$A,Data!$A$24,AutumnProvRep!$O:$O,"<>Coventry",AutumnProvRep!$T:$T,Data!AF$17)/$BA$46*$A$46 -> 225 | AG50: =SUMIFS(AutumnProvRep!$K:$K,AutumnProvRep!$A:$A,Data!$A$24,AutumnProvRep!$O:$O,"<>Coventry",AutumnProvRep!$T:$T,Data!AG$17)/$BA$46*$A$46 -> 0 | AH50: =SUMIFS(AutumnProvRep!$K:$K,AutumnProvRep!$A:$A,Data!$A$24,AutumnProvRep!$O:$O,"<>Coventry",AutumnProvRep!$T:$T,Data!AH$17)/$BA$46*$A$46 -> 0 | AI50: =SUMIFS(AutumnProvRep!$K:$K,AutumnProvRep!$A:$A,Data!$A$24,AutumnProvRep!$O:$O,"<>Coventry",AutumnProvRep!$T:$T,Data!AI$17)/$BA$46*$A$46 -> 0 | AJ50: =SUMIFS(AutumnProvRep!$K:$K,AutumnProvRep!$A:$A,Data!$A$24,AutumnProvRep!$O:$O,"<>Coventry",AutumnProvRep!$T:$T,Data!AJ$17)/$BA$46*$A$46 -> 0 | AK50: =SUMIFS(AutumnProvRep!$K:$K,AutumnProvRep!$A:$A,Data!$A$24,AutumnProvRep!$O:$O,"<>Coventry",AutumnProvRep!$T:$T,Data!AK$17)/$BA$46*$A$46 -> 0 | AL50: =SUMIFS(AutumnProvRep!$K:$K,AutumnProvRep!$A:$A,Data!$A$24,AutumnProvRep!$O:$O,"<>Coventry",AutumnProvRep!$T:$T,Data!AL$17)/$BA$46*$A$46 -> 0 | AM50: =SUMIFS(AutumnProvRep!$K:$K,AutumnProvRep!$A:$A,Data!$A$24,AutumnProvRep!$O:$O,"<>Coventry",AutumnProvRep!$T:$T,Data!AM$17)/$BA$46*$A$46 -> 0 | AN50: =SUMIFS(AutumnProvRep!$K:$K,AutumnProvRep!$A:$A,Data!$A$24,AutumnProvRep!$O:$O,"<>Coventry",AutumnProvRep!$T:$T,Data!AN$17)/$BA$46*$A$46 -> 0 | AO50: =SUMIFS(AutumnProvRep!$K:$K,AutumnProvRep!$A:$A,Data!$A$24,AutumnProvRep!$O:$O,"<>Coventry",AutumnProvRep!$T:$T,Data!AO$17)/$BA$46*$A$46 -> 0 | AP50: =SUMIFS(AutumnProvRep!$K:$K,AutumnProvRep!$A:$A,Data!$A$24,AutumnProvRep!$O:$O,"<>Coventry",AutumnProvRep!$T:$T,Data!AP$17)/$BA$46*$A$46 -> 0 | AQ50: =SUMIFS(AutumnProvRep!$K:$K,AutumnProvRep!$A:$A,Data!$A$24,AutumnProvRep!$O:$O,"<>Coventry",AutumnProvRep!$T:$T,Data!AQ$17)/$BA$46*$A$46 -> 0 | AR50: 3 | AS50: 12155.68017 | AT50: 677021.1069 | AU50: 157.4266667 | AV50: -7.573333333 | AW50: 165 | AX50: =[5]Data!$AU38 -> 155.3552632 | AY50: 155 | BB50: =($M$7-$AU$50)*$A$46 -> 568 | BD50: 11807 | BE50: =$BB$50/$BD$50*D50 -> 0 | BF50: 0 | BG50: 0 | BH50: 10.7278733 | BI50: 12.26729906 | BJ50: 0 | BK50: 0 | BL50: 433.3483527 | BM50: 21.45574659 | BN50: 25.25620395 | BO50: 0 | BP50: 10.82408741 | BQ50: 0 | BR50: 43.29634962 | BS50: 0 | BT50: 0 | BU50: 0 | BV50: 0 | BW50: 0 | BY50: =$BB$50/$BD$50*Y50 -> 0 | BZ50: 0 | CA50: 0 | CB50: 0 | CC50: 0 | CD50: 0 | CE50: 0 | CF50: 10.82408741 | CG50: 0 | CH50: 0 | CI50: 0 | CJ50: 0 | CK50: 0 | CL50: 0 | CM50: 0 | CN50: 0 | CO50: 0 | CP50: 0 | CQ50: 0
A51: 5 | B51: Tiverton | C51: 51.54639175 | D51: 0 | E51: =SUMIFS(AutumnProvRep!$K:$K,AutumnProvRep!$A:$A,Data!$A$25,AutumnProvRep!$O:$O,"Coventry",AutumnProvRep!$T:$T,Data!E$17)/$BA$46*$A$46 -> 0 | F51: =SUMIFS(AutumnProvRep!$K:$K,AutumnProvRep!$A:$A,Data!$A$25,AutumnProvRep!$O:$O,"Coventry",AutumnProvRep!$T:$T,Data!F$17)/$BA$46*$A$46 -> 0 | G51: =SUMIFS(AutumnProvRep!$K:$K,AutumnProvRep!$A:$A,Data!$A$25,AutumnProvRep!$O:$O,"Coventry",AutumnProvRep!$T:$T,Data!G$17)/$BA$46*$A$46 -> 0 | H51: =SUMIFS(AutumnProvRep!$K:$K,AutumnProvRep!$A:$A,Data!$A$25,AutumnProvRep!$O:$O,"Coventry",AutumnProvRep!$T:$T,Data!H$17)/$BA$46*$A$46 -> 0 | I51: =SUMIFS(AutumnProvRep!$K:$K,AutumnProvRep!$A:$A,Data!$A$25,AutumnProvRep!$O:$O,"Coventry",AutumnProvRep!$T:$T,Data!I$17)/$BA$46*$A$46 -> 0 | J51: =SUMIFS(AutumnProvRep!$K:$K,AutumnProvRep!$A:$A,Data!$A$25,AutumnProvRep!$O:$O,"Coventry",AutumnProvRep!$T:$T,Data!J$17)/$BA$46*$A$46 -> 0 | K51: =SUMIFS(AutumnProvRep!$K:$K,AutumnProvRep!$A:$A,Data!$A$25,AutumnProvRep!$O:$O,"Coventry",AutumnProvRep!$T:$T,Data!K$17)/$BA$46*$A$46 -> 5965 | L51: =SUMIFS(AutumnProvRep!$K:$K,AutumnProvRep!$A:$A,Data!$A$25,AutumnProvRep!$O:$O,"Coventry",AutumnProvRep!$T:$T,Data!L$17)/$BA$46*$A$46 -> 823 | M51: =SUMIFS(AutumnProvRep!$K:$K,AutumnProvRep!$A:$A,Data!$A$25,AutumnProvRep!$O:$O,"Coventry",AutumnProvRep!$T:$T,Data!M$17)/$BA$46*$A$46 -> 0 | N51: =SUMIFS(AutumnProvRep!$K:$K,AutumnProvRep!$A:$A,Data!$A$25,AutumnProvRep!$O:$O,"Coventry",AutumnProvRep!$T:$T,Data!N$17)/$BA$46*$A$46 -> 375 | O51: =SUMIFS(AutumnProvRep!$K:$K,AutumnProvRep!$A:$A,Data!$A$25,AutumnProvRep!$O:$O,"Coventry",AutumnProvRep!$T:$T,Data!O$17)/$BA$46*$A$46 -> 351 | P51: =SUMIFS(AutumnProvRep!$K:$K,AutumnProvRep!$A:$A,Data!$A$25,AutumnProvRep!$O:$O,"Coventry",AutumnProvRep!$T:$T,Data!P$17)/$BA$46*$A$46 -> 0 | Q51: =SUMIFS(AutumnProvRep!$K:$K,AutumnProvRep!$A:$A,Data!$A$25,AutumnProvRep!$O:$O,"Coventry",AutumnProvRep!$T:$T,Data!Q$17)/$BA$46*$A$46 -> 1206 | R51: =SUMIFS(AutumnProvRep!$K:$K,AutumnProvRep!$A:$A,Data!$A$25,AutumnProvRep!$O:$O,"Coventry",AutumnProvRep!$T:$T,Data!R$17)/$BA$46*$A$46 -> 525 | S51: =SUMIFS(AutumnProvRep!$K:$K,AutumnProvRep!$A:$A,Data!$A$25,AutumnProvRep!$O:$O,"Coventry",AutumnProvRep!$T:$T,Data!S$17)/$BA$46*$A$46 -> 0 | T51: =SUMIFS(AutumnProvRep!$K:$K,AutumnProvRep!$A:$A,Data!$A$25,AutumnProvRep!$O:$O,"Coventry",AutumnProvRep!$T:$T,Data!T$17)/$BA$46*$A$46 -> 450 | U51: =SUMIFS(AutumnProvRep!$K:$K,AutumnProvRep!$A:$A,Data!$A$25,AutumnProvRep!$O:$O,"Coventry",AutumnProvRep!$T:$T,Data!U$17)/$BA$46*$A$46 -> 0 | V51: =SUMIFS(AutumnProvRep!$K:$K,AutumnProvRep!$A:$A,Data!$A$25,AutumnProvRep!$O:$O,"Coventry",AutumnProvRep!$T:$T,Data!V$17)/$BA$46*$A$46 -> 0 | W51: 129.2666667 | X51: 621881.9473 | Y51: 0 | Z51: =SUMIFS(AutumnProvRep!$K:$K,AutumnProvRep!$A:$A,Data!$A$25,AutumnProvRep!$O:$O,"<>Coventry",AutumnProvRep!$T:$T,Data!Z$17)/$BA$46*$A$46 -> 0 | AA51: =SUMIFS(AutumnProvRep!$K:$K,AutumnProvRep!$A:$A,Data!$A$25,AutumnProvRep!$O:$O,"<>Coventry",AutumnProvRep!$T:$T,Data!AA$17)/$BA$46*$A$46 -> 0 | AB51: =SUMIFS(AutumnProvRep!$K:$K,AutumnProvRep!$A:$A,Data!$A$25,AutumnProvRep!$O:$O,"<>Coventry",AutumnProvRep!$T:$T,Data!AB$17)/$BA$46*$A$46 -> 0 | AC51: =SUMIFS(AutumnProvRep!$K:$K,AutumnProvRep!$A:$A,Data!$A$25,AutumnProvRep!$O:$O,"<>Coventry",AutumnProvRep!$T:$T,Data!AC$17)/$BA$46*$A$46 -> 0 | AD51: =SUMIFS(AutumnProvRep!$K:$K,AutumnProvRep!$A:$A,Data!$A$25,AutumnProvRep!$O:$O,"<>Coventry",AutumnProvRep!$T:$T,Data!AD$17)/$BA$46*$A$46 -> 0 | AE51: =SUMIFS(AutumnProvRep!$K:$K,AutumnProvRep!$A:$A,Data!$A$25,AutumnProvRep!$O:$O,"<>Coventry",AutumnProvRep!$T:$T,Data!AE$17)/$BA$46*$A$46 -> 0 | AF51: =SUMIFS(AutumnProvRep!$K:$K,AutumnProvRep!$A:$A,Data!$A$25,AutumnProvRep!$O:$O,"<>Coventry",AutumnProvRep!$T:$T,Data!AF$17)/$BA$46*$A$46 -> 25 | AG51: =SUMIFS(AutumnProvRep!$K:$K,AutumnProvRep!$A:$A,Data!$A$25,AutumnProvRep!$O:$O,"<>Coventry",AutumnProvRep!$T:$T,Data!AG$17)/$BA$46*$A$46 -> 0 | AH51: =SUMIFS(AutumnProvRep!$K:$K,AutumnProvRep!$A:$A,Data!$A$25,AutumnProvRep!$O:$O,"<>Coventry",AutumnProvRep!$T:$T,Data!AH$17)/$BA$46*$A$46 -> 0 | AI51: =SUMIFS(AutumnProvRep!$K:$K,AutumnProvRep!$A:$A,Data!$A$25,AutumnProvRep!$O:$O,"<>Coventry",AutumnProvRep!$T:$T,Data!AI$17)/$BA$46*$A$46 -> 0 | AJ51: =SUMIFS(AutumnProvRep!$K:$K,AutumnProvRep!$A:$A,Data!$A$25,AutumnProvRep!$O:$O,"<>Coventry",AutumnProvRep!$T:$T,Data!AJ$17)/$BA$46*$A$46 -> 0 | AK51: =SUMIFS(AutumnProvRep!$K:$K,AutumnProvRep!$A:$A,Data!$A$25,AutumnProvRep!$O:$O,"<>Coventry",AutumnProvRep!$T:$T,Data!AK$17)/$BA$46*$A$46 -> 0 | AL51: =SUMIFS(AutumnProvRep!$K:$K,AutumnProvRep!$A:$A,Data!$A$25,AutumnProvRep!$O:$O,"<>Coventry",AutumnProvRep!$T:$T,Data!AL$17)/$BA$46*$A$46 -> 75 | AM51: =SUMIFS(AutumnProvRep!$K:$K,AutumnProvRep!$A:$A,Data!$A$25,AutumnProvRep!$O:$O,"<>Coventry",AutumnProvRep!$T:$T,Data!AM$17)/$BA$46*$A$46 -> 0 | AN51: =SUMIFS(AutumnProvRep!$K:$K,AutumnProvRep!$A:$A,Data!$A$25,AutumnProvRep!$O:$O,"<>Coventry",AutumnProvRep!$T:$T,Data!AN$17)/$BA$46*$A$46 -> 0 | AO51: =SUMIFS(AutumnProvRep!$K:$K,AutumnProvRep!$A:$A,Data!$A$25,AutumnProvRep!$O:$O,"<>Coventry",AutumnProvRep!$T:$T,Data!AO$17)/$BA$46*$A$46 -> 0 | AP51: =SUMIFS(AutumnProvRep!$K:$K,AutumnProvRep!$A:$A,Data!$A$25,AutumnProvRep!$O:$O,"<>Coventry",AutumnProvRep!$T:$T,Data!AP$17)/$BA$46*$A$46 -> 0 | AQ51: =SUMIFS(AutumnProvRep!$K:$K,AutumnProvRep!$A:$A,Data!$A$25,AutumnProvRep!$O:$O,"<>Coventry",AutumnProvRep!$T:$T,Data!AQ$17)/$BA$46*$A$46 -> 0 | AR51: 1.333333333 | AS51: 7934.959513 | AT51: 629816.9068 | AU51: 130.6 | AV51: -2.4 | AW51: 133 | AX51: =[5]Data!$AU39 -> 128.8947368 | AY51: 131 | BB51: =($M$8-$AU$51)*$A$46 -> 180 | BD51: 9795 | BE51: =$BB$51/$BD$51*D51 -> 0 | BF51: 0 | BG51: 0 | BH51: 0 | BI51: 0 | BJ51: 0 | BK51: 0 | BL51: 109.6171516 | BM51: 15.12404288 | BN51: 0 | BO51: 6.891271057 | BP51: 6.450229709 | BQ51: 0 | BR51: 22.16232772 | BS51: 9.647779479 | BT51: 0 | BU51: 8.269525268 | BV51: 0 | BW51: 0 | BY51: =$BB$51/$BD$51*Y51 -> 0 | BZ51: 0 | CA51: 0 | CB51: 0 | CC51: 0 | CD51: 0 | CE51: 0 | CF51: 0.4594180704 | CG51: 0 | CH51: 0 | CI51: 0 | CJ51: 0 | CK51: 0 | CL51: 1.378254211 | CM51: 0 | CN51: 0 | CO51: 0 | CP51: 0 | CQ51: 0
A52: 6 | B52: Baginton Fields | C52: 51.54639175 | D52: 0 | E52: =SUMIFS(AutumnProvRep!$K:$K,AutumnProvRep!$A:$A,Data!$A$26,AutumnProvRep!$O:$O,"Coventry",AutumnProvRep!$T:$T,Data!E$17)/$BA$46*$A$46 -> 0 | F52: =SUMIFS(AutumnProvRep!$K:$K,AutumnProvRep!$A:$A,Data!$A$26,AutumnProvRep!$O:$O,"Coventry",AutumnProvRep!$T:$T,Data!F$17)/$BA$46*$A$46 -> 0 | G52: =SUMIFS(AutumnProvRep!$K:$K,AutumnProvRep!$A:$A,Data!$A$26,AutumnProvRep!$O:$O,"Coventry",AutumnProvRep!$T:$T,Data!G$17)/$BA$46*$A$46 -> 0 | H52: =SUMIFS(AutumnProvRep!$K:$K,AutumnProvRep!$A:$A,Data!$A$26,AutumnProvRep!$O:$O,"Coventry",AutumnProvRep!$T:$T,Data!H$17)/$BA$46*$A$46 -> 0 | I52: =SUMIFS(AutumnProvRep!$K:$K,AutumnProvRep!$A:$A,Data!$A$26,AutumnProvRep!$O:$O,"Coventry",AutumnProvRep!$T:$T,Data!I$17)/$BA$46*$A$46 -> 0 | J52: =SUMIFS(AutumnProvRep!$K:$K,AutumnProvRep!$A:$A,Data!$A$26,AutumnProvRep!$O:$O,"Coventry",AutumnProvRep!$T:$T,Data!J$17)/$BA$46*$A$46 -> 0 | K52: =SUMIFS(AutumnProvRep!$K:$K,AutumnProvRep!$A:$A,Data!$A$26,AutumnProvRep!$O:$O,"Coventry",AutumnProvRep!$T:$T,Data!K$17)/$BA$46*$A$46 -> 2267 | L52: =SUMIFS(AutumnProvRep!$K:$K,AutumnProvRep!$A:$A,Data!$A$26,AutumnProvRep!$O:$O,"Coventry",AutumnProvRep!$T:$T,Data!L$17)/$BA$46*$A$46 -> 2924 | M52: =SUMIFS(AutumnProvRep!$K:$K,AutumnProvRep!$A:$A,Data!$A$26,AutumnProvRep!$O:$O,"Coventry",AutumnProvRep!$T:$T,Data!M$17)/$BA$46*$A$46 -> 0 | N52: =SUMIFS(AutumnProvRep!$K:$K,AutumnProvRep!$A:$A,Data!$A$26,AutumnProvRep!$O:$O,"Coventry",AutumnProvRep!$T:$T,Data!N$17)/$BA$46*$A$46 -> 150 | O52: =SUMIFS(AutumnProvRep!$K:$K,AutumnProvRep!$A:$A,Data!$A$26,AutumnProvRep!$O:$O,"Coventry",AutumnProvRep!$T:$T,Data!O$17)/$BA$46*$A$46 -> 892 | P52: =SUMIFS(AutumnProvRep!$K:$K,AutumnProvRep!$A:$A,Data!$A$26,AutumnProvRep!$O:$O,"Coventry",AutumnProvRep!$T:$T,Data!P$17)/$BA$46*$A$46 -> 0 | Q52: =SUMIFS(AutumnProvRep!$K:$K,AutumnProvRep!$A:$A,Data!$A$26,AutumnProvRep!$O:$O,"Coventry",AutumnProvRep!$T:$T,Data!Q$17)/$BA$46*$A$46 -> 2038 | R52: =SUMIFS(AutumnProvRep!$K:$K,AutumnProvRep!$A:$A,Data!$A$26,AutumnProvRep!$O:$O,"Coventry",AutumnProvRep!$T:$T,Data!R$17)/$BA$46*$A$46 -> 973 | S52: =SUMIFS(AutumnProvRep!$K:$K,AutumnProvRep!$A:$A,Data!$A$26,AutumnProvRep!$O:$O,"Coventry",AutumnProvRep!$T:$T,Data!S$17)/$BA$46*$A$46 -> 0 | T52: =SUMIFS(AutumnProvRep!$K:$K,AutumnProvRep!$A:$A,Data!$A$26,AutumnProvRep!$O:$O,"Coventry",AutumnProvRep!$T:$T,Data!T$17)/$BA$46*$A$46 -> 150 | U52: =SUMIFS(AutumnProvRep!$K:$K,AutumnProvRep!$A:$A,Data!$A$26,AutumnProvRep!$O:$O,"Coventry",AutumnProvRep!$T:$T,Data!U$17)/$BA$46*$A$46 -> 35 | V52: =SUMIFS(AutumnProvRep!$K:$K,AutumnProvRep!$A:$A,Data!$A$26,AutumnProvRep!$O:$O,"Coventry",AutumnProvRep!$T:$T,Data!V$17)/$BA$46*$A$46 -> 0 | W52: 125.72 | X52: 680976.5988 | Y52: 0 | Z52: =SUMIFS(AutumnProvRep!$K:$K,AutumnProvRep!$A:$A,Data!$A$26,AutumnProvRep!$O:$O,"<>Coventry",AutumnProvRep!$T:$T,Data!Z$17)/$BA$46*$A$46 -> 0 | AA52: =SUMIFS(AutumnProvRep!$K:$K,AutumnProvRep!$A:$A,Data!$A$26,AutumnProvRep!$O:$O,"<>Coventry",AutumnProvRep!$T:$T,Data!AA$17)/$BA$46*$A$46 -> 0 | AB52: =SUMIFS(AutumnProvRep!$K:$K,AutumnProvRep!$A:$A,Data!$A$26,AutumnProvRep!$O:$O,"<>Coventry",AutumnProvRep!$T:$T,Data!AB$17)/$BA$46*$A$46 -> 0 | AC52: =SUMIFS(AutumnProvRep!$K:$K,AutumnProvRep!$A:$A,Data!$A$26,AutumnProvRep!$O:$O,"<>Coventry",AutumnProvRep!$T:$T,Data!AC$17)/$BA$46*$A$46 -> 0 | AD52: =SUMIFS(AutumnProvRep!$K:$K,AutumnProvRep!$A:$A,Data!$A$26,AutumnProvRep!$O:$O,"<>Coventry",AutumnProvRep!$T:$T,Data!AD$17)/$BA$46*$A$46 -> 0 | AE52: =SUMIFS(AutumnProvRep!$K:$K,AutumnProvRep!$A:$A,Data!$A$26,AutumnProvRep!$O:$O,"<>Coventry",AutumnProvRep!$T:$T,Data!AE$17)/$BA$46*$A$46 -> 0 | AF52: =SUMIFS(AutumnProvRep!$K:$K,AutumnProvRep!$A:$A,Data!$A$26,AutumnProvRep!$O:$O,"<>Coventry",AutumnProvRep!$T:$T,Data!AF$17)/$BA$46*$A$46 -> 0 | AG52: =SUMIFS(AutumnProvRep!$K:$K,AutumnProvRep!$A:$A,Data!$A$26,AutumnProvRep!$O:$O,"<>Coventry",AutumnProvRep!$T:$T,Data!AG$17)/$BA$46*$A$46 -> 75 | AH52: =SUMIFS(AutumnProvRep!$K:$K,AutumnProvRep!$A:$A,Data!$A$26,AutumnProvRep!$O:$O,"<>Coventry",AutumnProvRep!$T:$T,Data!AH$17)/$BA$46*$A$46 -> 0 | AI52: =SUMIFS(AutumnProvRep!$K:$K,AutumnProvRep!$A:$A,Data!$A$26,AutumnProvRep!$O:$O,"<>Coventry",AutumnProvRep!$T:$T,Data!AI$17)/$BA$46*$A$46 -> 0 | AJ52: =SUMIFS(AutumnProvRep!$K:$K,AutumnProvRep!$A:$A,Data!$A$26,AutumnProvRep!$O:$O,"<>Coventry",AutumnProvRep!$T:$T,Data!AJ$17)/$BA$46*$A$46 -> 0 | AK52: =SUMIFS(AutumnProvRep!$K:$K,AutumnProvRep!$A:$A,Data!$A$26,AutumnProvRep!$O:$O,"<>Coventry",AutumnProvRep!$T:$T,Data!AK$17)/$BA$46*$A$46 -> 0 | AL52: =SUMIFS(AutumnProvRep!$K:$K,AutumnProvRep!$A:$A,Data!$A$26,AutumnProvRep!$O:$O,"<>Coventry",AutumnProvRep!$T:$T,Data!AL$17)/$BA$46*$A$46 -> 0 | AM52: =SUMIFS(AutumnProvRep!$K:$K,AutumnProvRep!$A:$A,Data!$A$26,AutumnProvRep!$O:$O,"<>Coventry",AutumnProvRep!$T:$T,Data!AM$17)/$BA$46*$A$46 -> 0 | AN52: =SUMIFS(AutumnProvRep!$K:$K,AutumnProvRep!$A:$A,Data!$A$26,AutumnProvRep!$O:$O,"<>Coventry",AutumnProvRep!$T:$T,Data!AN$17)/$BA$46*$A$46 -> 0 | AO52: =SUMIFS(AutumnProvRep!$K:$K,AutumnProvRep!$A:$A,Data!$A$26,AutumnProvRep!$O:$O,"<>Coventry",AutumnProvRep!$T:$T,Data!AO$17)/$BA$46*$A$46 -> 0 | AP52: =SUMIFS(AutumnProvRep!$K:$K,AutumnProvRep!$A:$A,Data!$A$26,AutumnProvRep!$O:$O,"<>Coventry",AutumnProvRep!$T:$T,Data!AP$17)/$BA$46*$A$46 -> 0 | AQ52: =SUMIFS(AutumnProvRep!$K:$K,AutumnProvRep!$A:$A,Data!$A$26,AutumnProvRep!$O:$O,"<>Coventry",AutumnProvRep!$T:$T,Data!AQ$17)/$BA$46*$A$46 -> 0 | AR52: 1 | AS52: 3748.003445 | AT52: 684724.6022 | AU52: 126.72 | AV52: 0.72 | AW52: 126 | AX52: =[5]Data!$AU40 -> 125.0526316 | AY52: 126 | BB52: =($M$9-$AU$52)*$A$46 -> -54 | BD52: 9504 | BE52: =$BB$52/$BD$52*D52 -> 0 | BF52: 0 | BG52: 0 | BH52: 0 | BI52: 0 | BJ52: 0 | BK52: 0 | BL52: -12.88068182 | BM52: -16.61363636 | BN52: 0 | BO52: -0.8522727273 | BP52: -5.068181818 | BQ52: 0 | BR52: -11.57954545 | BS52: -5.528409091 | BT52: 0 | BU52: -0.8522727273 | BV52: -0.1988636364 | BW52: 0 | BY52: =$BB$52/$BD$52*Y52 -> 0 | BZ52: 0 | CA52: 0 | CB52: 0 | CC52: 0 | CD52: 0 | CE52: 0 | CF52: 0 | CG52: -0.4261363636 | CH52: 0 | CI52: 0 | CJ52: 0 | CK52: 0 | CL52: 0 | CM52: 0 | CN52: 0 | CO52: 0 | CP52: 0 | CQ52: 0
A53: 7 | B53: Sherbourne Fields | C53: 51.54639175 | D53: 0 | E53: =SUMIFS(AutumnProvRep!$K:$K,AutumnProvRep!$A:$A,Data!$A$27,AutumnProvRep!$O:$O,"Coventry",AutumnProvRep!$T:$T,Data!E$17)/$BA$46*$A$46 -> 0 | F53: =SUMIFS(AutumnProvRep!$K:$K,AutumnProvRep!$A:$A,Data!$A$27,AutumnProvRep!$O:$O,"Coventry",AutumnProvRep!$T:$T,Data!F$17)/$BA$46*$A$46 -> 0 | G53: =SUMIFS(AutumnProvRep!$K:$K,AutumnProvRep!$A:$A,Data!$A$27,AutumnProvRep!$O:$O,"Coventry",AutumnProvRep!$T:$T,Data!G$17)/$BA$46*$A$46 -> 0 | H53: =SUMIFS(AutumnProvRep!$K:$K,AutumnProvRep!$A:$A,Data!$A$27,AutumnProvRep!$O:$O,"Coventry",AutumnProvRep!$T:$T,Data!H$17)/$BA$46*$A$46 -> 75 | I53: =SUMIFS(AutumnProvRep!$K:$K,AutumnProvRep!$A:$A,Data!$A$27,AutumnProvRep!$O:$O,"Coventry",AutumnProvRep!$T:$T,Data!I$17)/$BA$46*$A$46 -> 0 | J53: =SUMIFS(AutumnProvRep!$K:$K,AutumnProvRep!$A:$A,Data!$A$27,AutumnProvRep!$O:$O,"Coventry",AutumnProvRep!$T:$T,Data!J$17)/$BA$46*$A$46 -> 0 | K53: =SUMIFS(AutumnProvRep!$K:$K,AutumnProvRep!$A:$A,Data!$A$27,AutumnProvRep!$O:$O,"Coventry",AutumnProvRep!$T:$T,Data!K$17)/$BA$46*$A$46 -> 6360 | L53: =SUMIFS(AutumnProvRep!$K:$K,AutumnProvRep!$A:$A,Data!$A$27,AutumnProvRep!$O:$O,"Coventry",AutumnProvRep!$T:$T,Data!L$17)/$BA$46*$A$46 -> 4525 | M53: =SUMIFS(AutumnProvRep!$K:$K,AutumnProvRep!$A:$A,Data!$A$27,AutumnProvRep!$O:$O,"Coventry",AutumnProvRep!$T:$T,Data!M$17)/$BA$46*$A$46 -> 0 | N53: =SUMIFS(AutumnProvRep!$K:$K,AutumnProvRep!$A:$A,Data!$A$27,AutumnProvRep!$O:$O,"Coventry",AutumnProvRep!$T:$T,Data!N$17)/$BA$46*$A$46 -> 2175 | O53: =SUMIFS(AutumnProvRep!$K:$K,AutumnProvRep!$A:$A,Data!$A$27,AutumnProvRep!$O:$O,"Coventry",AutumnProvRep!$T:$T,Data!O$17)/$BA$46*$A$46 -> 225 | P53: =SUMIFS(AutumnProvRep!$K:$K,AutumnProvRep!$A:$A,Data!$A$27,AutumnProvRep!$O:$O,"Coventry",AutumnProvRep!$T:$T,Data!P$17)/$BA$46*$A$46 -> 0 | Q53: =SUMIFS(AutumnProvRep!$K:$K,AutumnProvRep!$A:$A,Data!$A$27,AutumnProvRep!$O:$O,"Coventry",AutumnProvRep!$T:$T,Data!Q$17)/$BA$46*$A$46 -> 1985 | R53: =SUMIFS(AutumnProvRep!$K:$K,AutumnProvRep!$A:$A,Data!$A$27,AutumnProvRep!$O:$O,"Coventry",AutumnProvRep!$T:$T,Data!R$17)/$BA$46*$A$46 -> 1828 | S53: =SUMIFS(AutumnProvRep!$K:$K,AutumnProvRep!$A:$A,Data!$A$27,AutumnProvRep!$O:$O,"Coventry",AutumnProvRep!$T:$T,Data!S$17)/$BA$46*$A$46 -> 0 | T53: =SUMIFS(AutumnProvRep!$K:$K,AutumnProvRep!$A:$A,Data!$A$27,AutumnProvRep!$O:$O,"Coventry",AutumnProvRep!$T:$T,Data!T$17)/$BA$46*$A$46 -> 1575 | U53: =SUMIFS(AutumnProvRep!$K:$K,AutumnProvRep!$A:$A,Data!$A$27,AutumnProvRep!$O:$O,"Coventry",AutumnProvRep!$T:$T,Data!U$17)/$BA$46*$A$46 -> 0 | V53: =SUMIFS(AutumnProvRep!$K:$K,AutumnProvRep!$A:$A,Data!$A$27,AutumnProvRep!$O:$O,"Coventry",AutumnProvRep!$T:$T,Data!V$17)/$BA$46*$A$46 -> 0 | W53: 249.9733333 | X53: 1199623.528 | Y53: 0 | Z53: =SUMIFS(AutumnProvRep!$K:$K,AutumnProvRep!$A:$A,Data!$A$27,AutumnProvRep!$O:$O,"<>Coventry",AutumnProvRep!$T:$T,Data!Z$17)/$BA$46*$A$46 -> 0 | AA53: =SUMIFS(AutumnProvRep!$K:$K,AutumnProvRep!$A:$A,Data!$A$27,AutumnProvRep!$O:$O,"<>Coventry",AutumnProvRep!$T:$T,Data!AA$17)/$BA$46*$A$46 -> 0 | AB53: =SUMIFS(AutumnProvRep!$K:$K,AutumnProvRep!$A:$A,Data!$A$27,AutumnProvRep!$O:$O,"<>Coventry",AutumnProvRep!$T:$T,Data!AB$17)/$BA$46*$A$46 -> 0 | AC53: =SUMIFS(AutumnProvRep!$K:$K,AutumnProvRep!$A:$A,Data!$A$27,AutumnProvRep!$O:$O,"<>Coventry",AutumnProvRep!$T:$T,Data!AC$17)/$BA$46*$A$46 -> 0 | AD53: =SUMIFS(AutumnProvRep!$K:$K,AutumnProvRep!$A:$A,Data!$A$27,AutumnProvRep!$O:$O,"<>Coventry",AutumnProvRep!$T:$T,Data!AD$17)/$BA$46*$A$46 -> 0 | AE53: =SUMIFS(AutumnProvRep!$K:$K,AutumnProvRep!$A:$A,Data!$A$27,AutumnProvRep!$O:$O,"<>Coventry",AutumnProvRep!$T:$T,Data!AE$17)/$BA$46*$A$46 -> 0 | AF53: =SUMIFS(AutumnProvRep!$K:$K,AutumnProvRep!$A:$A,Data!$A$27,AutumnProvRep!$O:$O,"<>Coventry",AutumnProvRep!$T:$T,Data!AF$17)/$BA$46*$A$46 -> 168 | AG53: =SUMIFS(AutumnProvRep!$K:$K,AutumnProvRep!$A:$A,Data!$A$27,AutumnProvRep!$O:$O,"<>Coventry",AutumnProvRep!$T:$T,Data!AG$17)/$BA$46*$A$46 -> 0 | AH53: =SUMIFS(AutumnProvRep!$K:$K,AutumnProvRep!$A:$A,Data!$A$27,AutumnProvRep!$O:$O,"<>Coventry",AutumnProvRep!$T:$T,Data!AH$17)/$BA$46*$A$46 -> 0 | AI53: =SUMIFS(AutumnProvRep!$K:$K,AutumnProvRep!$A:$A,Data!$A$27,AutumnProvRep!$O:$O,"<>Coventry",AutumnProvRep!$T:$T,Data!AI$17)/$BA$46*$A$46 -> 75 | AJ53: =SUMIFS(AutumnProvRep!$K:$K,AutumnProvRep!$A:$A,Data!$A$27,AutumnProvRep!$O:$O,"<>Coventry",AutumnProvRep!$T:$T,Data!AJ$17)/$BA$46*$A$46 -> 0 | AK53: =SUMIFS(AutumnProvRep!$K:$K,AutumnProvRep!$A:$A,Data!$A$27,AutumnProvRep!$O:$O,"<>Coventry",AutumnProvRep!$T:$T,Data!AK$17)/$BA$46*$A$46 -> 0 | AL53: =SUMIFS(AutumnProvRep!$K:$K,AutumnProvRep!$A:$A,Data!$A$27,AutumnProvRep!$O:$O,"<>Coventry",AutumnProvRep!$T:$T,Data!AL$17)/$BA$46*$A$46 -> 0 | AM53: =SUMIFS(AutumnProvRep!$K:$K,AutumnProvRep!$A:$A,Data!$A$27,AutumnProvRep!$O:$O,"<>Coventry",AutumnProvRep!$T:$T,Data!AM$17)/$BA$46*$A$46 -> 0 | AN53: =SUMIFS(AutumnProvRep!$K:$K,AutumnProvRep!$A:$A,Data!$A$27,AutumnProvRep!$O:$O,"<>Coventry",AutumnProvRep!$T:$T,Data!AN$17)/$BA$46*$A$46 -> 0 | AO53: =SUMIFS(AutumnProvRep!$K:$K,AutumnProvRep!$A:$A,Data!$A$27,AutumnProvRep!$O:$O,"<>Coventry",AutumnProvRep!$T:$T,Data!AO$17)/$BA$46*$A$46 -> 150 | AP53: =SUMIFS(AutumnProvRep!$K:$K,AutumnProvRep!$A:$A,Data!$A$27,AutumnProvRep!$O:$O,"<>Coventry",AutumnProvRep!$T:$T,Data!AP$17)/$BA$46*$A$46 -> 0 | AQ53: =SUMIFS(AutumnProvRep!$K:$K,AutumnProvRep!$A:$A,Data!$A$27,AutumnProvRep!$O:$O,"<>Coventry",AutumnProvRep!$T:$T,Data!AQ$17)/$BA$46*$A$46 -> 0 | AR53: 5.24 | AS53: 26296.78267 | AT53: 1225920.311 | AU53: 255.2133333 | AV53: -2.786666667 | AW53: 258 | AX53: =[5]Data!$AU41 -> 251.8552632 | AY53: 258 | BB53: =($M$10-$AU$53)*$A$46 -> 209 | BD53: 19141 | BE53: =$BB$53/$BD$53*D53 -> 0 | BF53: 0 | BG53: 0 | BH53: 0 | BI53: 0.8189227313 | BJ53: 0 | BK53: 0 | BL53: 69.44464762 | BM53: 49.40833812 | BN53: 0 | BO53: 23.74875921 | BP53: 2.456768194 | BQ53: 0 | BR53: 21.67415496 | BS53: 19.9598767 | BT53: 0 | BU53: 17.19737736 | BV53: 0 | BW53: 0 | BY53: =$BB$53/$BD$53*Y53 -> 0 | BZ53: 0 | CA53: 0 | CB53: 0 | CC53: 0 | CD53: 0 | CE53: 0 | CF53: 1.834386918 | CG53: 0 | CH53: 0 | CI53: 0.8189227313 | CJ53: 0 | CK53: 0 | CL53: 0 | CM53: 0 | CN53: 0 | CO53: 1.637845463 | CP53: 0 | CQ53: 0
A54: 8 | B54: Woodfield | C54: =10000/$A$16 -> 51.54639175 | D54: 0 | E54: =SUMIFS(AutumnProvRep!$K:$K,AutumnProvRep!$A:$A,Data!$A$28,AutumnProvRep!$O:$O,"Coventry",AutumnProvRep!$T:$T,Data!E$17)/$BA$46*$A$46 -> 0 | F54: =SUMIFS(AutumnProvRep!$K:$K,AutumnProvRep!$A:$A,Data!$A$28,AutumnProvRep!$O:$O,"Coventry",AutumnProvRep!$T:$T,Data!F$17)/$BA$46*$A$46 -> 0 | G54: =SUMIFS(AutumnProvRep!$K:$K,AutumnProvRep!$A:$A,Data!$A$28,AutumnProvRep!$O:$O,"Coventry",AutumnProvRep!$T:$T,Data!G$17)/$BA$46*$A$46 -> 0 | H54: =SUMIFS(AutumnProvRep!$K:$K,AutumnProvRep!$A:$A,Data!$A$28,AutumnProvRep!$O:$O,"Coventry",AutumnProvRep!$T:$T,Data!H$17)/$BA$46*$A$46 -> 0 | I54: =SUMIFS(AutumnProvRep!$K:$K,AutumnProvRep!$A:$A,Data!$A$28,AutumnProvRep!$O:$O,"Coventry",AutumnProvRep!$T:$T,Data!I$17)/$BA$46*$A$46 -> 0 | J54: =SUMIFS(AutumnProvRep!$K:$K,AutumnProvRep!$A:$A,Data!$A$28,AutumnProvRep!$O:$O,"Coventry",AutumnProvRep!$T:$T,Data!J$17)/$BA$46*$A$46 -> 0 | K54: =SUMIFS(AutumnProvRep!$K:$K,AutumnProvRep!$A:$A,Data!$A$28,AutumnProvRep!$O:$O,"Coventry",AutumnProvRep!$T:$T,Data!K$17)/$BA$46*$A$46 -> 0 | L54: =SUMIFS(AutumnProvRep!$K:$K,AutumnProvRep!$A:$A,Data!$A$28,AutumnProvRep!$O:$O,"Coventry",AutumnProvRep!$T:$T,Data!L$17)/$BA$46*$A$46 -> 0 | M54: =SUMIFS(AutumnProvRep!$K:$K,AutumnProvRep!$A:$A,Data!$A$28,AutumnProvRep!$O:$O,"Coventry",AutumnProvRep!$T:$T,Data!M$17)/$BA$46*$A$46 -> 0 | N54: =SUMIFS(AutumnProvRep!$K:$K,AutumnProvRep!$A:$A,Data!$A$28,AutumnProvRep!$O:$O,"Coventry",AutumnProvRep!$T:$T,Data!N$17)/$BA$46*$A$46 -> 0 | O54: =SUMIFS(AutumnProvRep!$K:$K,AutumnProvRep!$A:$A,Data!$A$28,AutumnProvRep!$O:$O,"Coventry",AutumnProvRep!$T:$T,Data!O$17)/$BA$46*$A$46 -> 300 | P54: =SUMIFS(AutumnProvRep!$K:$K,AutumnProvRep!$A:$A,Data!$A$28,AutumnProvRep!$O:$O,"Coventry",AutumnProvRep!$T:$T,Data!P$17)/$BA$46*$A$46 -> 0 | Q54: =SUMIFS(AutumnProvRep!$K:$K,AutumnProvRep!$A:$A,Data!$A$28,AutumnProvRep!$O:$O,"Coventry",AutumnProvRep!$T:$T,Data!Q$17)/$BA$46*$A$46 -> 11228 | R54: =SUMIFS(AutumnProvRep!$K:$K,AutumnProvRep!$A:$A,Data!$A$28,AutumnProvRep!$O:$O,"Coventry",AutumnProvRep!$T:$T,Data!R$17)/$BA$46*$A$46 -> 0 | S54: =SUMIFS(AutumnProvRep!$K:$K,AutumnProvRep!$A:$A,Data!$A$28,AutumnProvRep!$O:$O,"Coventry",AutumnProvRep!$T:$T,Data!S$17)/$BA$46*$A$46 -> 0 | T54: =SUMIFS(AutumnProvRep!$K:$K,AutumnProvRep!$A:$A,Data!$A$28,AutumnProvRep!$O:$O,"Coventry",AutumnProvRep!$T:$T,Data!T$17)/$BA$46*$A$46 -> 0 | U54: =SUMIFS(AutumnProvRep!$K:$K,AutumnProvRep!$A:$A,Data!$A$28,AutumnProvRep!$O:$O,"Coventry",AutumnProvRep!$T:$T,Data!U$17)/$BA$46*$A$46 -> 150 | V54: =SUMIFS(AutumnProvRep!$K:$K,AutumnProvRep!$A:$A,Data!$A$28,AutumnProvRep!$O:$O,"Coventry",AutumnProvRep!$T:$T,Data!V$17)/$BA$46*$A$46 -> 0 | W54: =SUM(D54:V54)/$A$46 -> 155.7066667 | X54: 1068249.559 | Y54: 0 | Z54: =SUMIFS(AutumnProvRep!$K:$K,AutumnProvRep!$A:$A,Data!$A$28,AutumnProvRep!$O:$O,"<>Coventry",AutumnProvRep!$T:$T,Data!Z$17)/$BA$46*$A$46 -> 0 | AA54: =SUMIFS(AutumnProvRep!$K:$K,AutumnProvRep!$A:$A,Data!$A$28,AutumnProvRep!$O:$O,"<>Coventry",AutumnProvRep!$T:$T,Data!AA$17)/$BA$46*$A$46 -> 0 | AB54: =SUMIFS(AutumnProvRep!$K:$K,AutumnProvRep!$A:$A,Data!$A$28,AutumnProvRep!$O:$O,"<>Coventry",AutumnProvRep!$T:$T,Data!AB$17)/$BA$46*$A$46 -> 0 | AC54: =SUMIFS(AutumnProvRep!$K:$K,AutumnProvRep!$A:$A,Data!$A$28,AutumnProvRep!$O:$O,"<>Coventry",AutumnProvRep!$T:$T,Data!AC$17)/$BA$46*$A$46 -> 0 | AD54: =SUMIFS(AutumnProvRep!$K:$K,AutumnProvRep!$A:$A,Data!$A$28,AutumnProvRep!$O:$O,"<>Coventry",AutumnProvRep!$T:$T,Data!AD$17)/$BA$46*$A$46 -> 0 | AE54: =SUMIFS(AutumnProvRep!$K:$K,AutumnProvRep!$A:$A,Data!$A$28,AutumnProvRep!$O:$O,"<>Coventry",AutumnProvRep!$T:$T,Data!AE$17)/$BA$46*$A$46 -> 0 | AF54: =SUMIFS(AutumnProvRep!$K:$K,AutumnProvRep!$A:$A,Data!$A$28,AutumnProvRep!$O:$O,"<>Coventry",AutumnProvRep!$T:$T,Data!AF$17)/$BA$46*$A$46 -> 0 | AG54: =SUMIFS(AutumnProvRep!$K:$K,AutumnProvRep!$A:$A,Data!$A$28,AutumnProvRep!$O:$O,"<>Coventry",AutumnProvRep!$T:$T,Data!AG$17)/$BA$46*$A$46 -> 0 | AH54: =SUMIFS(AutumnProvRep!$K:$K,AutumnProvRep!$A:$A,Data!$A$28,AutumnProvRep!$O:$O,"<>Coventry",AutumnProvRep!$T:$T,Data!AH$17)/$BA$46*$A$46 -> 0 | AI54: =SUMIFS(AutumnProvRep!$K:$K,AutumnProvRep!$A:$A,Data!$A$28,AutumnProvRep!$O:$O,"<>Coventry",AutumnProvRep!$T:$T,Data!AI$17)/$BA$46*$A$46 -> 0 | AJ54: =SUMIFS(AutumnProvRep!$K:$K,AutumnProvRep!$A:$A,Data!$A$28,AutumnProvRep!$O:$O,"<>Coventry",AutumnProvRep!$T:$T,Data!AJ$17)/$BA$46*$A$46 -> 0 | AK54: =SUMIFS(AutumnProvRep!$K:$K,AutumnProvRep!$A:$A,Data!$A$28,AutumnProvRep!$O:$O,"<>Coventry",AutumnProvRep!$T:$T,Data!AK$17)/$BA$46*$A$46 -> 0 | AL54: =SUMIFS(AutumnProvRep!$K:$K,AutumnProvRep!$A:$A,Data!$A$28,AutumnProvRep!$O:$O,"<>Coventry",AutumnProvRep!$T:$T,Data!AL$17)/$BA$46*$A$46 -> 150 | AM54: =SUMIFS(AutumnProvRep!$K:$K,AutumnProvRep!$A:$A,Data!$A$28,AutumnProvRep!$O:$O,"<>Coventry",AutumnProvRep!$T:$T,Data!AM$17)/$BA$46*$A$46 -> 0 | AN54: =SUMIFS(AutumnProvRep!$K:$K,AutumnProvRep!$A:$A,Data!$A$28,AutumnProvRep!$O:$O,"<>Coventry",AutumnProvRep!$T:$T,Data!AN$17)/$BA$46*$A$46 -> 0 | AO54: =SUMIFS(AutumnProvRep!$K:$K,AutumnProvRep!$A:$A,Data!$A$28,AutumnProvRep!$O:$O,"<>Coventry",AutumnProvRep!$T:$T,Data!AO$17)/$BA$46*$A$46 -> 0 | AP54: =SUMIFS(AutumnProvRep!$K:$K,AutumnProvRep!$A:$A,Data!$A$28,AutumnProvRep!$O:$O,"<>Coventry",AutumnProvRep!$T:$T,Data!AP$17)/$BA$46*$A$46 -> 0 | AQ54: =SUMIFS(AutumnProvRep!$K:$K,AutumnProvRep!$A:$A,Data!$A$28,AutumnProvRep!$O:$O,"<>Coventry",AutumnProvRep!$T:$T,Data!AQ$17)/$BA$46*$A$46 -> 0 | AR54: 2 | AS54: 13168.65677 | AT54: 1081418.216 | AU54: 157.7066667 | AV54: -3.293333333 | AW54: 161 | AX54: =[5]Data!$AU42 -> 155.6315789 | AY54: 155 | BB54: =($M$11-$AU$54)*$A$46 -> 247 | BD54: 11828 | BE54: =$BB$54/$BD$54*D54 -> 0 | BF54: 0 | BG54: 0 | BH54: 0 | BI54: 0 | BJ54: 0 | BK54: 0 | BL54: 0 | BM54: 0 | BN54: 0 | BO54: 0 | BP54: 6.264795401 | BQ54: 0 | BR54: 234.4704092 | BS54: 0 | BT54: 0 | BU54: 0 | BV54: 3.1323977 | BW54: 0 | BY54: =$BB$54/$BD$54*Y54 -> 0 | BZ54: 0 | CA54: 0 | CB54: 0 | CC54: 0 | CD54: 0 | CE54: 0 | CF54: 0 | CG54: 0 | CH54: 0 | CI54: 0 | CJ54: 0 | CK54: 0 | CL54: 3.1323977 | CM54: 0 | CN54: 0 | CO54: 0 | CP54: 0 | CQ54: 0
A55: 9 | B55: Coventry ELC | C55: =10000/$A$16 -> 51.54639175 | D55: =120*A46 -> 9000 | E55: 0 | F55: 0 | G55: 0 | H55: 0 | I55: 0 | J55: 0 | K55: 0 | L55: 0 | M55: 0 | N55: 0 | O55: 0 | P55: 0 | Q55: 0 | R55: 0 | S55: 0 | T55: 0 | U55: 0 | V55: 0 | W55: =SUM(D55:V55)/$A$46 -> 120 | X55: =SUMPRODUCT(D55:V55,$V$12:$AN$12)/$A$16 -> 598330.6664 | Y55: =A46*0 -> 0 | Z55: 0 | AA55: 0 | AB55: 0 | AC55: 0 | AD55: 0 | AE55: 0 | AF55: 0 | AG55: 0 | AH55: 0 | AI55: 0 | AJ55: 0 | AK55: 0 | AL55: 0 | AM55: 0 | AN55: 0 | AO55: 0 | AP55: 0 | AQ55: 0 | AR55: 0 | AS55: =SUMPRODUCT(Y55:AQ55,$V$12:$AN$12)/$A$16 -> 0 | AT55: 598330.6664 | AU55: 120 | AV55: =AU55-AW55 -> 0 | AW55: 120 | AX55: =[5]Data!$AU43 -> 120 | AY55: 120 | BB55: =($M$12-$AU$55)*$A$46 -> 0 | BD55: 9000 | BE55: =$BB$55/$BD$55*D55 -> 0 | BF55: 0 | BG55: 0 | BH55: 0 | BI55: 0 | BJ55: 0 | BK55: 0 | BL55: 0 | BM55: 0 | BN55: 0 | BO55: 0 | BP55: 0 | BQ55: 0 | BR55: 0 | BS55: 0 | BT55: 0 | BU55: 0 | BV55: 0 | BW55: 0 | BY55: =$BB$55/$BD$55*Y55 -> 0 | BZ55: 0 | CA55: 0 | CB55: 0 | CC55: 0 | CD55: 0 | CE55: 0 | CF55: 0 | CG55: 0 | CH55: 0 | CI55: 0 | CJ55: 0 | CK55: 0 | CL55: 0 | CM55: 0 | CN55: 0 | CO55: 0 | CP55: 0 | CQ55: 0
AS56: =SUM(AS47:AS55) -> 88324.52956 | AT56: =SUM(AT47:AT55) -> 7247550.537 | AU56: =SUM(AU47:AU55) -> 1410.226667
B57: Autumn Term 2025
A58: 75 | B58: School
A59: 1 | B59: Castle Wood | C59: =10000/$A$16 -> 51.54639175 | D59: =D47+BE47 -> 0 | E59: =E47+BF47 -> 0 | F59: =F47+BG47 -> 0 | G59: =G47+BH47 -> 0 | H59: =H47+BI47 -> 0 | I59: =I47+BJ47 -> 0 | J59: =J47+BK47 -> 87.89785344 | K59: =K47+BL47 -> 7528.74414 | L59: =L47+BM47 -> 791.080681 | M59: =M47+BN47 -> 87.89785344 | N59: =N47+BO47 -> 615.2849741 | O59: =O47+BP47 -> 726.6222551 | P59: =P47+BQ47 -> 0 | Q59: =Q47+BR47 -> 3022.514187 | R59: =R47+BS47 -> 615.2849741 | S59: =S47+BT47 -> 0 | T59: =T47+BU47 -> 527.3871207 | U59: =U47+BV47 -> 247.285961 | V59: =V47+BW47 -> 0 | W59: =SUM(D59:V59)/$A$46 -> 190 | X59: =SUMPRODUCT(D59:V59,$V$6:$AN$6)/$A$16 -> 1023251.857 | Y59: =Y47+BY47 -> 0 | Z59: =Z47+BZ47 -> 0 | AA59: =AA47+CA47 -> 0 | AB59: =AB47+CB47 -> 0 | AC59: =AC47+CC47 -> 0 | AD59: =AD47+CD47 -> 0 | AE59: =AE47+CE47 -> 0 | AF59: =AF47+CF47 -> 0 | AG59: =AG47+CG47 -> 0 | AH59: =AH47+CH47 -> 0 | AI59: =AI47+CI47 -> 0 | AJ59: =AJ47+CJ47 -> 0 | AK59: =AK47+CK47 -> 0 | AL59: =AL47+CL47 -> 0 | AM59: =AM47+CM47 -> 0 | AN59: =AN47+CN47 -> 0 | AO59: =AO47+CO47 -> 0 | AP59: =AP47+CP47 -> 0 | AQ59: =AQ47+CQ47 -> 0 | AR59: =SUM(Y59:AQ59)/$A$46 -> 0 | AS59: =SUMPRODUCT(Y59:AQ59,$V$6:$AN$6)/$A$16 -> 0 | AT59: =X59+AS59 -> 1023251.857 | AU59: =AR59+W59 -> 190 | AV59: =AU59-AW59 -> 0 | AW59: =M4 -> 190 | AX59: =[5]Data!$AU35 -> 159.6842105 | AY59: =E4 -> 164 | BA59: =(AT59/75*200)/AU59 -> 14361.42957 | BC59: =X59/W59 -> 5385.536088
A60: 2 | B60: Kingsbury | C60: =10000/$A$16 -> 51.54639175 | D60: =D48+BE48 -> 0 | E60: 0 | F60: 0 | G60: 0 | H60: 0 | I60: 0 | J60: =J48+BK48 -> 0 | K60: =K48+BL48 -> 4871.840137 | L60: =L48+BM48 -> 183.6461478 | M60: 0 | N60: 0 | O60: 575.9810999 | P60: 0 | Q60: =Q48+BR48 -> 1878.199239 | R60: 0 | S60: 0 | T60: 0 | U60: 49.04186901 | V60: 0 | W60: 100.7827799 | X60: =SUMPRODUCT(D60:V60,$V$6:$AN$6)/$A$16 -> 529988.3838 | Y60: =Y48+BY48 -> 0 | Z60: 0 | AA60: 0 | AB60: 0 | AC60: 0 | AD60: 0 | AE60: 0 | AF60: 156.5166032 | AG60: 78.25830161 | AH60: 0 | AI60: 0 | AJ60: 0 | AK60: 0 | AL60: 156.5166032 | AM60: 0 | AN60: 0 | AO60: 0 | AP60: 0 | AQ60: 0 | AR60: =SUM(Y60:AQ60)/$A$46 -> 5.217220108 | AS60: 26107.43583 | AT60: 556095.8196 | AU60: 106 | AV60: 0 | AW60: 106 | AX60: =[5]Data!$AU36 -> 100.25 | AY60: 100 | BA60: =(AT60/75*200)/AU60 -> 13989.83194 | BC60: 5258.719638
A61: 3 | B61: RiverBank | C61: 51.54639175 | D61: 0 | E61: 0 | F61: 0 | G61: 497.854365 | H61: 576.4047204 | I61: 0 | J61: 0 | K61: =K49+BL49 -> 6175.606812 | L61: 4548.17621 | M61: 165.951455 | N61: 661.593134 | O61: 746.7815475 | P61: 331.90291 | Q61: 2053.37267 | R61: 493.4289929 | S61: 0 | T61: 248.9271825 | U61: 0 | V61: 0 | W61: 220 | X61: 1044689.822 | Y61: 0 | Z61: 0 | AA61: 0 | AB61: 0 | AC61: 0 | AD61: 0 | AE61: 0 | AF61: 0 | AG61: 0 | AH61: 0 | AI61: 0 | AJ61: 0 | AK61: 0 | AL61: 0 | AM61: 0 | AN61: 0 | AO61: 0 | AP61: 0 | AQ61: 0 | AR61: 0 | AS61: 0 | AT61: 1044689.822 | AU61: 220 | AV61: 0 | AW61: 220 | AX61: =[5]Data!$AU37 -> 196.2368421 | AY61: 209 | BA61: 12662.90693 | BC61: 4748.590098
A62: 4 | B62: Corley | C62: 51.54639175 | D62: 0 | E62: 0 | F62: 0 | G62: 233.7278733 | H62: 267.2672991 | I62: 0 | J62: 0 | K62: 9441.348353 | L62: 467.4557466 | M62: 550.2562039 | N62: 0 | O62: 235.8240874 | P62: 0 | Q62: 943.2963496 | R62: 0 | S62: 0 | T62: 0 | U62: 0 | V62: 0 | W62: 161.8556788 | X62: 696850.1444 | Y62: 0 | Z62: 0 | AA62: 0 | AB62: 0 | AC62: 0 | AD62: 0 | AE62: 0 | AF62: 235.8240874 | AG62: 0 | AH62: 0 | AI62: 0 | AJ62: 0 | AK62: 0 | AL62: 0 | AM62: 0 | AN62: 0 | AO62: 0 | AP62: 0 | AQ62: 0 | AR62: 3.144321165 | AS62: 12740.45414 | AT62: 709590.5986 | AU62: 165 | AV62: 0 | AW62: 165 | AX62: =[5]Data!$AU38 -> 155.3552632 | AY62: 155 | BA62: 11468.13089 | BC62: 4305.379641
A63: 5 | B63: Tiverton | C63: 51.54639175 | D63: 0 | E63: 0 | F63: 0 | G63: 0 | H63: 0 | I63: 0 | J63: 0 | K63: 6074.617152 | L63: 838.1240429 | M63: 0 | N63: 381.8912711 | O63: 357.4502297 | P63: 0 | Q63: 1228.162328 | R63: 534.6477795 | S63: 0 | T63: 458.2695253 | U63: 0 | V63: 0 | W63: 131.6421644 | X63: 633310.0995 | Y63: 0 | Z63: 0 | AA63: 0 | AB63: 0 | AC63: 0 | AD63: 0 | AE63: 0 | AF63: 25.45941807 | AG63: 0 | AH63: 0 | AI63: 0 | AJ63: 0 | AK63: 0 | AL63: 76.37825421 | AM63: 0 | AN63: 0 | AO63: 0 | AP63: 0 | AQ63: 0 | AR63: 1.35783563 | AS63: 8080.778065 | AT63: 641390.8775 | AU63: 133 | AV63: 0 | AW63: 133 | AX63: =[5]Data!$AU39 -> 128.8947368 | AY63: 131 | BA63: 12859.96747 | BC63: 4810.845389
A64: 6 | B64: Baginton Fields | C64: 51.54639175 | D64: 0 | E64: 0 | F64: 0 | G64: 0 | H64: 0 | I64: 0 | J64: 0 | K64: 2254.119318 | L64: 2907.386364 | M64: 0 | N64: 149.1477273 | O64: 886.9318182 | P64: 0 | Q64: 2026.420455 | R64: 967.4715909 | S64: 0 | T64: 149.1477273 | U64: 34.80113636 | V64: 0 | W64: 125.0056818 | X64: 677107.4136 | Y64: 0 | Z64: 0 | AA64: 0 | AB64: 0 | AC64: 0 | AD64: 0 | AE64: 0 | AF64: 0 | AG64: 74.57386364 | AH64: 0 | AI64: 0 | AJ64: 0 | AK64: 0 | AL64: 0 | AM64: 0 | AN64: 0 | AO64: =AO52+CO52 -> 0 | AP64: 0 | AQ64: 0 | AR64: 0.9943181818 | AS64: 3726.707971 | AT64: 680834.1215 | AU64: 126 | AV64: 0 | AW64: 126 | AX64: =[5]Data!$AU40 -> 125.0526316 | AY64: 126 | BA64: 14409.18776 | BC64: 5416.613099
A65: 7 | B65: Sherbourne Fields | C65: 51.54639175 | D65: 0 | E65: 0 | F65: 0 | G65: 0 | H65: 75.81892273 | I65: 0 | J65: 0 | K65: 6429.444648 | L65: 4574.408338 | M65: 0 | N65: 2198.748759 | O65: 227.4567682 | P65: 0 | Q65: 2006.674155 | R65: 1847.959877 | S65: 0 | T65: 1592.197377 | U65: 0 | V65: 0 | W65: 252.7027846 | X65: 1212722.181 | Y65: 0 | Z65: 0 | AA65: 0 | AB65: 0 | AC65: 0 | AD65: 0 | AE65: 0 | AF65: 169.8343869 | AG65: 0 | AH65: 0 | AI65: 75.81892273 | AJ65: 0 | AK65: 0 | AL65: 0 | AM65: 0 | AN65: 0 | AO65: 151.6378455 | AP65: 0 | AQ65: 0 | AR65: 5.297215401 | AS65: 26583.91645 | AT65: 1239306.098 | AU65: 258 | AV65: 0 | AW65: 258 | AX65: =[5]Data!$AU41 -> 251.8552632 | AY65: 258 | BA65: 12809.36535 | BC65: 4799.006008
A66: 8 | B66: Woodfield | C66: =10000/$A$16 -> 51.54639175 | D66: 0 | E66: 0 | F66: 0 | G66: 0 | H66: 0 | I66: 0 | J66: 0 | K66: 0 | L66: 0 | M66: 0 | N66: 0 | O66: 306.2647954 | P66: 0 | Q66: 11462.47041 | R66: 0 | S66: 0 | T66: 0 | U66: 153.1323977 | V66: 0 | W66: =SUM(D66:V66)/$A$46 -> 158.9582347 | X66: 1090557.442 | Y66: 0 | Z66: 0 | AA66: 0 | AB66: 0 | AC66: 0 | AD66: 0 | AE66: 0 | AF66: 0 | AG66: 0 | AH66: 0 | AI66: 0 | AJ66: 0 | AK66: 0 | AL66: 153.1323977 | AM66: 0 | AN66: 0 | AO66: 0 | AP66: 0 | AQ66: 0 | AR66: 2.041765303 | AS66: 13443.65323 | AT66: 1104001.095 | AU66: 161 | AV66: 0 | AW66: 161 | AX66: =[5]Data!$AU42 -> 155.6315789 | AY66: 155 | BA66: 18285.73243 | BC66: 6860.653958
A67: 9 | B67: Coventry ELC | C67: =10000/$A$16 -> 51.54639175 | D67: 9000 | E67: 0 | F67: 0 | G67: 0 | H67: 0 | I67: 0 | J67: 0 | K67: 0 | L67: 0 | M67: 0 | N67: 0 | O67: 0 | P67: 0 | Q67: 0 | R67: 0 | S67: 0 | T67: 0 | U67: 0 | V67: 0 | W67: =SUM(D67:V67)/$A$46 -> 120 | X67: =SUMPRODUCT(D67:V67,$V$12:$AN$12)/$A$16 -> 598330.6664 | Y67: 0 | Z67: 0 | AA67: 0 | AB67: 0 | AC67: 0 | AD67: 0 | AE67: 0 | AF67: 0 | AG67: 0 | AH67: 0 | AI67: 0 | AJ67: 0 | AK67: 0 | AL67: 0 | AM67: 0 | AN67: 0 | AO67: 0 | AP67: 0 | AQ67: 0 | AR67: 0 | AS67: =SUMPRODUCT(Y67:AQ67,$V$12:$AN$12)/$A$16 -> 0 | AT67: 598330.6664 | AU67: 120 | AV67: =AU67-AW67 -> 0 | AW67: 120 | AX67: =[5]Data!$AU43 -> 120 | AY67: 120 | BA67: 13296.23703 | BC67: 4986.088887
AS68: =SUM(AS59:AS67) -> 90682.94569 | AT68: =SUM(AT59:AT67) -> 7597490.955 | AU68: =SUM(AU59:AU67) -> 1479
D71: Coventry pupils | Y71: Other LA Pupils
B72: Spring Term 2026
A73: 55 | B73: School | BA73: 56
A74: 1 | B74: Castle Wood | C74: =10000/$A$16 -> 51.54639175 | D74: 0 | E74: =SUMIFS(SpringProvRep!$K:$K,SpringProvRep!$A:$A,Data!$A$21,SpringProvRep!$O:$O,"Coventry",SpringProvRep!$T:$T,Data!E$17)/$BA$73*$A$73 -> 0 | F74: =SUMIFS(SpringProvRep!$K:$K,SpringProvRep!$A:$A,Data!$A$21,SpringProvRep!$O:$O,"Coventry",SpringProvRep!$T:$T,Data!F$17)/$BA$73*$A$73 -> 0 | G74: =SUMIFS(SpringProvRep!$K:$K,SpringProvRep!$A:$A,Data!$A$21,SpringProvRep!$O:$O,"Coventry",SpringProvRep!$T:$T,Data!G$17)/$BA$73*$A$73 -> 0 | H74: =SUMIFS(SpringProvRep!$K:$K,SpringProvRep!$A:$A,Data!$A$21,SpringProvRep!$O:$O,"Coventry",SpringProvRep!$T:$T,Data!H$17)/$BA$73*$A$73 -> 0 | I74: =SUMIFS(SpringProvRep!$K:$K,SpringProvRep!$A:$A,Data!$A$21,SpringProvRep!$O:$O,"Coventry",SpringProvRep!$T:$T,Data!I$17)/$BA$73*$A$73 -> 0 | J74: =SUMIFS(SpringProvRep!$K:$K,SpringProvRep!$A:$A,Data!$A$21,SpringProvRep!$O:$O,"Coventry",SpringProvRep!$T:$T,Data!J$17)/$BA$73*$A$73 -> 55 | K74: =SUMIFS(SpringProvRep!$K:$K,SpringProvRep!$A:$A,Data!$A$21,SpringProvRep!$O:$O,"Coventry",SpringProvRep!$T:$T,Data!K$17)/$BA$73*$A$73 -> 4842.946429 | L74: =SUMIFS(SpringProvRep!$K:$K,SpringProvRep!$A:$A,Data!$A$21,SpringProvRep!$O:$O,"Coventry",SpringProvRep!$T:$T,Data!L$17)/$BA$73*$A$73 -> 495 | M74: =SUMIFS(SpringProvRep!$K:$K,SpringProvRep!$A:$A,Data!$A$21,SpringProvRep!$O:$O,"Coventry",SpringProvRep!$T:$T,Data!M$17)/$BA$73*$A$73 -> 55 | N74: =SUMIFS(SpringProvRep!$K:$K,SpringProvRep!$A:$A,Data!$A$21,SpringProvRep!$O:$O,"Coventry",SpringProvRep!$T:$T,Data!N$17)/$BA$73*$A$73 -> 385 | O74: =SUMIFS(SpringProvRep!$K:$K,SpringProvRep!$A:$A,Data!$A$21,SpringProvRep!$O:$O,"Coventry",SpringProvRep!$T:$T,Data!O$17)/$BA$73*$A$73 -> 454.7321429 | P74: =SUMIFS(SpringProvRep!$K:$K,SpringProvRep!$A:$A,Data!$A$21,SpringProvRep!$O:$O,"Coventry",SpringProvRep!$T:$T,Data!P$17)/$BA$73*$A$73 -> 0 | Q74: =SUMIFS(SpringProvRep!$K:$K,SpringProvRep!$A:$A,Data!$A$21,SpringProvRep!$O:$O,"Coventry",SpringProvRep!$T:$T,Data!Q$17)/$BA$73*$A$73 -> 1835.625 | R74: =SUMIFS(SpringProvRep!$K:$K,SpringProvRep!$A:$A,Data!$A$21,SpringProvRep!$O:$O,"Coventry",SpringProvRep!$T:$T,Data!R$17)/$BA$73*$A$73 -> 385 | S74: =SUMIFS(SpringProvRep!$K:$K,SpringProvRep!$A:$A,Data!$A$21,SpringProvRep!$O:$O,"Coventry",SpringProvRep!$T:$T,Data!S$17)/$BA$73*$A$73 -> 0 | T74: =SUMIFS(SpringProvRep!$K:$K,SpringProvRep!$A:$A,Data!$A$21,SpringProvRep!$O:$O,"Coventry",SpringProvRep!$T:$T,Data!T$17)/$BA$73*$A$73 -> 330 | U74: =SUMIFS(SpringProvRep!$K:$K,SpringProvRep!$A:$A,Data!$A$21,SpringProvRep!$O:$O,"Coventry",SpringProvRep!$T:$T,Data!U$17)/$BA$73*$A$73 -> 194.4642857 | V74: =SUMIFS(SpringProvRep!$K:$K,SpringProvRep!$A:$A,Data!$A$21,SpringProvRep!$O:$O,"Coventry",SpringProvRep!$T:$T,Data!V$17)/$BA$73*$A$73 -> 0 | W74: =SUM(D74:V74)/$A$73 -> 164.2321429 | X74: =SUMPRODUCT(E74:V74,$W$6:$AN$6)/$A$16 -> 653462.0314 | Y74: 0 | Z74: =SUMIFS(SpringProvRep!$K:$K,SpringProvRep!$A:$A,Data!$A$21,SpringProvRep!$O:$O,"<>Coventry",SpringProvRep!$T:$T,Data!Z$17)/$BA$73*$A$73 -> 0 | AA74: =SUMIFS(SpringProvRep!$K:$K,SpringProvRep!$A:$A,Data!$A$21,SpringProvRep!$O:$O,"<>Coventry",SpringProvRep!$T:$T,Data!AA$17)/$BA$73*$A$73 -> 0 | AB74: =SUMIFS(SpringProvRep!$K:$K,SpringProvRep!$A:$A,Data!$A$21,SpringProvRep!$O:$O,"<>Coventry",SpringProvRep!$T:$T,Data!AB$17)/$BA$73*$A$73 -> 0 | AC74: =SUMIFS(SpringProvRep!$K:$K,SpringProvRep!$A:$A,Data!$A$21,SpringProvRep!$O:$O,"<>Coventry",SpringProvRep!$T:$T,Data!AC$17)/$BA$73*$A$73 -> 0 | AD74: =SUMIFS(SpringProvRep!$K:$K,SpringProvRep!$A:$A,Data!$A$21,SpringProvRep!$O:$O,"<>Coventry",SpringProvRep!$T:$T,Data!AD$17)/$BA$73*$A$73 -> 0 | AE74: =SUMIFS(SpringProvRep!$K:$K,SpringProvRep!$A:$A,Data!$A$21,SpringProvRep!$O:$O,"<>Coventry",SpringProvRep!$T:$T,Data!AE$17)/$BA$73*$A$73 -> 0 | AF74: =SUMIFS(SpringProvRep!$K:$K,SpringProvRep!$A:$A,Data!$A$21,SpringProvRep!$O:$O,"<>Coventry",SpringProvRep!$T:$T,Data!AF$17)/$BA$73*$A$73 -> 55 | AG74: =SUMIFS(SpringProvRep!$K:$K,SpringProvRep!$A:$A,Data!$A$21,SpringProvRep!$O:$O,"<>Coventry",SpringProvRep!$T:$T,Data!AG$17)/$BA$73*$A$73 -> 0 | AH74: =SUMIFS(SpringProvRep!$K:$K,SpringProvRep!$A:$A,Data!$A$21,SpringProvRep!$O:$O,"<>Coventry",SpringProvRep!$T:$T,Data!AH$17)/$BA$73*$A$73 -> 0 | AI74: =SUMIFS(SpringProvRep!$K:$K,SpringProvRep!$A:$A,Data!$A$21,SpringProvRep!$O:$O,"<>Coventry",SpringProvRep!$T:$T,Data!AI$17)/$BA$73*$A$73 -> 0 | AJ74: =SUMIFS(SpringProvRep!$K:$K,SpringProvRep!$A:$A,Data!$A$21,SpringProvRep!$O:$O,"<>Coventry",SpringProvRep!$T:$T,Data!AJ$17)/$BA$73*$A$73 -> 0 | AK74: =SUMIFS(SpringProvRep!$K:$K,SpringProvRep!$A:$A,Data!$A$21,SpringProvRep!$O:$O,"<>Coventry",SpringProvRep!$T:$T,Data!AK$17)/$BA$73*$A$73 -> 0 | AL74: =SUMIFS(SpringProvRep!$K:$K,SpringProvRep!$A:$A,Data!$A$21,SpringProvRep!$O:$O,"<>Coventry",SpringProvRep!$T:$T,Data!AL$17)/$BA$73*$A$73 -> 0 | AM74: =SUMIFS(SpringProvRep!$K:$K,SpringProvRep!$A:$A,Data!$A$21,SpringProvRep!$O:$O,"<>Coventry",SpringProvRep!$T:$T,Data!AM$17)/$BA$73*$A$73 -> 0 | AN74: =SUMIFS(SpringProvRep!$K:$K,SpringProvRep!$A:$A,Data!$A$21,SpringProvRep!$O:$O,"<>Coventry",SpringProvRep!$T:$T,Data!AN$17)/$BA$73*$A$73 -> 0 | AO74: =SUMIFS(SpringProvRep!$K:$K,SpringProvRep!$A:$A,Data!$A$21,SpringProvRep!$O:$O,"<>Coventry",SpringProvRep!$T:$T,Data!AO$17)/$BA$73*$A$73 -> 0 | AP74: =SUMIFS(SpringProvRep!$K:$K,SpringProvRep!$A:$A,Data!$A$21,SpringProvRep!$O:$O,"<>Coventry",SpringProvRep!$T:$T,Data!AP$17)/$BA$73*$A$73 -> 0 | AQ74: =SUMIFS(SpringProvRep!$K:$K,SpringProvRep!$A:$A,Data!$A$21,SpringProvRep!$O:$O,"<>Coventry",SpringProvRep!$T:$T,Data!AQ$17)/$BA$73*$A$73 -> 0 | AR74: =SUM(Z74:AQ74)/$A$73 -> 1 | AS74: =SUMPRODUCT(Z74:AQ74,$W$4:$AN$4)/$A$16 -> 2971.388485 | AT74: =X74+AS74 -> 656433.4199 | AU74: =AR74+W74 -> 165.2321429 | AV74: =AU74-AW74 -> -24.76785714 | AW74: =AW47 -> 190 | AX74: =[5]Data!$AU62 -> 161.72 | AY74: =E4 -> 164 | BB74: =($M$4-$AU$74)*$A$73 -> 1362.232143 | BD74: =AU74*$A$73 -> 9087.767857 | BE74: =$BB$74/$BD$74*D74 -> 0 | BF74: 0 | BG74: 0 | BH74: 0 | BI74: 0 | BJ74: 0 | BK74: 8.244353183 | BL74: 725.9447419 | BM74: 74.19917864 | BN74: 8.244353183 | BO74: 57.71047228 | BP74: 68.16313435 | BQ74: 0 | BR74: 275.1552875 | BS74: 57.71047228 | BT74: 0 | BU74: 49.4661191 | BV74: 29.14967732 | BW74: 0 | BY74: =$BB$74/$BD$74*Y74 -> 0 | BZ74: 0 | CA74: 0 | CB74: 0 | CC74: 0 | CD74: 0 | CE74: 0 | CF74: 8.244353183 | CG74: 0 | CH74: 0 | CI74: 0 | CJ74: 0 | CK74: 0 | CL74: 0 | CM74: 0 | CN74: 0 | CO74: 0 | CP74: 0 | CQ74: 0
A75: 2 | B75: Kingsbury | C75: =10000/$A$16 -> 51.54639175 | D75: 0 | E75: =SUMIFS(SpringProvRep!$K:$K,SpringProvRep!$A:$A,Data!$A$22,SpringProvRep!$O:$O,"Coventry",SpringProvRep!$T:$T,Data!E$17)/$BA$73*$A$73 -> 0 | F75: =SUMIFS(SpringProvRep!$K:$K,SpringProvRep!$A:$A,Data!$A$22,SpringProvRep!$O:$O,"Coventry",SpringProvRep!$T:$T,Data!F$17)/$BA$73*$A$73 -> 0 | G75: =SUMIFS(SpringProvRep!$K:$K,SpringProvRep!$A:$A,Data!$A$22,SpringProvRep!$O:$O,"Coventry",SpringProvRep!$T:$T,Data!G$17)/$BA$73*$A$73 -> 0 | H75: =SUMIFS(SpringProvRep!$K:$K,SpringProvRep!$A:$A,Data!$A$22,SpringProvRep!$O:$O,"Coventry",SpringProvRep!$T:$T,Data!H$17)/$BA$73*$A$73 -> 0 | I75: =SUMIFS(SpringProvRep!$K:$K,SpringProvRep!$A:$A,Data!$A$22,SpringProvRep!$O:$O,"Coventry",SpringProvRep!$T:$T,Data!I$17)/$BA$73*$A$73 -> 0 | J75: =SUMIFS(SpringProvRep!$K:$K,SpringProvRep!$A:$A,Data!$A$22,SpringProvRep!$O:$O,"Coventry",SpringProvRep!$T:$T,Data!J$17)/$BA$73*$A$73 -> 0 | K75: =SUMIFS(SpringProvRep!$K:$K,SpringProvRep!$A:$A,Data!$A$22,SpringProvRep!$O:$O,"Coventry",SpringProvRep!$T:$T,Data!K$17)/$BA$73*$A$73 -> 3484.642857 | L75: =SUMIFS(SpringProvRep!$K:$K,SpringProvRep!$A:$A,Data!$A$22,SpringProvRep!$O:$O,"Coventry",SpringProvRep!$T:$T,Data!L$17)/$BA$73*$A$73 -> 110 | M75: =SUMIFS(SpringProvRep!$K:$K,SpringProvRep!$A:$A,Data!$A$22,SpringProvRep!$O:$O,"Coventry",SpringProvRep!$T:$T,Data!M$17)/$BA$73*$A$73 -> 0 | N75: =SUMIFS(SpringProvRep!$K:$K,SpringProvRep!$A:$A,Data!$A$22,SpringProvRep!$O:$O,"Coventry",SpringProvRep!$T:$T,Data!N$17)/$BA$73*$A$73 -> 0 | O75: =SUMIFS(SpringProvRep!$K:$K,SpringProvRep!$A:$A,Data!$A$22,SpringProvRep!$O:$O,"Coventry",SpringProvRep!$T:$T,Data!O$17)/$BA$73*$A$73 -> 321.1607143 | P75: =SUMIFS(SpringProvRep!$K:$K,SpringProvRep!$A:$A,Data!$A$22,SpringProvRep!$O:$O,"Coventry",SpringProvRep!$T:$T,Data!P$17)/$BA$73*$A$73 -> 0 | Q75: =SUMIFS(SpringProvRep!$K:$K,SpringProvRep!$A:$A,Data!$A$22,SpringProvRep!$O:$O,"Coventry",SpringProvRep!$T:$T,Data!Q$17)/$BA$73*$A$73 -> 1474.196429 | R75: =SUMIFS(SpringProvRep!$K:$K,SpringProvRep!$A:$A,Data!$A$22,SpringProvRep!$O:$O,"Coventry",SpringProvRep!$T:$T,Data!R$17)/$BA$73*$A$73 -> 0 | S75: =SUMIFS(SpringProvRep!$K:$K,SpringProvRep!$A:$A,Data!$A$22,SpringProvRep!$O:$O,"Coventry",SpringProvRep!$T:$T,Data!S$17)/$BA$73*$A$73 -> 0 | T75: =SUMIFS(SpringProvRep!$K:$K,SpringProvRep!$A:$A,Data!$A$22,SpringProvRep!$O:$O,"Coventry",SpringProvRep!$T:$T,Data!T$17)/$BA$73*$A$73 -> 0 | U75: =SUMIFS(SpringProvRep!$K:$K,SpringProvRep!$A:$A,Data!$A$22,SpringProvRep!$O:$O,"Coventry",SpringProvRep!$T:$T,Data!U$17)/$BA$73*$A$73 -> 0 | V75: =SUMIFS(SpringProvRep!$K:$K,SpringProvRep!$A:$A,Data!$A$22,SpringProvRep!$O:$O,"Coventry",SpringProvRep!$T:$T,Data!V$17)/$BA$73*$A$73 -> 0 | W75: =SUM(D75:V75)/$A$73 -> 98 | X75: 367353.5702 | Y75: 0 | Z75: =SUMIFS(SpringProvRep!$K:$K,SpringProvRep!$A:$A,Data!$A$22,SpringProvRep!$O:$O,"<>Coventry",SpringProvRep!$T:$T,Data!Z$17)/$BA$73*$A$73 -> 0 | AA75: =SUMIFS(SpringProvRep!$K:$K,SpringProvRep!$A:$A,Data!$A$22,SpringProvRep!$O:$O,"<>Coventry",SpringProvRep!$T:$T,Data!AA$17)/$BA$73*$A$73 -> 0 | AB75: =SUMIFS(SpringProvRep!$K:$K,SpringProvRep!$A:$A,Data!$A$22,SpringProvRep!$O:$O,"<>Coventry",SpringProvRep!$T:$T,Data!AB$17)/$BA$73*$A$73 -> 0 | AC75: =SUMIFS(SpringProvRep!$K:$K,SpringProvRep!$A:$A,Data!$A$22,SpringProvRep!$O:$O,"<>Coventry",SpringProvRep!$T:$T,Data!AC$17)/$BA$73*$A$73 -> 0 | AD75: =SUMIFS(SpringProvRep!$K:$K,SpringProvRep!$A:$A,Data!$A$22,SpringProvRep!$O:$O,"<>Coventry",SpringProvRep!$T:$T,Data!AD$17)/$BA$73*$A$73 -> 0 | AE75: =SUMIFS(SpringProvRep!$K:$K,SpringProvRep!$A:$A,Data!$A$22,SpringProvRep!$O:$O,"<>Coventry",SpringProvRep!$T:$T,Data!AE$17)/$BA$73*$A$73 -> 0 | AF75: =SUMIFS(SpringProvRep!$K:$K,SpringProvRep!$A:$A,Data!$A$22,SpringProvRep!$O:$O,"<>Coventry",SpringProvRep!$T:$T,Data!AF$17)/$BA$73*$A$73 -> 55 | AG75: =SUMIFS(SpringProvRep!$K:$K,SpringProvRep!$A:$A,Data!$A$22,SpringProvRep!$O:$O,"<>Coventry",SpringProvRep!$T:$T,Data!AG$17)/$BA$73*$A$73 -> 55 | AH75: =SUMIFS(SpringProvRep!$K:$K,SpringProvRep!$A:$A,Data!$A$22,SpringProvRep!$O:$O,"<>Coventry",SpringProvRep!$T:$T,Data!AH$17)/$BA$73*$A$73 -> 0 | AI75: =SUMIFS(SpringProvRep!$K:$K,SpringProvRep!$A:$A,Data!$A$22,SpringProvRep!$O:$O,"<>Coventry",SpringProvRep!$T:$T,Data!AI$17)/$BA$73*$A$73 -> 0 | AJ75: =SUMIFS(SpringProvRep!$K:$K,SpringProvRep!$A:$A,Data!$A$22,SpringProvRep!$O:$O,"<>Coventry",SpringProvRep!$T:$T,Data!AJ$17)/$BA$73*$A$73 -> 0 | AK75: =SUMIFS(SpringProvRep!$K:$K,SpringProvRep!$A:$A,Data!$A$22,SpringProvRep!$O:$O,"<>Coventry",SpringProvRep!$T:$T,Data!AK$17)/$BA$73*$A$73 -> 0 | AL75: =SUMIFS(SpringProvRep!$K:$K,SpringProvRep!$A:$A,Data!$A$22,SpringProvRep!$O:$O,"<>Coventry",SpringProvRep!$T:$T,Data!AL$17)/$BA$73*$A$73 -> 110 | AM75: =SUMIFS(SpringProvRep!$K:$K,SpringProvRep!$A:$A,Data!$A$22,SpringProvRep!$O:$O,"<>Coventry",SpringProvRep!$T:$T,Data!AM$17)/$BA$73*$A$73 -> 0 | AN75: =SUMIFS(SpringProvRep!$K:$K,SpringProvRep!$A:$A,Data!$A$22,SpringProvRep!$O:$O,"<>Coventry",SpringProvRep!$T:$T,Data!AN$17)/$BA$73*$A$73 -> 0 | AO75: =SUMIFS(SpringProvRep!$K:$K,SpringProvRep!$A:$A,Data!$A$22,SpringProvRep!$O:$O,"<>Coventry",SpringProvRep!$T:$T,Data!AO$17)/$BA$73*$A$73 -> 0 | AP75: =SUMIFS(SpringProvRep!$K:$K,SpringProvRep!$A:$A,Data!$A$22,SpringProvRep!$O:$O,"<>Coventry",SpringProvRep!$T:$T,Data!AP$17)/$BA$73*$A$73 -> 0 | AQ75: =SUMIFS(SpringProvRep!$K:$K,SpringProvRep!$A:$A,Data!$A$22,SpringProvRep!$O:$O,"<>Coventry",SpringProvRep!$T:$T,Data!AQ$17)/$BA$73*$A$73 -> 0 | AR75: =SUM(Z75:AQ75)/$A$73 -> 4 | AS75: 15376.93931 | AT75: 382730.5095 | AU75: =AR75+W75 -> 102 | AV75: =AU75-AW75 -> -4 | AW75: 106 | AX75: =[5]Data!$AU63 -> 100.52 | AY75: 100 | BB75: =($M$5-$AU$75)*$A$73 -> 220 | BD75: 5610 | BE75: =$BB$75/$BD$75*D75 -> 0 | BF75: 0 | BG75: 0 | BH75: 0 | BI75: 0 | BJ75: 0 | BK75: 0 | BL75: 136.6526611 | BM75: 4.31372549 | BN75: 0 | BO75: 0 | BP75: 12.59453782 | BQ75: 0 | BR75: 57.81162465 | BS75: 0 | BT75: 0 | BU75: 0 | BV75: 0 | BW75: 0 | BY75: =$BB$75/$BD$75*Y75 -> 0 | BZ75: 0 | CA75: 0 | CB75: 0 | CC75: 0 | CD75: 0 | CE75: 0 | CF75: 2.156862745 | CG75: 2.156862745 | CH75: 0 | CI75: 0 | CJ75: 0 | CK75: 0 | CL75: 4.31372549 | CM75: 0 | CN75: 0 | CO75: 0 | CP75: 0 | CQ75: 0
A76: 3 | B76: RiverBank | C76: 51.54639175 | D76: 0 | E76: =SUMIFS(SpringProvRep!$K:$K,SpringProvRep!$A:$A,Data!$A$23,SpringProvRep!$O:$O,"Coventry",SpringProvRep!$T:$T,Data!E$17)/$BA$73*$A$73 -> 0 | F76: =SUMIFS(SpringProvRep!$K:$K,SpringProvRep!$A:$A,Data!$A$23,SpringProvRep!$O:$O,"Coventry",SpringProvRep!$T:$T,Data!F$17)/$BA$73*$A$73 -> 0 | G76: =SUMIFS(SpringProvRep!$K:$K,SpringProvRep!$A:$A,Data!$A$23,SpringProvRep!$O:$O,"Coventry",SpringProvRep!$T:$T,Data!G$17)/$BA$73*$A$73 -> 330 | H76: =SUMIFS(SpringProvRep!$K:$K,SpringProvRep!$A:$A,Data!$A$23,SpringProvRep!$O:$O,"Coventry",SpringProvRep!$T:$T,Data!H$17)/$BA$73*$A$73 -> 385 | I76: =SUMIFS(SpringProvRep!$K:$K,SpringProvRep!$A:$A,Data!$A$23,SpringProvRep!$O:$O,"Coventry",SpringProvRep!$T:$T,Data!I$17)/$BA$73*$A$73 -> 0 | J76: =SUMIFS(SpringProvRep!$K:$K,SpringProvRep!$A:$A,Data!$A$23,SpringProvRep!$O:$O,"Coventry",SpringProvRep!$T:$T,Data!J$17)/$BA$73*$A$73 -> 0 | K76: =SUMIFS(SpringProvRep!$K:$K,SpringProvRep!$A:$A,Data!$A$23,SpringProvRep!$O:$O,"Coventry",SpringProvRep!$T:$T,Data!K$17)/$BA$73*$A$73 -> 4192.767857 | L76: =SUMIFS(SpringProvRep!$K:$K,SpringProvRep!$A:$A,Data!$A$23,SpringProvRep!$O:$O,"Coventry",SpringProvRep!$T:$T,Data!L$17)/$BA$73*$A$73 -> 3152.678571 | M76: =SUMIFS(SpringProvRep!$K:$K,SpringProvRep!$A:$A,Data!$A$23,SpringProvRep!$O:$O,"Coventry",SpringProvRep!$T:$T,Data!M$17)/$BA$73*$A$73 -> 110 | N76: =SUMIFS(SpringProvRep!$K:$K,SpringProvRep!$A:$A,Data!$A$23,SpringProvRep!$O:$O,"Coventry",SpringProvRep!$T:$T,Data!N$17)/$BA$73*$A$73 -> 440 | O76: =SUMIFS(SpringProvRep!$K:$K,SpringProvRep!$A:$A,Data!$A$23,SpringProvRep!$O:$O,"Coventry",SpringProvRep!$T:$T,Data!O$17)/$BA$73*$A$73 -> 495 | P76: =SUMIFS(SpringProvRep!$K:$K,SpringProvRep!$A:$A,Data!$A$23,SpringProvRep!$O:$O,"Coventry",SpringProvRep!$T:$T,Data!P$17)/$BA$73*$A$73 -> 220 | Q76: =SUMIFS(SpringProvRep!$K:$K,SpringProvRep!$A:$A,Data!$A$23,SpringProvRep!$O:$O,"Coventry",SpringProvRep!$T:$T,Data!Q$17)/$BA$73*$A$73 -> 1375 | R76: =SUMIFS(SpringProvRep!$K:$K,SpringProvRep!$A:$A,Data!$A$23,SpringProvRep!$O:$O,"Coventry",SpringProvRep!$T:$T,Data!R$17)/$BA$73*$A$73 -> 330 | S76: =SUMIFS(SpringProvRep!$K:$K,SpringProvRep!$A:$A,Data!$A$23,SpringProvRep!$O:$O,"Coventry",SpringProvRep!$T:$T,Data!S$17)/$BA$73*$A$73 -> 0 | T76: =SUMIFS(SpringProvRep!$K:$K,SpringProvRep!$A:$A,Data!$A$23,SpringProvRep!$O:$O,"Coventry",SpringProvRep!$T:$T,Data!T$17)/$BA$73*$A$73 -> 165 | U76: =SUMIFS(SpringProvRep!$K:$K,SpringProvRep!$A:$A,Data!$A$23,SpringProvRep!$O:$O,"Coventry",SpringProvRep!$T:$T,Data!U$17)/$BA$73*$A$73 -> 0 | V76: =SUMIFS(SpringProvRep!$K:$K,SpringProvRep!$A:$A,Data!$A$23,SpringProvRep!$O:$O,"Coventry",SpringProvRep!$T:$T,Data!V$17)/$BA$73*$A$73 -> 0 | W76: 203.5535714 | X76: 706364.4214 | Y76: 0 | Z76: =SUMIFS(SpringProvRep!$K:$K,SpringProvRep!$A:$A,Data!$A$23,SpringProvRep!$O:$O,"<>Coventry",SpringProvRep!$T:$T,Data!Z$17)/$BA$73*$A$73 -> 0 | AA76: =SUMIFS(SpringProvRep!$K:$K,SpringProvRep!$A:$A,Data!$A$23,SpringProvRep!$O:$O,"<>Coventry",SpringProvRep!$T:$T,Data!AA$17)/$BA$73*$A$73 -> 0 | AB76: =SUMIFS(SpringProvRep!$K:$K,SpringProvRep!$A:$A,Data!$A$23,SpringProvRep!$O:$O,"<>Coventry",SpringProvRep!$T:$T,Data!AB$17)/$BA$73*$A$73 -> 0 | AC76: =SUMIFS(SpringProvRep!$K:$K,SpringProvRep!$A:$A,Data!$A$23,SpringProvRep!$O:$O,"<>Coventry",SpringProvRep!$T:$T,Data!AC$17)/$BA$73*$A$73 -> 0 | AD76: =SUMIFS(SpringProvRep!$K:$K,SpringProvRep!$A:$A,Data!$A$23,SpringProvRep!$O:$O,"<>Coventry",SpringProvRep!$T:$T,Data!AD$17)/$BA$73*$A$73 -> 0 | AE76: =SUMIFS(SpringProvRep!$K:$K,SpringProvRep!$A:$A,Data!$A$23,SpringProvRep!$O:$O,"<>Coventry",SpringProvRep!$T:$T,Data!AE$17)/$BA$73*$A$73 -> 0 | AF76: =SUMIFS(SpringProvRep!$K:$K,SpringProvRep!$A:$A,Data!$A$23,SpringProvRep!$O:$O,"<>Coventry",SpringProvRep!$T:$T,Data!AF$17)/$BA$73*$A$73 -> 0 | AG76: =SUMIFS(SpringProvRep!$K:$K,SpringProvRep!$A:$A,Data!$A$23,SpringProvRep!$O:$O,"<>Coventry",SpringProvRep!$T:$T,Data!AG$17)/$BA$73*$A$73 -> 55 | AH76: =SUMIFS(SpringProvRep!$K:$K,SpringProvRep!$A:$A,Data!$A$23,SpringProvRep!$O:$O,"<>Coventry",SpringProvRep!$T:$T,Data!AH$17)/$BA$73*$A$73 -> 0 | AI76: =SUMIFS(SpringProvRep!$K:$K,SpringProvRep!$A:$A,Data!$A$23,SpringProvRep!$O:$O,"<>Coventry",SpringProvRep!$T:$T,Data!AI$17)/$BA$73*$A$73 -> 0 | AJ76: =SUMIFS(SpringProvRep!$K:$K,SpringProvRep!$A:$A,Data!$A$23,SpringProvRep!$O:$O,"<>Coventry",SpringProvRep!$T:$T,Data!AJ$17)/$BA$73*$A$73 -> 0 | AK76: =SUMIFS(SpringProvRep!$K:$K,SpringProvRep!$A:$A,Data!$A$23,SpringProvRep!$O:$O,"<>Coventry",SpringProvRep!$T:$T,Data!AK$17)/$BA$73*$A$73 -> 0 | AL76: =SUMIFS(SpringProvRep!$K:$K,SpringProvRep!$A:$A,Data!$A$23,SpringProvRep!$O:$O,"<>Coventry",SpringProvRep!$T:$T,Data!AL$17)/$BA$73*$A$73 -> 0 | AM76: =SUMIFS(SpringProvRep!$K:$K,SpringProvRep!$A:$A,Data!$A$23,SpringProvRep!$O:$O,"<>Coventry",SpringProvRep!$T:$T,Data!AM$17)/$BA$73*$A$73 -> 0 | AN76: =SUMIFS(SpringProvRep!$K:$K,SpringProvRep!$A:$A,Data!$A$23,SpringProvRep!$O:$O,"<>Coventry",SpringProvRep!$T:$T,Data!AN$17)/$BA$73*$A$73 -> 0 | AO76: =SUMIFS(SpringProvRep!$K:$K,SpringProvRep!$A:$A,Data!$A$23,SpringProvRep!$O:$O,"<>Coventry",SpringProvRep!$T:$T,Data!AO$17)/$BA$73*$A$73 -> 0 | AP76: =SUMIFS(SpringProvRep!$K:$K,SpringProvRep!$A:$A,Data!$A$23,SpringProvRep!$O:$O,"<>Coventry",SpringProvRep!$T:$T,Data!AP$17)/$BA$73*$A$73 -> 0 | AQ76: =SUMIFS(SpringProvRep!$K:$K,SpringProvRep!$A:$A,Data!$A$23,SpringProvRep!$O:$O,"<>Coventry",SpringProvRep!$T:$T,Data!AQ$17)/$BA$73*$A$73 -> 0 | AR76: 1 | AS76: 2748.53586 | AT76: 709112.9573 | AU76: 204.5535714 | AV76: -15.44642857 | AW76: 220 | AX76: =[5]Data!$AU64 -> 197 | AY76: 209 | BB76: =($M$6-$AU$76)*$A$73 -> 849.5535714 | BD76: 11250.44643 | BE76: =$BB$76/$BD$76*D76 -> 0 | BF76: 0 | BG76: 0 | BH76: 24.91924924 | BI76: 29.07245744 | BJ76: 0 | BK76: 0 | BL76: 316.6079613 | BM76: 238.0678275 | BN76: 8.306416412 | BO76: 33.22566565 | BP76: 37.37887385 | BQ76: 16.61283282 | BR76: 103.8302052 | BS76: 24.91924924 | BT76: 0 | BU76: 12.45962462 | BV76: 0 | BW76: 0 | BY76: =$BB$76/$BD$76*Y76 -> 0 | BZ76: 0 | CA76: 0 | CB76: 0 | CC76: 0 | CD76: 0 | CE76: 0 | CF76: 0 | CG76: 4.153208206 | CH76: 0 | CI76: 0 | CJ76: 0 | CK76: 0 | CL76: 0 | CM76: 0 | CN76: 0 | CO76: 0 | CP76: 0 | CQ76: 0
A77: 4 | B77: Corley | C77: 51.54639175 | D77: 0 | E77: =SUMIFS(SpringProvRep!$K:$K,SpringProvRep!$A:$A,Data!$A$24,SpringProvRep!$O:$O,"Coventry",SpringProvRep!$T:$T,Data!E$17)/$BA$73*$A$73 -> 0 | F77: =SUMIFS(SpringProvRep!$K:$K,SpringProvRep!$A:$A,Data!$A$24,SpringProvRep!$O:$O,"Coventry",SpringProvRep!$T:$T,Data!F$17)/$BA$73*$A$73 -> 0 | G77: =SUMIFS(SpringProvRep!$K:$K,SpringProvRep!$A:$A,Data!$A$24,SpringProvRep!$O:$O,"Coventry",SpringProvRep!$T:$T,Data!G$17)/$BA$73*$A$73 -> 165 | H77: =SUMIFS(SpringProvRep!$K:$K,SpringProvRep!$A:$A,Data!$A$24,SpringProvRep!$O:$O,"Coventry",SpringProvRep!$T:$T,Data!H$17)/$BA$73*$A$73 -> 165 | I77: =SUMIFS(SpringProvRep!$K:$K,SpringProvRep!$A:$A,Data!$A$24,SpringProvRep!$O:$O,"Coventry",SpringProvRep!$T:$T,Data!I$17)/$BA$73*$A$73 -> 0 | J77: =SUMIFS(SpringProvRep!$K:$K,SpringProvRep!$A:$A,Data!$A$24,SpringProvRep!$O:$O,"Coventry",SpringProvRep!$T:$T,Data!J$17)/$BA$73*$A$73 -> 0 | K77: =SUMIFS(SpringProvRep!$K:$K,SpringProvRep!$A:$A,Data!$A$24,SpringProvRep!$O:$O,"Coventry",SpringProvRep!$T:$T,Data!K$17)/$BA$73*$A$73 -> 6649.107143 | L77: =SUMIFS(SpringProvRep!$K:$K,SpringProvRep!$A:$A,Data!$A$24,SpringProvRep!$O:$O,"Coventry",SpringProvRep!$T:$T,Data!L$17)/$BA$73*$A$73 -> 330 | M77: =SUMIFS(SpringProvRep!$K:$K,SpringProvRep!$A:$A,Data!$A$24,SpringProvRep!$O:$O,"Coventry",SpringProvRep!$T:$T,Data!M$17)/$BA$73*$A$73 -> 385 | N77: =SUMIFS(SpringProvRep!$K:$K,SpringProvRep!$A:$A,Data!$A$24,SpringProvRep!$O:$O,"Coventry",SpringProvRep!$T:$T,Data!N$17)/$BA$73*$A$73 -> 0 | O77: =SUMIFS(SpringProvRep!$K:$K,SpringProvRep!$A:$A,Data!$A$24,SpringProvRep!$O:$O,"Coventry",SpringProvRep!$T:$T,Data!O$17)/$BA$73*$A$73 -> 215.0892857 | P77: =SUMIFS(SpringProvRep!$K:$K,SpringProvRep!$A:$A,Data!$A$24,SpringProvRep!$O:$O,"Coventry",SpringProvRep!$T:$T,Data!P$17)/$BA$73*$A$73 -> 0 | Q77: =SUMIFS(SpringProvRep!$K:$K,SpringProvRep!$A:$A,Data!$A$24,SpringProvRep!$O:$O,"Coventry",SpringProvRep!$T:$T,Data!Q$17)/$BA$73*$A$73 -> 695.3571429 | R77: =SUMIFS(SpringProvRep!$K:$K,SpringProvRep!$A:$A,Data!$A$24,SpringProvRep!$O:$O,"Coventry",SpringProvRep!$T:$T,Data!R$17)/$BA$73*$A$73 -> 0 | S77: =SUMIFS(SpringProvRep!$K:$K,SpringProvRep!$A:$A,Data!$A$24,SpringProvRep!$O:$O,"Coventry",SpringProvRep!$T:$T,Data!S$17)/$BA$73*$A$73 -> 0 | T77: =SUMIFS(SpringProvRep!$K:$K,SpringProvRep!$A:$A,Data!$A$24,SpringProvRep!$O:$O,"Coventry",SpringProvRep!$T:$T,Data!T$17)/$BA$73*$A$73 -> 0 | U77: =SUMIFS(SpringProvRep!$K:$K,SpringProvRep!$A:$A,Data!$A$24,SpringProvRep!$O:$O,"Coventry",SpringProvRep!$T:$T,Data!U$17)/$BA$73*$A$73 -> 0 | V77: =SUMIFS(SpringProvRep!$K:$K,SpringProvRep!$A:$A,Data!$A$24,SpringProvRep!$O:$O,"Coventry",SpringProvRep!$T:$T,Data!V$17)/$BA$73*$A$73 -> 0 | W77: 156.4464286 | X77: 499474.1036 | Y77: 0 | Z77: =SUMIFS(SpringProvRep!$K:$K,SpringProvRep!$A:$A,Data!$A$24,SpringProvRep!$O:$O,"<>Coventry",SpringProvRep!$T:$T,Data!Z$17)/$BA$73*$A$73 -> 0 | AA77: =SUMIFS(SpringProvRep!$K:$K,SpringProvRep!$A:$A,Data!$A$24,SpringProvRep!$O:$O,"<>Coventry",SpringProvRep!$T:$T,Data!AA$17)/$BA$73*$A$73 -> 0 | AB77: =SUMIFS(SpringProvRep!$K:$K,SpringProvRep!$A:$A,Data!$A$24,SpringProvRep!$O:$O,"<>Coventry",SpringProvRep!$T:$T,Data!AB$17)/$BA$73*$A$73 -> 0 | AC77: =SUMIFS(SpringProvRep!$K:$K,SpringProvRep!$A:$A,Data!$A$24,SpringProvRep!$O:$O,"<>Coventry",SpringProvRep!$T:$T,Data!AC$17)/$BA$73*$A$73 -> 0 | AD77: =SUMIFS(SpringProvRep!$K:$K,SpringProvRep!$A:$A,Data!$A$24,SpringProvRep!$O:$O,"<>Coventry",SpringProvRep!$T:$T,Data!AD$17)/$BA$73*$A$73 -> 0 | AE77: =SUMIFS(SpringProvRep!$K:$K,SpringProvRep!$A:$A,Data!$A$24,SpringProvRep!$O:$O,"<>Coventry",SpringProvRep!$T:$T,Data!AE$17)/$BA$73*$A$73 -> 0 | AF77: =SUMIFS(SpringProvRep!$K:$K,SpringProvRep!$A:$A,Data!$A$24,SpringProvRep!$O:$O,"<>Coventry",SpringProvRep!$T:$T,Data!AF$17)/$BA$73*$A$73 -> 165 | AG77: =SUMIFS(SpringProvRep!$K:$K,SpringProvRep!$A:$A,Data!$A$24,SpringProvRep!$O:$O,"<>Coventry",SpringProvRep!$T:$T,Data!AG$17)/$BA$73*$A$73 -> 0 | AH77: =SUMIFS(SpringProvRep!$K:$K,SpringProvRep!$A:$A,Data!$A$24,SpringProvRep!$O:$O,"<>Coventry",SpringProvRep!$T:$T,Data!AH$17)/$BA$73*$A$73 -> 0 | AI77: =SUMIFS(SpringProvRep!$K:$K,SpringProvRep!$A:$A,Data!$A$24,SpringProvRep!$O:$O,"<>Coventry",SpringProvRep!$T:$T,Data!AI$17)/$BA$73*$A$73 -> 0 | AJ77: =SUMIFS(SpringProvRep!$K:$K,SpringProvRep!$A:$A,Data!$A$24,SpringProvRep!$O:$O,"<>Coventry",SpringProvRep!$T:$T,Data!AJ$17)/$BA$73*$A$73 -> 0 | AK77: =SUMIFS(SpringProvRep!$K:$K,SpringProvRep!$A:$A,Data!$A$24,SpringProvRep!$O:$O,"<>Coventry",SpringProvRep!$T:$T,Data!AK$17)/$BA$73*$A$73 -> 0 | AL77: =SUMIFS(SpringProvRep!$K:$K,SpringProvRep!$A:$A,Data!$A$24,SpringProvRep!$O:$O,"<>Coventry",SpringProvRep!$T:$T,Data!AL$17)/$BA$73*$A$73 -> 0 | AM77: =SUMIFS(SpringProvRep!$K:$K,SpringProvRep!$A:$A,Data!$A$24,SpringProvRep!$O:$O,"<>Coventry",SpringProvRep!$T:$T,Data!AM$17)/$BA$73*$A$73 -> 0 | AN77: =SUMIFS(SpringProvRep!$K:$K,SpringProvRep!$A:$A,Data!$A$24,SpringProvRep!$O:$O,"<>Coventry",SpringProvRep!$T:$T,Data!AN$17)/$BA$73*$A$73 -> 0 | AO77: =SUMIFS(SpringProvRep!$K:$K,SpringProvRep!$A:$A,Data!$A$24,SpringProvRep!$O:$O,"<>Coventry",SpringProvRep!$T:$T,Data!AO$17)/$BA$73*$A$73 -> 0 | AP77: =SUMIFS(SpringProvRep!$K:$K,SpringProvRep!$A:$A,Data!$A$24,SpringProvRep!$O:$O,"<>Coventry",SpringProvRep!$T:$T,Data!AP$17)/$BA$73*$A$73 -> 0 | AQ77: =SUMIFS(SpringProvRep!$K:$K,SpringProvRep!$A:$A,Data!$A$24,SpringProvRep!$O:$O,"<>Coventry",SpringProvRep!$T:$T,Data!AQ$17)/$BA$73*$A$73 -> 0 | AR77: 3 | AS77: 8914.165456 | AT77: 508388.2691 | AU77: 159.4464286 | AV77: -5.553571429 | AW77: 165 | AX77: =[5]Data!$AU65 -> 145.7 | AY77: 155 | BB77: =($M$7-$AU$77)*$A$73 -> 305.4464286 | BD77: 8769.553571 | BE77: =$BB$77/$BD$77*D77 -> 0 | BF77: 0 | BG77: 0 | BH77: 5.747004144 | BI77: 5.747004144 | BJ77: 0 | BK77: 0 | BL77: 231.5905837 | BM77: 11.49400829 | BN77: 13.40967634 | BO77: 0 | BP77: 7.491630402 | BQ77: 0 | BR77: 24.21951746 | BS77: 0 | BT77: 0 | BU77: 0 | BV77: 0 | BW77: 0 | BY77: =$BB$77/$BD$77*Y77 -> 0 | BZ77: 0 | CA77: 0 | CB77: 0 | CC77: 0 | CD77: 0 | CE77: 0 | CF77: 5.747004144 | CG77: 0 | CH77: 0 | CI77: 0 | CJ77: 0 | CK77: 0 | CL77: 0 | CM77: 0 | CN77: 0 | CO77: 0 | CP77: 0 | CQ77: 0
A78: 5 | B78: Tiverton | C78: 51.54639175 | D78: 0 | E78: =SUMIFS(SpringProvRep!$K:$K,SpringProvRep!$A:$A,Data!$A$25,SpringProvRep!$O:$O,"Coventry",SpringProvRep!$T:$T,Data!E$17)/$BA$73*$A$73 -> 0 | F78: =SUMIFS(SpringProvRep!$K:$K,SpringProvRep!$A:$A,Data!$A$25,SpringProvRep!$O:$O,"Coventry",SpringProvRep!$T:$T,Data!F$17)/$BA$73*$A$73 -> 0 | G78: =SUMIFS(SpringProvRep!$K:$K,SpringProvRep!$A:$A,Data!$A$25,SpringProvRep!$O:$O,"Coventry",SpringProvRep!$T:$T,Data!G$17)/$BA$73*$A$73 -> 0 | H78: =SUMIFS(SpringProvRep!$K:$K,SpringProvRep!$A:$A,Data!$A$25,SpringProvRep!$O:$O,"Coventry",SpringProvRep!$T:$T,Data!H$17)/$BA$73*$A$73 -> 0 | I78: =SUMIFS(SpringProvRep!$K:$K,SpringProvRep!$A:$A,Data!$A$25,SpringProvRep!$O:$O,"Coventry",SpringProvRep!$T:$T,Data!I$17)/$BA$73*$A$73 -> 0 | J78: =SUMIFS(SpringProvRep!$K:$K,SpringProvRep!$A:$A,Data!$A$25,SpringProvRep!$O:$O,"Coventry",SpringProvRep!$T:$T,Data!J$17)/$BA$73*$A$73 -> 0 | K78: =SUMIFS(SpringProvRep!$K:$K,SpringProvRep!$A:$A,Data!$A$25,SpringProvRep!$O:$O,"Coventry",SpringProvRep!$T:$T,Data!K$17)/$BA$73*$A$73 -> 4400 | L78: =SUMIFS(SpringProvRep!$K:$K,SpringProvRep!$A:$A,Data!$A$25,SpringProvRep!$O:$O,"Coventry",SpringProvRep!$T:$T,Data!L$17)/$BA$73*$A$73 -> 605 | M78: =SUMIFS(SpringProvRep!$K:$K,SpringProvRep!$A:$A,Data!$A$25,SpringProvRep!$O:$O,"Coventry",SpringProvRep!$T:$T,Data!M$17)/$BA$73*$A$73 -> 0 | N78: =SUMIFS(SpringProvRep!$K:$K,SpringProvRep!$A:$A,Data!$A$25,SpringProvRep!$O:$O,"Coventry",SpringProvRep!$T:$T,Data!N$17)/$BA$73*$A$73 -> 275 | O78: =SUMIFS(SpringProvRep!$K:$K,SpringProvRep!$A:$A,Data!$A$25,SpringProvRep!$O:$O,"Coventry",SpringProvRep!$T:$T,Data!O$17)/$BA$73*$A$73 -> 304.4642857 | P78: =SUMIFS(SpringProvRep!$K:$K,SpringProvRep!$A:$A,Data!$A$25,SpringProvRep!$O:$O,"Coventry",SpringProvRep!$T:$T,Data!P$17)/$BA$73*$A$73 -> 0 | Q78: =SUMIFS(SpringProvRep!$K:$K,SpringProvRep!$A:$A,Data!$A$25,SpringProvRep!$O:$O,"Coventry",SpringProvRep!$T:$T,Data!Q$17)/$BA$73*$A$73 -> 770 | R78: =SUMIFS(SpringProvRep!$K:$K,SpringProvRep!$A:$A,Data!$A$25,SpringProvRep!$O:$O,"Coventry",SpringProvRep!$T:$T,Data!R$17)/$BA$73*$A$73 -> 385 | S78: =SUMIFS(SpringProvRep!$K:$K,SpringProvRep!$A:$A,Data!$A$25,SpringProvRep!$O:$O,"Coventry",SpringProvRep!$T:$T,Data!S$17)/$BA$73*$A$73 -> 0 | T78: =SUMIFS(SpringProvRep!$K:$K,SpringProvRep!$A:$A,Data!$A$25,SpringProvRep!$O:$O,"Coventry",SpringProvRep!$T:$T,Data!T$17)/$BA$73*$A$73 -> 330 | U78: =SUMIFS(SpringProvRep!$K:$K,SpringProvRep!$A:$A,Data!$A$25,SpringProvRep!$O:$O,"Coventry",SpringProvRep!$T:$T,Data!U$17)/$BA$73*$A$73 -> 0 | V78: =SUMIFS(SpringProvRep!$K:$K,SpringProvRep!$A:$A,Data!$A$25,SpringProvRep!$O:$O,"Coventry",SpringProvRep!$T:$T,Data!V$17)/$BA$73*$A$73 -> 0 | W78: 128.5357143 | X78: 453937.2342 | Y78: 0 | Z78: =SUMIFS(SpringProvRep!$K:$K,SpringProvRep!$A:$A,Data!$A$25,SpringProvRep!$O:$O,"<>Coventry",SpringProvRep!$T:$T,Data!Z$17)/$BA$73*$A$73 -> 0 | AA78: =SUMIFS(SpringProvRep!$K:$K,SpringProvRep!$A:$A,Data!$A$25,SpringProvRep!$O:$O,"<>Coventry",SpringProvRep!$T:$T,Data!AA$17)/$BA$73*$A$73 -> 0 | AB78: =SUMIFS(SpringProvRep!$K:$K,SpringProvRep!$A:$A,Data!$A$25,SpringProvRep!$O:$O,"<>Coventry",SpringProvRep!$T:$T,Data!AB$17)/$BA$73*$A$73 -> 0 | AC78: =SUMIFS(SpringProvRep!$K:$K,SpringProvRep!$A:$A,Data!$A$25,SpringProvRep!$O:$O,"<>Coventry",SpringProvRep!$T:$T,Data!AC$17)/$BA$73*$A$73 -> 0 | AD78: =SUMIFS(SpringProvRep!$K:$K,SpringProvRep!$A:$A,Data!$A$25,SpringProvRep!$O:$O,"<>Coventry",SpringProvRep!$T:$T,Data!AD$17)/$BA$73*$A$73 -> 0 | AE78: =SUMIFS(SpringProvRep!$K:$K,SpringProvRep!$A:$A,Data!$A$25,SpringProvRep!$O:$O,"<>Coventry",SpringProvRep!$T:$T,Data!AE$17)/$BA$73*$A$73 -> 0 | AF78: =SUMIFS(SpringProvRep!$K:$K,SpringProvRep!$A:$A,Data!$A$25,SpringProvRep!$O:$O,"<>Coventry",SpringProvRep!$T:$T,Data!AF$17)/$BA$73*$A$73 -> 0 | AG78: =SUMIFS(SpringProvRep!$K:$K,SpringProvRep!$A:$A,Data!$A$25,SpringProvRep!$O:$O,"<>Coventry",SpringProvRep!$T:$T,Data!AG$17)/$BA$73*$A$73 -> 0 | AH78: =SUMIFS(SpringProvRep!$K:$K,SpringProvRep!$A:$A,Data!$A$25,SpringProvRep!$O:$O,"<>Coventry",SpringProvRep!$T:$T,Data!AH$17)/$BA$73*$A$73 -> 0 | AI78: =SUMIFS(SpringProvRep!$K:$K,SpringProvRep!$A:$A,Data!$A$25,SpringProvRep!$O:$O,"<>Coventry",SpringProvRep!$T:$T,Data!AI$17)/$BA$73*$A$73 -> 0 | AJ78: =SUMIFS(SpringProvRep!$K:$K,SpringProvRep!$A:$A,Data!$A$25,SpringProvRep!$O:$O,"<>Coventry",SpringProvRep!$T:$T,Data!AJ$17)/$BA$73*$A$73 -> 0 | AK78: =SUMIFS(SpringProvRep!$K:$K,SpringProvRep!$A:$A,Data!$A$25,SpringProvRep!$O:$O,"<>Coventry",SpringProvRep!$T:$T,Data!AK$17)/$BA$73*$A$73 -> 0 | AL78: =SUMIFS(SpringProvRep!$K:$K,SpringProvRep!$A:$A,Data!$A$25,SpringProvRep!$O:$O,"<>Coventry",SpringProvRep!$T:$T,Data!AL$17)/$BA$73*$A$73 -> 55 | AM78: =SUMIFS(SpringProvRep!$K:$K,SpringProvRep!$A:$A,Data!$A$25,SpringProvRep!$O:$O,"<>Coventry",SpringProvRep!$T:$T,Data!AM$17)/$BA$73*$A$73 -> 0 | AN78: =SUMIFS(SpringProvRep!$K:$K,SpringProvRep!$A:$A,Data!$A$25,SpringProvRep!$O:$O,"<>Coventry",SpringProvRep!$T:$T,Data!AN$17)/$BA$73*$A$73 -> 0 | AO78: =SUMIFS(SpringProvRep!$K:$K,SpringProvRep!$A:$A,Data!$A$25,SpringProvRep!$O:$O,"<>Coventry",SpringProvRep!$T:$T,Data!AO$17)/$BA$73*$A$73 -> 0 | AP78: =SUMIFS(SpringProvRep!$K:$K,SpringProvRep!$A:$A,Data!$A$25,SpringProvRep!$O:$O,"<>Coventry",SpringProvRep!$T:$T,Data!AP$17)/$BA$73*$A$73 -> 0 | AQ78: =SUMIFS(SpringProvRep!$K:$K,SpringProvRep!$A:$A,Data!$A$25,SpringProvRep!$O:$O,"<>Coventry",SpringProvRep!$T:$T,Data!AQ$17)/$BA$73*$A$73 -> 0 | AR78: 1 | AS78: 4828.507481 | AT78: 458765.7417 | AU78: 129.5357143 | AV78: -3.464285714 | AW78: 133 | AX78: =[5]Data!$AU66 -> 119.5 | AY78: 131 | BB78: =($M$8-$AU$78)*$A$73 -> 190.5357143 | BD78: 7124.464286 | BE78: =$BB$78/$BD$78*D78 -> 0 | BF78: 0 | BG78: 0 | BH78: 0 | BI78: 0 | BJ78: 0 | BK78: 0 | BL78: 117.673008 | BM78: 16.1800386 | BN78: 0 | BO78: 7.354563 | BP78: 8.142551893 | BQ78: 0 | BR78: 20.5927764 | BS78: 10.2963882 | BT78: 0 | BU78: 8.8254756 | BV78: 0 | BW78: 0 | BY78: =$BB$78/$BD$78*Y78 -> 0 | BZ78: 0 | CA78: 0 | CB78: 0 | CC78: 0 | CD78: 0 | CE78: 0 | CF78: 0 | CG78: 0 | CH78: 0 | CI78: 0 | CJ78: 0 | CK78: 0 | CL78: 1.4709126 | CM78: 0 | CN78: 0 | CO78: 0 | CP78: 0 | CQ78: 0
A79: 6 | B79: Baginton Fields | C79: 51.54639175 | D79: 0 | E79: =SUMIFS(SpringProvRep!$K:$K,SpringProvRep!$A:$A,Data!$A$26,SpringProvRep!$O:$O,"Coventry",SpringProvRep!$T:$T,Data!E$17)/$BA$73*$A$73 -> 0 | F79: =SUMIFS(SpringProvRep!$K:$K,SpringProvRep!$A:$A,Data!$A$26,SpringProvRep!$O:$O,"Coventry",SpringProvRep!$T:$T,Data!F$17)/$BA$73*$A$73 -> 0 | G79: =SUMIFS(SpringProvRep!$K:$K,SpringProvRep!$A:$A,Data!$A$26,SpringProvRep!$O:$O,"Coventry",SpringProvRep!$T:$T,Data!G$17)/$BA$73*$A$73 -> 0 | H79: =SUMIFS(SpringProvRep!$K:$K,SpringProvRep!$A:$A,Data!$A$26,SpringProvRep!$O:$O,"Coventry",SpringProvRep!$T:$T,Data!H$17)/$BA$73*$A$73 -> 0 | I79: =SUMIFS(SpringProvRep!$K:$K,SpringProvRep!$A:$A,Data!$A$26,SpringProvRep!$O:$O,"Coventry",SpringProvRep!$T:$T,Data!I$17)/$BA$73*$A$73 -> 0 | J79: =SUMIFS(SpringProvRep!$K:$K,SpringProvRep!$A:$A,Data!$A$26,SpringProvRep!$O:$O,"Coventry",SpringProvRep!$T:$T,Data!J$17)/$BA$73*$A$73 -> 0 | K79: =SUMIFS(SpringProvRep!$K:$K,SpringProvRep!$A:$A,Data!$A$26,SpringProvRep!$O:$O,"Coventry",SpringProvRep!$T:$T,Data!K$17)/$BA$73*$A$73 -> 1485 | L79: =SUMIFS(SpringProvRep!$K:$K,SpringProvRep!$A:$A,Data!$A$26,SpringProvRep!$O:$O,"Coventry",SpringProvRep!$T:$T,Data!L$17)/$BA$73*$A$73 -> 2145 | M79: =SUMIFS(SpringProvRep!$K:$K,SpringProvRep!$A:$A,Data!$A$26,SpringProvRep!$O:$O,"Coventry",SpringProvRep!$T:$T,Data!M$17)/$BA$73*$A$73 -> 0 | N79: =SUMIFS(SpringProvRep!$K:$K,SpringProvRep!$A:$A,Data!$A$26,SpringProvRep!$O:$O,"Coventry",SpringProvRep!$T:$T,Data!N$17)/$BA$73*$A$73 -> 110 | O79: =SUMIFS(SpringProvRep!$K:$K,SpringProvRep!$A:$A,Data!$A$26,SpringProvRep!$O:$O,"Coventry",SpringProvRep!$T:$T,Data!O$17)/$BA$73*$A$73 -> 703.2142857 | P79: =SUMIFS(SpringProvRep!$K:$K,SpringProvRep!$A:$A,Data!$A$26,SpringProvRep!$O:$O,"Coventry",SpringProvRep!$T:$T,Data!P$17)/$BA$73*$A$73 -> 0 | Q79: =SUMIFS(SpringProvRep!$K:$K,SpringProvRep!$A:$A,Data!$A$26,SpringProvRep!$O:$O,"Coventry",SpringProvRep!$T:$T,Data!Q$17)/$BA$73*$A$73 -> 1540 | R79: =SUMIFS(SpringProvRep!$K:$K,SpringProvRep!$A:$A,Data!$A$26,SpringProvRep!$O:$O,"Coventry",SpringProvRep!$T:$T,Data!R$17)/$BA$73*$A$73 -> 660 | S79: =SUMIFS(SpringProvRep!$K:$K,SpringProvRep!$A:$A,Data!$A$26,SpringProvRep!$O:$O,"Coventry",SpringProvRep!$T:$T,Data!S$17)/$BA$73*$A$73 -> 0 | T79: =SUMIFS(SpringProvRep!$K:$K,SpringProvRep!$A:$A,Data!$A$26,SpringProvRep!$O:$O,"Coventry",SpringProvRep!$T:$T,Data!T$17)/$BA$73*$A$73 -> 110 | U79: =SUMIFS(SpringProvRep!$K:$K,SpringProvRep!$A:$A,Data!$A$26,SpringProvRep!$O:$O,"Coventry",SpringProvRep!$T:$T,Data!U$17)/$BA$73*$A$73 -> 55 | V79: =SUMIFS(SpringProvRep!$K:$K,SpringProvRep!$A:$A,Data!$A$26,SpringProvRep!$O:$O,"Coventry",SpringProvRep!$T:$T,Data!V$17)/$BA$73*$A$73 -> 0 | W79: 123.7857143 | X79: 504306.1377 | Y79: 0 | Z79: =SUMIFS(SpringProvRep!$K:$K,SpringProvRep!$A:$A,Data!$A$26,SpringProvRep!$O:$O,"<>Coventry",SpringProvRep!$T:$T,Data!Z$17)/$BA$73*$A$73 -> 0 | AA79: =SUMIFS(SpringProvRep!$K:$K,SpringProvRep!$A:$A,Data!$A$26,SpringProvRep!$O:$O,"<>Coventry",SpringProvRep!$T:$T,Data!AA$17)/$BA$73*$A$73 -> 0 | AB79: =SUMIFS(SpringProvRep!$K:$K,SpringProvRep!$A:$A,Data!$A$26,SpringProvRep!$O:$O,"<>Coventry",SpringProvRep!$T:$T,Data!AB$17)/$BA$73*$A$73 -> 0 | AC79: =SUMIFS(SpringProvRep!$K:$K,SpringProvRep!$A:$A,Data!$A$26,SpringProvRep!$O:$O,"<>Coventry",SpringProvRep!$T:$T,Data!AC$17)/$BA$73*$A$73 -> 0 | AD79: =SUMIFS(SpringProvRep!$K:$K,SpringProvRep!$A:$A,Data!$A$26,SpringProvRep!$O:$O,"<>Coventry",SpringProvRep!$T:$T,Data!AD$17)/$BA$73*$A$73 -> 0 | AE79: =SUMIFS(SpringProvRep!$K:$K,SpringProvRep!$A:$A,Data!$A$26,SpringProvRep!$O:$O,"<>Coventry",SpringProvRep!$T:$T,Data!AE$17)/$BA$73*$A$73 -> 0 | AF79: =SUMIFS(SpringProvRep!$K:$K,SpringProvRep!$A:$A,Data!$A$26,SpringProvRep!$O:$O,"<>Coventry",SpringProvRep!$T:$T,Data!AF$17)/$BA$73*$A$73 -> 0 | AG79: =SUMIFS(SpringProvRep!$K:$K,SpringProvRep!$A:$A,Data!$A$26,SpringProvRep!$O:$O,"<>Coventry",SpringProvRep!$T:$T,Data!AG$17)/$BA$73*$A$73 -> 55 | AH79: =SUMIFS(SpringProvRep!$K:$K,SpringProvRep!$A:$A,Data!$A$26,SpringProvRep!$O:$O,"<>Coventry",SpringProvRep!$T:$T,Data!AH$17)/$BA$73*$A$73 -> 0 | AI79: =SUMIFS(SpringProvRep!$K:$K,SpringProvRep!$A:$A,Data!$A$26,SpringProvRep!$O:$O,"<>Coventry",SpringProvRep!$T:$T,Data!AI$17)/$BA$73*$A$73 -> 0 | AJ79: =SUMIFS(SpringProvRep!$K:$K,SpringProvRep!$A:$A,Data!$A$26,SpringProvRep!$O:$O,"<>Coventry",SpringProvRep!$T:$T,Data!AJ$17)/$BA$73*$A$73 -> 0 | AK79: =SUMIFS(SpringProvRep!$K:$K,SpringProvRep!$A:$A,Data!$A$26,SpringProvRep!$O:$O,"<>Coventry",SpringProvRep!$T:$T,Data!AK$17)/$BA$73*$A$73 -> 0 | AL79: =SUMIFS(SpringProvRep!$K:$K,SpringProvRep!$A:$A,Data!$A$26,SpringProvRep!$O:$O,"<>Coventry",SpringProvRep!$T:$T,Data!AL$17)/$BA$73*$A$73 -> 0 | AM79: =SUMIFS(SpringProvRep!$K:$K,SpringProvRep!$A:$A,Data!$A$26,SpringProvRep!$O:$O,"<>Coventry",SpringProvRep!$T:$T,Data!AM$17)/$BA$73*$A$73 -> 0 | AN79: =SUMIFS(SpringProvRep!$K:$K,SpringProvRep!$A:$A,Data!$A$26,SpringProvRep!$O:$O,"<>Coventry",SpringProvRep!$T:$T,Data!AN$17)/$BA$73*$A$73 -> 0 | AO79: =SUMIFS(SpringProvRep!$K:$K,SpringProvRep!$A:$A,Data!$A$26,SpringProvRep!$O:$O,"<>Coventry",SpringProvRep!$T:$T,Data!AO$17)/$BA$73*$A$73 -> 0 | AP79: =SUMIFS(SpringProvRep!$K:$K,SpringProvRep!$A:$A,Data!$A$26,SpringProvRep!$O:$O,"<>Coventry",SpringProvRep!$T:$T,Data!AP$17)/$BA$73*$A$73 -> 0 | AQ79: =SUMIFS(SpringProvRep!$K:$K,SpringProvRep!$A:$A,Data!$A$26,SpringProvRep!$O:$O,"<>Coventry",SpringProvRep!$T:$T,Data!AQ$17)/$BA$73*$A$73 -> 0 | AR79: 1 | AS79: 2748.53586 | AT79: 507054.6736 | AU79: 124.7857143 | AV79: -1.214285714 | AW79: 126 | AX79: =[5]Data!$AU67 -> 122.6 | AY79: 126 | BB79: =($M$9-$AU$79)*$A$73 -> 66.78571429 | BD79: 6863.214286 | BE79: =$BB$79/$BD$79*D79 -> 0 | BF79: 0 | BG79: 0 | BH79: 0 | BI79: 0 | BJ79: 0 | BK79: 0 | BL79: 14.45048655 | BM79: 20.87292501 | BN79: 0 | BO79: 1.070406411 | BP79: 6.84295527 | BQ79: 0 | BR79: 14.98568975 | BS79: 6.422438466 | BT79: 0 | BU79: 1.070406411 | BV79: 0.5352032055 | BW79: 0 | BY79: =$BB$79/$BD$79*Y79 -> 0 | BZ79: 0 | CA79: 0 | CB79: 0 | CC79: 0 | CD79: 0 | CE79: 0 | CF79: 0 | CG79: 0.5352032055 | CH79: 0 | CI79: 0 | CJ79: 0 | CK79: 0 | CL79: 0 | CM79: 0 | CN79: 0 | CO79: 0 | CP79: 0 | CQ79: 0
A80: 7 | B80: Sherbourne Fields | C80: 51.54639175 | D80: 0 | E80: =SUMIFS(SpringProvRep!$K:$K,SpringProvRep!$A:$A,Data!$A$27,SpringProvRep!$O:$O,"Coventry",SpringProvRep!$T:$T,Data!E$17)/$BA$73*$A$73 -> 0 | F80: =SUMIFS(SpringProvRep!$K:$K,SpringProvRep!$A:$A,Data!$A$27,SpringProvRep!$O:$O,"Coventry",SpringProvRep!$T:$T,Data!F$17)/$BA$73*$A$73 -> 0 | G80: =SUMIFS(SpringProvRep!$K:$K,SpringProvRep!$A:$A,Data!$A$27,SpringProvRep!$O:$O,"Coventry",SpringProvRep!$T:$T,Data!G$17)/$BA$73*$A$73 -> 0 | H80: =SUMIFS(SpringProvRep!$K:$K,SpringProvRep!$A:$A,Data!$A$27,SpringProvRep!$O:$O,"Coventry",SpringProvRep!$T:$T,Data!H$17)/$BA$73*$A$73 -> 55 | I80: =SUMIFS(SpringProvRep!$K:$K,SpringProvRep!$A:$A,Data!$A$27,SpringProvRep!$O:$O,"Coventry",SpringProvRep!$T:$T,Data!I$17)/$BA$73*$A$73 -> 0 | J80: =SUMIFS(SpringProvRep!$K:$K,SpringProvRep!$A:$A,Data!$A$27,SpringProvRep!$O:$O,"Coventry",SpringProvRep!$T:$T,Data!J$17)/$BA$73*$A$73 -> 0 | K80: =SUMIFS(SpringProvRep!$K:$K,SpringProvRep!$A:$A,Data!$A$27,SpringProvRep!$O:$O,"Coventry",SpringProvRep!$T:$T,Data!K$17)/$BA$73*$A$73 -> 4785 | L80: =SUMIFS(SpringProvRep!$K:$K,SpringProvRep!$A:$A,Data!$A$27,SpringProvRep!$O:$O,"Coventry",SpringProvRep!$T:$T,Data!L$17)/$BA$73*$A$73 -> 3300 | M80: =SUMIFS(SpringProvRep!$K:$K,SpringProvRep!$A:$A,Data!$A$27,SpringProvRep!$O:$O,"Coventry",SpringProvRep!$T:$T,Data!M$17)/$BA$73*$A$73 -> 0 | N80: =SUMIFS(SpringProvRep!$K:$K,SpringProvRep!$A:$A,Data!$A$27,SpringProvRep!$O:$O,"Coventry",SpringProvRep!$T:$T,Data!N$17)/$BA$73*$A$73 -> 1595 | O80: =SUMIFS(SpringProvRep!$K:$K,SpringProvRep!$A:$A,Data!$A$27,SpringProvRep!$O:$O,"Coventry",SpringProvRep!$T:$T,Data!O$17)/$BA$73*$A$73 -> 165 | P80: =SUMIFS(SpringProvRep!$K:$K,SpringProvRep!$A:$A,Data!$A$27,SpringProvRep!$O:$O,"Coventry",SpringProvRep!$T:$T,Data!P$17)/$BA$73*$A$73 -> 0 | Q80: =SUMIFS(SpringProvRep!$K:$K,SpringProvRep!$A:$A,Data!$A$27,SpringProvRep!$O:$O,"Coventry",SpringProvRep!$T:$T,Data!Q$17)/$BA$73*$A$73 -> 1540 | R80: =SUMIFS(SpringProvRep!$K:$K,SpringProvRep!$A:$A,Data!$A$27,SpringProvRep!$O:$O,"Coventry",SpringProvRep!$T:$T,Data!R$17)/$BA$73*$A$73 -> 1430 | S80: =SUMIFS(SpringProvRep!$K:$K,SpringProvRep!$A:$A,Data!$A$27,SpringProvRep!$O:$O,"Coventry",SpringProvRep!$T:$T,Data!S$17)/$BA$73*$A$73 -> 0 | T80: =SUMIFS(SpringProvRep!$K:$K,SpringProvRep!$A:$A,Data!$A$27,SpringProvRep!$O:$O,"Coventry",SpringProvRep!$T:$T,Data!T$17)/$BA$73*$A$73 -> 1155 | U80: =SUMIFS(SpringProvRep!$K:$K,SpringProvRep!$A:$A,Data!$A$27,SpringProvRep!$O:$O,"Coventry",SpringProvRep!$T:$T,Data!U$17)/$BA$73*$A$73 -> 0 | V80: =SUMIFS(SpringProvRep!$K:$K,SpringProvRep!$A:$A,Data!$A$27,SpringProvRep!$O:$O,"Coventry",SpringProvRep!$T:$T,Data!V$17)/$BA$73*$A$73 -> 0 | W80: 255 | X80: 899998.6937 | Y80: 0 | Z80: =SUMIFS(SpringProvRep!$K:$K,SpringProvRep!$A:$A,Data!$A$27,SpringProvRep!$O:$O,"<>Coventry",SpringProvRep!$T:$T,Data!Z$17)/$BA$73*$A$73 -> 0 | AA80: =SUMIFS(SpringProvRep!$K:$K,SpringProvRep!$A:$A,Data!$A$27,SpringProvRep!$O:$O,"<>Coventry",SpringProvRep!$T:$T,Data!AA$17)/$BA$73*$A$73 -> 0 | AB80: =SUMIFS(SpringProvRep!$K:$K,SpringProvRep!$A:$A,Data!$A$27,SpringProvRep!$O:$O,"<>Coventry",SpringProvRep!$T:$T,Data!AB$17)/$BA$73*$A$73 -> 0 | AC80: =SUMIFS(SpringProvRep!$K:$K,SpringProvRep!$A:$A,Data!$A$27,SpringProvRep!$O:$O,"<>Coventry",SpringProvRep!$T:$T,Data!AC$17)/$BA$73*$A$73 -> 0 | AD80: =SUMIFS(SpringProvRep!$K:$K,SpringProvRep!$A:$A,Data!$A$27,SpringProvRep!$O:$O,"<>Coventry",SpringProvRep!$T:$T,Data!AD$17)/$BA$73*$A$73 -> 0 | AE80: =SUMIFS(SpringProvRep!$K:$K,SpringProvRep!$A:$A,Data!$A$27,SpringProvRep!$O:$O,"<>Coventry",SpringProvRep!$T:$T,Data!AE$17)/$BA$73*$A$73 -> 0 | AF80: =SUMIFS(SpringProvRep!$K:$K,SpringProvRep!$A:$A,Data!$A$27,SpringProvRep!$O:$O,"<>Coventry",SpringProvRep!$T:$T,Data!AF$17)/$BA$73*$A$73 -> 165 | AG80: =SUMIFS(SpringProvRep!$K:$K,SpringProvRep!$A:$A,Data!$A$27,SpringProvRep!$O:$O,"<>Coventry",SpringProvRep!$T:$T,Data!AG$17)/$BA$73*$A$73 -> 0 | AH80: =SUMIFS(SpringProvRep!$K:$K,SpringProvRep!$A:$A,Data!$A$27,SpringProvRep!$O:$O,"<>Coventry",SpringProvRep!$T:$T,Data!AH$17)/$BA$73*$A$73 -> 0 | AI80: =SUMIFS(SpringProvRep!$K:$K,SpringProvRep!$A:$A,Data!$A$27,SpringProvRep!$O:$O,"<>Coventry",SpringProvRep!$T:$T,Data!AI$17)/$BA$73*$A$73 -> 55 | AJ80: =SUMIFS(SpringProvRep!$K:$K,SpringProvRep!$A:$A,Data!$A$27,SpringProvRep!$O:$O,"<>Coventry",SpringProvRep!$T:$T,Data!AJ$17)/$BA$73*$A$73 -> 0 | AK80: =SUMIFS(SpringProvRep!$K:$K,SpringProvRep!$A:$A,Data!$A$27,SpringProvRep!$O:$O,"<>Coventry",SpringProvRep!$T:$T,Data!AK$17)/$BA$73*$A$73 -> 0 | AL80: =SUMIFS(SpringProvRep!$K:$K,SpringProvRep!$A:$A,Data!$A$27,SpringProvRep!$O:$O,"<>Coventry",SpringProvRep!$T:$T,Data!AL$17)/$BA$73*$A$73 -> 0 | AM80: =SUMIFS(SpringProvRep!$K:$K,SpringProvRep!$A:$A,Data!$A$27,SpringProvRep!$O:$O,"<>Coventry",SpringProvRep!$T:$T,Data!AM$17)/$BA$73*$A$73 -> 0 | AN80: =SUMIFS(SpringProvRep!$K:$K,SpringProvRep!$A:$A,Data!$A$27,SpringProvRep!$O:$O,"<>Coventry",SpringProvRep!$T:$T,Data!AN$17)/$BA$73*$A$73 -> 0 | AO80: =SUMIFS(SpringProvRep!$K:$K,SpringProvRep!$A:$A,Data!$A$27,SpringProvRep!$O:$O,"<>Coventry",SpringProvRep!$T:$T,Data!AO$17)/$BA$73*$A$73 -> 110 | AP80: =SUMIFS(SpringProvRep!$K:$K,SpringProvRep!$A:$A,Data!$A$27,SpringProvRep!$O:$O,"<>Coventry",SpringProvRep!$T:$T,Data!AP$17)/$BA$73*$A$73 -> 0 | AQ80: =SUMIFS(SpringProvRep!$K:$K,SpringProvRep!$A:$A,Data!$A$27,SpringProvRep!$O:$O,"<>Coventry",SpringProvRep!$T:$T,Data!AQ$17)/$BA$73*$A$73 -> 0 | AR80: 6 | AS80: 21542.56254 | AT80: 921541.2562 | AU80: 261 | AV80: 3 | AW80: 258 | AX80: =[5]Data!$AU68 -> 251.8 | AY80: 258 | BB80: =($M$10-$AU$80)*$A$73 -> -165 | BD80: 14355 | BE80: =$BB$80/$BD$80*D80 -> 0 | BF80: 0 | BG80: 0 | BH80: 0 | BI80: -0.632183908 | BJ80: 0 | BK80: 0 | BL80: -55 | BM80: -37.93103448 | BN80: 0 | BO80: -18.33333333 | BP80: -1.896551724 | BQ80: 0 | BR80: -17.70114943 | BS80: -16.43678161 | BT80: 0 | BU80: -13.27586207 | BV80: 0 | BW80: 0 | BY80: =$BB$80/$BD$80*Y80 -> 0 | BZ80: 0 | CA80: 0 | CB80: 0 | CC80: 0 | CD80: 0 | CE80: 0 | CF80: -1.896551724 | CG80: 0 | CH80: 0 | CI80: -0.632183908 | CJ80: 0 | CK80: 0 | CL80: 0 | CM80: 0 | CN80: 0 | CO80: -1.264367816 | CP80: 0 | CQ80: 0
A81: 8 | B81: Woodfield | C81: =10000/$A$16 -> 51.54639175 | D81: 0 | E81: =SUMIFS(SpringProvRep!$K:$K,SpringProvRep!$A:$A,Data!$A$28,SpringProvRep!$O:$O,"Coventry",SpringProvRep!$T:$T,Data!E$17)/$BA$73*$A$73 -> 0 | F81: =SUMIFS(SpringProvRep!$K:$K,SpringProvRep!$A:$A,Data!$A$28,SpringProvRep!$O:$O,"Coventry",SpringProvRep!$T:$T,Data!F$17)/$BA$73*$A$73 -> 0 | G81: =SUMIFS(SpringProvRep!$K:$K,SpringProvRep!$A:$A,Data!$A$28,SpringProvRep!$O:$O,"Coventry",SpringProvRep!$T:$T,Data!G$17)/$BA$73*$A$73 -> 0 | H81: =SUMIFS(SpringProvRep!$K:$K,SpringProvRep!$A:$A,Data!$A$28,SpringProvRep!$O:$O,"Coventry",SpringProvRep!$T:$T,Data!H$17)/$BA$73*$A$73 -> 0 | I81: =SUMIFS(SpringProvRep!$K:$K,SpringProvRep!$A:$A,Data!$A$28,SpringProvRep!$O:$O,"Coventry",SpringProvRep!$T:$T,Data!I$17)/$BA$73*$A$73 -> 0 | J81: =SUMIFS(SpringProvRep!$K:$K,SpringProvRep!$A:$A,Data!$A$28,SpringProvRep!$O:$O,"Coventry",SpringProvRep!$T:$T,Data!J$17)/$BA$73*$A$73 -> 0 | K81: =SUMIFS(SpringProvRep!$K:$K,SpringProvRep!$A:$A,Data!$A$28,SpringProvRep!$O:$O,"Coventry",SpringProvRep!$T:$T,Data!K$17)/$BA$73*$A$73 -> 0 | L81: =SUMIFS(SpringProvRep!$K:$K,SpringProvRep!$A:$A,Data!$A$28,SpringProvRep!$O:$O,"Coventry",SpringProvRep!$T:$T,Data!L$17)/$BA$73*$A$73 -> 0 | M81: =SUMIFS(SpringProvRep!$K:$K,SpringProvRep!$A:$A,Data!$A$28,SpringProvRep!$O:$O,"Coventry",SpringProvRep!$T:$T,Data!M$17)/$BA$73*$A$73 -> 0 | N81: =SUMIFS(SpringProvRep!$K:$K,SpringProvRep!$A:$A,Data!$A$28,SpringProvRep!$O:$O,"Coventry",SpringProvRep!$T:$T,Data!N$17)/$BA$73*$A$73 -> 0 | O81: =SUMIFS(SpringProvRep!$K:$K,SpringProvRep!$A:$A,Data!$A$28,SpringProvRep!$O:$O,"Coventry",SpringProvRep!$T:$T,Data!O$17)/$BA$73*$A$73 -> 220 | P81: =SUMIFS(SpringProvRep!$K:$K,SpringProvRep!$A:$A,Data!$A$28,SpringProvRep!$O:$O,"Coventry",SpringProvRep!$T:$T,Data!P$17)/$BA$73*$A$73 -> 0 | Q81: =SUMIFS(SpringProvRep!$K:$K,SpringProvRep!$A:$A,Data!$A$28,SpringProvRep!$O:$O,"Coventry",SpringProvRep!$T:$T,Data!Q$17)/$BA$73*$A$73 -> 8300.089286 | R81: =SUMIFS(SpringProvRep!$K:$K,SpringProvRep!$A:$A,Data!$A$28,SpringProvRep!$O:$O,"Coventry",SpringProvRep!$T:$T,Data!R$17)/$BA$73*$A$73 -> 0 | S81: =SUMIFS(SpringProvRep!$K:$K,SpringProvRep!$A:$A,Data!$A$28,SpringProvRep!$O:$O,"Coventry",SpringProvRep!$T:$T,Data!S$17)/$BA$73*$A$73 -> 0 | T81: =SUMIFS(SpringProvRep!$K:$K,SpringProvRep!$A:$A,Data!$A$28,SpringProvRep!$O:$O,"Coventry",SpringProvRep!$T:$T,Data!T$17)/$BA$73*$A$73 -> 0 | U81: =SUMIFS(SpringProvRep!$K:$K,SpringProvRep!$A:$A,Data!$A$28,SpringProvRep!$O:$O,"Coventry",SpringProvRep!$T:$T,Data!U$17)/$BA$73*$A$73 -> 110 | V81: =SUMIFS(SpringProvRep!$K:$K,SpringProvRep!$A:$A,Data!$A$28,SpringProvRep!$O:$O,"Coventry",SpringProvRep!$T:$T,Data!V$17)/$BA$73*$A$73 -> 0 | W81: =SUM(D81:V81)/$A$73 -> 156.9107143 | X81: 789196.7628 | Y81: 0 | Z81: =SUMIFS(SpringProvRep!$K:$K,SpringProvRep!$A:$A,Data!$A$28,SpringProvRep!$O:$O,"<>Coventry",SpringProvRep!$T:$T,Data!Z$17)/$BA$73*$A$73 -> 0 | AA81: =SUMIFS(SpringProvRep!$K:$K,SpringProvRep!$A:$A,Data!$A$28,SpringProvRep!$O:$O,"<>Coventry",SpringProvRep!$T:$T,Data!AA$17)/$BA$73*$A$73 -> 0 | AB81: =SUMIFS(SpringProvRep!$K:$K,SpringProvRep!$A:$A,Data!$A$28,SpringProvRep!$O:$O,"<>Coventry",SpringProvRep!$T:$T,Data!AB$17)/$BA$73*$A$73 -> 0 | AC81: =SUMIFS(SpringProvRep!$K:$K,SpringProvRep!$A:$A,Data!$A$28,SpringProvRep!$O:$O,"<>Coventry",SpringProvRep!$T:$T,Data!AC$17)/$BA$73*$A$73 -> 0 | AD81: =SUMIFS(SpringProvRep!$K:$K,SpringProvRep!$A:$A,Data!$A$28,SpringProvRep!$O:$O,"<>Coventry",SpringProvRep!$T:$T,Data!AD$17)/$BA$73*$A$73 -> 0 | AE81: =SUMIFS(SpringProvRep!$K:$K,SpringProvRep!$A:$A,Data!$A$28,SpringProvRep!$O:$O,"<>Coventry",SpringProvRep!$T:$T,Data!AE$17)/$BA$73*$A$73 -> 0 | AF81: =SUMIFS(SpringProvRep!$K:$K,SpringProvRep!$A:$A,Data!$A$28,SpringProvRep!$O:$O,"<>Coventry",SpringProvRep!$T:$T,Data!AF$17)/$BA$73*$A$73 -> 0 | AG81: =SUMIFS(SpringProvRep!$K:$K,SpringProvRep!$A:$A,Data!$A$28,SpringProvRep!$O:$O,"<>Coventry",SpringProvRep!$T:$T,Data!AG$17)/$BA$73*$A$73 -> 0 | AH81: =SUMIFS(SpringProvRep!$K:$K,SpringProvRep!$A:$A,Data!$A$28,SpringProvRep!$O:$O,"<>Coventry",SpringProvRep!$T:$T,Data!AH$17)/$BA$73*$A$73 -> 0 | AI81: =SUMIFS(SpringProvRep!$K:$K,SpringProvRep!$A:$A,Data!$A$28,SpringProvRep!$O:$O,"<>Coventry",SpringProvRep!$T:$T,Data!AI$17)/$BA$73*$A$73 -> 0 | AJ81: =SUMIFS(SpringProvRep!$K:$K,SpringProvRep!$A:$A,Data!$A$28,SpringProvRep!$O:$O,"<>Coventry",SpringProvRep!$T:$T,Data!AJ$17)/$BA$73*$A$73 -> 0 | AK81: =SUMIFS(SpringProvRep!$K:$K,SpringProvRep!$A:$A,Data!$A$28,SpringProvRep!$O:$O,"<>Coventry",SpringProvRep!$T:$T,Data!AK$17)/$BA$73*$A$73 -> 0 | AL81: =SUMIFS(SpringProvRep!$K:$K,SpringProvRep!$A:$A,Data!$A$28,SpringProvRep!$O:$O,"<>Coventry",SpringProvRep!$T:$T,Data!AL$17)/$BA$73*$A$73 -> 110 | AM81: =SUMIFS(SpringProvRep!$K:$K,SpringProvRep!$A:$A,Data!$A$28,SpringProvRep!$O:$O,"<>Coventry",SpringProvRep!$T:$T,Data!AM$17)/$BA$73*$A$73 -> 0 | AN81: =SUMIFS(SpringProvRep!$K:$K,SpringProvRep!$A:$A,Data!$A$28,SpringProvRep!$O:$O,"<>Coventry",SpringProvRep!$T:$T,Data!AN$17)/$BA$73*$A$73 -> 0 | AO81: =SUMIFS(SpringProvRep!$K:$K,SpringProvRep!$A:$A,Data!$A$28,SpringProvRep!$O:$O,"<>Coventry",SpringProvRep!$T:$T,Data!AO$17)/$BA$73*$A$73 -> 0 | AP81: =SUMIFS(SpringProvRep!$K:$K,SpringProvRep!$A:$A,Data!$A$28,SpringProvRep!$O:$O,"<>Coventry",SpringProvRep!$T:$T,Data!AP$17)/$BA$73*$A$73 -> 0 | AQ81: =SUMIFS(SpringProvRep!$K:$K,SpringProvRep!$A:$A,Data!$A$28,SpringProvRep!$O:$O,"<>Coventry",SpringProvRep!$T:$T,Data!AQ$17)/$BA$73*$A$73 -> 0 | AR81: 2 | AS81: 9657.014963 | AT81: 798853.7778 | AU81: =AR81+W81 -> 158.9107143 | AV81: -2.089285714 | AW81: 161 | AX81: =[5]Data!$AU69 -> 154.28 | AY81: 155 | BB81: =($M$11-$AU$81)*$A$73 -> 114.9107143 | BD81: 8740.089286 | BE81: =$BB$81/$BD$81*D81 -> 0 | BF81: 0 | BG81: 0 | BH81: 0 | BI81: 0 | BJ81: 0 | BK81: 0 | BL81: 0 | BM81: 0 | BN81: 0 | BO81: 0 | BP81: 2.892459827 | BQ81: 0 | BR81: 109.1257946 | BS81: 0 | BT81: 0 | BU81: 0 | BV81: 1.446229913 | BW81: 0 | BY81: =$BB$81/$BD$81*Y81 -> 0 | BZ81: 0 | CA81: 0 | CB81: 0 | CC81: 0 | CD81: 0 | CE81: 0 | CF81: 0 | CG81: 0 | CH81: 0 | CI81: 0 | CJ81: 0 | CK81: 0 | CL81: 1.446229913 | CM81: 0 | CN81: 0 | CO81: 0 | CP81: 0 | CQ81: 0
A82: 9 | B82: Coventry ELC | C82: =10000/$A$16 -> 51.54639175 | D82: =120*A73 -> 6600 | E82: 0 | F82: 0 | G82: 0 | H82: 0 | I82: 0 | J82: 0 | K82: 0 | L82: 0 | M82: 0 | N82: 0 | O82: 0 | P82: 0 | Q82: 0 | R82: 0 | S82: 0 | T82: 0 | U82: 0 | V82: 0 | W82: =SUM(D82:V82)/$A$73 -> 120 | X82: =SUMPRODUCT(D82:V82,$V$12:$AN$12)/$A$16 -> 438775.822 | Y82: =A73*0 -> 0 | Z82: 0 | AA82: 0 | AB82: 0 | AC82: 0 | AD82: 0 | AE82: 0 | AF82: 0 | AG82: 0 | AH82: 0 | AI82: 0 | AJ82: 0 | AK82: 0 | AL82: 0 | AM82: 0 | AN82: 0 | AO82: 0 | AP82: 0 | AQ82: 0 | AR82: 0 | AS82: 0 | AT82: 438775.822 | AU82: 120 | AV82: 0 | AW82: 120 | AX82: =[5]Data!$AU70 -> 120 | AY82: 120 | BB82: =($M$12-$AU$82)*$A$74 -> 0 | BD82: 6600 | BE82: =$BB$82/$BD$82*D82 -> 0 | BF82: 0 | BG82: 0 | BH82: 0 | BI82: 0 | BJ82: 0 | BK82: 0 | BL82: 0 | BM82: 0 | BN82: 0 | BO82: 0 | BP82: 0 | BQ82: 0 | BR82: 0 | BS82: 0 | BT82: 0 | BU82: 0 | BV82: 0 | BW82: 0 | BY82: =$BB$82/$BD$82*Y82 -> 0 | BZ82: 0 | CA82: 0 | CB82: 0 | CC82: 0 | CD82: 0 | CE82: 0 | CF82: 0 | CG82: 0 | CH82: 0 | CI82: 0 | CJ82: 0 | CK82: 0 | CL82: 0 | CM82: 0 | CN82: 0 | CO82: 0 | CP82: 0 | CQ82: 0
AS83: =SUM(AS74:AS82) -> 68787.64996 | AT83: =SUM(AT74:AT82) -> 5381656.427 | AU83: =SUM(AU74:AU82) -> 1425.464286
B84: Spring Term 2026
A85: 55 | B85: School
A86: 1 | B86: Castle Wood | C86: =10000/$A$16 -> 51.54639175 | D86: =D74+BE74 -> 0 | E86: =E74+BF74 -> 0 | F86: =F74+BG74 -> 0 | G86: =G74+BH74 -> 0 | H86: =H74+BI74 -> 0 | I86: =I74+BJ74 -> 0 | J86: =J74+BK74 -> 63.24435318 | K86: =K74+BL74 -> 5568.89117 | L86: =L74+BM74 -> 569.1991786 | M86: =M74+BN74 -> 63.24435318 | N86: =N74+BO74 -> 442.7104723 | O86: =O74+BP74 -> 522.8952772 | P86: =P74+BQ74 -> 0 | Q86: =Q74+BR74 -> 2110.780287 | R86: =R74+BS74 -> 442.7104723 | S86: =S74+BT74 -> 0 | T86: =T74+BU74 -> 379.4661191 | U86: =U74+BV74 -> 223.613963 | V86: =V74+BW74 -> 0 | W86: =SUM(D86:V86)/$A$73 -> 188.8501027 | X86: =SUMPRODUCT(D86:V86,$V$6:$AN$6)/$A$16 -> 751414.2455 | Y86: =Y74+BY74 -> 0 | Z86: =Z74+BZ74 -> 0 | AA86: =AA74+CA74 -> 0 | AB86: =AB74+CB74 -> 0 | AC86: =AC74+CC74 -> 0 | AD86: =AD74+CD74 -> 0 | AE86: =AE74+CE74 -> 0 | AF86: =AF74+CF74 -> 63.24435318 | AG86: =AG74+CG74 -> 0 | AH86: =AH74+CH74 -> 0 | AI86: =AI74+CI74 -> 0 | AJ86: =AJ74+CJ74 -> 0 | AK86: =AK74+CK74 -> 0 | AL86: =AL74+CL74 -> 0 | AM86: =AM74+CM74 -> 0 | AN86: =AN74+CN74 -> 0 | AO86: =AO74+CO74 -> 0 | AP86: =AP74+CP74 -> 0 | AQ86: =AQ74+CQ74 -> 0 | AR86: =SUM(Y86:AQ86)/$A$73 -> 1.149897331 | AS86: =SUMPRODUCT(Y86:AQ86,$V$6:$AN$6)/$A$16 -> 3416.791687 | AT86: =X86+AS86 -> 754831.0372 | AU86: =AR86+W86 -> 190 | AV86: =AU86-AW86 -> 0 | AW86: =M4 -> 190 | AX86: =[5]Data!$AU62 -> 161.72 | AY86: =E4 -> 164 | BA86: =(AT86/56*200)/AU86 -> 14188.55333 | BC86: =X86/W86 -> 3978.892439
A87: 2 | B87: Kingsbury | C87: =10000/$A$16 -> 51.54639175 | D87: =D75+BE75 -> 0 | E87: 0 | F87: 0 | G87: 0 | H87: 0 | I87: 0 | J87: 0 | K87: =K75+BL75 -> 3621.295518 | L87: 114.3137255 | M87: 0 | N87: 0 | O87: 333.7552521 | P87: 0 | Q87: =Q75+BR75 -> 1532.008053 | R87: 0 | S87: 0 | T87: 0 | U87: 0 | V87: 0 | W87: =SUM(D87:V87)/$A$73 -> 101.8431373 | X87: 381759.5925 | Y87: =Y75+BY75 -> 0 | Z87: 0 | AA87: 0 | AB87: 0 | AC87: 0 | AD87: 0 | AE87: 0 | AF87: 57.15686275 | AG87: 57.15686275 | AH87: 0 | AI87: 0 | AJ87: 0 | AK87: 0 | AL87: 114.3137255 | AM87: 0 | AN87: 0 | AO87: 0 | AP87: 0 | AQ87: 0 | AR87: =SUM(Y87:AQ87)/$A$73 -> 4.156862745 | AS87: 15979.95654 | AT87: 397739.5491 | AU87: 106 | AV87: 0 | AW87: 106 | AX87: =[5]Data!$AU63 -> 100.52 | AY87: 100 | BA87: =(AT87/56*200)/AU87 -> 13400.9282 | BC87: 3748.505818
A88: 3 | B88: RiverBank | C88: 51.54639175 | D88: 0 | E88: 0 | F88: 0 | G88: 354.9192492 | H88: 414.0724574 | I88: 0 | J88: 0 | K88: 4509.375818 | L88: 3390.746399 | M88: 118.3064164 | N88: 473.2256656 | O88: 532.3788739 | P88: 236.6128328 | Q88: 1478.830205 | R88: 354.9192492 | S88: 0 | T88: 177.4596246 | U88: 0 | V88: 0 | W88: 218.9244871 | X88: 759704.0307 | Y88: 0 | Z88: 0 | AA88: 0 | AB88: 0 | AC88: 0 | AD88: 0 | AE88: 0 | AF88: 0 | AG88: 59.15320821 | AH88: 0 | AI88: 0 | AJ88: 0 | AK88: 0 | AL88: 0 | AM88: 0 | AN88: 0 | AO88: 0 | AP88: 0 | AQ88: 0 | AR88: 1.075512876 | AS88: 2956.085708 | AT88: 762660.1164 | AU88: 220 | AV88: 0 | AW88: 220 | AX88: =[5]Data!$AU64 -> 197 | AY88: 209 | BA88: 12380.84605 | BC88: 3470.164716
A89: 4 | B89: Corley | C89: 51.54639175 | D89: 0 | E89: 0 | F89: 0 | G89: 170.7470041 | H89: 170.7470041 | I89: 0 | J89: 0 | K89: 6880.697727 | L89: 341.4940083 | M89: 398.4096763 | N89: 0 | O89: 222.5809161 | P89: 0 | Q89: 719.5766603 | R89: 0 | S89: 0 | T89: 0 | U89: 0 | V89: 0 | W89: 161.895509 | X89: 516870.9505 | Y89: 0 | Z89: 0 | AA89: 0 | AB89: 0 | AC89: 0 | AD89: 0 | AE89: 0 | AF89: 170.7470041 | AG89: 0 | AH89: 0 | AI89: 0 | AJ89: 0 | AK89: 0 | AL89: 0 | AM89: 0 | AN89: 0 | AO89: 0 | AP89: 0 | AQ89: 0 | AR89: 3.104490984 | AS89: 9224.648764 | AT89: 526095.5993 | AU89: 165 | AV89: 0 | AW89: 165 | AX89: =[5]Data!$AU65 -> 145.7 | AY89: 155 | BA89: 11387.35063 | BC89: 3192.620683
A90: 5 | B90: Tiverton | C90: 51.54639175 | D90: 0 | E90: 0 | F90: 0 | G90: 0 | H90: 0 | I90: 0 | J90: 0 | K90: 4517.673008 | L90: 621.1800386 | M90: 0 | N90: 282.354563 | O90: 312.6068376 | P90: 0 | Q90: 790.5927764 | R90: 395.2963882 | S90: 0 | T90: 338.8254756 | U90: 0 | V90: 0 | W90: 131.9732561 | X90: 466077.2706 | Y90: 0 | Z90: 0 | AA90: 0 | AB90: 0 | AC90: 0 | AD90: 0 | AE90: 0 | AF90: 0 | AG90: 0 | AH90: 0 | AI90: 0 | AJ90: 0 | AK90: 0 | AL90: 56.4709126 | AM90: 0 | AN90: 0 | AO90: 0 | AP90: 0 | AQ90: 0 | AR90: 1.026743865 | AS90: 4957.640436 | AT90: 471034.911 | AU90: 133 | AV90: 0 | AW90: 133 | AX90: =[5]Data!$AU66 -> 119.5 | AY90: 131 | BA90: 12648.62811 | BC90: 3531.603934
A91: 6 | B91: Baginton Fields | C91: 51.54639175 | D91: 0 | E91: 0 | F91: 0 | G91: 0 | H91: 0 | I91: 0 | J91: 0 | K91: 1499.450487 | L91: 2165.872925 | M91: 0 | N91: 111.0704064 | O91: 710.057241 | P91: 0 | Q91: 1554.98569 | R91: 666.4224385 | S91: 0 | T91: 111.0704064 | U91: 55.53520321 | V91: 0 | W91: 124.990269 | X91: 509213.5243 | Y91: 0 | Z91: 0 | AA91: 0 | AB91: 0 | AC91: 0 | AD91: 0 | AE91: 0 | AF91: 0 | AG91: 55.53520321 | AH91: 0 | AI91: 0 | AJ91: 0 | AK91: 0 | AL91: 0 | AM91: 0 | AN91: 0 | AO91: =AO79+CO79 -> 0 | AP91: 0 | AQ91: 0 | AR91: 1.009730967 | AS91: 2775.281772 | AT91: 511988.806 | AU91: 126 | AV91: 0 | AW91: 126 | AX91: =[5]Data!$AU67 -> 122.6 | AY91: 126 | BA91: 14512.15437 | BC91: 4074.025348
A92: 7 | B92: Sherbourne Fields | C92: 51.54639175 | D92: 0 | E92: 0 | F92: 0 | G92: 0 | H92: 54.36781609 | I92: 0 | J92: 0 | K92: 4730 | L92: 3262.068966 | M92: 0 | N92: 1576.666667 | O92: 163.1034483 | P92: 0 | Q92: 1522.298851 | R92: 1413.563218 | S92: 0 | T92: 1141.724138 | U92: 0 | V92: 0 | W92: 252.0689655 | X92: 889653.8811 | Y92: 0 | Z92: 0 | AA92: 0 | AB92: 0 | AC92: 0 | AD92: 0 | AE92: 0 | AF92: 163.1034483 | AG92: 0 | AH92: 0 | AI92: 54.36781609 | AJ92: 0 | AK92: 0 | AL92: 0 | AM92: 0 | AN92: 0 | AO92: =AO80+CO80 -> 108.7356322 | AP92: 0 | AQ92: 0 | AR92: 5.931034483 | AS92: 21294.94688 | AT92: 910948.828 | AU92: 258 | AV92: 0 | AW92: 258 | AX92: =[5]Data!$AU68 -> 251.8 | AY92: 258 | BA92: 12610.03361 | BC92: 3529.406642
A93: 8 | B93: Woodfield | C93: =10000/$A$16 -> 51.54639175 | D93: 0 | E93: 0 | F93: 0 | G93: 0 | H93: 0 | I93: 0 | J93: 0 | K93: 0 | L93: 0 | M93: 0 | N93: 0 | O93: 222.8924598 | P93: 0 | Q93: 8409.21508 | R93: 0 | S93: 0 | T93: 0 | U93: 111.4462299 | V93: 0 | W93: =SUM(D93:V93)/$A$73 -> 158.9737049 | X93: 799572.7625 | Y93: 0 | Z93: 0 | AA93: 0 | AB93: 0 | AC93: 0 | AD93: 0 | AE93: 0 | AF93: 0 | AG93: 0 | AH93: 0 | AI93: 0 | AJ93: 0 | AK93: 0 | AL93: 111.4462299 | AM93: 0 | AN93: 0 | AO93: 0 | AP93: 0 | AQ93: 0 | AR93: 2.026295089 | AS93: 9783.980998 | AT93: 809356.7435 | AU93: =AR93+W93 -> 161 | AV93: =AU93-AW93 -> 0 | AW93: 161 | AX93: =[5]Data!$AU69 -> 154.28 | AY93: 155 | BA93: 17953.78757 | BC93: 5029.591296
A94: 9 | B94: Coventry ELC | C94: =10000/$A$16 -> 51.54639175 | D94: =D82+BE82 -> 6600 | E94: 0 | F94: 0 | G94: 0 | H94: 0 | I94: 0 | J94: 0 | K94: 0 | L94: 0 | M94: 0 | N94: 0 | O94: 0 | P94: 0 | Q94: 0 | R94: 0 | S94: 0 | T94: 0 | U94: 0 | V94: 0 | W94: 120 | X94: =SUMPRODUCT(D94:V94,$V$12:$AN$12)/$A$16 -> 438775.822 | Y94: 0 | Z94: 0 | AA94: 0 | AB94: 0 | AC94: 0 | AD94: 0 | AE94: 0 | AF94: 0 | AG94: 0 | AH94: 0 | AI94: 0 | AJ94: 0 | AK94: 0 | AL94: 0 | AM94: 0 | AN94: 0 | AO94: 0 | AP94: 0 | AQ94: 0 | AR94: 0 | AS94: =SUMPRODUCT(Y94:AQ94,$V$12:$AN$12)/$A$16 -> 0 | AT94: 438775.822 | AU94: 120 | AV94: =AU94-AW94 -> 0 | AW94: 120 | AX94: =[5]Data!$AU70 -> 120 | AY94: 120 | BA94: 13058.80423 | BC94: 3656.465184
D96: Coventry pupils | Y96: Other LA Pupils
B97: Full Year 2025/26
A99: 1 | B99: Castle Wood | C99: =10000/$A$16 -> 51.54639175 | D99: =D33+D59+D86 -> 0 | E99: 0 | F99: 0 | G99: 0 | H99: 0 | I99: 0 | J99: 215.1422066 | K99: 18798.63531 | L99: 1936.27986 | M99: 151.1422066 | N99: 1505.995446 | O99: 1889.517532 | P99: 0 | Q99: 7245.294474 | R99: 1505.995446 | S99: 0 | T99: 1290.85324 | U99: 631.8999241 | V99: 0 | W99: =SUM(D99:V99)/$A$16 -> 181.2925549 | X99: =X33+X59+X86 -> 2529460.037 | Y99: 0 | Z99: 0 | AA99: 0 | AB99: 0 | AC99: 0 | AD99: 0 | AE99: 0 | AF99: 127.2443532 | AG99: 0 | AH99: 0 | AI99: 0 | AJ99: 0 | AK99: 0 | AL99: 0 | AM99: 0 | AN99: 0 | AO99: 0 | AP99: 0 | AQ99: 0 | AR99: =SUM(Y99:AQ99)/$A$16 -> 0.6558987277 | AS99: =AS33+AS59+AS86 -> 6874.40738 | AT99: 2536334.444 | AU99: =AR99+W99 -> 181.9484536 | AV99: =AT99/AU99 -> 13939.85161 | BA99: =AVERAGE(BA33,BA59,BA86) -> 13940.80254 | BB99: =BA99-AV99 -> 0.9509274384 | BC99: =BC33+BC59+BC86 -> 13950.22802
A100: 2 | B100: Kingsbury | C100: =10000/$A$16 -> 51.54639175 | D100: =D34+D60+D87 -> 0 | E100: 0 | F100: 0 | G100: 0 | H100: 0 | I100: 0 | J100: 0 | K100: 12380.13565 | L100: 425.9598733 | M100: 0 | N100: 0 | O100: 1543.736352 | P100: 0 | Q100: 4969.207292 | R100: 0 | S100: 0 | T100: 0 | U100: 49.04186901 | V100: 0 | W100: 99.83546928 | X100: =X34+X60+X87 -> 1352215.437 | Y100: 0 | Z100: 0 | AA100: 0 | AB100: 0 | AC100: 0 | AD100: 0 | AE100: 0 | AF100: 277.673466 | AG100: 199.4151644 | AH100: 0 | AI100: 0 | AJ100: 0 | AK100: 0 | AL100: 398.8303287 | AM100: 0 | AN100: 0 | AO100: 0 | AP100: 0 | AQ100: 0 | AR100: =SUM(Y100:AQ100)/$A$16 -> 4.515046181 | AS100: 59980.5581 | AT100: 1412195.995 | AU100: =AR100+W100 -> 104.3505155 | AV100: =AT100/AU100 -> 13533.19616 | BA100: 13515.01089 | BB100: =BA100-AV100 -> -18.18526726 | BC100: =BC34+BC60+BC87 -> 13548.12712
A101: 3 | B101: RiverBank | C101: 51.54639175 | D101: =D35+D61+D88 -> 0 | E101: 0 | F101: 0 | G101: 1229.773614 | H101: 1437.477178 | I101: 0 | J101: 0 | K101: 15540.98263 | L101: 11585.92261 | M101: 357.2578714 | N101: 1646.8188 | O101: 1872.160421 | P101: 824.5157428 | Q101: 5089.202875 | R101: 1232.348242 | S101: 0 | T101: 618.3868071 | U101: 0 | V101: 0 | W101: 213.5816845 | X101: =X35+X61+X88 -> 2618741.002 | Y101: 0 | Z101: 0 | AA101: 0 | AB101: 0 | AC101: 0 | AD101: 0 | AE101: 0 | AF101: 0 | AG101: 123.1532082 | AH101: 0 | AI101: 0 | AJ101: 0 | AK101: 0 | AL101: 0 | AM101: 0 | AN101: 0 | AO101: 0 | AP101: 0 | AQ101: 0 | AR101: 0.6348103516 | AS101: 6154.381981 | AT101: 2624895.384 | AU101: 214.2164948 | AV101: 12253.46996 | BA101: 12249.25543 | BB101: -4.214529488 | BC101: 12260.80674
A102: 4 | B102: Corley | C102: 51.54639175 | D102: =D36+D62+D89 -> 0 | E102: 0 | F102: 0 | G102: 596.4748774 | H102: 630.0143032 | I102: 0 | J102: 0 | K102: 24080.04608 | L102: 808.9497549 | M102: 1339.66588 | N102: 0 | O102: 898.4050035 | P102: 0 | Q102: 2429.87301 | R102: 0 | S102: 0 | T102: 0 | U102: 0 | V102: 0 | W102: 158.6774686 | X102: =X36+X62+X89 -> 1795411.035 | Y102: 0 | Z102: 0 | AA102: 0 | AB102: 0 | AC102: 0 | AD102: 0 | AE102: 0 | AF102: 534.5710915 | AG102: 0 | AH102: 0 | AI102: 0 | AJ102: 0 | AK102: 0 | AL102: 0 | AM102: 0 | AN102: 0 | AO102: 0 | AP102: 0 | AQ102: 0 | AR102: 2.75552109 | AS102: 28880.33429 | AT102: 1824291.369 | AU102: 161.4329897 | AV102: 11300.61069 | BA102: 11306.86448 | BB102: 6.253792618 | BC102: 11320.19295
A103: 5 | B103: Tiverton | C103: 51.54639175 | D103: =D37+D63+D90 -> 0 | E103: 0 | F103: 0 | G103: 0 | H103: 0 | I103: 0 | J103: 0 | K103: 15540.29016 | L103: 2163.304081 | M103: 0 | N103: 984.2458341 | O103: 1062.057067 | P103: 0 | Q103: 3085.755104 | R103: 1377.944168 | S103: 0 | T103: 1181.095001 | U103: 57 | V103: 0 | W103: 131.1942856 | X103: =X37+X63+X90 -> 1654193.9 | Y103: 0 | Z103: 0 | AA103: 0 | AB103: 0 | AC103: 0 | AD103: 0 | AE103: 0 | AF103: 25.45941807 | AG103: 0 | AH103: 0 | AI103: 0 | AJ103: 0 | AK103: 0 | AL103: 196.8491668 | AM103: 0 | AN103: 0 | AO103: 0 | AP103: 0 | AQ103: 0 | AR103: 1.145920541 | AS103: 18657.04539 | AT103: 1672850.946 | AU103: 132.3402062 | AV103: 12640.53453 | BA103: 12636.25131 | BB103: -4.283212352 | BC103: 12610.19186
A104: 6 | B104: Baginton Fields | C104: 51.54639175 | D104: =D38+D64+D91 -> 0 | E104: 0 | F104: 0 | G104: 0 | H104: 0 | I104: 0 | J104: 0 | K104: 5481.569805 | L104: 7439.259289 | M104: 0 | N104: 388.2181337 | O104: 2374.989059 | P104: 0 | Q104: 5402.406144 | R104: 2401.894029 | S104: 0 | T104: 388.2181337 | U104: 154.3363396 | V104: 0 | W104: 123.8705718 | X104: =X38+X64+X91 -> 1763657.885 | Y104: 0 | Z104: 0 | AA104: 0 | AB104: 0 | AC104: 0 | AD104: 0 | AE104: 0 | AF104: 0 | AG104: 258.1090668 | AH104: 0 | AI104: 0 | AJ104: 0 | AK104: 0 | AL104: 0 | AM104: 0 | AN104: 0 | AO104: 0 | AP104: 0 | AQ104: 0 | AR104: 1.330459107 | AS104: 12898.58229 | AT104: 1776556.467 | AU104: 125.2010309 | AV104: 14189.6313 | BA104: 14204.31139 | BB104: 14.68009287 | BC104: 14239.32944
A105: 7 | B105: Sherbourne Fields | C105: 51.54639175 | D105: =D39+D65+D92 -> 0 | E105: 0 | F105: 0 | G105: 0 | H105: 194.1867388 | I105: 0 | J105: 0 | K105: 16727.44465 | L105: 11676.4773 | M105: 64 | N105: 5631.415426 | O105: 582.5602165 | P105: 0 | Q105: 5320.973006 | R105: 4925.523095 | S105: 0 | T105: 4013.921515 | U105: 0 | V105: 0 | W105: 253.2809379 | X105: =X39+X65+X92 -> 3148782.867 | Y105: 0 | Z105: 0 | AA105: 0 | AB105: 0 | AC105: 0 | AD105: 0 | AE105: 0 | AF105: 460.9378352 | AG105: 0 | AH105: 0 | AI105: 194.1867388 | AJ105: 0 | AK105: 0 | AL105: 0 | AM105: 0 | AN105: 0 | AO105: 388.3734776 | AP105: 0 | AQ105: 0 | AR105: 5.378855936 | AS105: 69488.95678 | AT105: 3218271.823 | AU105: 258.6597938 | AV105: 12442.1031 | BA105: 12441.98062 | BB105: -0.1224849306 | BC105: 12431.96874
A106: 8 | B106: Woodfield | C106: =10000/$A$16 -> 51.54639175 | D106: =D40+D66+D93 -> 0 | E106: 0 | F106: 0 | G106: 0 | H106: 0 | I106: 0 | J106: 0 | K106: 0 | L106: 0 | M106: 26 | N106: 0 | O106: 721.1572552 | P106: 0 | Q106: 29650.68549 | R106: 0 | S106: 0 | T106: 0 | U106: 330.5786276 | V106: 0 | W106: 158.3939246 | X106: =X40+X66+X93 -> 2794961.775 | Y106: 0 | Z106: 0 | AA106: 0 | AB106: 0 | AC106: 0 | AD106: 0 | AE106: 0 | AF106: 0 | AG106: 0 | AH106: 0 | AI106: 0 | AJ106: 0 | AK106: 0 | AL106: 328.5786276 | AM106: 0 | AN106: 0 | AO106: 0 | AP106: 0 | AQ106: 0 | AR106: =SUM(Y106:AQ106)/$A$16 -> 1.693704266 | AS106: 28846.26112 | AT106: 2823808.036 | AU106: 160.0876289 | AV106: 17639.13962 | BA106: 17639.07469 | BB106: -0.06492811943 | BC106: 17644.9129
A107: 9 | B107: Coventry ELC | C107: =10000/$A$16 -> 51.54639175 | D107: =D41+D67+D94 -> 23280 | E107: 0 | F107: 0 | G107: 0 | H107: 0 | I107: 0 | J107: 0 | K107: 0 | L107: 0 | M107: 0 | N107: 0 | O107: 0 | P107: 0 | Q107: 0 | R107: 0 | S107: 0 | T107: 0 | U107: 0 | V107: 0 | W107: =SUM(D107:V107)/$A$16 -> 120 | X107: =X41+X67+X94 -> 1547681.99 | Y107: 0 | Z107: 0 | AA107: 0 | AB107: 0 | AC107: 0 | AD107: 0 | AE107: 0 | AF107: 0 | AG107: 0 | AH107: 0 | AI107: 0 | AJ107: 0 | AK107: 0 | AL107: 0 | AM107: 0 | AN107: 0 | AO107: 0 | AP107: 0 | AQ107: 0 | AR107: =SUM(Y107:AQ107)/$A$16 -> 0 | AS107: 0 | AT107: 1547681.99 | AU107: 120 | AV107: 12897.34992 | BA107: 12895.92762 | BB107: -1.422302788 | BC107: 12897.34992
B111: TOTALS | C111: Place Led | D111: Coventry | E111: Other LA | F111: Total | G111: Total | I111: Average Top-up costs for Coventry pupils
B112: School | C112: Funding | D112: Top-up | E112: Top-up | F112: Funding | G112: Top-up
A113: 1 | B113: Castle Wood | C113: =(K4*4/12+L4*1/12+M4*7/12)*10000 -> 1791666.667 | D113: =X99 -> 2529460.037 | E113: =AS99 -> 6874.40738 | F113: =SUM(C113:E113) -> 4328001.111 | I113: =D113/W99 -> 13952.36577
A114: 2 | B114: Kingsbury | C114: 1047500 | D114: =X100 -> 1352215.437 | E114: 59980.5581 | F114: =SUM(C114:E114) -> 2459695.995 | I114: =D114/W100 -> 13544.43914
A115: 3 | B115: RiverBank | C115: 2154166.667 | D115: 2618741.002 | E115: 6154.381981 | F115: 4779062.051 | I115: 12261.07477
A116: 4 | B116: Corley | C116: 1608333.333 | D116: 1795411.035 | E116: 28880.33429 | F116: 3432624.702 | I116: 11314.84546
A117: 5 | B117: Tiverton | C117: 1330000 | D117: 1654193.9 | E117: 18657.04539 | F117: 3002850.946 | I117: 12608.73438
A118: 6 | B118: Baginton Fields | C118: 1260000 | D118: 1763657.885 | E118: 12898.58229 | F118: 3036556.467 | I118: 14237.90864
A119: 7 | B119: Sherbourne Fields | C119: 2580000 | D119: 3148782.867 | E119: 69488.95678 | F119: =SUM(C119:E119) -> 5798271.823 | I119: 12431.97729
A120: 8 | B120: Woodfield | C120: 1585000 | D120: 2794961.775 | E120: =AS106 -> 28846.26112 | F120: 4408808.036 | I120: 17645.6375
C121: =SUM(C113:C120) -> 13356666.67 | D121: =SUM(D113:D120) -> 17657423.94 | E121: =SUM(E113:E120) -> 231780.5273 | F121: =SUM(F113:F120) -> 31245871.13 | G121: =D121+E121 -> 17889204.46 | K121: 16905477.14 | L121: Special School Top Up Value before Goal Seek
A122: 9 | B122: Coventry ELC | C122: =(K12*4/12+L12*1/12+M12*7/12)*10000 -> 1200000 | D122: =X107 -> 1547681.99 | E122: =AS107 -> 0 | F122: 2747681.99 | I122: =D122/W107 -> 12897.34992
C123: =C122 -> 1200000 | D123: =D122 -> 1547681.99 | E123: =E122 -> 0 | F123: =F122 -> 2747681.99 | G123: =D123+E123 -> 1547681.99
C125: =C121+C123 -> 14556666.67 | D125: =D121+D123 -> 19205105.93 | E125: =E121+E123 -> 231780.5273 | F125: =F121+F123 -> 33993553.12 | G125: =SUM(D125:E125) -> 19436886.46
C127: Value removed from Tops for TPAG | D127: =[16]Data!$D$125-D125 -> 613068.7035
C128: Value added for TPAG | D128: =AR13 -> 1053802.006
C129: Increase in expenditure | D129: =D128-D127 -> 440733.3026

Sheet SummerProvRep (hidden)
B1: SEND Finance - Special Schools 01/04/2025 and 31/07/2025
A2: =IF(LEFT(N2,2)="BF",6,IF(LEFT(N2,2)="CW",1,IF(LEFT(N2,2)="CO",4,IF(LEFT(N2,2)="TS",2,IF(LEFT(N2,2)="RB",3,IF(LEFT(N2,2)="SF",7,IF(LEFT(N2,2)="TV",5,IF(LEFT(N2,2)="WF",8,"")))))))) ->  | B2: School | C2: Capita ID | D2: NCY | E2: Surname | F2: Forename | G2: # Days in year | H2: Provision start | I2: Provision end | J2: Unit cost | K2: # Term Days | L2: Funding | M2: Funded FTE | N2: Band | O2: Funding LA | P2: Previous School | Q2: Next School | T2: =IF(ISBLANK(A2),"",CONCATENATE($N$2," ",RIGHT(N2,2))) -> Band nd
A3: 6 | B3: Baginton Fields Academy | C3: 343228 | D3: 8 | E3: Abass | F3: Adedunni | G3: 194 | H3: 2025-04-01 | I3: 2025-07-31 | J3: 15721.34074 | K3: 64 | L3: 5186.421687 | M3: 1 | N3: BF2F | O3: Coventry | T3: Band 2F
A4: 6 | B4: Baginton Fields Academy | C4: 427012 | D4: 9 | E4: Abdulahi | F4: Abdirahman | G4: 194 | H4: 2025-04-01 | I4: 2025-07-31 | J4: 10480.89757 | K4: 64 | L4: 3457.615693 | M4: 1 | N4: BF1E | O4: Coventry | T4: Band 1E
A5: 6 | B5: Baginton Fields Academy | C5: 243036 | D5: 13 | E5: Abu Baker | F5: Daniel | G5: 194 | H5: 2025-04-01 | I5: 2025-07-31 | J5: 26685.25108 | K5: 64 | L5: 8803.3818 | M5: 1 | N5: BF5E | O5: Coventry | T5: Band 5E
A6: 6 | B6: Baginton Fields Academy | C6: 241973 | D6: 14 | E6: Ademakinwa | F6: Kikiola | G6: 194 | H6: 2025-04-01 | I6: 2025-07-31 | J6: 17031.46275 | K6: 64 | L6: 5618.626887 | M6: 1 | N6: BF1F | O6: Coventry | T6: Band 1F
A7: 6 | B7: Baginton Fields Academy | C7: 292158 | D7: 11 | E7: Ahmed | F7: Hana | G7: 194 | H7: 2025-04-01 | I7: 2025-07-31 | J7: 10480.89757 | K7: 64 | L7: 3457.615693 | M7: 1 | N7: BF1E | O7: Coventry | T7: Band 1E
A8: 6 | B8: Baginton Fields Academy | C8: 318946 | D8: 8 | E8: Ahmed | F8: Varen | G8: 194 | H8: 2025-04-01 | I8: 2025-07-31 | J8: 17031.46275 | K8: 64 | L8: 5618.626887 | M8: 1 | N8: BF1F | O8: Coventry | T8: Band 1F
A9: 6 | B9: Baginton Fields Academy | C9: 288451 | D9: 12 | E9: Akhtar | F9: Shumena | G9: 194 | H9: 2025-04-01 | I9: 2025-07-31 | J9: 10480.89757 | K9: 64 | L9: 3457.615693 | M9: 1 | N9: BF1E | O9: Coventry | T9: Band 1E
A10: 6 | B10: Baginton Fields Academy | C10: 418473 | D10: 10 | E10: Al Sabban | F10: Bissan | G10: 194 | H10: 2025-04-01 | I10: 2025-07-31 | J10: 9694.83558 | K10: 64 | L10: 3198.296274 | M10: 1 | N10: BF2E | O10: Coventry | Q10: Baginton Fields Academy | T10: Band 2E
B11: Baginton Fields Academy | C11: 418473 | D11: 10 | E11: Al Sabban | F11: Bissan | G11: 194 | H11: 2025-04-01 | I11: 2025-07-31 | J11: 0.001 | K11: 64 | L11: 0.0003298969072 | M11: 1 | N11: SLTNHS | O11: Coventry | P11: Baginton Fields Academy | T11: Band HS
A12: 6 | B12: Baginton Fields Academy | C12: 293742 | D12: 11 | E12: Ali | F12: Azhar | G12: 194 | H12: 2025-04-01 | I12: 2025-07-31 | J12: 17031.46275 | K12: 64 | L12: 5618.626887 | M12: 1 | N12: BF1F | O12: Coventry | T12: Band 1F
A13: 6 | B13: Baginton Fields Academy | C13: 235739 | D13: 14 | E13: Ali | F13: Ifza | G13: 194 | H13: 2025-04-01 | I13: 2025-07-31 | J13: 9694.83558 | K13: 64 | L13: 3198.296274 | M13: 1 | N13: BF2E | O13: Coventry | T13: Band 2E
A14: 6 | B14: Baginton Fields Academy | C14: 314806 | D14: 9 | E14: Bailey | F14: Joshua | G14: 194 | H14: 2025-04-01 | I14: 2025-07-31 | J14: 10480.89757 | K14: 64 | L14: 3457.615693 | M14: 1 | N14: BF1E | O14: Coventry | T14: Band 1E
A15: 6 | B15: Baginton Fields Academy | C15: 311105 | D15: 10 | E15: Barrowman | F15: Lee | G15: 194 | H15: 2025-04-01 | I15: 2025-04-11 | J15: 26685.25108 | K15: 9 | L15: 1237.975566 | M15: 0.14 | N15: BF5E | O15: Coventry | T15: Band 5E
A16: 6 | B16: Baginton Fields Academy | C16: 279153 | D16: 13 | E16: Beauchamp | F16: Morgan | G16: 194 | H16: 2025-04-01 | I16: 2025-07-31 | J16: 9694.83558 | K16: 64 | L16: 3198.296274 | M16: 1 | N16: BF2E | O16: Coventry | T16: Band 2E
A17: 6 | B17: Baginton Fields Academy | C17: 235466 | D17: 15 | E17: Bhatti | F17: Aman | G17: 194 | H17: 2025-04-01 | I17: 2025-07-31 | J17: 15721.34074 | K17: 64 | L17: 5186.421687 | M17: 1 | N17: BF2F | O17: Coventry | T17: Band 2F
A18: 6 | B18: Baginton Fields Academy | C18: 396080 | D18: 14 | E18: Biyasi | F18: Hala | G18: 194 | H18: 2025-04-01 | I18: 2025-07-31 | J18: 9694.83558 | K18: 64 | L18: 3198.296274 | M18: 1 | N18: BF2E | O18: Coventry | T18: Band 2E
A19: 6 | B19: Baginton Fields Academy | C19: 282041 | D19: 11 | E19: Braithwaite | F19: Lacey | G19: 194 | H19: 2025-04-01 | I19: 2025-07-31 | J19: 26685.25108 | K19: 64 | L19: 8803.3818 | M19: 1 | N19: BF5E | O19: Coventry | T19: Band 5E
A20: 6 | B20: Baginton Fields Academy | C20: 281810 | D20: 12 | E20: Bush | F20: Matthew | G20: 194 | H20: 2025-04-01 | I20: 2025-07-31 | J20: 9694.83558 | K20: 64 | L20: 3198.296274 | M20: 1 | N20: BF2E | O20: Coventry | T20: Band 2E
A21: 6 | B21: Baginton Fields Academy | C21: 269933 | D21: 14 | E21: Cain | F21: Chanel | G21: 194 | H21: 2025-04-01 | I21: 2025-07-31 | J21: 9694.83558 | K21: 64 | L21: 3198.296274 | M21: 1 | N21: BF2E | O21: Coventry | T21: Band 2E
A22: 6 | B22: Baginton Fields Academy | C22: 334045 | D22: 9 | E22: Cain | F22: Ryan | G22: 194 | H22: 2025-04-01 | I22: 2025-07-31 | J22: 9694.83558 | K22: 64 | L22: 3198.296274 | M22: 1 | N22: BF2E | O22: Coventry | T22: Band 2E
A23: 6 | B23: Baginton Fields Academy | C23: 284471 | D23: 9 | E23: Caraian | F23: Sara | G23: 194 | H23: 2025-04-01 | I23: 2025-07-31 | J23: 9694.83558 | K23: 64 | L23: 3198.296274 | M23: 1 | N23: BF2E | O23: Coventry | T23: Band 2E
A24: 6 | B24: Baginton Fields Academy | C24: 257028 | D24: 12 | E24: Carty | F24: Loveonhe | G24: 194 | H24: 2025-04-01 | I24: 2025-07-31 | J24: 9694.83558 | K24: 64 | L24: 3198.296274 | M24: 1 | N24: BF2E | O24: Coventry | T24: Band 2E
A25: 6 | B25: Baginton Fields Academy | C25: 252823 | D25: 12 | E25: Chidube | F25: Maurice | G25: 194 | H25: 2025-04-01 | I25: 2025-07-31 | J25: 9694.83558 | K25: 64 | L25: 3198.296274 | M25: 1 | N25: BF2E | O25: Coventry | T25: Band 2E
A26: 6 | B26: Baginton Fields Academy | C26: 311820 | D26: 9 | E26: Choudhury | F26: Rishi | G26: 194 | H26: 2025-04-01 | I26: 2025-07-31 | J26: 10480.89757 | K26: 64 | L26: 3457.615693 | M26: 1 | N26: BF1E | O26: Coventry | T26: Band 1E
A27: 6 | B27: Baginton Fields Academy | C27: 256582 | D27: 15 | E27: Christian | F27: Riquelme | G27: 194 | H27: 2025-04-01 | I27: 2025-07-25 | J27: 10480.89757 | K27: 64 | L27: 3457.615693 | M27: 1 | N27: BF1E | O27: Coventry | T27: Band 1E
A28: 6 | B28: Baginton Fields Academy | C28: 267500 | D28: 11 | E28: Collinson | F28: Catherine | G28: 194 | H28: 2025-04-01 | I28: 2025-07-31 | J28: 9694.83558 | K28: 64 | L28: 3198.296274 | M28: 1 | N28: BF2E | O28: Warwickshire | T28: Band 2E
A29: 6 | B29: Baginton Fields Academy | C29: 243724 | D29: 12 | E29: Cooney | F29: Charlotte | G29: 194 | H29: 2025-04-01 | I29: 2025-07-31 | J29: 15721.34074 | K29: 64 | L29: 5186.421687 | M29: 1 | N29: BF2F | O29: Coventry | T29: Band 2F
A30: 6 | B30: Baginton Fields Academy | C30: 310848 | D30: 9 | E30: Cooper | F30: Liam | G30: 194 | H30: 2025-04-01 | I30: 2025-07-31 | J30: 10480.89757 | K30: 64 | L30: 3457.615693 | M30: 1 | N30: BF1E | O30: Coventry | T30: Band 1E
A31: 6 | B31: Baginton Fields Academy | C31: 319811 | D31: 10 | E31: Crowley | F31: Macey | G31: 194 | H31: 2025-04-01 | I31: 2025-07-31 | J31: 9694.83558 | K31: 64 | L31: 3198.296274 | M31: 1 | N31: BF2E | O31: Coventry | T31: Band 2E
A32: 6 | B32: Baginton Fields Academy | C32: 315071 | D32: 9 | E32: Dyari | F32: Muhammad | G32: 194 | H32: 2025-04-01 | I32: 2025-07-31 | J32: 17031.46275 | K32: 64 | L32: 5618.626887 | M32: 1 | N32: BF1F | O32: Coventry | T32: Band 1F
A33: 6 | B33: Baginton Fields Academy | C33: 268244 | D33: 15 | E33: Efrem Tekle | F33: Feelmona | G33: 194 | H33: 2025-04-01 | I33: 2025-05-23 | J33: 9694.83558 | K33: 28 | L33: 1399.25462 | M33: 0.43 | N33: BF2E | O33: Coventry | T33: Band 2E
A34: 6 | B34: Baginton Fields Academy | C34: 260010 | D34: 14 | E34: Ekalakala | F34: Eliezer | G34: 194 | H34: 2025-04-01 | I34: 2025-07-31 | J34: 9694.83558 | K34: 64 | L34: 3198.296274 | M34: 1 | N34: BF2E | O34: Coventry | T34: Band 2E
A35: 6 | B35: Baginton Fields Academy | C35: 416200 | D35: 15 | E35: Esseku-Otoo | F35: Nadia | G35: 194 | H35: 2025-04-01 | I35: 2025-07-31 | J35: 10480.89757 | K35: 64 | L35: 3457.615693 | M35: 1 | N35: BF1E | O35: Coventry | T35: Band 1E
A36: 6 | B36: Baginton Fields Academy | C36: 339829 | D36: 8 | E36: Fenton | F36: Alfie | G36: 194 | H36: 2025-04-01 | I36: 2025-07-31 | J36: 10480.89757 | K36: 64 | L36: 3457.615693 | M36: 1 | N36: BF1E | O36: Coventry | T36: Band 1E
A37: 6 | B37: Baginton Fields Academy | C37: 310536 | D37: 9 | E37: Forshew | F37: Sophie | G37: 194 | H37: 2025-04-01 | I37: 2025-07-31 | J37: 9694.83558 | K37: 64 | L37: 3198.296274 | M37: 1 | N37: BF2E | O37: Coventry | T37: Band 2E
A38: 6 | B38: Baginton Fields Academy | C38: 279401 | D38: 11 | E38: Gibson | F38: Libby | G38: 194 | H38: 2025-04-01 | I38: 2025-07-31 | J38: 17031.46275 | K38: 64 | L38: 5618.626887 | M38: 1 | N38: BF1F | O38: Coventry | T38: Band 1F
A39: 6 | B39: Baginton Fields Academy | C39: 224832 | D39: 15 | E39: Ginova-Pearson | F39: Denisa | G39: 194 | H39: 2025-04-01 | I39: 2025-07-25 | J39: 9694.83558 | K39: 64 | L39: 3198.296274 | M39: 1 | N39: BF2E | O39: Coventry | T39: Band 2E
A40: 6 | B40: Baginton Fields Academy | C40: 292034 | D40: 11 | E40: Gleeson | F40: Reece | G40: 194 | H40: 2025-04-01 | I40: 2025-07-31 | J40: 10480.89757 | K40: 64 | L40: 3457.615693 | M40: 1 | N40: BF1E | O40: Coventry | Q40: Baginton Fields Academy | T40: Band 1E
B41: Baginton Fields Academy | C41: 292034 | D41: 11 | E41: Gleeson | F41: Reece | G41: 194 | H41: 2025-04-01 | I41: 2025-07-31 | J41: 0.001 | K41: 64 | L41: 0.0003298969072 | M41: 1 | N41: SLTNHS | O41: Coventry | P41: Baginton Fields Academy | T41: Band HS
A42: 6 | B42: Baginton Fields Academy | C42: 280153 | D42: 12 | E42: Gryszkienas | F42: Santiago | G42: 194 | H42: 2025-04-01 | I42: 2025-07-31 | J42: 10480.89757 | K42: 64 | L42: 3457.615693 | M42: 1 | N42: BF1E | O42: Coventry | T42: Band 1E
A43: 6 | B43: Baginton Fields Academy | C43: 274311 | D43: 11 | E43: Gul | F43: Annum | G43: 194 | H43: 2025-04-01 | I43: 2025-07-31 | J43: 15721.34074 | K43: 64 | L43: 5186.421687 | M43: 1 | N43: BF2F | O43: Coventry | T43: Band 2F
A44: 6 | B44: Baginton Fields Academy | C44: 385928 | D44: 14 | E44: Hatem | F44: Ahmed | G44: 194 | H44: 2025-04-01 | I44: 2025-07-31 | J44: 26685.25108 | K44: 64 | L44: 8803.3818 | M44: 1 | N44: BF5E | O44: Coventry | T44: Band 5E
A45: 6 | B45: Baginton Fields Academy | C45: 385927 | D45: 15 | E45: Hatem | F45: Ibraheem | G45: 194 | H45: 2025-04-01 | I45: 2025-07-31 | J45: 26685.25108 | K45: 64 | L45: 8803.3818 | M45: 1 | N45: BF5E | O45: Coventry | T45: Band 5E
A46: 6 | B46: Baginton Fields Academy | C46: 354197 | D46: 8 | E46: Head | F46: Keira | G46: 194 | H46: 2025-04-01 | I46: 2025-07-31 | J46: 15721.34074 | K46: 64 | L46: 5186.421687 | M46: 1 | N46: BF2F | O46: Coventry | T46: Band 2F
A47: 6 | B47: Baginton Fields Academy | C47: 235853 | D47: 13 | E47: Hudson | F47: Elise | G47: 194 | H47: 2025-04-01 | I47: 2025-07-31 | J47: 9694.83558 | K47: 64 | L47: 3198.296274 | M47: 1 | N47: BF2E | O47: Coventry | T47: Band 2E
A48: 6 | B48: Baginton Fields Academy | C48: 236415 | D48: 15 | E48: Hughes | F48: Dylan | G48: 194 | H48: 2025-04-01 | I48: 2025-07-25 | J48: 9694.83558 | K48: 64 | L48: 3198.296274 | M48: 1 | N48: BF2E | O48: Coventry | T48: Band 2E
A49: 6 | B49: Baginton Fields Academy | C49: 309026 | D49: 9 | E49: Hussain | F49: Faizaan | G49: 194 | H49: 2025-04-01 | I49: 2025-07-31 | J49: 9694.83558 | K49: 64 | L49: 3198.296274 | M49: 1 | N49: BF2E | O49: Coventry | T49: Band 2E
A50: 6 | B50: Baginton Fields Academy | C50: 308818 | D50: 9 | E50: Hussain | F50: Sufyaan | G50: 194 | H50: 2025-04-01 | I50: 2025-07-31 | J50: 9694.83558 | K50: 64 | L50: 3198.296274 | M50: 1 | N50: BF2E | O50: Coventry | T50: Band 2E
A51: 6 | B51: Baginton Fields Academy | C51: 314210 | D51: 8 | E51: Hutchinson | F51: Jace | G51: 194 | H51: 2025-04-01 | I51: 2025-07-31 | J51: 26685.25108 | K51: 64 | L51: 8803.3818 | M51: 1 | N51: BF5E | O51: Coventry | T51: Band 5E
A52: 6 | B52: Baginton Fields Academy | C52: 297365 | D52: 11 | E52: Hyde | F52: Brody | G52: 194 | H52: 2025-04-01 | I52: 2025-07-31 | J52: 10480.89757 | K52: 64 | L52: 3457.615693 | M52: 1 | N52: BF1E | O52: Coventry | T52: Band 1E
A53: 6 | B53: Baginton Fields Academy | C53: 424886 | D53: 11 | E53: Igbokwe | F53: Francis | G53: 194 | H53: 2025-04-01 | I53: 2025-07-31 | J53: 15721.34074 | K53: 64 | L53: 5186.421687 | M53: 1 | N53: BF2F | O53: Coventry | T53: Band 2F
A54: 6 | B54: Baginton Fields Academy | C54: 293989 | D54: 10 | E54: Imran | F54: Isa | G54: 194 | H54: 2025-04-01 | I54: 2025-07-31 | J54: 9694.83558 | K54: 64 | L54: 3198.296274 | M54: 1 | N54: BF2E | O54: Coventry | T54: Band 2E
A55: 6 | B55: Baginton Fields Academy | C55: 274087 | D55: 11 | E55: Islam | F55: Mohammed sami | G55: 194 | H55: 2025-04-01 | I55: 2025-07-31 | J55: 17031.46275 | K55: 64 | L55: 5618.626887 | M55: 1 | N55: BF1F | O55: Coventry | T55: Band 1F
A56: 6 | B56: Baginton Fields Academy | C56: 380274 | D56: 15 | E56: Jadeszko | F56: Gabriel | G56: 194 | H56: 2025-04-01 | I56: 2025-07-25 | J56: 9694.83558 | K56: 64 | L56: 3198.296274 | M56: 1 | N56: BF2E | O56: Coventry | T56: Band 2E
A57: 6 | B57: Baginton Fields Academy | C57: 295189 | D57: 9 | E57: Janjua | F57: Muhammed | G57: 194 | H57: 2025-04-01 | I57: 2025-07-31 | J57: 15721.34074 | K57: 64 | L57: 5186.421687 | M57: 1 | N57: BF2F | O57: Coventry | T57: Band 2F
A58: 6 | B58: Baginton Fields Academy | C58: 261963 | D58: 13 | E58: Jones | F58: Ellis | G58: 194 | H58: 2025-04-01 | I58: 2025-07-31 | J58: 10480.89757 | K58: 64 | L58: 3457.615693 | M58: 1 | N58: BF1E | O58: Coventry | T58: Band 1E
A59: 6 | B59: Baginton Fields Academy | C59: 372048 | D59: 13 | E59: Jose | F59: Aannet | G59: 194 | H59: 2025-04-01 | I59: 2025-07-31 | J59: 17031.46275 | K59: 64 | L59: 5618.626887 | M59: 1 | N59: BF1F | O59: Coventry | T59: Band 1F
A60: 6 | B60: Baginton Fields Academy | C60: 264675 | D60: 12 | E60: Karamat | F60: Safiullah | G60: 194 | H60: 2025-04-01 | I60: 2025-07-31 | J60: 53370.50216 | K60: 64 | L60: 17606.7636 | M60: 1 | N60: BF5F | O60: Coventry | T60: Band 5F
A61: 6 | B61: Baginton Fields Academy | C61: 244102 | D61: 14 | E61: KASONGO | F61: Tony | G61: 194 | H61: 2025-04-01 | I61: 2025-07-31 | J61: 17031.46275 | K61: 64 | L61: 5618.626887 | M61: 1 | N61: BF1F | O61: Coventry | T61: Band 1F
A62: 6 | B62: Baginton Fields Academy | C62: 258687 | D62: 14 | E62: Kunasingam | F62: Harryshan | G62: 194 | H62: 2025-04-01 | I62: 2025-07-31 | J62: 17031.46275 | K62: 64 | L62: 5618.626887 | M62: 1 | N62: BF1F | O62: Coventry | T62: Band 1F
A63: 6 | B63: Baginton Fields Academy | C63: 445015 | D63: 14 | E63: Kurashvili | F63: Daniil | G63: 194 | H63: 2025-04-01 | I63: 2025-07-31 | J63: 26685.25108 | K63: 64 | L63: 8803.3818 | M63: 1 | N63: BF5E | O63: Coventry | T63: Band 5E
A64: 6 | B64: Baginton Fields Academy | C64: 341807 | D64: 8 | E64: Lane | F64: Roxana | G64: 194 | H64: 2025-04-01 | I64: 2025-07-31 | J64: 17031.46275 | K64: 64 | L64: 5618.626887 | M64: 1 | N64: BF1F | O64: Coventry | T64: Band 1F
A65: 6 | B65: Baginton Fields Academy | C65: 235762 | D65: 15 | E65: Leese | F65: Noah | G65: 194 | H65: 2025-04-01 | I65: 2025-07-25 | J65: 17031.46275 | K65: 64 | L65: 5618.626887 | M65: 1 | N65: BF1F | O65: Coventry | T65: Band 1F
A66: =IF(LEFT(N66,2)="BF",6,IF(LEFT(N66,2)="CW",1,IF(LEFT(N66,2)="CO",4,IF(LEFT(N66,2)="TS",2,IF(LEFT(N66,2)="RB",3,IF(LEFT(N66,2)="SF",7,IF(LEFT(N66,2)="TV",5,IF(LEFT(N66,2)="WF",8,"")))))))) -> 6 | B66: Baginton Fields Academy | C66: 283055 | D66: 12 | E66: Mack | F66: Paige | G66: 194 | H66: 2025-06-10 | I66: 2025-07-31 | J66: 26685.25108 | K66: 30 | L66: 4126.585219 | M66: 0.46 | N66: BF5E | O66: Coventry | P66: Baginton Fields Academy | T66: =IF(ISBLANK(A66),"",CONCATENATE($N$2," ",RIGHT(N66,2))) -> Band 5E
A67: 6 | B67: Baginton Fields Academy | C67: 283055 | D67: 12 | E67: Mack | F67: Paige | G67: 194 | H67: 2025-04-01 | I67: 2025-06-09 | J67: 9694.83558 | K67: 34 | L67: 1699.094895 | M67: 0.53 | N67: BF2E | O67: Coventry | Q67: Baginton Fields Academy | T67: Band 2E
A68: 6 | B68: Baginton Fields Academy | C68: 387240 | D68: 11 | E68: Madu | F68: Great | G68: 194 | H68: 2025-04-01 | I68: 2025-07-31 | J68: 15721.34074 | K68: 64 | L68: 5186.421687 | M68: 1 | N68: BF4F | O68: Coventry | T68: Band 4F
A69: 6 | B69: Baginton Fields Academy | C69: 248534 | D69: 14 | E69: MALANGU | F69: Sharon | G69: 194 | H69: 2025-04-01 | I69: 2025-07-31 | J69: 17031.46275 | K69: 64 | L69: 5618.626887 | M69: 1 | N69: BF1F | O69: Coventry | T69: Band 1F
A70: 6 | B70: Baginton Fields Academy | C70: 337203 | D70: 8 | E70: Malula | F70: Romeo | G70: 194 | H70: 2025-04-01 | I70: 2025-07-31 | J70: 17031.46275 | K70: 64 | L70: 5618.626887 | M70: 1 | N70: BF1F | O70: Coventry | T70: Band 1F
A71: 6 | B71: Baginton Fields Academy | C71: 300198 | D71: 10 | E71: Mburichen | F71: Onyekachukwu Ki | G71: 194 | H71: 2025-06-11 | I71: 2025-07-31 | J71: 17031.46275 | K71: 29 | L71: 2545.940308 | M71: 0.45 | N71: BF1F | O71: Coventry | P71: Baginton Fields Academy | T71: Band 1F
A72: 6 | B72: Baginton Fields Academy | C72: 300198 | D72: 10 | E72: Mburichen | F72: Onyekachukwu Ki | G72: 194 | H72: 2025-04-01 | I72: 2025-06-10 | J72: 26685.25108 | K72: 35 | L72: 4814.349422 | M72: 0.54 | N72: BF5E | O72: Coventry | Q72: Baginton Fields Academy | T72: Band 5E
A73: 6 | B73: Baginton Fields Academy | C73: 397316 | D73: 9 | E73: McDuke | F73: Jaedon | G73: 194 | H73: 2025-04-01 | I73: 2025-07-31 | J73: 17031.46275 | K73: 64 | L73: 5618.626887 | M73: 1 | N73: BF1F | O73: Coventry | T73: Band 1F
A74: 6 | B74: Baginton Fields Academy | C74: 280194 | D74: 11 | E74: McGowan | F74: Lucas | G74: 194 | H74: 2025-04-01 | I74: 2025-07-31 | J74: 9694.83558 | K74: 64 | L74: 3198.296274 | M74: 1 | N74: BF2E | O74: Coventry | T74: Band 2E
A75: 6 | B75: Baginton Fields Academy | C75: 283863 | D75: 12 | E75: McKinlay | F75: Maddox | G75: 194 | H75: 2025-04-01 | I75: 2025-07-25 | J75: 17031.46275 | K75: 64 | L75: 5618.626887 | M75: 1 | N75: BF1F | O75: Coventry | T75: Band 1F
A76: 6 | B76: Baginton Fields Academy | C76: 328417 | D76: 9 | E76: McKirdle | F76: Matthew | G76: 194 | H76: 2025-04-01 | I76: 2025-07-31 | J76: 17031.46275 | K76: 64 | L76: 5618.626887 | M76: 1 | N76: BF1F | O76: Coventry | T76: Band 1F
A77: 6 | B77: Baginton Fields Academy | C77: 312973 | D77: 10 | E77: McSheffrey | F77: Kayden | G77: 194 | H77: 2025-04-01 | I77: 2025-07-31 | J77: 10480.89757 | K77: 64 | L77: 3457.615693 | M77: 1 | N77: BF1E | O77: Coventry | T77: Band 1E
A78: 6 | B78: Baginton Fields Academy | C78: 303244 | D78: 9 | E78: Mitchell | F78: Angel | G78: 194 | H78: 2025-04-01 | I78: 2025-07-31 | J78: 10480.89757 | K78: 64 | L78: 3457.615693 | M78: 1 | N78: BF1E | O78: Coventry | T78: Band 1E
A79: 6 | B79: Baginton Fields Academy | C79: 404237 | D79: 14 | E79: Mohammed-Said | F79: Dia-Adin | G79: 194 | H79: 2025-04-01 | I79: 2025-07-31 | J79: 15721.34074 | K79: 64 | L79: 5186.421687 | M79: 1 | N79: BF2F | O79: Coventry | T79: Band 2F
A80: 6 | B80: Baginton Fields Academy | C80: 273338 | D80: 11 | E80: Molad | F80: Marwan | G80: 194 | H80: 2025-04-01 | I80: 2025-07-31 | J80: 9694.83558 | K80: 64 | L80: 3198.296274 | M80: 1 | N80: BF2E | O80: Coventry | T80: Band 2E
A81: 6 | B81: Baginton Fields Academy | C81: 287629 | D81: 12 | E81: Molad | F81: MOHAMAD | G81: 194 | H81: 2025-04-01 | I81: 2025-07-31 | J81: 9694.83558 | K81: 64 | L81: 3198.296274 | M81: 1 | N81: BF2E | O81: Coventry | T81: Band 2E
A82: 6 | B82: Baginton Fields Academy | C82: 238330 | D82: 13 | E82: Moseley | F82: Holly | G82: 194 | H82: 2025-04-01 | I82: 2025-07-31 | J82: 15721.34074 | K82: 64 | L82: 5186.421687 | M82: 1 | N82: BF2F | O82: Coventry | T82: Band 2F
A83: 6 | B83: Baginton Fields Academy | C83: 243547 | D83: 15 | E83: Moseley | F83: Thomas | G83: 194 | H83: 2025-04-01 | I83: 2025-07-25 | J83: 10480.89757 | K83: 64 | L83: 3457.615693 | M83: 1 | N83: BF1E | O83: Coventry | T83: Band 1E
A84: 6 | B84: Baginton Fields Academy | C84: 329917 | D84: 10 | E84: Moubeke | F84: Jayden | G84: 194 | H84: 2025-04-01 | I84: 2025-07-31 | J84: 10480.89757 | K84: 64 | L84: 3457.615693 | M84: 1 | N84: BF1E | O84: Coventry | T84: Band 1E
A85: 6 | B85: Baginton Fields Academy | C85: 289506 | D85: 9 | E85: Muhammad | F85: Awais | G85: 194 | H85: 2025-04-01 | I85: 2025-07-31 | J85: 9694.83558 | K85: 64 | L85: 3198.296274 | M85: 1 | N85: BF2E | O85: Coventry | T85: Band 2E
A86: 6 | B86: Baginton Fields Academy | C86: 284022 | D86: 12 | E86: Mula | F86: Elliot | G86: 194 | H86: 2025-04-01 | I86: 2025-07-31 | J86: 26685.25108 | K86: 64 | L86: 8803.3818 | M86: 1 | N86: BF5E | O86: Coventry | T86: Band 5E
A87: 6 | B87: Baginton Fields Academy | C87: 278584 | D87: 13 | E87: Mullin | F87: Harley | G87: 194 | H87: 2025-04-01 | I87: 2025-07-31 | J87: 26685.25108 | K87: 64 | L87: 8803.3818 | M87: 1 | N87: BF5E | O87: Coventry | T87: Band 5E
A88: 6 | B88: Baginton Fields Academy | C88: 226432 | D88: 15 | E88: Munir | F88: Aisha | G88: 194 | H88: 2025-04-01 | I88: 2025-07-31 | J88: 15721.34074 | K88: 64 | L88: 5186.421687 | M88: 1 | N88: BF2F | O88: Coventry | T88: Band 2F
A89: 6 | B89: Baginton Fields Academy | C89: 456536 | D89: 9 | E89: Muyyappally | F89: Richerd | G89: 194 | H89: 2025-04-01 | I89: 2025-07-31 | J89: 15721.34074 | K89: 64 | L89: 5186.421687 | M89: 1 | N89: BF2F | O89: Coventry | T89: Band 2F
A90: 6 | B90: Baginton Fields Academy | C90: 305707 | D90: 10 | E90: Mwangi | F90: Asher | G90: 194 | H90: 2025-04-01 | I90: 2025-07-31 | J90: 17031.46275 | K90: 64 | L90: 5618.626887 | M90: 1 | N90: BF1F | O90: Coventry | T90: Band 1F
A91: 6 | B91: Baginton Fields Academy | C91: 280586 | D91: 10 | E91: Navsarka | F91: Esa | G91: 194 | H91: 2025-04-01 | I91: 2025-07-31 | J91: 9694.83558 | K91: 64 | L91: 3198.296274 | M91: 1 | N91: BF2E | O91: Coventry | T91: Band 2E
A92: 6 | B92: Baginton Fields Academy | C92: 339545 | D92: 10 | E92: Ngemegwai | F92: Leonardo | G92: 194 | H92: 2025-04-01 | I92: 2025-07-31 | J92: 13101.11915 | K92: 64 | L92: 4322.018689 | M92: 1 | N92: BF4E | O92: Coventry | T92: Band 4E
A93: 6 | B93: Baginton Fields Academy | C93: 300090 | D93: 10 | E93: Nimpaye | F93: Don | G93: 194 | H93: 2025-04-01 | I93: 2025-07-31 | J93: 17031.46275 | K93: 64 | L93: 5618.626887 | M93: 1 | N93: BF1F | O93: Coventry | T93: Band 1F
A94: 6 | B94: Baginton Fields Academy | C94: 303271 | D94: 10 | E94: Njunga | F94: Trevelle | G94: 194 | H94: 2025-04-01 | I94: 2025-07-31 | J94: 17031.46275 | K94: 64 | L94: 5618.626887 | M94: 1 | N94: BF1F | O94: Coventry | T94: Band 1F
A95: 6 | B95: Baginton Fields Academy | C95: 368315 | D95: 13 | E95: Norman | F95: William | G95: 194 | H95: 2025-04-01 | I95: 2025-07-31 | J95: 17031.46275 | K95: 64 | L95: 5618.626887 | M95: 1 | N95: BF1F | O95: Coventry | T95: Band 1F
A96: 6 | B96: Baginton Fields Academy | C96: 292148 | D96: 10 | E96: Ntare | F96: Christopher | G96: 194 | H96: 2025-04-01 | I96: 2025-07-31 | J96: 10480.89757 | K96: 64 | L96: 3457.615693 | M96: 1 | N96: BF1E | O96: Coventry | T96: Band 1E
A97: 6 | B97: Baginton Fields Academy | C97: 386445 | D97: 15 | E97: Okorie | F97: Michael | G97: 194 | H97: 2025-04-01 | I97: 2025-07-31 | J97: 9694.83558 | K97: 64 | L97: 3198.296274 | M97: 1 | N97: BF2E | O97: Coventry | T97: Band 2E
A98: 6 | B98: Baginton Fields Academy | C98: 302911 | D98: 10 | E98: Omar | F98: Shano | G98: 194 | H98: 2025-04-01 | I98: 2025-07-31 | J98: 10480.89757 | K98: 64 | L98: 3457.615693 | M98: 1 | N98: BF1E | O98: Coventry | T98: Band 1E
A99: 6 | B99: Baginton Fields Academy | C99: 328478 | D99: 8 | E99: Osborne | F99: Billy | G99: 194 | H99: 2025-04-01 | I99: 2025-07-31 | J99: 17031.46275 | K99: 64 | L99: 5618.626887 | M99: 1 | N99: BF1F | O99: Coventry | T99: Band 1F
A100: 6 | B100: Baginton Fields Academy | C100: 249608 | D100: 13 | E100: Padan | F100: Rohan | G100: 194 | H100: 2025-04-01 | I100: 2025-07-31 | J100: 9694.83558 | K100: 64 | L100: 3198.296274 | M100: 1 | N100: BF2E | O100: Coventry | T100: Band 2E
A101: 6 | B101: Baginton Fields Academy | C101: 338886 | D101: 8 | E101: Parsons | F101: Sean | G101: 194 | H101: 2025-04-01 | I101: 2025-07-31 | J101: 10480.89757 | K101: 64 | L101: 3457.615693 | M101: 1 | N101: BF1E | O101: Coventry | T101: Band 1E
A102: 6 | B102: Baginton Fields Academy | C102: 289401 | D102: 10 | E102: Powers | F102: Jesse-James | G102: 194 | H102: 2025-04-01 | I102: 2025-07-31 | J102: 15721.34074 | K102: 64 | L102: 5186.421687 | M102: 1 | N102: BF4F | O102: Coventry | T102: Band 4F
A103: 6 | B103: Baginton Fields Academy | C103: 356183 | D103: 9 | E103: Rajarajan | F103: Arin | G103: 194 | H103: 2025-04-01 | I103: 2025-07-31 | J103: 9694.83558 | K103: 64 | L103: 3198.296274 | M103: 1 | N103: BF2E | O103: Coventry | T103: Band 2E
A104: 6 | B104: Baginton Fields Academy | C104: 276584 | D104: 13 | E104: Ray | F104: Jasmine | G104: 194 | H104: 2025-04-01 | I104: 2025-07-31 | J104: 9694.83558 | K104: 64 | L104: 3198.296274 | M104: 1 | N104: BF2E | O104: Coventry | T104: Band 2E
A105: 6 | B105: Baginton Fields Academy | C105: 334191 | D105: 9 | E105: Ricardo | F105: Emma | G105: 194 | H105: 2025-04-01 | I105: 2025-07-31 | J105: 17031.46275 | K105: 64 | L105: 5618.626887 | M105: 1 | N105: BF1F | O105: Coventry | T105: Band 1F
A106: 6 | B106: Baginton Fields Academy | C106: 277862 | D106: 13 | E106: Sahota | F106: Joydeep | G106: 194 | H106: 2025-04-01 | I106: 2025-07-31 | J106: 10480.89757 | K106: 64 | L106: 3457.615693 | M106: 1 | N106: BF1E | O106: Coventry | T106: Band 1E
A107: 6 | B107: Baginton Fields Academy | C107: 293411 | D107: 8 | E107: Sangi | F107: Setayesh | G107: 194 | H107: 2025-04-01 | I107: 2025-07-31 | J107: 9694.83558 | K107: 64 | L107: 3198.296274 | M107: 1 | N107: BF2E | O107: Coventry | T107: Band 2E
A108: 6 | B108: Baginton Fields Academy | C108: 304277 | D108: 8 | E108: Sardra | F108: Dylan | G108: 194 | H108: 2025-04-01 | I108: 2025-07-31 | J108: 10480.89757 | K108: 64 | L108: 3457.615693 | M108: 1 | N108: BF1E | O108: Coventry | T108: Band 1E
A109: 6 | B109: Baginton Fields Academy | C109: 285583 | D109: 9 | E109: Sarosh | F109: Usman | G109: 194 | H109: 2025-04-01 | I109: 2025-07-31 | J109: 9694.83558 | K109: 64 | L109: 3198.296274 | M109: 1 | N109: BF2E | O109: Warwickshire | T109: Band 2E
A110: 6 | B110: Baginton Fields Academy | C110: 299264 | D110: 10 | E110: Shahrjerdi | F110: Dara | G110: 194 | H110: 2025-04-01 | I110: 2025-07-31 | J110: 26685.25108 | K110: 64 | L110: 8803.3818 | M110: 1 | N110: BF5E | O110: Coventry | T110: Band 5E
A111: 6 | B111: Baginton Fields Academy | C111: 382154 | D111: 14 | E111: Singh | F111: Navbir | G111: 194 | H111: 2025-04-01 | I111: 2025-07-31 | J111: 17031.46275 | K111: 64 | L111: 5618.626887 | M111: 1 | N111: BF1F | O111: Coventry | T111: Band 1F
A112: 6 | B112: Baginton Fields Academy | C112: 268634 | D112: 11 | E112: Skvortsov-Kirsteine | F112: Jessica | G112: 194 | H112: 2025-04-01 | I112: 2025-07-31 | J112: 9694.83558 | K112: 64 | L112: 3198.296274 | M112: 1 | N112: BF2E | O112: Coventry | T112: Band 2E
A113: 6 | B113: Baginton Fields Academy | C113: 312250 | D113: 15 | E113: Smith | F113: Katie-Jayne | G113: 194 | H113: 2025-04-01 | I113: 2025-07-31 | J113: 17031.46275 | K113: 64 | L113: 5618.626887 | M113: 1 | N113: BF1F | O113: Coventry | T113: Band 1F
A114: 6 | B114: Baginton Fields Academy | C114: 384427 | D114: 14 | E114: Stokes | F114: Bradley | G114: 194 | H114: 2025-04-01 | I114: 2025-07-31 | J114: 9694.83558 | K114: 64 | L114: 3198.296274 | M114: 1 | N114: BF2E | O114: Coventry | T114: Band 2E
A115: 6 | B115: Baginton Fields Academy | C115: 343721 | D115: 14 | E115: Suleiman | F115: Mohammad | G115: 194 | H115: 2025-04-01 | I115: 2025-07-31 | J115: 17031.46275 | K115: 64 | L115: 5618.626887 | M115: 1 | N115: BF1F | O115: Coventry | T115: Band 1F
A116: 6 | B116: Baginton Fields Academy | C116: 253985 | D116: 12 | E116: Teensa | F116: Raul | G116: 194 | H116: 2025-04-01 | I116: 2025-07-31 | J116: 9694.83558 | K116: 64 | L116: 3198.296274 | M116: 1 | N116: BF2E | O116: Coventry | T116: Band 2E
